Workbook

Sheet Forside
B2: LCAbyg resultat import
B5: LCAbyg 5.2 resultatfil: | F5: C:\Users\rso\Desktop\Living Places, LCAbyg\4 til 1 Planet, kun GWP\Velux Living Places, Trækassette_CC_final_resultateksport.xlsx
B7: Indhent/opdater data: | F7: Vælg først LCAbyg resultatfil og tryk herefter på knappen "Opdater" for at indhente data!
B9: Slet manuel navngivning i fanen "Unikke lister"
B11: Bygningsdata
B12: År for ibrugtagning: | D12: =IF(Bygning!A12="","",Bygning!A12) -> 2022 | F12: =IF(D12<2020,"OBS! År for ibrugtagning må ikke være tidligere end 2020","") -> 
B13: Betragtningstid: | D13: =IF(Bygning!B12="","",Bygning!B12) -> 50 | E13: år
B14: Opvarmet etageareal, brutto: | D14: =IF(Bygning!A9="","",Bygning!A9) -> 147 | E14: m²
B15: Total etageareal, brutto: | D15: =IF(Bygning!B9="","",Bygning!B9) -> 147 | E15: m²
B17: Elforbrug: | D17: =IF(Bygning!A3="","",Bygning!A3) -> 5.1 | E17: kWh/m² år
B18: Varmeforbrug: | D18: =IF(Bygning!B3="","",Bygning!B3) -> 0 | E18: kWh/m² år
B21: OBS!
B23: Eksportfilen fra LCAbyg har for nuværende en fejl mellem indtastede mængder og resulter, som giver en fejl i dette ark. Undgå derfor LCAbyg filer, hvor der er konstruktioner/byggevarer med "minus" i "medregnes i beregning" !
B25: Arket kan for nuværende ikke indeholde mere end: | E25: Kontrol:
B26: - Bygningsdele: | C26: 100 | E26: =IF('Unikke lister'!Q101="",H26,H27) -> ✔ | H26: ✔
B27: - Konstruktioner: | C27: 200 | E27: =IF('Unikke lister'!Y201="",H26,H27) -> ✔ | H27: ✖
B28: - Byggevarer: | C28: 300 | E28: =IF('Unikke lister'!AS301="",H26,H27) -> ✔
B32: Version 2.0

Sheet LCA resultater
B2: LCAbyg resultater | U2: Akkumuleret klimabelastning
C4: A1-A3 | D4: A4 | E4: A5 | F4: B4 | G4: B6 | H4: C3 | I4: C4 | J4: D | K4: Total | L4: Materialer | M4: Drift | U4: År | V4: Indlejret | W4: Indlejret inkl. D | X4: Drift | Y4: Total | AA4: Dynamisk LCA - fremskrivningsfaktorer
B5: kg CO2eq. | C5: =SUM(Data[GWP a1_3]) -> -27700.16621 | D5: =SUM(Data[GWP a4]) -> 0 | E5: =SUM(Data[GWP a5]) -> 0 | F5: =SUM(Data[GWP b4]) -> 6873.443942 | G5: =(Forside!D17*Forside!D14*Betragtningstid*Bygning!K139)+(Forside!D18*Forside!D14*Betragtningstid*Bygning!L139) -> 2081.9169 | H5: =SUM(Data[GWP c3]) -> 44928.5352 | I5: =SUM(Data[GWP c4]) -> 1738.199094 | J5: =SUM(Data[GWP d]) -> -23132.87817 | K5: =SUM(C5:I5) -> 27921.92892 | L5: =K5-G5 -> 25840.01202 | M5: =G5 -> 2081.9169 | U5: Data indsættes manuelt fra LCAbyg i grå felter herunder!
B6: tons CO2eq. | C6: =C5/1000 -> -27.70016621 | D6: =D5/1000 -> 0 | E6: =E5/1000 -> 0 | F6: 6.873443942 | G6: 2.0819169 | H6: 44.9285352 | I6: 1.738199094 | J6: -23.13287817 | K6: =SUM(C6:I6) -> 27.92192892 | L6: =K6-G6 -> 25.84001202 | M6: =G6 -> 2.0819169 | U6: År | V6: Indlejret | W6: Indlejret inkl. D | X6: Drift | AA6: Faktor | AB6: Indlejret | AC6: Drift | AD6: Total
B7: kg CO2eq./m² år | C7: =C5/Betragtningstid/Bruttoareal -> -3.768730097 | D7: 0 | E7: =E5/Betragtningstid/Bruttoareal -> 0 | F7: 0.935162441 | G7: =G5/Betragtningstid/Forside!D14 -> 0.283254 | H7: 6.112725877 | I7: 0.2364896727 | J7: -3.147330363 | K7: =SUM(C7:I7) -> 3.798901894 | L7: 3.515647894 | M7: =G7 -> 0.283254 | U7: 2022 | V7: -27700.16621 | W7: -27700.16621 | X7: 159.23628 | Y7: =(V7+X7)/1000 -> -27.54092993 | AA7: 1 | AB7: =V7 -> -27700.16621 | AC7: =X7 -> 159.23628 | AD7: =(AB7+AC7)/1000 -> -27.54092993
B8: Andel | K8: =SUM(L8:M8) -> 1 | L8: =L7/K7 -> 0.9254379271 | M8: =M7/K7 -> 0.0745620729 | U8: 2023 | V8: -27700.16621 | W8: -27700.16621 | X8: 299.1303 | Y8: =(V8+X8)/1000 -> -27.40103591 | AA8: 0.9906 | AB8: =IF(V8=V7,V8,V7-(V7-V8)*AA8) -> -27700.16621 | AC8: =X8 -> 299.1303 | AD8: =(AB8+AC8)/1000 -> -27.40103591
B9: GenDk | C9: =SUMIF(Data[Kilde],'LCA resultater'!B9,Data[GWP a1_3])/Betragtningstid/Bruttoareal -> 0.4311626473 | D9: =SUMIF(Data[Kilde],'LCA resultater'!B9,Data[GWP a4])/Betragtningstid/Bruttoareal -> 0 | E9: =SUMIF(Data[Kilde],'LCA resultater'!B9,Data[GWP a5])/Betragtningstid/Bruttoareal -> 0 | F9: =SUMIF(Data[Kilde],'LCA resultater'!B9,Data[GWP b4])/Betragtningstid/Bruttoareal -> 0.2303167961 | G9: - | H9: =SUMIF(Data[Kilde],'LCA resultater'!B9,Data[GWP c3])/Betragtningstid/Bruttoareal -> 0.1087830211 | I9: =SUMIF(Data[Kilde],'LCA resultater'!B9,Data[GWP c4])/Betragtningstid/Bruttoareal -> 0.001817951871 | J9: =SUMIF(Data[Kilde],'LCA resultater'!B9,Data[GWP d])/Betragtningstid/Bruttoareal -> -0.2639311011 | K9: =SUM(B9:H9) -> 0.7702624645 | L9: =SUM(C9:I9)/$L$7 -> 0.219612555 | U9: 2024 | V9: -27700.16621 | W9: -27700.16621 | X9: 419.68206 | Y9: -27.28048415 | AA9: 0.9812 | AB9: -27700.16621 | AC9: 419.68206 | AD9: -27.28048415
B10: EPDDanmark | C10: =SUMIF(Data[Kilde],'LCA resultater'!B10,Data[GWP a1_3])/Betragtningstid/Bruttoareal -> -3.12200599 | D10: =SUMIF(Data[Kilde],'LCA resultater'!B10,Data[GWP a4])/Betragtningstid/Bruttoareal -> 0 | E10: =SUMIF(Data[Kilde],'LCA resultater'!B10,Data[GWP a5])/Betragtningstid/Bruttoareal -> 0 | F10: =SUMIF(Data[Kilde],'LCA resultater'!B10,Data[GWP b4])/Betragtningstid/Bruttoareal -> 0.2513201831 | G10: - | H10: =SUMIF(Data[Kilde],'LCA resultater'!B10,Data[GWP c3])/Betragtningstid/Bruttoareal -> 3.666598432 | I10: =SUMIF(Data[Kilde],'LCA resultater'!B10,Data[GWP c4])/Betragtningstid/Bruttoareal -> 0.003053267347 | J10: =SUMIF(Data[Kilde],'LCA resultater'!B10,Data[GWP d])/Betragtningstid/Bruttoareal -> -2.099676269 | K10: =SUM(B10:H10) -> 0.7959126254 | L10: =SUM(C10:I10)/$L$7 -> 0.2272599295 | U10: 2025 | V10: -27700.16621 | W10: -27700.16621 | X10: 520.89156 | Y10: -27.17927465 | AA10: 0.9718 | AB10: -27700.16621 | AC10: 520.89156 | AD10: -27.17927465
B11: User | C11: =SUMIF(Data[Kilde],'LCA resultater'!B11,Data[GWP a1_3])/Betragtningstid/Bruttoareal -> -1.077886754 | D11: =SUMIF(Data[Kilde],'LCA resultater'!B11,Data[GWP a4])/Betragtningstid/Bruttoareal -> 0 | E11: =SUMIF(Data[Kilde],'LCA resultater'!B11,Data[GWP a5])/Betragtningstid/Bruttoareal -> 0 | F11: =SUMIF(Data[Kilde],'LCA resultater'!B11,Data[GWP b4])/Betragtningstid/Bruttoareal -> 0.4535254618 | G11: - | H11: =SUMIF(Data[Kilde],'LCA resultater'!B11,Data[GWP c3])/Betragtningstid/Bruttoareal -> 2.337344424 | I11: =SUMIF(Data[Kilde],'LCA resultater'!B11,Data[GWP c4])/Betragtningstid/Bruttoareal -> 0.2316184535 | J11: =SUMIF(Data[Kilde],'LCA resultater'!B11,Data[GWP d])/Betragtningstid/Bruttoareal -> -0.7837229926 | K11: 1.712983132 | L11: 0.5531275155 | U11: 2026 | V11: -27700.16621 | W11: -27700.16621 | X11: 608.90634 | Y11: -27.09125987 | AA11: 0.9624 | AB11: -27700.16621 | AC11: 608.90634 | AD11: -27.09125987
U12: 2027 | V12: -27700.16621 | W12: -27700.16621 | X12: 683.7264 | Y12: -27.01643981 | AA12: 0.953 | AB12: -27700.16621 | AC12: 683.7264 | AD12: -27.01643981
U13: 2028 | V13: -27700.16621 | W13: -27700.16621 | X13: 745.35174 | Y13: -26.95481447 | AA13: 0.9464 | AB13: -27700.16621 | AC13: 745.35174 | AD13: -26.95481447
U14: 2029 | V14: -27700.16621 | W14: -27700.16621 | X14: 793.78236 | Y14: -26.90638385 | AA14: 0.9398 | AB14: -27700.16621 | AC14: 793.78236 | AD14: -26.90638385
U15: 2030 | V15: -27700.16621 | W15: -27700.16621 | X15: 829.01826 | Y15: -26.87114795 | AA15: 0.9332 | AB15: -27700.16621 | AC15: 829.01826 | AD15: -26.87114795
U16: 2031 | V16: -27700.16621 | W16: -27700.16621 | X16: 863.414496 | Y16: -26.83675171 | AA16: 0.9266 | AB16: -27700.16621 | AC16: 863.414496 | AD16: -26.83675171
U17: 2032 | V17: -27700.16621 | W17: -27700.16621 | X17: 896.971068 | Y17: -26.80319514 | AA17: 0.92 | AB17: -27700.16621 | AC17: 896.971068 | AD17: -26.80319514
U18: 2033 | V18: -27700.16621 | W18: -27700.16621 | X18: 929.687976 | Y18: -26.77047823 | AA18: 0.912 | AB18: -27700.16621 | AC18: 929.687976 | AD18: -26.77047823
U19: 2034 | V19: -27700.16621 | W19: -27700.16621 | X19: 961.56522 | Y19: -26.73860099 | AA19: 0.904 | AB19: -27700.16621 | AC19: 961.56522 | AD19: -26.73860099
U20: 2035 | V20: -27700.16621 | W20: -27700.16621 | X20: 992.6028 | Y20: -26.70756341 | AA20: 0.896 | AB20: -27700.16621 | AC20: 992.6028 | AD20: -26.70756341
U21: 2036 | V21: -27700.16621 | W21: -27700.16621 | X21: 1023.475446 | Y21: -26.67669076 | AA21: 0.888 | AB21: -27700.16621 | AC21: 1023.475446 | AD21: -26.67669076
U22: 2037 | V22: -27700.16621 | W22: -27700.16621 | X22: 1054.183158 | Y22: -26.64598305 | AA22: 0.88 | AB22: -27700.16621 | AC22: 1054.183158 | AD22: -26.64598305
U23: 2038 | V23: -27700.16621 | W23: -27700.16621 | X23: 1084.725936 | Y23: -26.61544027 | AA23: 0.8718 | AB23: -27700.16621 | AC23: 1084.725936 | AD23: -26.61544027
U24: 2039 | V24: -27700.16621 | W24: -27700.16621 | X24: 1115.10378 | Y24: -26.58506243 | AA24: 0.8636 | AB24: -27700.16621 | AC24: 1115.10378 | AD24: -26.58506243
U25: 2040 | V25: -27700.16621 | W25: -27700.16621 | X25: 1145.31669 | Y25: -26.55484952 | AA25: 0.8554 | AB25: -27700.16621 | AC25: 1145.31669 | AD25: -26.55484952
U26: 2041 | V26: -27700.16621 | W26: -27700.16621 | X26: 1175.5296 | Y26: -26.52463661 | AA26: 0.8472 | AB26: -27700.16621 | AC26: 1175.5296 | AD26: -26.52463661
U27: 2042 | V27: -27648.68469 | W27: -27655.32969 | X27: 1205.74251 | Y27: -26.44294218 | AA27: 0.839 | AB27: =IF(V27=V26,V27,V26-(V26-V27)*AA27) -> -27656.97322 | AC27: 1205.74251 | AD27: -26.45123071
U28: 2043 | V28: -27648.68469 | W28: -27655.32969 | X28: 1235.95542 | Y28: -26.41272927 | AA28: 0.8308 | AB28: =IF(V28=V27,V28,V27-(V27-V28)*AA28) -> -27648.68469 | AC28: 1235.95542 | AD28: -26.41272927
U29: 2044 | V29: -27648.68469 | W29: -27655.32969 | X29: 1266.16833 | Y29: -26.38251636 | AA29: 0.8226 | AB29: -27648.68469 | AC29: 1266.16833 | AD29: -26.38251636
U30: 2045 | V30: -27648.68469 | W30: -27655.32969 | X30: 1296.38124 | Y30: -26.35230345 | AA30: 0.8144 | AB30: -27648.68469 | AC30: 1296.38124 | AD30: -26.35230345
U31: 2046 | V31: -27648.68469 | W31: -27655.32969 | X31: 1326.59415 | Y31: -26.32209054 | AA31: 0.8062 | AB31: -27648.68469 | AC31: 1326.59415 | AD31: -26.32209054
U32: 2047 | V32: -26257.18469 | W32: -26642.22969 | X32: 1356.80706 | Y32: -24.90037763 | AA32: 0.798 | AB32: -26538.26769 | AC32: 1356.80706 | AD32: -25.18146063
U33: 2048 | V33: -26257.18469 | W33: -26642.22969 | X33: 1387.01997 | Y33: -24.87016472 | AA33: 0.7894 | AB33: -26257.18469 | AC33: 1387.01997 | AD33: -24.87016472
U34: 2049 | V34: -26257.18469 | W34: -26642.22969 | X34: 1417.23288 | Y34: -24.83995181 | AA34: 0.7808 | AB34: -26257.18469 | AC34: 1417.23288 | AD34: -24.83995181
U35: 2050 | V35: -26257.18469 | W35: -26642.22969 | X35: 1447.44579 | Y35: -24.8097389 | AA35: 0.7722 | AB35: -26257.18469 | AC35: 1447.44579 | AD35: -24.8097389
U36: 2051 | V36: -26257.18469 | W36: -26642.22969 | X36: 1477.6587 | Y36: -24.77952599 | AA36: 0.7636 | AB36: -26257.18469 | AC36: 1477.6587 | AD36: -24.77952599
U37: 2052 | V37: -22346.2046 | W37: -24541.39285 | X37: 1507.87161 | Y37: -20.83833299 | AA37: 0.755 | AB37: -23304.39473 | AC37: 1507.87161 | AD37: -21.79652312
U38: 2053 | V38: -22346.2046 | W38: -24541.39285 | X38: 1538.08452 | Y38: -20.80812008 | AA38: 0.7464 | AB38: -22346.2046 | AC38: 1538.08452 | AD38: -20.80812008
U39: 2054 | V39: -22346.2046 | W39: -24541.39285 | X39: 1568.29743 | Y39: -20.77790717 | AA39: 0.7378 | AB39: -22346.2046 | AC39: 1568.29743 | AD39: -20.77790717
U40: 2055 | V40: -22346.2046 | W40: -24541.39285 | X40: 1598.51034 | Y40: -20.74769426 | AA40: 0.7292 | AB40: -22346.2046 | AC40: 1598.51034 | AD40: -20.74769426
U41: 2056 | V41: -22346.2046 | W41: -24541.39285 | X41: 1628.72325 | Y41: -20.71748135 | AA41: 0.7206 | AB41: -22346.2046 | AC41: 1628.72325 | AD41: -20.71748135
U42: 2057 | V42: -22346.2046 | W42: -24541.39285 | X42: 1658.93616 | Y42: -20.68726844 | AA42: 0.712 | AB42: -22346.2046 | AC42: 1658.93616 | AD42: -20.68726844
U43: 2058 | V43: -22346.2046 | W43: -24541.39285 | X43: 1689.14907 | Y43: -20.65705553 | AA43: 0.7032 | AB43: -22346.2046 | AC43: 1689.14907 | AD43: -20.65705553
U44: 2059 | V44: -22346.2046 | W44: -24541.39285 | X44: 1719.36198 | Y44: -20.62684262 | AA44: 0.6944 | AB44: -22346.2046 | AC44: 1719.36198 | AD44: -20.62684262
U45: 2060 | V45: -22346.2046 | W45: -24541.39285 | X45: 1749.57489 | Y45: -20.59662971 | AA45: 0.6856 | AB45: -22346.2046 | AC45: 1749.57489 | AD45: -20.59662971
U46: 2061 | V46: -22346.2046 | W46: -24541.39285 | X46: 1779.7878 | Y46: -20.5664168 | AA46: 0.6768 | AB46: -22346.2046 | AC46: 1779.7878 | AD46: -20.5664168
U47: 2062 | V47: -20826.72227 | W47: -24252.89506 | X47: 1810.00071 | Y47: -19.01672156 | AA47: 0.668 | AB47: -21331.1904 | AC47: 1810.00071 | AD47: -19.52118969
U48: 2063 | V48: -20826.72227 | W48: -24252.89506 | X48: 1840.21362 | Y48: -18.98650865 | AA48: 0.659 | AB48: -20826.72227 | AC48: 1840.21362 | AD48: -18.98650865
U49: 2064 | V49: -20826.72227 | W49: -24252.89506 | X49: 1870.42653 | Y49: -18.95629574 | AA49: 0.65 | AB49: -20826.72227 | AC49: 1870.42653 | AD49: -18.95629574
U50: 2065 | V50: -20826.72227 | W50: -24252.89506 | X50: 1900.63944 | Y50: -18.92608283 | AA50: 0.641 | AB50: -20826.72227 | AC50: 1900.63944 | AD50: -18.92608283
U51: 2066 | V51: -20826.72227 | W51: -24252.89506 | X51: 1930.85235 | Y51: -18.89586992 | AA51: 0.632 | AB51: -20826.72227 | AC51: 1930.85235 | AD51: -18.89586992
U52: 2067 | V52: -20826.72227 | W52: -24252.89506 | X52: 1961.06526 | Y52: -18.86565701 | AA52: 0.623 | AB52: -20826.72227 | AC52: 1961.06526 | AD52: -18.86565701
U53: 2068 | V53: -20826.72227 | W53: -24252.89506 | X53: 1991.27817 | Y53: -18.8354441 | AA53: 0.614 | AB53: -20826.72227 | AC53: 1991.27817 | AD53: -18.8354441
U54: 2069 | V54: -20826.72227 | W54: -24252.89506 | X54: 2021.49108 | Y54: -18.80523119 | AA54: 0.605 | AB54: -20826.72227 | AC54: 2021.49108 | AD54: -18.80523119
U55: 2070 | V55: -20826.72227 | W55: -24252.89506 | X55: 2051.70399 | Y55: -18.77501828 | AA55: 0.596 | AB55: -20826.72227 | AC55: 2051.70399 | AD55: -18.77501828
U56: 2071 | V56: 25840.01202 | W56: 2707.133855 | X56: 2081.9169 | Y56: 27.92192892 | AA56: 0.587 | AB56: 6566.650761 | AC56: 2081.9169 | AD56: 8.648567661

Sheet Unikke lister
A1: Unik gruppe | B1: Vægt | E1: GWP | I1: Unik undergruppe | J1: Vægt | M1: GWP | Q1: Unik bygningsdel | R1: Vægt | U1: GWP | Y1: Unik konstruktion | Z1: Byggevarer er del af element | AA1: Nyt navn | AD1: Ny unikliste konstruktioner | AE1: Vægt | AH1: GWP | AS1: Unikke byggevarer | AV1: Vægt | AW1: GWP | AX1: Ny unikliste byggevarer | AY1: Vægt | BB1: GWP
A2: Navn | B2: Sum [kg] | C2: Procent | D2: Rækkefølge | E2: Sum [kg CO2] | F2: Procent | G2: Rækkefølge | I2: Navn | J2: Sum [kg] | K2: Procent | L2: Rækkefølge | M2: Sum [kg CO2] | N2: Procent | O2: Rækkefølge | Q2: Navn | R2: Sum [kg] | S2: Procent | T2: Rækkefølge | U2: Sum [kg CO2] | V2: Procent | W2: Rækkefølge | Y2: Navn | Z2: Angiv navn på byggeelement | AB2: Sum [kg] | AC2: Sum [kg CO2] | AD2: Navn | AE2: Sum [kg] | AF2: Procent | AG2: Rækkefølge | AH2: Sum [kg CO2] | AI2: Procent | AJ2: Rækkefølge | AM2: Byggevare | AN2: Konstruktion | AO2: - | AP2: Ny byggevare | AQ2: Vægt | AR2: GWP | AS2: Navn | AT2: Overskriv navn på byggevare | AV2: Sum [kg] | AW2: Sum [kg CO2] | AX2: Navn | AY2: Sum [kg] | AZ2: Procent | BA2: Rækkefølge | BB2: Sum [kg CO2] | BC2: Procent | BD2: Rækkefølge
A3: Alle bygningsgrupper | B3: =SUM(B4:B20) -> 46763.73322 | E3: =SUM(E4:E20) -> 25840.01202 | I3: Alle undergrupper | J3: =SUM(J4:J54) -> 46757.32322 | M3: =SUM(M4:M54) -> 25730.72682 | Q3: Alle bygningsdele | R3: =SUM(R4:R54) -> 46763.73322 | U3: =SUM(U4:U54) -> 25840.01202 | Y3: Alle konstruktioner | AA3: =IF(Y3="","",IF(Z3="",Y3,Z3)) -> Alle konstruktioner | AB3: =SUM(AB4:AB200) -> 46763.73322 | AC3: =SUM(AC4:AC200) -> 25840.01202 | AD3: Alle konstruktioner | AE3: =SUM(AE4:AE200) -> 46763.73322 | AH3: =SUM(AH4:AH200) -> 25840.01202 | AM3: Alle byggevarer | AQ3: =SUM(AQ4:AQ300) -> 46763.73322 | AR3: =SUM(AR4:AR300) -> 25840.01202 | AS3: Alle byggevarer | AV3: =SUM(AV4:AV300) -> 46763.73322 | AW3: =SUM(AW4:AW300) -> 25840.01202 | AX3: Alle byggevarer | AY3: =SUM(AY4:AY300) -> 46763.73322 | BB3: =SUM(BB4:BB300) -> 25840.01202
A4: Afløb | B4: =SUMIF(Data[Gruppe],'Unikke lister'!A4,Data[Vægt]) -> 68.925 | C4: =B4/$B$3 -> 0.00147389858 | D4: =IF(B4=0,"",_xlfn.RANK.EQ(B4,$B$4:$B$20,0)) -> 12 | E4: =SUMIF(Data[Gruppe],'Unikke lister'!A4,Data[GWP sum]) -> 490.9820727 | F4: =E4/$B$3 -> 0.01049920609 | G4: =IF(E4=0,"",_xlfn.RANK.EQ(E4,$E$4:$E$20,0)) -> 11 | I4: Faldstammer | J4: =SUMIF(Data[Undergruppe],'Unikke lister'!I4,Data[Vægt]) -> 37.5 | K4: =J4/$J$3 -> 0.0008020134049 | L4: =IF(J4=0,"",_xlfn.RANK.EQ(J4,$J$4:$J$55,0)) -> 17 | M4: =SUMIF(Data[Undergruppe],'Unikke lister'!I4,Data[GWP sum]) -> 455.571 | N4: =M4/$M$3 -> 0.01770532963 | O4: =IF(M4=0,"",_xlfn.RANK.EQ(M4,$M$4:$M$55,0)) -> 12 | Q4: =_xlfn.UNIQUE(Data[Bygningsdel],FALSE,FALSE) -> Afløbsrør | R4: =IF(Q4="","",SUMIF(Data[Bygningsdel],'Unikke lister'!Q4,Data[Vægt])) -> 37.5 | S4: =IF(Q4="","",R4/$R$3) -> 0.0008019034712 | T4: =IF(Q4="","",_xlfn.RANK.EQ(R4,$R$4:$R$100,0)) -> 19 | U4: =IF(Q4="","",SUMIF(Data[Bygningsdel],'Unikke lister'!Q4,Data[GWP sum])) -> 455.571 | V4: =IF(Q4="","",U4/$U$3) -> 0.01763044845 | W4: =IF(Q4="","",_xlfn.RANK.EQ(U4,$U$4:$U$100,0)) -> 13 | Y4: =_xlfn.UNIQUE(Data[Konstruktion],FALSE,FALSE) -> Afløbsrør, PP | AA4: =IF(Y4="","",IF(Z4="",Y4,Z4)) -> Afløbsrør, PP | AB4: =IF(Y4="","",SUMIF(Data[Konstruktion],'Unikke lister'!Y4,Data[Vægt])) -> 37.5 | AC4: =IF(Y4="","",SUMIF(Data[Konstruktion],'Unikke lister'!Y4,Data[GWP sum])) -> 455.571 | AD4: =_xlfn.UNIQUE(AA4:AA200) -> Afløbsrør, PP | AE4: =IF(AD4="","",SUMIF($AA$4:$AA$200,AD4,$AB$4:$AB$200)) -> 37.5 | AF4: =IF(AD4="","",AE4/$AE$3) -> 0.0008019034712 | AG4: =IF(AD4="","",_xlfn.RANK.EQ(AE4,$AE$4:$AE$200,0)) -> 37 | AH4: =IF(AD4="","",SUMIF($AA$4:$AA$200,AD4,$AC$4:$AC$200)) -> 455.571 | AI4: =IF(AD4="","",AH4/$AH$3) -> 0.01763044845 | AJ4: =IF(AD4="","",_xlfn.RANK.EQ(AH4,$AH$4:$AH$200,0)) -> 13 | AM4: =Data[Byggevare] -> Rør, Kloakrør PP | AN4: =Data[Konstruktion] -> Afløbsrør, PP | AO4: =IF(AN4="","",IFERROR(MATCH(AN4,$AD$4:$AD$1000,0),_xlfn.XLOOKUP(AN4,$Y$4:$Y$1000,$AA$4:$AA$1000,"",0))) -> 1 | AP4: =IF(AN4="","",IF(N(AO4)=0,AO4,AM4)) -> Rør, Kloakrør PP | AQ4: =Data[Vægt] -> 37.5 | AR4: =Data[GWP sum] -> 455.571 | AS4: =_xlfn.UNIQUE(AP4:AP1000) -> Rør, Kloakrør PP | AU4: =IF(AS4="","",IF(AT4="",AS4,AT4)) -> Rør, Kloakrør PP | AV4: =IF(AS4="","",SUMIF($AP$4:$AP$1000,AS4,$AQ$4:$AQ$1000)) -> 37.5 | AW4: =IF(AS4="","",SUMIF($AP$4:$AP$1000,AS4,$AR$4:$AR$1000)) -> 455.571 | AX4: =_xlfn.UNIQUE(AU4:AU300) -> Rør, Kloakrør PP | AY4: =IF(AX4="","",SUMIF($AU$4:$AU$300,AX4,$AV$4:$AV$300)) -> 37.5 | AZ4: =IF(AX4="","",AY4/$AY$3) -> 0.0008019034712 | BA4: =IF(AX4="","",_xlfn.RANK.EQ(AY4,$AY$4:$AY$300,0)) -> 30 | BB4: =IF(AX4="","",SUMIF($AU$4:$AU$300,AX4,$AW$4:$AW$300)) -> 455.571 | BC4: =IF(AX4="","",BB4/$BB$3) -> 0.01763044845 | BD4: =IF(AX4="","",_xlfn.RANK.EQ(BB4,$BB$4:$BB$300,0)) -> 18
A5: Altaner og altangange | B5: =SUMIF(Data[Gruppe],'Unikke lister'!A5,Data[Vægt]) -> 0 | C5: 0 | D5: =IF(B5=0,"",_xlfn.RANK.EQ(B5,$B$4:$B$20,0)) ->  | E5: =SUMIF(Data[Gruppe],'Unikke lister'!A5,Data[GWP sum]) -> 0 | F5: 0 | G5: =IF(E5=0,"",_xlfn.RANK.EQ(E5,$E$4:$E$20,0)) ->  | I5: Nedløb fra tag | J5: =SUMIF(Data[Undergruppe],'Unikke lister'!I5,Data[Vægt]) -> 31.425 | K5: =J5/$J$3 -> 0.0006720872333 | L5: =IF(J5=0,"",_xlfn.RANK.EQ(J5,$J$4:$J$55,0)) -> 18 | M5: =SUMIF(Data[Undergruppe],'Unikke lister'!I5,Data[GWP sum]) -> 35.4110727 | N5: =M5/$M$3 -> 0.001376217351 | O5: =IF(M5=0,"",_xlfn.RANK.EQ(M5,$M$4:$M$55,0)) -> 17 | Q5: Tagrende | R5: =IF(Q5="","",SUMIF(Data[Bygningsdel],'Unikke lister'!Q5,Data[Vægt])) -> 31.425 | S5: =IF(Q5="","",R5/$R$3) -> 0.0006719951089 | T5: =IF(Q5="","",_xlfn.RANK.EQ(R5,$R$4:$R$100,0)) -> 20 | U5: =IF(Q5="","",SUMIF(Data[Bygningsdel],'Unikke lister'!Q5,Data[GWP sum])) -> 35.4110727 | V5: =IF(Q5="","",U5/$U$3) -> 0.001370396913 | W5: =IF(Q5="","",_xlfn.RANK.EQ(U5,$U$4:$U$100,0)) -> 19 | Y5: Nedløbsrør | AA5: Nedløbsrør | AB5: =IF(Y5="","",SUMIF(Data[Konstruktion],'Unikke lister'!Y5,Data[Vægt])) -> 7.5 | AC5: =IF(Y5="","",SUMIF(Data[Konstruktion],'Unikke lister'!Y5,Data[GWP sum])) -> 8.45133 | AD5: Nedløbsrør | AE5: =IF(AD5="","",SUMIF($AA$4:$AA$200,AD5,$AB$4:$AB$200)) -> 7.5 | AF5: =IF(AD5="","",AE5/$AE$3) -> 0.0001603806942 | AG5: =IF(AD5="","",_xlfn.RANK.EQ(AE5,$AE$4:$AE$200,0)) -> 39 | AH5: =IF(AD5="","",SUMIF($AA$4:$AA$200,AD5,$AC$4:$AC$200)) -> 8.45133 | AI5: =IF(AD5="","",AH5/$AH$3) -> 0.0003270637023 | AJ5: =IF(AD5="","",_xlfn.RANK.EQ(AH5,$AH$4:$AH$200,0)) -> 40 | AM5: Stål, valsede profiler og plader | AN5: Nedløbsrør | AO5: =IF(AN5="","",IFERROR(MATCH(AN5,$AD$4:$AD$1000,0),_xlfn.XLOOKUP(AN5,$Y$4:$Y$1000,$AA$4:$AA$1000,"",0))) -> 2 | AP5: =IF(AN5="","",IF(N(AO5)=0,AO5,AM5)) -> Stål, valsede profiler og plader | AQ5: 7.5 | AR5: 8.45133 | AS5: Stål, valsede profiler og plader | AU5: =IF(AS5="","",IF(AT5="",AS5,AT5)) -> Stål, valsede profiler og plader | AV5: =IF(AS5="","",SUMIF($AP$4:$AP$1000,AS5,$AQ$4:$AQ$1000)) -> 31.425 | AW5: =IF(AS5="","",SUMIF($AP$4:$AP$1000,AS5,$AR$4:$AR$1000)) -> 35.4110727 | AX5: Stål, valsede profiler og plader | AY5: =IF(AX5="","",SUMIF($AU$4:$AU$300,AX5,$AV$4:$AV$300)) -> 31.425 | AZ5: =IF(AX5="","",AY5/$AY$3) -> 0.0006719951089 | BA5: =IF(AX5="","",_xlfn.RANK.EQ(AY5,$AY$4:$AY$300,0)) -> 33 | BB5: =IF(AX5="","",SUMIF($AU$4:$AU$300,AX5,$AW$4:$AW$300)) -> 35.4110727 | BC5: =IF(AX5="","",BB5/$BB$3) -> 0.001370396913 | BD5: =IF(AX5="","",_xlfn.RANK.EQ(BB5,$BB$4:$BB$300,0)) -> 32
A6: Andet | B6: =SUMIF(Data[Gruppe],'Unikke lister'!A6,Data[Vægt]) -> 0 | C6: 0 | E6: =SUMIF(Data[Gruppe],'Unikke lister'!A6,Data[GWP sum]) -> 0 | F6: 0 | I6: Altanbund | J6: =SUMIF(Data[Undergruppe],'Unikke lister'!I6,Data[Vægt]) -> 0 | K6: 0 | M6: =SUMIF(Data[Undergruppe],'Unikke lister'!I6,Data[GWP sum]) -> 0 | N6: 0 | Q6: Etagedæk, bjælkelag | R6: =IF(Q6="","",SUMIF(Data[Bygningsdel],'Unikke lister'!Q6,Data[Vægt])) -> 5343.0588 | S6: 0.114256464 | T6: 3 | U6: =IF(Q6="","",SUMIF(Data[Bygningsdel],'Unikke lister'!Q6,Data[GWP sum])) -> 1200.331331 | V6: 0.04645242926 | W6: 8 | Y6: Tagrende | AA6: Tagrende | AB6: =IF(Y6="","",SUMIF(Data[Konstruktion],'Unikke lister'!Y6,Data[Vægt])) -> 23.925 | AC6: =IF(Y6="","",SUMIF(Data[Konstruktion],'Unikke lister'!Y6,Data[GWP sum])) -> 26.9597427 | AD6: Tagrende | AE6: 23.925 | AF6: 0.0005116144147 | AG6: 38 | AH6: 26.9597427 | AI6: 0.00104333321 | AJ6: 36 | AM6: Stål, valsede profiler og plader | AN6: Tagrende | AO6: 3 | AP6: Stål, valsede profiler og plader | AQ6: 23.925 | AR6: 26.9597427 | AS6: Fastgørelsesmidler/skruer i galvaniseret stål | AU6: Fastgørelsesmidler/skruer i galvaniseret stål | AV6: 34.58872 | AW6: 122.9868374 | AX6: Fastgørelsesmidler/skruer i galvaniseret stål | AY6: 34.58872 | AZ6: 0.0007396483902 | BA6: 32 | BB6: 122.9868374 | BC6: 0.004759550317 | BD6: 25
A7: Dæk | B7: =SUMIF(Data[Gruppe],'Unikke lister'!A7,Data[Vægt]) -> 5343.0588 | C7: 0.114256464 | D7: 3 | E7: =SUMIF(Data[Gruppe],'Unikke lister'!A7,Data[GWP sum]) -> 1200.331331 | F7: 0.02566799628 | G7: 8 | I7: Rækværk | J7: =SUMIF(Data[Undergruppe],'Unikke lister'!I7,Data[Vægt]) -> 0 | K7: 0 | M7: =SUMIF(Data[Undergruppe],'Unikke lister'!I7,Data[GWP sum]) -> 0 | N7: 0 | Q7: Solceller | R7: =IF(Q7="","",SUMIF(Data[Bygningsdel],'Unikke lister'!Q7,Data[Vægt])) -> 201.4 | S7: 0.004306756243 | T7: 11 | U7: =IF(Q7="","",SUMIF(Data[Bygningsdel],'Unikke lister'!Q7,Data[GWP sum])) -> 1639.40554 | V7: 0.06344445732 | W7: 6 | Y7: Etagedæk 1. sal, 270 mm bjælkelag | AA7: Etagedæk 1. sal, 270 mm bjælkelag | AB7: =IF(Y7="","",SUMIF(Data[Konstruktion],'Unikke lister'!Y7,Data[Vægt])) -> 1072.5948 | AC7: =IF(Y7="","",SUMIF(Data[Konstruktion],'Unikke lister'!Y7,Data[GWP sum])) -> 154.4133756 | AD7: Etagedæk 1. sal, 270 mm bjælkelag | AE7: 1072.5948 | AF7: 0.02293646649 | AG7: 8 | AH7: 154.4133756 | AI7: 0.005975747049 | AJ7: 22 | AM7: Fastgørelsesmidler/skruer i galvaniseret stål | AN7: Etagedæk 1. sal, 270 mm bjælkelag | AO7: 4 | AP7: Fastgørelsesmidler/skruer i galvaniseret stål | AQ7: 12.03 | AR7: 42.7749756 | AS7: Savede og tørrede konstruktionstræprodukter af fyr og gran, Fobrænding | AT7: Konstruktionstræ | AU7: Konstruktionstræ | AV7: 12327.5788 | AW7: 1297.639874 | AX7: Konstruktionstræ | AY7: 12327.5788 | AZ7: 0.2636140862 | BA7: 1 | BB7: 1297.639874 | BC7: 0.050218238 | BD7: 9
A8: El- og mekaniske anlæg | B8: =SUMIF(Data[Gruppe],'Unikke lister'!A8,Data[Vægt]) -> 201.4 | C8: 0.004306756243 | D8: 11 | E8: =SUMIF(Data[Gruppe],'Unikke lister'!A8,Data[GWP sum]) -> 1639.40554 | F8: 0.03505719982 | G8: 6 | I8: Fastgørelse | J8: =SUMIF(Data[Undergruppe],'Unikke lister'!I8,Data[Vægt]) -> 0 | K8: 0 | M8: =SUMIF(Data[Undergruppe],'Unikke lister'!I8,Data[GWP sum]) -> 0 | N8: 0 | Q8: Skruefundament | R8: =IF(Q8="","",SUMIF(Data[Bygningsdel],'Unikke lister'!Q8,Data[Vægt])) -> 1442.43872 | S8: 0.03084524311 | T8: 6 | U8: =IF(Q8="","",SUMIF(Data[Bygningsdel],'Unikke lister'!Q8,Data[GWP sum])) -> 1038.397039 | V8: 0.04018562522 | W8: 10 | Y8: Etagedæk 2. sal, 230 mm bjælkelag | AA8: Etagedæk 2. sal, 230 mm bjælkelag | AB8: =IF(Y8="","",SUMIF(Data[Konstruktion],'Unikke lister'!Y8,Data[Vægt])) -> 1344.024 | AC8: =IF(Y8="","",SUMIF(Data[Konstruktion],'Unikke lister'!Y8,Data[GWP sum])) -> 209.794703 | AD8: Etagedæk 2. sal, 230 mm bjælkelag | AE8: 1344.024 | AF8: 0.02874073363 | AG8: 7 | AH8: 209.794703 | AI8: 0.008118986276 | AJ8: 18 | AM8: Savede og tørrede konstruktionstræprodukter af fyr og gran, Fobrænding | AN8: Etagedæk 1. sal, 270 mm bjælkelag | AO8: 4 | AP8: Savede og tørrede konstruktionstræprodukter af fyr og gran, Fobrænding | AQ8: 621.7104 | AR8: 65.4432 | AS8: Fermacell fiberplade 12,5 mm | AT8: Fibergips | AU8: Fibergips | AV8: 10095.4 | AW8: 917.9700336 | AX8: Fibergips | AY8: 10095.4 | AZ8: 0.2158809681 | BA8: 2 | BB8: 917.9700336 | BC8: 0.03552513957 | BD8: 12
A9: Fundamenter | B9: =SUMIF(Data[Gruppe],'Unikke lister'!A9,Data[Vægt]) -> 1442.43872 | C9: 0.03084524311 | D9: 7 | E9: =SUMIF(Data[Gruppe],'Unikke lister'!A9,Data[GWP sum]) -> 1038.397039 | F9: 0.0222051784 | G9: 10 | I9: Andet | J9: =SUMIF(Data[Undergruppe],'Unikke lister'!I9,Data[Vægt]) -> 0 | K9: 0 | M9: =SUMIF(Data[Undergruppe],'Unikke lister'!I9,Data[GWP sum]) -> 0 | N9: 0 | Q9: Indervægge | R9: =IF(Q9="","",SUMIF(Data[Bygningsdel],'Unikke lister'!Q9,Data[Vægt])) -> 3311.928 | S9: 0.07082257493 | T9: 5 | U9: =IF(Q9="","",SUMIF(Data[Bygningsdel],'Unikke lister'!Q9,Data[GWP sum])) -> 1113.642656 | V9: 0.04309760597 | W9: 9 | Y9: Etagedæk, 70 mm gulvopbygning | AA9: Etagedæk, 70 mm gulvopbygning | AB9: =IF(Y9="","",SUMIF(Data[Konstruktion],'Unikke lister'!Y9,Data[Vægt])) -> 2926.44 | AC9: =IF(Y9="","",SUMIF(Data[Konstruktion],'Unikke lister'!Y9,Data[GWP sum])) -> 836.1232519 | AD9: Etagedæk, 70 mm gulvopbygning | AE9: 2926.44 | AF9: 0.06257926385 | AG9: 4 | AH9: 836.1232519 | AI9: 0.03235769593 | AJ9: 9 | AM9: Savede og tørrede konstruktionstræprodukter af fyr og gran, Fobrænding | AN9: Etagedæk 1. sal, 270 mm bjælkelag | AO9: 4 | AP9: Savede og tørrede konstruktionstræprodukter af fyr og gran, Fobrænding | AQ9: 438.8544 | AR9: 46.1952 | AS9: Trinlydsdug - Scan Underlay | AT9: Gulvunderlag | AU9: Gulvunderlag | AV9: 117.6 | AW9: 58.83622864 | AX9: Gulvunderlag | AY9: 117.6 | AZ9: 0.002514769286 | BA9: 26 | BB9: 58.83622864 | BC9: 0.002276942773 | BD9: 30
A10: Indervægge | B10: =SUMIF(Data[Gruppe],'Unikke lister'!A10,Data[Vægt]) -> 3311.928 | C10: 0.07082257493 | D10: 5 | E10: =SUMIF(Data[Gruppe],'Unikke lister'!A10,Data[GWP sum]) -> 1113.642656 | F10: 0.02381423765 | G10: 9 | I10: Kælderdæk | J10: =SUMIF(Data[Undergruppe],'Unikke lister'!I10,Data[Vægt]) -> 0 | K10: 0 | M10: =SUMIF(Data[Undergruppe],'Unikke lister'!I10,Data[GWP sum]) -> 0 | N10: 0 | Q10: Træsøjle | R10: =IF(Q10="","",SUMIF(Data[Bygningsdel],'Unikke lister'!Q10,Data[Vægt])) -> 52 | S10: 0.001111972813 | T10: 16 | U10: =IF(Q10="","",SUMIF(Data[Bygningsdel],'Unikke lister'!Q10,Data[GWP sum])) -> 13.832 | V10: 0.0005352938686 | W10: 20 | Y10: Solceller, Sunpower | AA10: Solceller, Sunpower | AB10: =IF(Y10="","",SUMIF(Data[Konstruktion],'Unikke lister'!Y10,Data[Vægt])) -> 201.4 | AC10: =IF(Y10="","",SUMIF(Data[Konstruktion],'Unikke lister'!Y10,Data[GWP sum])) -> 1639.40554 | AD10: Solceller, Sunpower | AE10: 201.4 | AF10: 0.004306756243 | AG10: 26 | AH10: 1639.40554 | AI10: 0.06344445732 | AJ10: 5 | AM10: Fastgørelsesmidler/skruer i galvaniseret stål | AN10: Etagedæk 2. sal, 230 mm bjælkelag | AO10: 5 | AP10: Fastgørelsesmidler/skruer i galvaniseret stål | AQ10: 19.8 | AR10: 70.40270299 | AS10: Trægulv 14 mm ask - Tarkett Sverige | AT10: Traægulv | AU10: Traægulv | AV10: 955.9 | AW10: 557.81 | AX10: Traægulv | AY10: 955.9 | AZ10: 0.02044105408 | BA10: 8 | BB10: 557.81 | BC10: 0.02158706426 | BD10: 17
A11: Søjler og bjælker | B11: =SUMIF(Data[Gruppe],'Unikke lister'!A11,Data[Vægt]) -> 52 | C11: 0.001111972813 | D11: 13 | E11: =SUMIF(Data[Gruppe],'Unikke lister'!A11,Data[GWP sum]) -> 13.832 | F11: 0.0002957847684 | G11: 13 | I11: Etagedæk | J11: =SUMIF(Data[Undergruppe],'Unikke lister'!I11,Data[Vægt]) -> 5343.0588 | K11: 0.1142721275 | L11: 3 | M11: =SUMIF(Data[Undergruppe],'Unikke lister'!I11,Data[GWP sum]) -> 1200.331331 | N11: 0.04664972501 | O11: 7 | Q11: Tag, trækassette | R11: =IF(Q11="","",SUMIF(Data[Bygningsdel],'Unikke lister'!Q11,Data[Vægt])) -> 12661.062 | S11: 0.2707453218 | T11: 2 | U11: =IF(Q11="","",SUMIF(Data[Bygningsdel],'Unikke lister'!Q11,Data[GWP sum])) -> 5513.064098 | V11: 0.2133537745 | W11: 1 | Y11: Krinner V114x5-M24 | Z11: Skruefundament | AA11: Skruefundament | AB11: =IF(Y11="","",SUMIF(Data[Konstruktion],'Unikke lister'!Y11,Data[Vægt])) -> 112 | AC11: =IF(Y11="","",SUMIF(Data[Konstruktion],'Unikke lister'!Y11,Data[GWP sum])) -> 126.206528 | AD11: Skruefundament | AE11: 750 | AF11: 0.01603806942 | AG11: 11 | AH11: 845.133 | AI11: 0.03270637023 | AJ11: 8 | AM11: Savede og tørrede konstruktionstræprodukter af fyr og gran, Fobrænding | AN11: Etagedæk 2. sal, 230 mm bjælkelag | AO11: 5 | AP11: Savede og tørrede konstruktionstræprodukter af fyr og gran, Fobrænding | AQ11: 1324.224 | AR11: 139.392 | AS11: WISA Gran krydsfiner, ubehandlet, Fobrænding | AT11: Krydsfiner | AU11: Krydsfiner | AV11: 2867.04 | AW11: 1207.872 | AX11: Krydsfiner | AY11: 2867.04 | AZ11: 0.06130904875 | BA11: 6 | BB11: 1207.872 | BC11: 0.0467442507 | BD11: 11
A12: Tage | B12: =SUMIF(Data[Gruppe],'Unikke lister'!A12,Data[Vægt]) -> 12661.062 | C12: 0.2707453218 | D12: 2 | E12: =SUMIF(Data[Gruppe],'Unikke lister'!A12,Data[GWP sum]) -> 5513.064098 | F12: 0.117891873 | G12: 1 | I12: El-anlæg | J12: =SUMIF(Data[Undergruppe],'Unikke lister'!I12,Data[Vægt]) -> 0 | K12: 0 | M12: =SUMIF(Data[Undergruppe],'Unikke lister'!I12,Data[GWP sum]) -> 0 | N12: 0 | Q12: Terrændæk, trækassette | R12: =IF(Q12="","",SUMIF(Data[Bygningsdel],'Unikke lister'!Q12,Data[Vægt])) -> 4895.28 | S12: 0.1046811207 | T12: 4 | U12: =IF(Q12="","",SUMIF(Data[Bygningsdel],'Unikke lister'!Q12,Data[GWP sum])) -> 1523.631534 | V12: 0.05896404122 | W12: 7 | Y12: Krinner V114x5x2000 | Z12: Skruefundament | AA12: Skruefundament | AB12: =IF(Y12="","",SUMIF(Data[Konstruktion],'Unikke lister'!Y12,Data[Vægt])) -> 464 | AC12: =IF(Y12="","",SUMIF(Data[Konstruktion],'Unikke lister'!Y12,Data[GWP sum])) -> 522.855616 | AD12: Rem 200x185, limtræ | AE12: 297.37936 | AF12: 0.006359187762 | AG12: 23 | AH12: 83.64057941 | AI12: 0.003236863022 | AJ12: 31 | AM12: Fermacell fiberplade 12,5 mm | AN12: Etagedæk, 70 mm gulvopbygning | AO12: 6 | AP12: Fermacell fiberplade 12,5 mm | AQ12: 973.5 | AR12: 88.5199029 | AS12: Solceller, Sunpower | AU12: Solceller, Sunpower | AV12: 201.4 | AW12: 1639.40554 | AX12: Solceller, Sunpower | AY12: 201.4 | AZ12: 0.004306756243 | BA12: 20 | BB12: 1639.40554 | BC12: 0.06344445732 | BD12: 4
A13: Terrændæk | B13: =SUMIF(Data[Gruppe],'Unikke lister'!A13,Data[Vægt]) -> 4895.28 | C13: 0.1046811207 | D13: 4 | E13: =SUMIF(Data[Gruppe],'Unikke lister'!A13,Data[GWP sum]) -> 1523.631534 | F13: 0.03258147776 | G13: 7 | I13: Belysning | J13: =SUMIF(Data[Undergruppe],'Unikke lister'!I13,Data[Vægt]) -> 0 | K13: 0 | M13: =SUMIF(Data[Undergruppe],'Unikke lister'!I13,Data[GWP sum]) -> 0 | N13: 0 | Q13: Trappe | R13: =IF(Q13="","",SUMIF(Data[Bygningsdel],'Unikke lister'!Q13,Data[Vægt])) -> 274.3 | S13: 0.005865656591 | T13: 9 | U13: =IF(Q13="","",SUMIF(Data[Bygningsdel],'Unikke lister'!Q13,Data[GWP sum])) -> 71.29210526 | V13: 0.002758981118 | W13: 18 | Y13: Krinner V140x6,3-M24 | Z13: Skruefundament | AA13: Skruefundament | AB13: =IF(Y13="","",SUMIF(Data[Konstruktion],'Unikke lister'!Y13,Data[Vægt])) -> 30 | AC13: =IF(Y13="","",SUMIF(Data[Konstruktion],'Unikke lister'!Y13,Data[GWP sum])) -> 33.80532 | AD13: Rem 266x185, limtræ | AE13: 395.05936 | AF13: 0.008447985924 | AG13: 16 | AH13: 109.6234594 | AI13: 0.004242391966 | AJ13: 25 | AM13: Trinlydsdug - Scan Underlay | AN13: Etagedæk, 70 mm gulvopbygning | AO13: 6 | AP13: Trinlydsdug - Scan Underlay | AQ13: 69.3 | AR13: 34.67134902 | AS13: Skruefundament | AU13: Skruefundament | AV13: 750 | AW13: 845.133 | AX13: Skruefundament | AY13: 750 | AZ13: 0.01603806942 | BA13: 10 | BB13: 845.133 | BC13: 0.03270637023 | BD13: 13
A14: Trapper og ramper | B14: =SUMIF(Data[Gruppe],'Unikke lister'!A14,Data[Vægt]) -> 274.3 | C14: 0.005865656591 | D14: 9 | E14: =SUMIF(Data[Gruppe],'Unikke lister'!A14,Data[GWP sum]) -> 71.29210526 | F14: 0.001524516978 | G14: 12 | I14: Transportanlæg | J14: =SUMIF(Data[Undergruppe],'Unikke lister'!I14,Data[Vægt]) -> 0 | K14: 0 | M14: =SUMIF(Data[Undergruppe],'Unikke lister'!I14,Data[GWP sum]) -> 0 | N14: 0 | Q14: Vandrør | R14: =IF(Q14="","",SUMIF(Data[Bygningsdel],'Unikke lister'!Q14,Data[Vægt])) -> 39 | S14: 0.0008339796101 | T14: 18 | U14: =IF(Q14="","",SUMIF(Data[Bygningsdel],'Unikke lister'!Q14,Data[GWP sum])) -> 138.8361807 | V14: 0.005372914711 | W14: 15 | Y14: Krinner V140x6,3x2000 | Z14: Skruefundament | AA14: Skruefundament | AB14: =IF(Y14="","",SUMIF(Data[Konstruktion],'Unikke lister'!Y14,Data[Vægt])) -> 144 | AC14: =IF(Y14="","",SUMIF(Data[Konstruktion],'Unikke lister'!Y14,Data[GWP sum])) -> 162.265536 | AD14: 100 mm indervæg, fibergips | AE14: 666.575 | AF14: 0.0142541015 | AG14: 14 | AH14: 77.14269869 | AI14: 0.002985397167 | AJ14: 32 | AM14: Trægulv 14 mm ask - Tarkett Sverige | AN14: Etagedæk, 70 mm gulvopbygning | AO14: 6 | AP14: Trægulv 14 mm ask - Tarkett Sverige | AQ14: 521.4 | AR14: 304.26 | AS14: Limtræs-produkter af fyr og gran, Fobrænding | AT14: Limtræ | AU14: Limtræ | AV14: 741.68 | AW14: 197.28688 | AX14: Limtræ | AY14: 741.68 | AZ14: 0.01586015377 | BA14: 11 | BB14: 197.28688 | BC14: 0.007634937624 | BD14: 22
A15: Udendørs areal | B15: =SUMIF(Data[Gruppe],'Unikke lister'!A15,Data[Vægt]) -> 0 | C15: 0 | E15: =SUMIF(Data[Gruppe],'Unikke lister'!A15,Data[GWP sum]) -> 0 | F15: 0 | I15: Energiproduktion | J15: =SUMIF(Data[Undergruppe],'Unikke lister'!I15,Data[Vægt]) -> 201.4 | K15: 0.00430734666 | L15: 11 | M15: =SUMIF(Data[Undergruppe],'Unikke lister'!I15,Data[GWP sum]) -> 1639.40554 | N15: 0.06371392271 | O15: 5 | Q15: VVB og buffertank | R15: =IF(Q15="","",SUMIF(Data[Bygningsdel],'Unikke lister'!Q15,Data[Vægt])) -> 220 | S15: 0.004704500365 | T15: 10 | U15: =IF(Q15="","",SUMIF(Data[Bygningsdel],'Unikke lister'!Q15,Data[GWP sum])) -> 2077.5722 | V15: 0.08040136352 | W15: 5 | Y15: Rem 200x185, limtræ | AA15: Rem 200x185, limtræ | AB15: =IF(Y15="","",SUMIF(Data[Konstruktion],'Unikke lister'!Y15,Data[Vægt])) -> 297.37936 | AC15: =IF(Y15="","",SUMIF(Data[Konstruktion],'Unikke lister'!Y15,Data[GWP sum])) -> 83.64057941 | AD15: 100 mm indervæg, krydsfiner | AE15: 820.031 | AF15: 0.01753561881 | AG15: 9 | AH15: 370.2641698 | AI15: 0.01432910207 | AJ15: 16 | AM15: WISA Gran krydsfiner, ubehandlet, Fobrænding | AN15: Etagedæk, 70 mm gulvopbygning | AO15: 6 | AP15: WISA Gran krydsfiner, ubehandlet, Fobrænding | AQ15: 570.24 | AR15: 171.072 | AS15: Træfiberisolering (bats), kl. 38 - Hunton | AT15: Træfiberisolering, bats | AU15: Træfiberisolering, bats | AV15: 251.6 | AW15: 72.9969596 | AX15: Træfiberisolering, bats | AY15: 251.6 | AZ15: 0.00538023769 | BA15: 19 | BB15: 72.9969596 | BC15: 0.002824958422 | BD15: 29
A16: Vand | B16: =SUMIF(Data[Gruppe],'Unikke lister'!A16,Data[Vægt]) -> 259 | C16: 0.005538479975 | D16: 10 | E16: =SUMIF(Data[Gruppe],'Unikke lister'!A16,Data[GWP sum]) -> 2216.408381 | F16: 0.04739588198 | G16: 4 | I16: Andet (El- og mekaniske anlæg) | J16: =SUMIF(Data[Undergruppe],'Unikke lister'!I16,Data[Vægt]) -> 0 | K16: 0 | M16: =SUMIF(Data[Undergruppe],'Unikke lister'!I16,Data[GWP sum]) -> 0 | N16: 0 | Q16: Pumpe | R16: =IF(Q16="","",SUMIF(Data[Bygningsdel],'Unikke lister'!Q16,Data[Vægt])) -> 6.41 | S16: 0.0001370720334 | T16: 21 | U16: =IF(Q16="","",SUMIF(Data[Bygningsdel],'Unikke lister'!Q16,Data[GWP sum])) -> 109.2852 | V16: 0.004229301438 | W16: 16 | Y16: Rem 266x185, limtræ | AA16: Rem 266x185, limtræ | AB16: =IF(Y16="","",SUMIF(Data[Konstruktion],'Unikke lister'!Y16,Data[Vægt])) -> 395.05936 | AC16: =IF(Y16="","",SUMIF(Data[Konstruktion],'Unikke lister'!Y16,Data[GWP sum])) -> 109.6234594 | AD16: 100 mm indervæg, krydsfiner og fibergips | AE16: 163.315 | AF16: 0.003492343078 | AG16: 28 | AH16: 36.48296253 | AI16: 0.001411878698 | AJ16: 34 | AM16: WISA Gran krydsfiner, ubehandlet, Fobrænding | AN16: Etagedæk, 70 mm gulvopbygning | AO16: 6 | AP16: WISA Gran krydsfiner, ubehandlet, Fobrænding | AQ16: 792 | AR16: 237.6 | AS16: Keramikfliser, glaseret | AU16: Keramikfliser, glaseret | AV16: 600 | AW16: 189.79302 | AX16: Keramikfliser, glaseret | AY16: 600 | AZ16: 0.01283045554 | BA16: 15 | BB16: 189.79302 | BC16: 0.007344927697 | BD16: 23
A17: Varme | B17: =SUMIF(Data[Gruppe],'Unikke lister'!A17,Data[Vægt]) -> 356.6775029 | C17: 0.007627224737 | D17: 8 | E17: =SUMIF(Data[Gruppe],'Unikke lister'!A17,Data[GWP sum]) -> 1759.719142 | F17: 0.03762999701 | G17: 5 | I17: Randfundamenter | J17: =SUMIF(Data[Undergruppe],'Unikke lister'!I17,Data[Vægt]) -> 0 | K17: 0 | M17: =SUMIF(Data[Undergruppe],'Unikke lister'!I17,Data[GWP sum]) -> 0 | N17: 0 | Q17: Radiator | R17: =IF(Q17="","",SUMIF(Data[Bygningsdel],'Unikke lister'!Q17,Data[Vægt])) -> 141.3325029 | S17: 0.003022267324 | T17: 13 | U17: =IF(Q17="","",SUMIF(Data[Bygningsdel],'Unikke lister'!Q17,Data[GWP sum])) -> 590.6382241 | V17: 0.02285750578 | W17: 12 | Y17: 100 mm indervæg, fibergips | AA17: 100 mm indervæg, fibergips | AB17: =IF(Y17="","",SUMIF(Data[Konstruktion],'Unikke lister'!Y17,Data[Vægt])) -> 666.575 | AC17: =IF(Y17="","",SUMIF(Data[Konstruktion],'Unikke lister'!Y17,Data[GWP sum])) -> 77.14269869 | AD17: 110 mm indervæg mod bad, krydsfiner og fibergips med klinker | AE17: 341.778 | AF17: 0.007308612389 | AG17: 20 | AH17: 96.50860425 | AI17: 0.003734851368 | AJ17: 29 | AM17: Solceller, Sunpower | AN17: Solceller, Sunpower | AO17: 7 | AP17: Solceller, Sunpower | AQ17: 201.4 | AR17: 1639.40554 | AS17: Mørtel, fliseklæber | AU17: Mørtel, fliseklæber | AV17: 94.3 | AW17: 34.26878031 | AX17: Mørtel, fliseklæber | AY17: 94.3 | AZ17: 0.002016519929 | BA17: 27 | BB17: 34.26878031 | BC17: 0.001326190571 | BD17: 33
A18: Ventilation og køl | B18: =SUMIF(Data[Gruppe],'Unikke lister'!A18,Data[Vægt]) -> 1.525 | C18: 3.261074116e-05 | D18: 14 | E18: =SUMIF(Data[Gruppe],'Unikke lister'!A18,Data[GWP sum]) -> 4.649506879 | F18: 9.94254855e-05 | G18: 14 | I18: Stribefundamenter under bærende indervægge | J18: =SUMIF(Data[Undergruppe],'Unikke lister'!I18,Data[Vægt]) -> 0 | K18: 0 | M18: =SUMIF(Data[Undergruppe],'Unikke lister'!I18,Data[GWP sum]) -> 0 | N18: 0 | Q18: Varmepumpe | R18: =IF(Q18="","",SUMIF(Data[Bygningsdel],'Unikke lister'!Q18,Data[Vægt])) -> 83.08 | S18: 0.00177659041 | T18: 15 | U18: =IF(Q18="","",SUMIF(Data[Bygningsdel],'Unikke lister'!Q18,Data[GWP sum])) -> 611.7642424 | V18: 0.02367507576 | W18: 11 | Y18: 100 mm indervæg, krydsfiner | AA18: 100 mm indervæg, krydsfiner | AB18: =IF(Y18="","",SUMIF(Data[Konstruktion],'Unikke lister'!Y18,Data[Vægt])) -> 820.031 | AC18: =IF(Y18="","",SUMIF(Data[Konstruktion],'Unikke lister'!Y18,Data[GWP sum])) -> 370.2641698 | AD18: 150 mm indervæg mod bad, krydsfiner og fibergips med klinker | AE18: 368.394 | AF18: 0.007877771397 | AG18: 18 | AH18: 101.1959404 | AI18: 0.003916249743 | AJ18: 28 | AM18: Stål, valsede profiler og plader | AN18: Krinner V114x5-M24 | AO18: Skruefundament | AP18: Skruefundament | AQ18: 112 | AR18: 126.206528 | AS18: Vandtætningsmembran, flydende | AU18: Vandtætningsmembran, flydende | AV18: 36 | AW18: 40.055868 | AX18: Vandtætningsmembran, flydende | AY18: 36 | AZ18: 0.0007698273324 | BA18: 31 | BB18: 40.055868 | BC18: 0.001550148969 | BD18: 31
A19: Vinduer, døre, glasfacader | B19: =SUMIF(Data[Gruppe],'Unikke lister'!A19,Data[Vægt]) -> 1509.3835 | C19: 0.03227679648 | D19: 6 | E19: =SUMIF(Data[Gruppe],'Unikke lister'!A19,Data[GWP sum]) -> 5133.581915 | F19: 0.1097769909 | G19: 2 | I19: Punktfundament | J19: =SUMIF(Data[Undergruppe],'Unikke lister'!I19,Data[Vægt]) -> 1442.43872 | K19: 0.03084947171 | L19: 6 | M19: =SUMIF(Data[Undergruppe],'Unikke lister'!I19,Data[GWP sum]) -> 1038.397039 | N19: 0.04035630419 | O19: 9 | Q19: Varmerør | R19: =IF(Q19="","",SUMIF(Data[Bygningsdel],'Unikke lister'!Q19,Data[Vægt])) -> 125.855 | S19: 0.00269129497 | T19: 14 | U19: =IF(Q19="","",SUMIF(Data[Bygningsdel],'Unikke lister'!Q19,Data[GWP sum])) -> 448.031475 | V19: 0.01733867131 | W19: 14 | Y19: 100 mm indervæg, krydsfiner og fibergips | AA19: 100 mm indervæg, krydsfiner og fibergips | AB19: =IF(Y19="","",SUMIF(Data[Konstruktion],'Unikke lister'!Y19,Data[Vægt])) -> 163.315 | AC19: =IF(Y19="","",SUMIF(Data[Konstruktion],'Unikke lister'!Y19,Data[GWP sum])) -> 36.48296253 | AD19: 45 mm indervæg mod skakt, krydsfiner | AE19: 366.96 | AF19: 0.007847106608 | AG19: 19 | AH19: 195.36 | AI19: 0.007560367999 | AJ19: 20 | AM19: Stål, valsede profiler og plader | AN19: Krinner V114x5x2000 | AO19: Skruefundament | AP19: Skruefundament | AQ19: 464 | AR19: 522.855616 | AS19: Asfaltimprægneret porøs træfiberplade, 18 mm - Hunton Undertag | AT19: Hunton Undertag | AU19: Hunton Undertag | AV19: 709.734 | AW19: 1240.877325 | AX19: Hunton Undertag | AY19: 709.734 | AZ19: 0.01517701755 | BA19: 13 | BB19: 1240.877325 | BC19: 0.04802154596 | BD19: 10
A20: Ydervægge | B20: =SUMIF(Data[Gruppe],'Unikke lister'!A20,Data[Vægt]) -> 16386.7547 | C20: 0.3504158794 | D20: 1 | E20: =SUMIF(Data[Gruppe],'Unikke lister'!A20,Data[GWP sum]) -> 4121.074703 | F20: 0.08812544293 | G20: 3 | I20: Pælefundering | J20: =SUMIF(Data[Undergruppe],'Unikke lister'!I20,Data[Vægt]) -> 0 | K20: 0 | M20: =SUMIF(Data[Undergruppe],'Unikke lister'!I20,Data[GWP sum]) -> 0 | N20: 0 | Q20: Afkast emhætte | R20: =IF(Q20="","",SUMIF(Data[Bygningsdel],'Unikke lister'!Q20,Data[Vægt])) -> 1.525 | S20: 3.261074116e-05 | T20: 22 | U20: =IF(Q20="","",SUMIF(Data[Bygningsdel],'Unikke lister'!Q20,Data[GWP sum])) -> 4.649506879 | V20: 0.000179934393 | W20: 22 | Y20: 110 mm indervæg mod bad, krydsfiner og fibergips med klinker | AA20: 110 mm indervæg mod bad, krydsfiner og fibergips med klinker | AB20: =IF(Y20="","",SUMIF(Data[Konstruktion],'Unikke lister'!Y20,Data[Vægt])) -> 341.778 | AC20: =IF(Y20="","",SUMIF(Data[Konstruktion],'Unikke lister'!Y20,Data[GWP sum])) -> 96.50860425 | AD20: 60 mm skunkvægge, krydsfiner | AE20: 207.84 | AF20: 0.004444469799 | AG20: 25 | AH20: 93.12 | AI20: 0.003603713493 | AJ20: 30 | AM20: Stål, valsede profiler og plader | AN20: Krinner V140x6,3-M24 | AO20: Skruefundament | AP20: Skruefundament | AQ20: 30 | AR20: 33.80532 | AS20: Dampspærre PE (tykkelse 0,0002 m) | AT20: Dampspærre | AU20: Dampspærre | AV20: 67.8 | AW20: 444.240075 | AX20: Dampspærre | AY20: 67.8 | AZ20: 0.001449841476 | BA20: 28 | BB20: 444.240075 | BC20: 0.01719194537 | BD20: 19
I21: Ikke-bærende indervægge i kælderen | J21: =SUMIF(Data[Undergruppe],'Unikke lister'!I21,Data[Vægt]) -> 0 | K21: 0 | M21: =SUMIF(Data[Undergruppe],'Unikke lister'!I21,Data[GWP sum]) -> 0 | N21: 0 | Q21: Indvendige døre | R21: =IF(Q21="","",SUMIF(Data[Bygningsdel],'Unikke lister'!Q21,Data[Vægt])) -> 177.43 | S21: 0.003794179544 | T21: 12 | U21: =IF(Q21="","",SUMIF(Data[Bygningsdel],'Unikke lister'!Q21,Data[GWP sum])) -> 107.1721176 | V21: 0.004147525843 | W21: 17 | Y21: 150 mm indervæg mod bad, krydsfiner og fibergips med klinker | AA21: 150 mm indervæg mod bad, krydsfiner og fibergips med klinker | AB21: =IF(Y21="","",SUMIF(Data[Konstruktion],'Unikke lister'!Y21,Data[Vægt])) -> 368.394 | AC21: =IF(Y21="","",SUMIF(Data[Konstruktion],'Unikke lister'!Y21,Data[GWP sum])) -> 101.1959404 | AD21: 80 mm indervæg, krydsfiner | AE21: 59.835 | AF21: 0.001279517179 | AG21: 33 | AH21: 28.84958513 | AI21: 0.001116469493 | AJ21: 35 | AM21: Stål, valsede profiler og plader | AN21: Krinner V140x6,3x2000 | AO21: Skruefundament | AP21: Skruefundament | AQ21: 144 | AR21: 162.265536 | AS21: Galvaniseret stålplade - Plannja | AT21: Zink-Magnesium tag | AU21: Zink-Magnesium tag | AV21: 610.5 | AW21: 1589.260315 | AX21: Zink-Magnesium tag | AY21: 610.5 | AZ21: 0.01305498851 | BA21: 14 | BB21: 1589.260315 | BC21: 0.06150385356 | BD21: 5
I22: Bærende indervægge i kælderen | J22: =SUMIF(Data[Undergruppe],'Unikke lister'!I22,Data[Vægt]) -> 0 | K22: 0 | M22: =SUMIF(Data[Undergruppe],'Unikke lister'!I22,Data[GWP sum]) -> 0 | N22: 0 | Q22: Udvendig dør | R22: =IF(Q22="","",SUMIF(Data[Bygningsdel],'Unikke lister'!Q22,Data[Vægt])) -> 50.841 | S22: 0.00108718865 | T22: 17 | U22: =IF(Q22="","",SUMIF(Data[Bygningsdel],'Unikke lister'!Q22,Data[GWP sum])) -> 10.56779758 | V22: 0.0004089703041 | W22: 21 | Y22: 45 mm indervæg mod skakt, krydsfiner | AA22: 45 mm indervæg mod skakt, krydsfiner | AB22: =IF(Y22="","",SUMIF(Data[Konstruktion],'Unikke lister'!Y22,Data[Vægt])) -> 366.96 | AC22: =IF(Y22="","",SUMIF(Data[Konstruktion],'Unikke lister'!Y22,Data[GWP sum])) -> 195.36 | AD22: Klinkebeklædning på badeværelse | AE22: 317.2 | AF22: 0.006783034162 | AG22: 21 | AH22: 114.7186955 | AI22: 0.004439575934 | AJ22: 24 | AM22: Fastgørelsesmidler/skruer i galvaniseret stål | AN22: Rem 200x185, limtræ | AO22: 9 | AP22: Fastgørelsesmidler/skruer i galvaniseret stål | AQ22: 1.37936 | AR22: 4.904579414 | AS22: OSB2 Unsanded, Kronospan | AT22: OSB plade | AU22: OSB plade | AV22: 3107.34 | AW22: 1349.91 | AX22: OSB plade | AY22: 3107.34 | AZ22: 0.0664476462 | BA22: 4 | BB22: 1349.91 | BC22: 0.05224107476 | BD22: 8
I23: Ikke-bærende indervægge | J23: =SUMIF(Data[Undergruppe],'Unikke lister'!I23,Data[Vægt]) -> 0 | K23: 0 | M23: =SUMIF(Data[Undergruppe],'Unikke lister'!I23,Data[GWP sum]) -> 0 | N23: 0 | Q23: Facadevinduer | R23: =IF(Q23="","",SUMIF(Data[Bygningsdel],'Unikke lister'!Q23,Data[Vægt])) -> 752.4 | S23: 0.01608939125 | T23: 7 | U23: =IF(Q23="","",SUMIF(Data[Bygningsdel],'Unikke lister'!Q23,Data[GWP sum])) -> 2783 | V23: 0.1077011883 | W23: 3 | Y23: 60 mm skunkvægge, krydsfiner | AA23: 60 mm skunkvægge, krydsfiner | AB23: =IF(Y23="","",SUMIF(Data[Konstruktion],'Unikke lister'!Y23,Data[Vægt])) -> 207.84 | AC23: =IF(Y23="","",SUMIF(Data[Konstruktion],'Unikke lister'!Y23,Data[GWP sum])) -> 93.12 | AD23: Limtræssøjle 140 x 140 mm | AE23: 52 | AF23: 0.001111972813 | AG23: 34 | AH23: 13.832 | AI23: 0.0005352938686 | AJ23: 38 | AM23: Limtræs-produkter af fyr og gran, Fobrænding | AN23: Rem 200x185, limtræ | AO23: 9 | AP23: Limtræs-produkter af fyr og gran, Fobrænding | AQ23: 296 | AR23: 78.736 | AS23: Papirisolering kl 37 - ISOCELL | AT23: Papirisolering | AU23: Papirisolering | AV23: 4965.77 | AW23: 1519.3574 | AX23: Papirisolering | AY23: 4965.77 | AZ23: 0.1061884853 | BA23: 3 | BB23: 1519.3574 | BC23: 0.05879863363 | BD23: 6
I24: Bærende indervægge | J24: =SUMIF(Data[Undergruppe],'Unikke lister'!I24,Data[Vægt]) -> 3311.928 | K24: 0.07083228405 | L24: 5 | M24: =SUMIF(Data[Undergruppe],'Unikke lister'!I24,Data[GWP sum]) -> 1113.642656 | N24: 0.0432806529 | O24: 8 | Q24: Ovenlys | R24: =IF(Q24="","",SUMIF(Data[Bygningsdel],'Unikke lister'!Q24,Data[Vægt])) -> 528.7125 | S24: 0.01130603704 | T24: 8 | U24: =IF(Q24="","",SUMIF(Data[Bygningsdel],'Unikke lister'!Q24,Data[GWP sum])) -> 2232.842 | V24: 0.08641025391 | W24: 4 | Y24: 80 mm indervæg, krydsfiner | AA24: 80 mm indervæg, krydsfiner | AB24: =IF(Y24="","",SUMIF(Data[Konstruktion],'Unikke lister'!Y24,Data[Vægt])) -> 59.835 | AC24: =IF(Y24="","",SUMIF(Data[Konstruktion],'Unikke lister'!Y24,Data[GWP sum])) -> 28.84958513 | AD24: Tagkassette, ståltag | AE24: 10885.992 | AF24: 0.2327870606 | AG24: 2 | AH24: 4973.252583 | AI24: 0.1924632457 | AJ24: 1 | AM24: Fastgørelsesmidler/skruer i galvaniseret stål | AN24: Rem 266x185, limtræ | AO24: 10 | AP24: Fastgørelsesmidler/skruer i galvaniseret stål | AQ24: 1.37936 | AR24: 4.904579414 | AS24: Derbigum NT | AT24: Tagpap | AU24: Tagpap | AV24: 132.15 | AW24: 154.444545 | AX24: Tagpap | AY24: 132.15 | AZ24: 0.002825907833 | BA24: 25 | BB24: 154.444545 | BC24: 0.005976953295 | BD24: 24
I25: Søjler | J25: =SUMIF(Data[Undergruppe],'Unikke lister'!I25,Data[Vægt]) -> 52 | K25: 0.001112125255 | L25: 15 | M25: =SUMIF(Data[Undergruppe],'Unikke lister'!I25,Data[GWP sum]) -> 13.832 | N25: 0.0005375674032 | O25: 18 | Q25: Ydervæg, trækassette | R25: =IF(Q25="","",SUMIF(Data[Bygningsdel],'Unikke lister'!Q25,Data[Vægt])) -> 16386.7547 | S25: 0.3504158794 | T25: 1 | U25: =IF(Q25="","",SUMIF(Data[Bygningsdel],'Unikke lister'!Q25,Data[GWP sum])) -> 4121.074703 | V25: 0.1594842409 | W25: 2 | Y25: Klinkebeklædning på badeværelse | AA25: Klinkebeklædning på badeværelse | AB25: =IF(Y25="","",SUMIF(Data[Konstruktion],'Unikke lister'!Y25,Data[Vægt])) -> 317.2 | AC25: =IF(Y25="","",SUMIF(Data[Konstruktion],'Unikke lister'!Y25,Data[GWP sum])) -> 114.7186955 | AD25: Tagkassette, tagpap | AE25: 1775.07 | AF25: 0.03795826119 | AG25: 6 | AH25: 539.8115145 | AI25: 0.02089052877 | AJ25: 12 | AM25: Limtræs-produkter af fyr og gran, Fobrænding | AN25: Rem 266x185, limtræ | AO25: 10 | AP25: Limtræs-produkter af fyr og gran, Fobrænding | AQ25: 393.68 | AR25: 104.71888 | AS25: Afretningslag, cementbaseret | AU25: Afretningslag, cementbaseret | AV25: 600 | AW25: 119.1339 | AX25: Afretningslag, cementbaseret | AY25: 600 | AZ25: 0.01283045554 | BA25: 15 | BB25: 119.1339 | BC25: 0.004610442901 | BD25: 26
I26: Bjælker | J26: =SUMIF(Data[Undergruppe],'Unikke lister'!I26,Data[Vægt]) -> 0 | K26: 0 | M26: =SUMIF(Data[Undergruppe],'Unikke lister'!I26,Data[GWP sum]) -> 0 | N26: 0 | R26: =IF(Q26="","",SUMIF(Data[Bygningsdel],'Unikke lister'!Q26,Data[Vægt])) ->  | U26: =IF(Q26="","",SUMIF(Data[Bygningsdel],'Unikke lister'!Q26,Data[GWP sum])) ->  | Y26: Limtræssøjle 140 x 140 mm | AA26: Limtræssøjle 140 x 140 mm | AB26: =IF(Y26="","",SUMIF(Data[Konstruktion],'Unikke lister'!Y26,Data[Vægt])) -> 52 | AC26: =IF(Y26="","",SUMIF(Data[Konstruktion],'Unikke lister'!Y26,Data[GWP sum])) -> 13.832 | AD26: Gulv, vådrumsgulv, keramiske fliser (Klon) | AE26: 721.5 | AF26: 0.01542862279 | AG26: 13 | AH26: 163.0747743 | AI26: 0.006310940343 | AJ26: 21 | AM26: Fermacell fiberplade 12,5 mm | AN26: 100 mm indervæg, fibergips | AO26: 11 | AP26: Fermacell fiberplade 12,5 mm | AQ26: 442.5 | AR26: 40.2363195 | AS26: Cembrit Windstopper Extreme, 9 mm | AT26: Vindspærre | AU26: Vindspærre | AV26: 3067.2 | AW26: 1997.088 | AX26: Vindspærre | AY26: 3067.2 | AZ26: 0.06558928872 | BA26: 5 | BB26: 1997.088 | BC26: 0.07728665135 | BD26: 3
I27: Beklædning | J27: =SUMIF(Data[Undergruppe],'Unikke lister'!I27,Data[Vægt]) -> 0 | K27: 0 | M27: =SUMIF(Data[Undergruppe],'Unikke lister'!I27,Data[GWP sum]) -> 0 | N27: 0 | R27: =IF(Q27="","",SUMIF(Data[Bygningsdel],'Unikke lister'!Q27,Data[Vægt])) ->  | U27: =IF(Q27="","",SUMIF(Data[Bygningsdel],'Unikke lister'!Q27,Data[GWP sum])) ->  | Y27: Tagkassette, ståltag | AA27: Tagkassette, ståltag | AB27: =IF(Y27="","",SUMIF(Data[Konstruktion],'Unikke lister'!Y27,Data[Vægt])) -> 10885.992 | AC27: =IF(Y27="","",SUMIF(Data[Konstruktion],'Unikke lister'!Y27,Data[GWP sum])) -> 4973.252583 | AD27: Let trækassette, terræn | AE27: 3762.08 | AF27: 0.08044866696 | AG27: 3 | AH27: 1124.33188 | AI27: 0.04351127542 | AJ27: 7 | AM27: Fermacell fiberplade 12,5 mm | AN27: 100 mm indervæg, fibergips | AO27: 11 | AP27: Fermacell fiberplade 12,5 mm | AQ27: 30 | AR27: 2.727886068 | AS27: Spaandex spånplader, Spaandex spånplader (DK) | AT27: Spånplade | AU27: Spånplade | AV27: 739.2 | AW27: 221.76 | AX27: Spånplade | AY27: 739.2 | AZ27: 0.01580712123 | BA27: 12 | BB27: 221.76 | BC27: 0.00858203935 | BD27: 21
I28: Andet (søjler og bjælker) | J28: =SUMIF(Data[Undergruppe],'Unikke lister'!I28,Data[Vægt]) -> 0 | K28: 0 | M28: =SUMIF(Data[Undergruppe],'Unikke lister'!I28,Data[GWP sum]) -> 0 | N28: 0 | R28: =IF(Q28="","",SUMIF(Data[Bygningsdel],'Unikke lister'!Q28,Data[Vægt])) ->  | U28: =IF(Q28="","",SUMIF(Data[Bygningsdel],'Unikke lister'!Q28,Data[GWP sum])) ->  | Y28: Tagkassette, tagpap | AA28: Tagkassette, tagpap | AB28: =IF(Y28="","",SUMIF(Data[Konstruktion],'Unikke lister'!Y28,Data[Vægt])) -> 1775.07 | AC28: =IF(Y28="","",SUMIF(Data[Konstruktion],'Unikke lister'!Y28,Data[GWP sum])) -> 539.8115145 | AD28: Trægulv terrændæk | AE28: 411.7 | AF28: 0.00880383091 | AG28: 15 | AH28: 236.2248796 | AI28: 0.009141825453 | AJ28: 17 | AM28: Savede og tørrede konstruktionstræprodukter af fyr og gran, Fobrænding | AN28: 100 mm indervæg, fibergips | AO28: 11 | AP28: Savede og tørrede konstruktionstræprodukter af fyr og gran, Fobrænding | AQ28: 119.7 | AR28: 12.6 | AS28: Brugsvandsrør, rustfri stål | AU28: Brugsvandsrør, rustfri stål | AV28: 164.855 | AW28: 586.8676557 | AX28: Brugsvandsrør, rustfri stål | AY28: 164.855 | AZ28: 0.00352527458 | BA28: 22 | BB28: 586.8676557 | BC28: 0.02271158602 | BD28: 16
I29: Tage | J29: =SUMIF(Data[Undergruppe],'Unikke lister'!I29,Data[Vægt]) -> 12661.062 | K29: 0.2707824385 | L29: 2 | M29: =SUMIF(Data[Undergruppe],'Unikke lister'!I29,Data[GWP sum]) -> 5513.064098 | N29: 0.2142599444 | O29: 1 | R29: =IF(Q29="","",SUMIF(Data[Bygningsdel],'Unikke lister'!Q29,Data[Vægt])) ->  | U29: =IF(Q29="","",SUMIF(Data[Bygningsdel],'Unikke lister'!Q29,Data[GWP sum])) ->  | Y29: Gulv, vådrumsgulv, keramiske fliser (Klon) | AA29: Gulv, vådrumsgulv, keramiske fliser (Klon) | AB29: =IF(Y29="","",SUMIF(Data[Konstruktion],'Unikke lister'!Y29,Data[Vægt])) -> 721.5 | AC29: =IF(Y29="","",SUMIF(Data[Konstruktion],'Unikke lister'!Y29,Data[GWP sum])) -> 163.0747743 | AD29: Trætrappe pr. etage | AE29: 274.3 | AF29: 0.005865656591 | AG29: 24 | AH29: 71.29210526 | AI29: 0.002758981118 | AJ29: 33 | AM29: Træfiberisolering (bats), kl. 38 - Hunton | AN29: 100 mm indervæg, fibergips | AO29: 11 | AP29: Træfiberisolering (bats), kl. 38 - Hunton | AQ29: 74.375 | AR29: 21.57849312 | AS29: Varmepumpe | AU29: Varmepumpe | AV29: 303.08 | AW29: 2689.336442 | AX29: Varmepumpe | AY29: 303.08 | AZ29: 0.006481090775 | BA29: 18 | BB29: 2689.336442 | BC29: 0.1040764393 | BD29: 2
I30: Terrændæk | J30: =SUMIF(Data[Undergruppe],'Unikke lister'!I30,Data[Vægt]) -> 4895.28 | K30: 0.1046954715 | L30: 4 | M30: =SUMIF(Data[Undergruppe],'Unikke lister'!I30,Data[GWP sum]) -> 1523.631534 | N30: 0.05921447709 | O30: 6 | R30: =IF(Q30="","",SUMIF(Data[Bygningsdel],'Unikke lister'!Q30,Data[Vægt])) ->  | U30: =IF(Q30="","",SUMIF(Data[Bygningsdel],'Unikke lister'!Q30,Data[GWP sum])) ->  | Y30: Let trækassette, terræn | AA30: Let trækassette, terræn | AB30: =IF(Y30="","",SUMIF(Data[Konstruktion],'Unikke lister'!Y30,Data[Vægt])) -> 3762.08 | AC30: =IF(Y30="","",SUMIF(Data[Konstruktion],'Unikke lister'!Y30,Data[GWP sum])) -> 1124.33188 | AD30: Rustfrit stålrør | AE30: 39 | AF30: 0.0008339796101 | AG30: 36 | AH30: 138.8361807 | AI30: 0.005372914711 | AJ30: 23 | AM30: Savede og tørrede konstruktionstræprodukter af fyr og gran, Fobrænding | AN30: 100 mm indervæg, krydsfiner | AO30: 12 | AP30: Savede og tørrede konstruktionstræprodukter af fyr og gran, Fobrænding | AQ30: 177.156 | AR30: 18.648 | AS30: Magna3 25-(40/60/80/100/120) | AT30: Pumpe | AU30: Pumpe | AV30: 6.41 | AW30: 109.2852 | AX30: Pumpe | AY30: 6.41 | AZ30: 0.0001370720334 | BA30: 34 | BB30: 109.2852 | BC30: 0.004229301438 | BD30: 27
I31: Trapper og ramper | J31: =SUMIF(Data[Undergruppe],'Unikke lister'!I31,Data[Vægt]) -> 274.3 | K31: 0.005866460719 | L31: 8 | M31: =SUMIF(Data[Undergruppe],'Unikke lister'!I31,Data[GWP sum]) -> 71.29210526 | N31: 0.00277069924 | O31: 16 | R31: =IF(Q31="","",SUMIF(Data[Bygningsdel],'Unikke lister'!Q31,Data[Vægt])) ->  | U31: =IF(Q31="","",SUMIF(Data[Bygningsdel],'Unikke lister'!Q31,Data[GWP sum])) ->  | Y31: Trægulv terrændæk | AA31: Trægulv terrændæk | AB31: =IF(Y31="","",SUMIF(Data[Konstruktion],'Unikke lister'!Y31,Data[Vægt])) -> 411.7 | AC31: =IF(Y31="","",SUMIF(Data[Konstruktion],'Unikke lister'!Y31,Data[GWP sum])) -> 236.2248796 | AD31: Varmepumpe | AE31: 303.08 | AF31: 0.006481090775 | AG31: 22 | AH31: 2689.336442 | AI31: 0.1040764393 | AJ31: 4 | AM31: Træfiberisolering (bats), kl. 38 - Hunton | AN31: 100 mm indervæg, krydsfiner | AO31: 12 | AP31: Træfiberisolering (bats), kl. 38 - Hunton | AQ31: 110.075 | AR31: 31.93616982 | AS31: Radiator | AU31: Radiator | AV31: 141.3325029 | AW31: 590.6382241 | AX31: Radiator | AY31: 141.3325029 | AZ31: 0.003022267324 | BA31: 23 | BB31: 590.6382241 | BC31: 0.02285750578 | BD31: 15
I32: Sekundær bebyggelse | J32: =SUMIF(Data[Undergruppe],'Unikke lister'!I32,Data[Vægt]) -> 0 | K32: 0 | M32: =SUMIF(Data[Undergruppe],'Unikke lister'!I32,Data[GWP sum]) -> 0 | N32: 0 | R32: =IF(Q32="","",SUMIF(Data[Bygningsdel],'Unikke lister'!Q32,Data[Vægt])) ->  | U32: =IF(Q32="","",SUMIF(Data[Bygningsdel],'Unikke lister'!Q32,Data[GWP sum])) ->  | Y32: Trætrappe pr. etage | AA32: Trætrappe pr. etage | AB32: =IF(Y32="","",SUMIF(Data[Konstruktion],'Unikke lister'!Y32,Data[Vægt])) -> 274.3 | AC32: =IF(Y32="","",SUMIF(Data[Konstruktion],'Unikke lister'!Y32,Data[GWP sum])) -> 71.29210526 | AD32: Magna3 25-40 | AE32: 6.41 | AF32: 0.0001370720334 | AG32: 40 | AH32: 109.2852 | AI32: 0.004229301438 | AJ32: 26 | AM32: WISA Gran krydsfiner, ubehandlet, Fobrænding | AN32: 100 mm indervæg, krydsfiner | AO32: 12 | AP32: WISA Gran krydsfiner, ubehandlet, Fobrænding | AQ32: 266.4 | AR32: 159.84 | AS32: Ventilationskanal, galvaniseret stål | AT32: Ventilationskanal | AU32: Ventilationskanal | AV32: 1.525 | AW32: 4.649506879 | AX32: Ventilationskanal | AY32: 1.525 | AZ32: 3.261074116e-05 | BA32: 35 | BB32: 4.649506879 | BC32: 0.000179934393 | BD32: 35
I33: Belægninger | J33: =SUMIF(Data[Undergruppe],'Unikke lister'!I33,Data[Vægt]) -> 0 | K33: 0 | M33: =SUMIF(Data[Undergruppe],'Unikke lister'!I33,Data[GWP sum]) -> 0 | N33: 0 | R33: =IF(Q33="","",SUMIF(Data[Bygningsdel],'Unikke lister'!Q33,Data[Vægt])) ->  | U33: =IF(Q33="","",SUMIF(Data[Bygningsdel],'Unikke lister'!Q33,Data[GWP sum])) ->  | Y33: Rustfrit stålrør | AA33: Rustfrit stålrør | AB33: =IF(Y33="","",SUMIF(Data[Konstruktion],'Unikke lister'!Y33,Data[Vægt])) -> 39 | AC33: =IF(Y33="","",SUMIF(Data[Konstruktion],'Unikke lister'!Y33,Data[GWP sum])) -> 138.8361807 | AD33: Radiator | AE33: 141.3325029 | AF33: 0.003022267324 | AG33: 29 | AH33: 590.6382241 | AI33: 0.02285750578 | AJ33: 11 | AM33: WISA Gran krydsfiner, ubehandlet, Fobrænding | AN33: 100 mm indervæg, krydsfiner | AO33: 12 | AP33: WISA Gran krydsfiner, ubehandlet, Fobrænding | AQ33: 266.4 | AR33: 159.84 | AS33: Indvendig dør | AU33: Indvendig dør | AV33: 177.43 | AW33: 107.1721176 | AX33: Indvendig dør | AY33: 177.43 | AZ33: 0.003794179544 | BA33: 21 | BB33: 107.1721176 | BC33: 0.004147525843 | BD33: 28
I34: Terrænbefæstninger | J34: =SUMIF(Data[Undergruppe],'Unikke lister'!I34,Data[Vægt]) -> 0 | K34: 0 | M34: =SUMIF(Data[Undergruppe],'Unikke lister'!I34,Data[GWP sum]) -> 0 | N34: 0 | R34: =IF(Q34="","",SUMIF(Data[Bygningsdel],'Unikke lister'!Q34,Data[Vægt])) ->  | U34: =IF(Q34="","",SUMIF(Data[Bygningsdel],'Unikke lister'!Q34,Data[GWP sum])) ->  | Y34: Metroair 330, indedel til VP | Z34: Varmepumpe | AA34: Varmepumpe | AB34: =IF(Y34="","",SUMIF(Data[Konstruktion],'Unikke lister'!Y34,Data[Vægt])) -> 220 | AC34: =IF(Y34="","",SUMIF(Data[Konstruktion],'Unikke lister'!Y34,Data[GWP sum])) -> 2077.5722 | AD34: Press rør | AE34: 125.855 | AF34: 0.00269129497 | AG34: 31 | AH34: 448.031475 | AI34: 0.01733867131 | AJ34: 14 | AM34: Fermacell fiberplade 12,5 mm | AN34: 100 mm indervæg, krydsfiner og fibergips | AO34: 13 | AP34: Fermacell fiberplade 12,5 mm | AQ34: 88.5 | AR34: 8.0472639 | AS34: Udvendig dør | AU34: Udvendig dør | AV34: 50.841 | AW34: 10.56779758 | AX34: Udvendig dør | AY34: 50.841 | AZ34: 0.00108718865 | BA34: 29 | BB34: 10.56779758 | BC34: 0.0004089703041 | BD34: 34
I35: Udendørs belysning | J35: =SUMIF(Data[Undergruppe],'Unikke lister'!I35,Data[Vægt]) -> 0 | K35: 0 | M35: =SUMIF(Data[Undergruppe],'Unikke lister'!I35,Data[GWP sum]) -> 0 | N35: 0 | R35: =IF(Q35="","",SUMIF(Data[Bygningsdel],'Unikke lister'!Q35,Data[Vægt])) ->  | U35: =IF(Q35="","",SUMIF(Data[Bygningsdel],'Unikke lister'!Q35,Data[GWP sum])) ->  | Y35: Magna3 25-40 | AA35: Magna3 25-40 | AB35: =IF(Y35="","",SUMIF(Data[Konstruktion],'Unikke lister'!Y35,Data[Vægt])) -> 6.41 | AC35: =IF(Y35="","",SUMIF(Data[Konstruktion],'Unikke lister'!Y35,Data[GWP sum])) -> 109.2852 | AD35: Ventilationskanaler Ø125, enfamiliehuse og etageboliger, central | AE35: 1.525 | AF35: 3.261074116e-05 | AG35: 41 | AH35: 4.649506879 | AI35: 0.000179934393 | AJ35: 41 | AM35: Savede og tørrede konstruktionstræprodukter af fyr og gran, Fobrænding | AN35: 100 mm indervæg, krydsfiner og fibergips | AO35: 13 | AP35: Savede og tørrede konstruktionstræprodukter af fyr og gran, Fobrænding | AQ35: 23.94 | AR35: 2.52 | AS35: Facadevindue | AU35: Facadevindue | AV35: 752.4 | AW35: 2783 | AX35: Facadevindue | AY35: 752.4 | AZ35: 0.01608939125 | BA35: 9 | BB35: 2783 | BC35: 0.1077011883 | BD35: 1
I36: Installationer over jord | J36: =SUMIF(Data[Undergruppe],'Unikke lister'!I36,Data[Vægt]) -> 0 | K36: 0 | M36: =SUMIF(Data[Undergruppe],'Unikke lister'!I36,Data[GWP sum]) -> 0 | N36: 0 | R36: =IF(Q36="","",SUMIF(Data[Bygningsdel],'Unikke lister'!Q36,Data[Vægt])) ->  | U36: =IF(Q36="","",SUMIF(Data[Bygningsdel],'Unikke lister'!Q36,Data[GWP sum])) ->  | Y36: Radiator, 142/2000 | Z36: Radiator | AA36: Radiator | AB36: =IF(Y36="","",SUMIF(Data[Konstruktion],'Unikke lister'!Y36,Data[Vægt])) -> 16.15878856 | AC36: =IF(Y36="","",SUMIF(Data[Konstruktion],'Unikke lister'!Y36,Data[GWP sum])) -> 67.52868582 | AD36: Indvendig dør | AE36: 177.43 | AF36: 0.003794179544 | AG36: 27 | AH36: 107.1721176 | AI36: 0.004147525843 | AJ36: 27 | AM36: Træfiberisolering (bats), kl. 38 - Hunton | AN36: 100 mm indervæg, krydsfiner og fibergips | AO36: 13 | AP36: Træfiberisolering (bats), kl. 38 - Hunton | AQ36: 14.875 | AR36: 4.315698625 | AS36: Velux ovenlys | AU36: Velux ovenlys | AV36: 394.3125 | AW36: 1431.882 | AX36: Velux ovenlys | AY36: 394.3125 | AZ36: 0.008432015 | BA36: 17 | BB36: 1431.882 | BC36: 0.05541336431 | BD36: 7
I37: Installationer under jord | J37: =SUMIF(Data[Undergruppe],'Unikke lister'!I37,Data[Vægt]) -> 0 | K37: 0 | M37: =SUMIF(Data[Undergruppe],'Unikke lister'!I37,Data[GWP sum]) -> 0 | N37: 0 | R37: =IF(Q37="","",SUMIF(Data[Bygningsdel],'Unikke lister'!Q37,Data[Vægt])) ->  | U37: =IF(Q37="","",SUMIF(Data[Bygningsdel],'Unikke lister'!Q37,Data[GWP sum])) ->  | Y37: Radiator, 200/1000 | Z37: Radiator | AA37: Radiator | AB37: =IF(Y37="","",SUMIF(Data[Konstruktion],'Unikke lister'!Y37,Data[Vægt])) -> 22.75885713 | AC37: =IF(Y37="","",SUMIF(Data[Konstruktion],'Unikke lister'!Y37,Data[GWP sum])) -> 95.11082507 | AD37: Udvendig dør | AE37: 50.841 | AF37: 0.00108718865 | AG37: 35 | AH37: 10.56779758 | AI37: 0.0004089703041 | AJ37: 39 | AM37: WISA Gran krydsfiner, ubehandlet, Fobrænding | AN37: 100 mm indervæg, krydsfiner og fibergips | AO37: 13 | AP37: WISA Gran krydsfiner, ubehandlet, Fobrænding | AQ37: 36 | AR37: 21.6 | AS37: Velux fladt ovenlys | AU37: Velux fladt ovenlys | AV37: 134.4 | AW37: 800.96 | AX37: Velux fladt ovenlys | AY37: 134.4 | AZ37: 0.002874022041 | BA37: 24 | BB37: 800.96 | BC37: 0.0309968896 | BD37: 14
I38: Udendørs trapper og ramper | J38: =SUMIF(Data[Undergruppe],'Unikke lister'!I38,Data[Vægt]) -> 0 | K38: 0 | M38: =SUMIF(Data[Undergruppe],'Unikke lister'!I38,Data[GWP sum]) -> 0 | N38: 0 | R38: =IF(Q38="","",SUMIF(Data[Bygningsdel],'Unikke lister'!Q38,Data[Vægt])) ->  | U38: =IF(Q38="","",SUMIF(Data[Bygningsdel],'Unikke lister'!Q38,Data[GWP sum])) ->  | Y38: Radiator, 200/1100 | Z38: Radiator | AA38: Radiator | AB38: =IF(Y38="","",SUMIF(Data[Konstruktion],'Unikke lister'!Y38,Data[Vægt])) -> 12.51737144 | AC38: =IF(Y38="","",SUMIF(Data[Konstruktion],'Unikke lister'!Y38,Data[GWP sum])) -> 52.31095386 | AD38: Facadevindue | AE38: 752.4 | AF38: 0.01608939125 | AG38: 10 | AH38: 2783 | AI38: 0.1077011883 | AJ38: 3 | AM38: Fermacell fiberplade 12,5 mm | AN38: 110 mm indervæg mod bad, krydsfiner og fibergips med klinker | AO38: 14 | AP38: Fermacell fiberplade 12,5 mm | AQ38: 106.2 | AR38: 9.65671668 | AS38: Træbeklædning 19 mm, ubehandlet gran - InnTre Kjeldstad AS | AT38: Træbeklædning | AU38: Træbeklædning | AV38: 1495.4407 | AW38: 416.5444244 | AX38: Træbeklædning | AY38: 1495.4407 | AZ38: 0.03197864236 | BA38: 7 | BB38: 416.5444244 | BC38: 0.01612013276 | BD38: 20
I39: Udendørs inventar | J39: =SUMIF(Data[Undergruppe],'Unikke lister'!I39,Data[Vægt]) -> 0 | K39: 0 | M39: =SUMIF(Data[Undergruppe],'Unikke lister'!I39,Data[GWP sum]) -> 0 | N39: 0 | R39: =IF(Q39="","",SUMIF(Data[Bygningsdel],'Unikke lister'!Q39,Data[Vægt])) ->  | U39: =IF(Q39="","",SUMIF(Data[Bygningsdel],'Unikke lister'!Q39,Data[GWP sum])) ->  | Y39: Radiator, 200/2000 | Z39: Radiator | AA39: Radiator | AB39: =IF(Y39="","",SUMIF(Data[Konstruktion],'Unikke lister'!Y39,Data[Vægt])) -> 45.51771429 | AC39: =IF(Y39="","",SUMIF(Data[Konstruktion],'Unikke lister'!Y39,Data[GWP sum])) -> 190.2216503 | AD39: Velux ovenlys | AE39: 394.3125 | AF39: 0.008432015 | AG39: 17 | AH39: 1431.882 | AI39: 0.05541336431 | AJ39: 6 | AM39: Keramikfliser, glaseret | AN39: 110 mm indervæg mod bad, krydsfiner og fibergips med klinker | AO39: 14 | AP39: Keramikfliser, glaseret | AQ39: 120 | AR39: 37.958604
I40: Andet (udendørs areal) | J40: =SUMIF(Data[Undergruppe],'Unikke lister'!I40,Data[Vægt]) -> 0 | K40: 0 | M40: =SUMIF(Data[Undergruppe],'Unikke lister'!I40,Data[GWP sum]) -> 0 | N40: 0 | R40: =IF(Q40="","",SUMIF(Data[Bygningsdel],'Unikke lister'!Q40,Data[Vægt])) ->  | U40: =IF(Q40="","",SUMIF(Data[Bygningsdel],'Unikke lister'!Q40,Data[GWP sum])) ->  | Y40: Radiator, 200/600 | Z40: Radiator | AA40: Radiator | AB40: =IF(Y40="","",SUMIF(Data[Konstruktion],'Unikke lister'!Y40,Data[Vægt])) -> 6.827657146 | AC40: =IF(Y40="","",SUMIF(Data[Konstruktion],'Unikke lister'!Y40,Data[GWP sum])) -> 28.53324755 | AD40: Velux fladt ovenlys | AE40: 134.4 | AF40: 0.002874022041 | AG40: 30 | AH40: 800.96 | AI40: 0.0309968896 | AJ40: 10 | AM40: Mørtel, fliseklæber | AN40: 110 mm indervæg mod bad, krydsfiner og fibergips med klinker | AO40: 14 | AP40: Mørtel, fliseklæber | AQ40: 18.6 | AR40: 6.75927162
I41: Varmtvandsbeholder | J41: =SUMIF(Data[Undergruppe],'Unikke lister'!I41,Data[Vægt]) -> 220 | K41: 0.004705145308 | L41: 10 | M41: =SUMIF(Data[Undergruppe],'Unikke lister'!I41,Data[GWP sum]) -> 2077.5722 | N41: 0.08074284937 | O41: 4 | R41: =IF(Q41="","",SUMIF(Data[Bygningsdel],'Unikke lister'!Q41,Data[Vægt])) ->  | U41: =IF(Q41="","",SUMIF(Data[Bygningsdel],'Unikke lister'!Q41,Data[GWP sum])) ->  | Y41: Radiator, 300/400 | Z41: Radiator | AA41: Radiator | AB41: =IF(Y41="","",SUMIF(Data[Konstruktion],'Unikke lister'!Y41,Data[Vægt])) -> 6.827657146 | AC41: =IF(Y41="","",SUMIF(Data[Konstruktion],'Unikke lister'!Y41,Data[GWP sum])) -> 28.53324755 | AD41: Facadekassette uden beklædning | AE41: 13726.408 | AF41: 0.2935267793 | AG41: 1 | AH41: 3463.492492 | AI41: 0.1340360248 | AJ41: 2 | AM41: Savede og tørrede konstruktionstræprodukter af fyr og gran, Fobrænding | AN41: 110 mm indervæg mod bad, krydsfiner og fibergips med klinker | AO41: 14 | AP41: Savede og tørrede konstruktionstræprodukter af fyr og gran, Fobrænding | AQ41: 28.728 | AR41: 3.024
I42: Vandrør | J42: =SUMIF(Data[Undergruppe],'Unikke lister'!I42,Data[Vægt]) -> 39 | K42: 0.0008340939411 | L42: 16 | M42: =SUMIF(Data[Undergruppe],'Unikke lister'!I42,Data[GWP sum]) -> 138.8361807 | N42: 0.0053957349 | O42: 14 | R42: =IF(Q42="","",SUMIF(Data[Bygningsdel],'Unikke lister'!Q42,Data[Vægt])) ->  | U42: =IF(Q42="","",SUMIF(Data[Bygningsdel],'Unikke lister'!Q42,Data[GWP sum])) ->  | Y42: Radiator, 600/900 | Z42: Radiator | AA42: Radiator | AB42: =IF(Y42="","",SUMIF(Data[Konstruktion],'Unikke lister'!Y42,Data[Vægt])) -> 30.72445715 | AC42: =IF(Y42="","",SUMIF(Data[Konstruktion],'Unikke lister'!Y42,Data[GWP sum])) -> 128.399614 | AD42: Tilbagetrukket facadekassette uden beklædning | AE42: 735.354 | AF42: 0.01572487801 | AG42: 12 | AH42: 195.8217867 | AI42: 0.007578238993 | AJ42: 19 | AM42: Træfiberisolering (bats), kl. 38 - Hunton | AN42: 110 mm indervæg mod bad, krydsfiner og fibergips med klinker | AO42: 14 | AP42: Træfiberisolering (bats), kl. 38 - Hunton | AQ42: 17.85 | AR42: 5.17883835
I43: Varmeforsyningsanlæg | J43: =SUMIF(Data[Undergruppe],'Unikke lister'!I43,Data[Vægt]) -> 83.08 | K43: 0.001776833965 | L43: 14 | M43: =SUMIF(Data[Undergruppe],'Unikke lister'!I43,Data[GWP sum]) -> 611.7642424 | N43: 0.02377563007 | O43: 10 | R43: =IF(Q43="","",SUMIF(Data[Bygningsdel],'Unikke lister'!Q43,Data[Vægt])) ->  | U43: =IF(Q43="","",SUMIF(Data[Bygningsdel],'Unikke lister'!Q43,Data[GWP sum])) ->  | Y43: Varmepumpe luft til vand | Z43: Varmepumpe | AA43: Varmepumpe | AB43: =IF(Y43="","",SUMIF(Data[Konstruktion],'Unikke lister'!Y43,Data[Vægt])) -> 83.08 | AC43: =IF(Y43="","",SUMIF(Data[Konstruktion],'Unikke lister'!Y43,Data[GWP sum])) -> 611.7642424 | AD43: Træbeklædning med ophæng | AE43: 1814.6428 | AF43: 0.03880448961 | AG43: 5 | AH43: 435.2900816 | AI43: 0.01684558356 | AJ43: 15 | AM43: Vandtætningsmembran, flydende | AN43: 110 mm indervæg mod bad, krydsfiner og fibergips med klinker | AO43: 14 | AP43: Vandtætningsmembran, flydende | AQ43: 7.2 | AR43: 8.0111736
I44: Varmerør | J44: =SUMIF(Data[Undergruppe],'Unikke lister'!I44,Data[Vægt]) -> 125.855 | K44: 0.002691663922 | L44: 13 | M44: =SUMIF(Data[Undergruppe],'Unikke lister'!I44,Data[GWP sum]) -> 448.031475 | N44: 0.01741231323 | O44: 13 | R44: =IF(Q44="","",SUMIF(Data[Bygningsdel],'Unikke lister'!Q44,Data[Vægt])) ->  | U44: =IF(Q44="","",SUMIF(Data[Bygningsdel],'Unikke lister'!Q44,Data[GWP sum])) ->  | Y44: Press rør | AA44: Press rør | AB44: =IF(Y44="","",SUMIF(Data[Konstruktion],'Unikke lister'!Y44,Data[Vægt])) -> 125.855 | AC44: =IF(Y44="","",SUMIF(Data[Konstruktion],'Unikke lister'!Y44,Data[GWP sum])) -> 448.031475 | AD44: Træbeklædning tilbagetrukket med ophæng | AE44: 110.3499 | AF44: 0.002359732476 | AG44: 32 | AH44: 26.4703428 | AI44: 0.001024393595 | AJ44: 37 | AM44: WISA Gran krydsfiner, ubehandlet, Fobrænding | AN44: 110 mm indervæg mod bad, krydsfiner og fibergips med klinker | AO44: 14 | AP44: WISA Gran krydsfiner, ubehandlet, Fobrænding | AQ44: 43.2 | AR44: 25.92
I45: Radiatorer | J45: =SUMIF(Data[Undergruppe],'Unikke lister'!I45,Data[Vægt]) -> 141.3325029 | K45: 0.003022681649 | L45: 12 | M45: =SUMIF(Data[Undergruppe],'Unikke lister'!I45,Data[GWP sum]) -> 590.6382241 | N45: 0.02295458765 | O45: 11 | R45: =IF(Q45="","",SUMIF(Data[Bygningsdel],'Unikke lister'!Q45,Data[Vægt])) ->  | U45: =IF(Q45="","",SUMIF(Data[Bygningsdel],'Unikke lister'!Q45,Data[GWP sum])) ->  | Y45: Ventilationskanaler Ø125, enfamiliehuse og etageboliger, central | AA45: Ventilationskanaler Ø125, enfamiliehuse og etageboliger, central | AB45: =IF(Y45="","",SUMIF(Data[Konstruktion],'Unikke lister'!Y45,Data[Vægt])) -> 1.525 | AC45: =IF(Y45="","",SUMIF(Data[Konstruktion],'Unikke lister'!Y45,Data[GWP sum])) -> 4.649506879 | AM45: Fermacell fiberplade 12,5 mm | AN45: 150 mm indervæg mod bad, krydsfiner og fibergips med klinker | AO45: 15 | AP45: Fermacell fiberplade 12,5 mm | AQ45: 106.2 | AR45: 9.65671668
I46: Gulvvarme | J46: =SUMIF(Data[Undergruppe],'Unikke lister'!I46,Data[Vægt]) -> 0 | K46: 0 | M46: =SUMIF(Data[Undergruppe],'Unikke lister'!I46,Data[GWP sum]) -> 0 | N46: 0 | R46: =IF(Q46="","",SUMIF(Data[Bygningsdel],'Unikke lister'!Q46,Data[Vægt])) ->  | U46: =IF(Q46="","",SUMIF(Data[Bygningsdel],'Unikke lister'!Q46,Data[GWP sum])) ->  | Y46: Dør, indvendig | Z46: Indvendig dør | AA46: Indvendig dør | AB46: =IF(Y46="","",SUMIF(Data[Konstruktion],'Unikke lister'!Y46,Data[Vægt])) -> 177.43 | AC46: =IF(Y46="","",SUMIF(Data[Konstruktion],'Unikke lister'!Y46,Data[GWP sum])) -> 107.1721176 | AM46: Keramikfliser, glaseret | AN46: 150 mm indervæg mod bad, krydsfiner og fibergips med klinker | AO46: 15 | AP46: Keramikfliser, glaseret | AQ46: 120 | AR46: 37.958604
I47: Andet (varme) | J47: =SUMIF(Data[Undergruppe],'Unikke lister'!I47,Data[Vægt]) -> 0 | K47: 0 | M47: =SUMIF(Data[Undergruppe],'Unikke lister'!I47,Data[GWP sum]) -> 0 | N47: 0 | R47: =IF(Q47="","",SUMIF(Data[Bygningsdel],'Unikke lister'!Q47,Data[Vægt])) ->  | U47: =IF(Q47="","",SUMIF(Data[Bygningsdel],'Unikke lister'!Q47,Data[GWP sum])) ->  | Y47: Udvendig dør, træ | Z47: Udvendig dør | AA47: Udvendig dør | AB47: =IF(Y47="","",SUMIF(Data[Konstruktion],'Unikke lister'!Y47,Data[Vægt])) -> 50.841 | AC47: =IF(Y47="","",SUMIF(Data[Konstruktion],'Unikke lister'!Y47,Data[GWP sum])) -> 10.56779758 | AM47: Mørtel, fliseklæber | AN47: 150 mm indervæg mod bad, krydsfiner og fibergips med klinker | AO47: 15 | AP47: Mørtel, fliseklæber | AQ47: 18.6 | AR47: 6.75927162
I48: Ventilationsanlæg | J48: =SUMIF(Data[Undergruppe],'Unikke lister'!I48,Data[Vægt]) -> 0 | K48: 0 | M48: =SUMIF(Data[Undergruppe],'Unikke lister'!I48,Data[GWP sum]) -> 0 | N48: 0 | R48: =IF(Q48="","",SUMIF(Data[Bygningsdel],'Unikke lister'!Q48,Data[Vægt])) ->  | U48: =IF(Q48="","",SUMIF(Data[Bygningsdel],'Unikke lister'!Q48,Data[GWP sum])) ->  | Y48: Facadevinduer | Z48: Facadevindue | AA48: Facadevindue | AB48: =IF(Y48="","",SUMIF(Data[Konstruktion],'Unikke lister'!Y48,Data[Vægt])) -> 752.4 | AC48: =IF(Y48="","",SUMIF(Data[Konstruktion],'Unikke lister'!Y48,Data[GWP sum])) -> 2783 | AM48: Savede og tørrede konstruktionstræprodukter af fyr og gran, Fobrænding | AN48: 150 mm indervæg mod bad, krydsfiner og fibergips med klinker | AO48: 15 | AP48: Savede og tørrede konstruktionstræprodukter af fyr og gran, Fobrænding | AQ48: 45.144 | AR48: 4.752
I49: Ventilationskanaler | J49: =SUMIF(Data[Undergruppe],'Unikke lister'!I49,Data[Vægt]) -> 1.525 | K49: 3.26152118e-05 | L49: 19 | M49: =SUMIF(Data[Undergruppe],'Unikke lister'!I49,Data[GWP sum]) -> 4.649506879 | N49: 0.000180698622 | O49: 19 | R49: =IF(Q49="","",SUMIF(Data[Bygningsdel],'Unikke lister'!Q49,Data[Vægt])) ->  | U49: =IF(Q49="","",SUMIF(Data[Bygningsdel],'Unikke lister'!Q49,Data[GWP sum])) ->  | Y49: Velux GGL ovenlys m. aluinddækning, 3-lagsrude (træ) | Z49: Velux ovenlys | AA49: Velux ovenlys | AB49: =IF(Y49="","",SUMIF(Data[Konstruktion],'Unikke lister'!Y49,Data[Vægt])) -> 394.3125 | AC49: =IF(Y49="","",SUMIF(Data[Konstruktion],'Unikke lister'!Y49,Data[GWP sum])) -> 1431.882 | AM49: Træfiberisolering (bats), kl. 38 - Hunton | AN49: 150 mm indervæg mod bad, krydsfiner og fibergips med klinker | AO49: 15 | AP49: Træfiberisolering (bats), kl. 38 - Hunton | AQ49: 28.05 | AR49: 8.13817455
I50: Vinduer | J50: =SUMIF(Data[Undergruppe],'Unikke lister'!I50,Data[Vægt]) -> 1281.1125 | K50: 0.02739918395 | L50: 7 | M50: =SUMIF(Data[Undergruppe],'Unikke lister'!I50,Data[GWP sum]) -> 5015.842 | N50: 0.1949358848 | O50: 2 | R50: =IF(Q50="","",SUMIF(Data[Bygningsdel],'Unikke lister'!Q50,Data[Vægt])) ->  | U50: =IF(Q50="","",SUMIF(Data[Bygningsdel],'Unikke lister'!Q50,Data[GWP sum])) ->  | Y50: Velux modular skylight, 3-lagsrude | Z50: Velux fladt ovenlys | AA50: Velux fladt ovenlys | AB50: =IF(Y50="","",SUMIF(Data[Konstruktion],'Unikke lister'!Y50,Data[Vægt])) -> 134.4 | AC50: =IF(Y50="","",SUMIF(Data[Konstruktion],'Unikke lister'!Y50,Data[GWP sum])) -> 800.96 | AM50: Vandtætningsmembran, flydende | AN50: 150 mm indervæg mod bad, krydsfiner og fibergips med klinker | AO50: 15 | AP50: Vandtætningsmembran, flydende | AQ50: 7.2 | AR50: 8.0111736
I51: Døre | J51: =SUMIF(Data[Undergruppe],'Unikke lister'!I51,Data[Vægt]) -> 228.271 | K51: 0.004882037385 | L51: 9 | M51: =SUMIF(Data[Undergruppe],'Unikke lister'!I51,Data[GWP sum]) -> 117.7399152 | N51: 0.004575848791 | O51: 15 | R51: =IF(Q51="","",SUMIF(Data[Bygningsdel],'Unikke lister'!Q51,Data[Vægt])) ->  | U51: =IF(Q51="","",SUMIF(Data[Bygningsdel],'Unikke lister'!Q51,Data[GWP sum])) ->  | Y51: Facadekassette uden beklædning | AA51: Facadekassette uden beklædning | AB51: =IF(Y51="","",SUMIF(Data[Konstruktion],'Unikke lister'!Y51,Data[Vægt])) -> 13726.408 | AC51: =IF(Y51="","",SUMIF(Data[Konstruktion],'Unikke lister'!Y51,Data[GWP sum])) -> 3463.492492 | AM51: WISA Gran krydsfiner, ubehandlet, Fobrænding | AN51: 150 mm indervæg mod bad, krydsfiner og fibergips med klinker | AO51: 15 | AP51: WISA Gran krydsfiner, ubehandlet, Fobrænding | AQ51: 43.2 | AR51: 25.92
I52: Glasfacader | J52: =SUMIF(Data[Undergruppe],'Unikke lister'!I52,Data[Vægt]) -> 0 | K52: 0 | M52: =SUMIF(Data[Undergruppe],'Unikke lister'!I52,Data[GWP sum]) -> 0 | N52: 0 | R52: =IF(Q52="","",SUMIF(Data[Bygningsdel],'Unikke lister'!Q52,Data[Vægt])) ->  | U52: =IF(Q52="","",SUMIF(Data[Bygningsdel],'Unikke lister'!Q52,Data[GWP sum])) ->  | Y52: Tilbagetrukket facadekassette uden beklædning | AA52: Tilbagetrukket facadekassette uden beklædning | AB52: =IF(Y52="","",SUMIF(Data[Konstruktion],'Unikke lister'!Y52,Data[Vægt])) -> 735.354 | AC52: =IF(Y52="","",SUMIF(Data[Konstruktion],'Unikke lister'!Y52,Data[GWP sum])) -> 195.8217867 | AM52: Savede og tørrede konstruktionstræprodukter af fyr og gran, Fobrænding | AN52: 45 mm indervæg mod skakt, krydsfiner | AO52: 16 | AP52: Savede og tørrede konstruktionstræprodukter af fyr og gran, Fobrænding | AQ52: 50.16 | AR52: 5.28
I53: Kælderydervægge | J53: =SUMIF(Data[Undergruppe],'Unikke lister'!I53,Data[Vægt]) -> 0 | K53: 0 | M53: =SUMIF(Data[Undergruppe],'Unikke lister'!I53,Data[GWP sum]) -> 0 | N53: 0 | R53: =IF(Q53="","",SUMIF(Data[Bygningsdel],'Unikke lister'!Q53,Data[Vægt])) ->  | U53: =IF(Q53="","",SUMIF(Data[Bygningsdel],'Unikke lister'!Q53,Data[GWP sum])) ->  | Y53: Træbeklædning med ophæng | AA53: Træbeklædning med ophæng | AB53: =IF(Y53="","",SUMIF(Data[Konstruktion],'Unikke lister'!Y53,Data[Vægt])) -> 1814.6428 | AC53: =IF(Y53="","",SUMIF(Data[Konstruktion],'Unikke lister'!Y53,Data[GWP sum])) -> 435.2900816 | AM53: WISA Gran krydsfiner, ubehandlet, Fobrænding | AN53: 45 mm indervæg mod skakt, krydsfiner | AO53: 16 | AP53: WISA Gran krydsfiner, ubehandlet, Fobrænding | AQ53: 316.8 | AR53: 190.08
I54: Ydervægge | J54: =SUMIF(Data[Undergruppe],'Unikke lister'!I54,Data[Vægt]) -> 16386.7547 | K54: 0.3504639182 | L54: 1 | M54: =SUMIF(Data[Undergruppe],'Unikke lister'!I54,Data[GWP sum]) -> 4121.074703 | N54: 0.1601616127 | O54: 3 | R54: =IF(Q54="","",SUMIF(Data[Bygningsdel],'Unikke lister'!Q54,Data[Vægt])) ->  | U54: =IF(Q54="","",SUMIF(Data[Bygningsdel],'Unikke lister'!Q54,Data[GWP sum])) ->  | Y54: Træbeklædning tilbagetrukket med ophæng | AA54: Træbeklædning tilbagetrukket med ophæng | AB54: =IF(Y54="","",SUMIF(Data[Konstruktion],'Unikke lister'!Y54,Data[Vægt])) -> 110.3499 | AC54: =IF(Y54="","",SUMIF(Data[Konstruktion],'Unikke lister'!Y54,Data[GWP sum])) -> 26.4703428 | AM54: Savede og tørrede konstruktionstræprodukter af fyr og gran, Fobrænding | AN54: 60 mm skunkvægge, krydsfiner | AO54: 17 | AP54: Savede og tørrede konstruktionstræprodukter af fyr og gran, Fobrænding | AQ54: 63.84 | AR54: 6.72
R55: =IF(Q55="","",SUMIF(Data[Bygningsdel],'Unikke lister'!Q55,Data[Vægt])) ->  | S55: =IF(Q55="","",R55/$R$3) ->  | U55: =IF(Q55="","",SUMIF(Data[Bygningsdel],'Unikke lister'!Q55,Data[GWP sum])) ->  | V55: =IF(Q55="","",U55/$U$3) ->  | AB55: =IF(Y55="","",SUMIF(Data[Konstruktion],'Unikke lister'!Y55,Data[Vægt])) ->  | AC55: =IF(Y55="","",SUMIF(Data[Konstruktion],'Unikke lister'!Y55,Data[GWP sum])) ->  | AM55: WISA Gran krydsfiner, ubehandlet, Fobrænding | AN55: 60 mm skunkvægge, krydsfiner | AO55: 17 | AP55: WISA Gran krydsfiner, ubehandlet, Fobrænding | AQ55: 144 | AR55: 86.4
R56: =IF(Q56="","",SUMIF(Data[Bygningsdel],'Unikke lister'!Q56,Data[Vægt])) ->  | U56: =IF(Q56="","",SUMIF(Data[Bygningsdel],'Unikke lister'!Q56,Data[GWP sum])) ->  | AB56: =IF(Y56="","",SUMIF(Data[Konstruktion],'Unikke lister'!Y56,Data[Vægt])) ->  | AC56: =IF(Y56="","",SUMIF(Data[Konstruktion],'Unikke lister'!Y56,Data[GWP sum])) ->  | AM56: Savede og tørrede konstruktionstræprodukter af fyr og gran, Fobrænding | AN56: 80 mm indervæg, krydsfiner | AO56: 18 | AP56: Savede og tørrede konstruktionstræprodukter af fyr og gran, Fobrænding | AQ56: 10.26 | AR56: 1.08
R57: =IF(Q57="","",SUMIF(Data[Bygningsdel],'Unikke lister'!Q57,Data[Vægt])) ->  | U57: =IF(Q57="","",SUMIF(Data[Bygningsdel],'Unikke lister'!Q57,Data[GWP sum])) ->  | AB57: =IF(Y57="","",SUMIF(Data[Konstruktion],'Unikke lister'!Y57,Data[Vægt])) ->  | AC57: =IF(Y57="","",SUMIF(Data[Konstruktion],'Unikke lister'!Y57,Data[GWP sum])) ->  | AM57: Træfiberisolering (bats), kl. 38 - Hunton | AN57: 80 mm indervæg, krydsfiner | AO57: 18 | AP57: Træfiberisolering (bats), kl. 38 - Hunton | AQ57: 6.375 | AR57: 1.849585125
R58: =IF(Q58="","",SUMIF(Data[Bygningsdel],'Unikke lister'!Q58,Data[Vægt])) ->  | U58: =IF(Q58="","",SUMIF(Data[Bygningsdel],'Unikke lister'!Q58,Data[GWP sum])) ->  | AB58: =IF(Y58="","",SUMIF(Data[Konstruktion],'Unikke lister'!Y58,Data[Vægt])) ->  | AC58: =IF(Y58="","",SUMIF(Data[Konstruktion],'Unikke lister'!Y58,Data[GWP sum])) ->  | AM58: WISA Gran krydsfiner, ubehandlet, Fobrænding | AN58: 80 mm indervæg, krydsfiner | AO58: 18 | AP58: WISA Gran krydsfiner, ubehandlet, Fobrænding | AQ58: 21.6 | AR58: 12.96
R59: =IF(Q59="","",SUMIF(Data[Bygningsdel],'Unikke lister'!Q59,Data[Vægt])) ->  | U59: =IF(Q59="","",SUMIF(Data[Bygningsdel],'Unikke lister'!Q59,Data[GWP sum])) ->  | AB59: =IF(Y59="","",SUMIF(Data[Konstruktion],'Unikke lister'!Y59,Data[Vægt])) ->  | AC59: =IF(Y59="","",SUMIF(Data[Konstruktion],'Unikke lister'!Y59,Data[GWP sum])) ->  | AM59: WISA Gran krydsfiner, ubehandlet, Fobrænding | AN59: 80 mm indervæg, krydsfiner | AO59: 18 | AP59: WISA Gran krydsfiner, ubehandlet, Fobrænding | AQ59: 21.6 | AR59: 12.96
R60: =IF(Q60="","",SUMIF(Data[Bygningsdel],'Unikke lister'!Q60,Data[Vægt])) ->  | U60: =IF(Q60="","",SUMIF(Data[Bygningsdel],'Unikke lister'!Q60,Data[GWP sum])) ->  | AB60: =IF(Y60="","",SUMIF(Data[Konstruktion],'Unikke lister'!Y60,Data[Vægt])) ->  | AC60: =IF(Y60="","",SUMIF(Data[Konstruktion],'Unikke lister'!Y60,Data[GWP sum])) ->  | AM60: Keramikfliser, glaseret | AN60: Klinkebeklædning på badeværelse | AO60: 19 | AP60: Keramikfliser, glaseret | AQ60: 260 | AR60: 82.243642
R61: =IF(Q61="","",SUMIF(Data[Bygningsdel],'Unikke lister'!Q61,Data[Vægt])) ->  | U61: =IF(Q61="","",SUMIF(Data[Bygningsdel],'Unikke lister'!Q61,Data[GWP sum])) ->  | AB61: =IF(Y61="","",SUMIF(Data[Konstruktion],'Unikke lister'!Y61,Data[Vægt])) ->  | AC61: =IF(Y61="","",SUMIF(Data[Konstruktion],'Unikke lister'!Y61,Data[GWP sum])) ->  | AM61: Mørtel, fliseklæber | AN61: Klinkebeklædning på badeværelse | AO61: 19 | AP61: Mørtel, fliseklæber | AQ61: 41.6 | AR61: 15.11751072
R62: =IF(Q62="","",SUMIF(Data[Bygningsdel],'Unikke lister'!Q62,Data[Vægt])) ->  | U62: =IF(Q62="","",SUMIF(Data[Bygningsdel],'Unikke lister'!Q62,Data[GWP sum])) ->  | AB62: =IF(Y62="","",SUMIF(Data[Konstruktion],'Unikke lister'!Y62,Data[Vægt])) ->  | AC62: =IF(Y62="","",SUMIF(Data[Konstruktion],'Unikke lister'!Y62,Data[GWP sum])) ->  | AM62: Vandtætningsmembran, flydende | AN62: Klinkebeklædning på badeværelse | AO62: 19 | AP62: Vandtætningsmembran, flydende | AQ62: 15.6 | AR62: 17.3575428
R63: =IF(Q63="","",SUMIF(Data[Bygningsdel],'Unikke lister'!Q63,Data[Vægt])) ->  | U63: =IF(Q63="","",SUMIF(Data[Bygningsdel],'Unikke lister'!Q63,Data[GWP sum])) ->  | AB63: =IF(Y63="","",SUMIF(Data[Konstruktion],'Unikke lister'!Y63,Data[Vægt])) ->  | AC63: =IF(Y63="","",SUMIF(Data[Konstruktion],'Unikke lister'!Y63,Data[GWP sum])) ->  | AM63: Limtræs-produkter af fyr og gran, Fobrænding | AN63: Limtræssøjle 140 x 140 mm | AO63: 20 | AP63: Limtræs-produkter af fyr og gran, Fobrænding | AQ63: 52 | AR63: 13.832
R64: =IF(Q64="","",SUMIF(Data[Bygningsdel],'Unikke lister'!Q64,Data[Vægt])) ->  | U64: =IF(Q64="","",SUMIF(Data[Bygningsdel],'Unikke lister'!Q64,Data[GWP sum])) ->  | AB64: =IF(Y64="","",SUMIF(Data[Konstruktion],'Unikke lister'!Y64,Data[Vægt])) ->  | AC64: =IF(Y64="","",SUMIF(Data[Konstruktion],'Unikke lister'!Y64,Data[GWP sum])) ->  | AM64: Asfaltimprægneret porøs træfiberplade, 18 mm - Hunton Undertag | AN64: Tagkassette, ståltag | AO64: 21 | AP64: Asfaltimprægneret porøs træfiberplade, 18 mm - Hunton Undertag | AQ64: 709.734 | AR64: 1240.877325
R65: =IF(Q65="","",SUMIF(Data[Bygningsdel],'Unikke lister'!Q65,Data[Vægt])) ->  | U65: =IF(Q65="","",SUMIF(Data[Bygningsdel],'Unikke lister'!Q65,Data[GWP sum])) ->  | AB65: =IF(Y65="","",SUMIF(Data[Konstruktion],'Unikke lister'!Y65,Data[Vægt])) ->  | AC65: =IF(Y65="","",SUMIF(Data[Konstruktion],'Unikke lister'!Y65,Data[GWP sum])) ->  | AM65: Dampspærre PE (tykkelse 0,0002 m) | AN65: Tagkassette, ståltag | AO65: 21 | AP65: Dampspærre PE (tykkelse 0,0002 m) | AQ65: 22.2 | AR65: 212.08881
R66: =IF(Q66="","",SUMIF(Data[Bygningsdel],'Unikke lister'!Q66,Data[Vægt])) ->  | U66: =IF(Q66="","",SUMIF(Data[Bygningsdel],'Unikke lister'!Q66,Data[GWP sum])) ->  | AB66: =IF(Y66="","",SUMIF(Data[Konstruktion],'Unikke lister'!Y66,Data[Vægt])) ->  | AC66: =IF(Y66="","",SUMIF(Data[Konstruktion],'Unikke lister'!Y66,Data[GWP sum])) ->  | AM66: Fermacell fiberplade 12,5 mm | AN66: Tagkassette, ståltag | AO66: 21 | AP66: Fermacell fiberplade 12,5 mm | AQ66: 3274.5 | AR66: 297.7487643
R67: =IF(Q67="","",SUMIF(Data[Bygningsdel],'Unikke lister'!Q67,Data[Vægt])) ->  | U67: =IF(Q67="","",SUMIF(Data[Bygningsdel],'Unikke lister'!Q67,Data[GWP sum])) ->  | AB67: =IF(Y67="","",SUMIF(Data[Konstruktion],'Unikke lister'!Y67,Data[Vægt])) ->  | AC67: =IF(Y67="","",SUMIF(Data[Konstruktion],'Unikke lister'!Y67,Data[GWP sum])) ->  | AM67: Galvaniseret stålplade - Plannja | AN67: Tagkassette, ståltag | AO67: 21 | AP67: Galvaniseret stålplade - Plannja | AQ67: 610.5 | AR67: 1589.260315
R68: =IF(Q68="","",SUMIF(Data[Bygningsdel],'Unikke lister'!Q68,Data[Vægt])) ->  | U68: =IF(Q68="","",SUMIF(Data[Bygningsdel],'Unikke lister'!Q68,Data[GWP sum])) ->  | AA68: =IF(Y68="","",IF(Z68="",Y68,Z68)) ->  | AB68: =IF(Y68="","",SUMIF(Data[Konstruktion],'Unikke lister'!Y68,Data[Vægt])) ->  | AC68: =IF(Y68="","",SUMIF(Data[Konstruktion],'Unikke lister'!Y68,Data[GWP sum])) ->  | AM68: OSB2 Unsanded, Kronospan | AN68: Tagkassette, ståltag | AO68: 21 | AP68: OSB2 Unsanded, Kronospan | AQ68: 1218.78 | AR68: 529.47
R69: =IF(Q69="","",SUMIF(Data[Bygningsdel],'Unikke lister'!Q69,Data[Vægt])) ->  | T69: =IF(Q69="","",_xlfn.RANK.EQ(R69,$R$4:$R$100,0)) ->  | U69: =IF(Q69="","",SUMIF(Data[Bygningsdel],'Unikke lister'!Q69,Data[GWP sum])) ->  | W69: =IF(Q69="","",_xlfn.RANK.EQ(U69,$U$4:$U$100,0)) ->  | AB69: =IF(Y69="","",SUMIF(Data[Konstruktion],'Unikke lister'!Y69,Data[Vægt])) ->  | AC69: =IF(Y69="","",SUMIF(Data[Konstruktion],'Unikke lister'!Y69,Data[GWP sum])) ->  | AE69: =IF(AD69="","",SUMIF($AA$4:$AA$200,AD69,$AB$4:$AB$200)) ->  | AF69: =IF(AD69="","",AE69/$AE$3) ->  | AG69: =IF(AD69="","",_xlfn.RANK.EQ(AE69,$AE$4:$AE$200,0)) ->  | AH69: =IF(AD69="","",SUMIF($AA$4:$AA$200,AD69,$AC$4:$AC$200)) ->  | AI69: =IF(AD69="","",AH69/$AH$3) ->  | AJ69: =IF(AD69="","",_xlfn.RANK.EQ(AH69,$AH$4:$AH$200,0)) ->  | AM69: Papirisolering kl 37 - ISOCELL | AN69: Tagkassette, ståltag | AO69: =IF(AN69="","",IFERROR(MATCH(AN69,$AD$4:$AD$1000,0),_xlfn.XLOOKUP(AN69,$Y$4:$Y$1000,$AA$4:$AA$1000,"",0))) -> 21 | AP69: =IF(AN69="","",IF(N(AO69)=0,AO69,AM69)) -> Papirisolering kl 37 - ISOCELL | AQ69: 1509.6 | AR69: 664.224 | AU69: =IF(AS69="","",IF(AT69="",AS69,AT69)) ->  | AV69: =IF(AS69="","",SUMIF($AP$4:$AP$1000,AS69,$AQ$4:$AQ$1000)) ->  | AW69: =IF(AS69="","",SUMIF($AP$4:$AP$1000,AS69,$AR$4:$AR$1000)) ->  | AY69: =IF(AX69="","",SUMIF($AU$4:$AU$300,AX69,$AV$4:$AV$300)) ->  | AZ69: =IF(AX69="","",AY69/$AY$3) ->  | BA69: =IF(AX69="","",_xlfn.RANK.EQ(AY69,$AY$4:$AY$300,0)) ->  | BB69: =IF(AX69="","",SUMIF($AU$4:$AU$300,AX69,$AW$4:$AW$300)) ->  | BC69: =IF(AX69="","",BB69/$BB$3) ->  | BD69: =IF(AX69="","",_xlfn.RANK.EQ(BB69,$BB$4:$BB$300,0)) -> 
R70: =IF(Q70="","",SUMIF(Data[Bygningsdel],'Unikke lister'!Q70,Data[Vægt])) ->  | U70: =IF(Q70="","",SUMIF(Data[Bygningsdel],'Unikke lister'!Q70,Data[GWP sum])) ->  | AB70: =IF(Y70="","",SUMIF(Data[Konstruktion],'Unikke lister'!Y70,Data[Vægt])) ->  | AC70: =IF(Y70="","",SUMIF(Data[Konstruktion],'Unikke lister'!Y70,Data[GWP sum])) ->  | AM70: Papirisolering kl 37 - ISOCELL | AN70: Tagkassette, ståltag | AO70: 21 | AP70: Papirisolering kl 37 - ISOCELL | AQ70: 199.8 | AR70: 87.912
R71: =IF(Q71="","",SUMIF(Data[Bygningsdel],'Unikke lister'!Q71,Data[Vægt])) ->  | U71: =IF(Q71="","",SUMIF(Data[Bygningsdel],'Unikke lister'!Q71,Data[GWP sum])) ->  | AB71: =IF(Y71="","",SUMIF(Data[Konstruktion],'Unikke lister'!Y71,Data[Vægt])) ->  | AC71: =IF(Y71="","",SUMIF(Data[Konstruktion],'Unikke lister'!Y71,Data[GWP sum])) ->  | AM71: Savede og tørrede konstruktionstræprodukter af fyr og gran, Fobrænding | AN71: Tagkassette, ståltag | AO71: 21 | AP71: Savede og tørrede konstruktionstræprodukter af fyr og gran, Fobrænding | AQ71: 354.312 | AR71: 37.296
R72: =IF(Q72="","",SUMIF(Data[Bygningsdel],'Unikke lister'!Q72,Data[Vægt])) ->  | U72: =IF(Q72="","",SUMIF(Data[Bygningsdel],'Unikke lister'!Q72,Data[GWP sum])) ->  | AB72: =IF(Y72="","",SUMIF(Data[Konstruktion],'Unikke lister'!Y72,Data[Vægt])) ->  | AC72: =IF(Y72="","",SUMIF(Data[Konstruktion],'Unikke lister'!Y72,Data[GWP sum])) ->  | AM72: Savede og tørrede konstruktionstræprodukter af fyr og gran, Fobrænding | AN72: Tagkassette, ståltag | AO72: 21 | AP72: Savede og tørrede konstruktionstræprodukter af fyr og gran, Fobrænding | AQ72: 0.222 | AR72: 0.02336842105
R73: =IF(Q73="","",SUMIF(Data[Bygningsdel],'Unikke lister'!Q73,Data[Vægt])) ->  | U73: =IF(Q73="","",SUMIF(Data[Bygningsdel],'Unikke lister'!Q73,Data[GWP sum])) ->  | AB73: =IF(Y73="","",SUMIF(Data[Konstruktion],'Unikke lister'!Y73,Data[Vægt])) ->  | AC73: =IF(Y73="","",SUMIF(Data[Konstruktion],'Unikke lister'!Y73,Data[GWP sum])) ->  | AM73: Savede og tørrede konstruktionstræprodukter af fyr og gran, Fobrænding | AN73: Tagkassette, ståltag | AO73: 21 | AP73: Savede og tørrede konstruktionstræprodukter af fyr og gran, Fobrænding | AQ73: 404.928 | AR73: 42.624
R74: =IF(Q74="","",SUMIF(Data[Bygningsdel],'Unikke lister'!Q74,Data[Vægt])) ->  | U74: =IF(Q74="","",SUMIF(Data[Bygningsdel],'Unikke lister'!Q74,Data[GWP sum])) ->  | AB74: =IF(Y74="","",SUMIF(Data[Konstruktion],'Unikke lister'!Y74,Data[Vægt])) ->  | AC74: =IF(Y74="","",SUMIF(Data[Konstruktion],'Unikke lister'!Y74,Data[GWP sum])) ->  | AM74: Savede og tørrede konstruktionstræprodukter af fyr og gran, Fobrænding | AN74: Tagkassette, ståltag | AO74: 21 | AP74: Savede og tørrede konstruktionstræprodukter af fyr og gran, Fobrænding | AQ74: 2227.104 | AR74: 234.432
R75: =IF(Q75="","",SUMIF(Data[Bygningsdel],'Unikke lister'!Q75,Data[Vægt])) ->  | U75: =IF(Q75="","",SUMIF(Data[Bygningsdel],'Unikke lister'!Q75,Data[GWP sum])) ->  | AB75: =IF(Y75="","",SUMIF(Data[Konstruktion],'Unikke lister'!Y75,Data[Vægt])) ->  | AC75: =IF(Y75="","",SUMIF(Data[Konstruktion],'Unikke lister'!Y75,Data[GWP sum])) ->  | AM75: Savede og tørrede konstruktionstræprodukter af fyr og gran, Fobrænding | AN75: Tagkassette, ståltag | AO75: 21 | AP75: Savede og tørrede konstruktionstræprodukter af fyr og gran, Fobrænding | AQ75: 354.312 | AR75: 37.296
R76: =IF(Q76="","",SUMIF(Data[Bygningsdel],'Unikke lister'!Q76,Data[Vægt])) ->  | U76: =IF(Q76="","",SUMIF(Data[Bygningsdel],'Unikke lister'!Q76,Data[GWP sum])) ->  | AB76: =IF(Y76="","",SUMIF(Data[Konstruktion],'Unikke lister'!Y76,Data[Vægt])) ->  | AC76: =IF(Y76="","",SUMIF(Data[Konstruktion],'Unikke lister'!Y76,Data[GWP sum])) ->  | AM76: Dampspærre PE (tykkelse 0,0002 m) | AN76: Tagkassette, tagpap | AO76: 22 | AP76: Dampspærre PE (tykkelse 0,0002 m) | AQ76: 3 | AR76: 28.66065
R77: =IF(Q77="","",SUMIF(Data[Bygningsdel],'Unikke lister'!Q77,Data[Vægt])) ->  | U77: =IF(Q77="","",SUMIF(Data[Bygningsdel],'Unikke lister'!Q77,Data[GWP sum])) ->  | AB77: =IF(Y77="","",SUMIF(Data[Konstruktion],'Unikke lister'!Y77,Data[Vægt])) ->  | AC77: =IF(Y77="","",SUMIF(Data[Konstruktion],'Unikke lister'!Y77,Data[GWP sum])) ->  | AM77: Derbigum NT | AN77: Tagkassette, tagpap | AO77: 22 | AP77: Derbigum NT | AQ77: 132.15 | AR77: 154.444545
R78: =IF(Q78="","",SUMIF(Data[Bygningsdel],'Unikke lister'!Q78,Data[Vægt])) ->  | U78: =IF(Q78="","",SUMIF(Data[Bygningsdel],'Unikke lister'!Q78,Data[GWP sum])) ->  | AB78: =IF(Y78="","",SUMIF(Data[Konstruktion],'Unikke lister'!Y78,Data[Vægt])) ->  | AC78: =IF(Y78="","",SUMIF(Data[Konstruktion],'Unikke lister'!Y78,Data[GWP sum])) ->  | AM78: Fermacell fiberplade 12,5 mm | AN78: Tagkassette, tagpap | AO78: 22 | AP78: Fermacell fiberplade 12,5 mm | AQ78: 442.5 | AR78: 40.2363195
R79: =IF(Q79="","",SUMIF(Data[Bygningsdel],'Unikke lister'!Q79,Data[Vægt])) ->  | U79: =IF(Q79="","",SUMIF(Data[Bygningsdel],'Unikke lister'!Q79,Data[GWP sum])) ->  | AB79: =IF(Y79="","",SUMIF(Data[Konstruktion],'Unikke lister'!Y79,Data[Vægt])) ->  | AC79: =IF(Y79="","",SUMIF(Data[Konstruktion],'Unikke lister'!Y79,Data[GWP sum])) ->  | AM79: OSB2 Unsanded, Kronospan | AN79: Tagkassette, tagpap | AO79: 22 | AP79: OSB2 Unsanded, Kronospan | AQ79: 164.7 | AR79: 71.55
R80: =IF(Q80="","",SUMIF(Data[Bygningsdel],'Unikke lister'!Q80,Data[Vægt])) ->  | U80: =IF(Q80="","",SUMIF(Data[Bygningsdel],'Unikke lister'!Q80,Data[GWP sum])) ->  | AB80: =IF(Y80="","",SUMIF(Data[Konstruktion],'Unikke lister'!Y80,Data[Vægt])) ->  | AC80: =IF(Y80="","",SUMIF(Data[Konstruktion],'Unikke lister'!Y80,Data[GWP sum])) ->  | AM80: Papirisolering kl 37 - ISOCELL | AN80: Tagkassette, tagpap | AO80: 22 | AP80: Papirisolering kl 37 - ISOCELL | AQ80: 204 | AR80: 89.76
R81: =IF(Q81="","",SUMIF(Data[Bygningsdel],'Unikke lister'!Q81,Data[Vægt])) ->  | U81: =IF(Q81="","",SUMIF(Data[Bygningsdel],'Unikke lister'!Q81,Data[GWP sum])) ->  | AB81: =IF(Y81="","",SUMIF(Data[Konstruktion],'Unikke lister'!Y81,Data[Vægt])) ->  | AC81: =IF(Y81="","",SUMIF(Data[Konstruktion],'Unikke lister'!Y81,Data[GWP sum])) ->  | AM81: Papirisolering kl 37 - ISOCELL | AN81: Tagkassette, tagpap | AO81: 22 | AP81: Papirisolering kl 37 - ISOCELL | AQ81: 27 | AR81: 11.88
R82: =IF(Q82="","",SUMIF(Data[Bygningsdel],'Unikke lister'!Q82,Data[Vægt])) ->  | U82: =IF(Q82="","",SUMIF(Data[Bygningsdel],'Unikke lister'!Q82,Data[GWP sum])) ->  | AB82: =IF(Y82="","",SUMIF(Data[Konstruktion],'Unikke lister'!Y82,Data[Vægt])) ->  | AC82: =IF(Y82="","",SUMIF(Data[Konstruktion],'Unikke lister'!Y82,Data[GWP sum])) ->  | AM82: Savede og tørrede konstruktionstræprodukter af fyr og gran, Fobrænding | AN82: Tagkassette, tagpap | AO82: 22 | AP82: Savede og tørrede konstruktionstræprodukter af fyr og gran, Fobrænding | AQ82: 75.24 | AR82: 7.92
R83: =IF(Q83="","",SUMIF(Data[Bygningsdel],'Unikke lister'!Q83,Data[Vægt])) ->  | U83: =IF(Q83="","",SUMIF(Data[Bygningsdel],'Unikke lister'!Q83,Data[GWP sum])) ->  | AB83: =IF(Y83="","",SUMIF(Data[Konstruktion],'Unikke lister'!Y83,Data[Vægt])) ->  | AC83: =IF(Y83="","",SUMIF(Data[Konstruktion],'Unikke lister'!Y83,Data[GWP sum])) ->  | AM83: Savede og tørrede konstruktionstræprodukter af fyr og gran, Fobrænding | AN83: Tagkassette, tagpap | AO83: 22 | AP83: Savede og tørrede konstruktionstræprodukter af fyr og gran, Fobrænding | AQ83: 75.24 | AR83: 7.92
R84: =IF(Q84="","",SUMIF(Data[Bygningsdel],'Unikke lister'!Q84,Data[Vægt])) ->  | U84: =IF(Q84="","",SUMIF(Data[Bygningsdel],'Unikke lister'!Q84,Data[GWP sum])) ->  | AB84: =IF(Y84="","",SUMIF(Data[Konstruktion],'Unikke lister'!Y84,Data[Vægt])) ->  | AC84: =IF(Y84="","",SUMIF(Data[Konstruktion],'Unikke lister'!Y84,Data[GWP sum])) ->  | AM84: Savede og tørrede konstruktionstræprodukter af fyr og gran, Fobrænding | AN84: Tagkassette, tagpap | AO84: 22 | AP84: Savede og tørrede konstruktionstræprodukter af fyr og gran, Fobrænding | AQ84: 300.96 | AR84: 31.68
R85: =IF(Q85="","",SUMIF(Data[Bygningsdel],'Unikke lister'!Q85,Data[Vægt])) ->  | U85: =IF(Q85="","",SUMIF(Data[Bygningsdel],'Unikke lister'!Q85,Data[GWP sum])) ->  | AB85: =IF(Y85="","",SUMIF(Data[Konstruktion],'Unikke lister'!Y85,Data[Vægt])) ->  | AC85: =IF(Y85="","",SUMIF(Data[Konstruktion],'Unikke lister'!Y85,Data[GWP sum])) ->  | AM85: Savede og tørrede konstruktionstræprodukter af fyr og gran, Fobrænding | AN85: Tagkassette, tagpap | AO85: 22 | AP85: Savede og tørrede konstruktionstræprodukter af fyr og gran, Fobrænding | AQ85: 47.88 | AR85: 5.04
R86: =IF(Q86="","",SUMIF(Data[Bygningsdel],'Unikke lister'!Q86,Data[Vægt])) ->  | U86: =IF(Q86="","",SUMIF(Data[Bygningsdel],'Unikke lister'!Q86,Data[GWP sum])) ->  | AB86: =IF(Y86="","",SUMIF(Data[Konstruktion],'Unikke lister'!Y86,Data[Vægt])) ->  | AC86: =IF(Y86="","",SUMIF(Data[Konstruktion],'Unikke lister'!Y86,Data[GWP sum])) ->  | AM86: WISA Gran krydsfiner, ubehandlet, Fobrænding | AN86: Tagkassette, tagpap | AO86: 22 | AP86: WISA Gran krydsfiner, ubehandlet, Fobrænding | AQ86: 151.2 | AR86: 45.36
R87: =IF(Q87="","",SUMIF(Data[Bygningsdel],'Unikke lister'!Q87,Data[Vægt])) ->  | U87: =IF(Q87="","",SUMIF(Data[Bygningsdel],'Unikke lister'!Q87,Data[GWP sum])) ->  | AB87: =IF(Y87="","",SUMIF(Data[Konstruktion],'Unikke lister'!Y87,Data[Vægt])) ->  | AC87: =IF(Y87="","",SUMIF(Data[Konstruktion],'Unikke lister'!Y87,Data[GWP sum])) ->  | AM87: WISA Gran krydsfiner, ubehandlet, Fobrænding | AN87: Tagkassette, tagpap | AO87: 22 | AP87: WISA Gran krydsfiner, ubehandlet, Fobrænding | AQ87: 151.2 | AR87: 45.36
R88: =IF(Q88="","",SUMIF(Data[Bygningsdel],'Unikke lister'!Q88,Data[Vægt])) ->  | U88: =IF(Q88="","",SUMIF(Data[Bygningsdel],'Unikke lister'!Q88,Data[GWP sum])) ->  | AB88: =IF(Y88="","",SUMIF(Data[Konstruktion],'Unikke lister'!Y88,Data[Vægt])) ->  | AC88: =IF(Y88="","",SUMIF(Data[Konstruktion],'Unikke lister'!Y88,Data[GWP sum])) ->  | AM88: Afretningslag, cementbaseret | AN88: Gulv, vådrumsgulv, keramiske fliser (Klon) | AO88: 23 | AP88: Afretningslag, cementbaseret | AQ88: 600 | AR88: 119.1339
R89: =IF(Q89="","",SUMIF(Data[Bygningsdel],'Unikke lister'!Q89,Data[Vægt])) ->  | U89: =IF(Q89="","",SUMIF(Data[Bygningsdel],'Unikke lister'!Q89,Data[GWP sum])) ->  | AB89: =IF(Y89="","",SUMIF(Data[Konstruktion],'Unikke lister'!Y89,Data[Vægt])) ->  | AC89: =IF(Y89="","",SUMIF(Data[Konstruktion],'Unikke lister'!Y89,Data[GWP sum])) ->  | AM89: Keramikfliser, glaseret | AN89: Gulv, vådrumsgulv, keramiske fliser (Klon) | AO89: 23 | AP89: Keramikfliser, glaseret | AQ89: 100 | AR89: 31.63217
R90: =IF(Q90="","",SUMIF(Data[Bygningsdel],'Unikke lister'!Q90,Data[Vægt])) ->  | U90: =IF(Q90="","",SUMIF(Data[Bygningsdel],'Unikke lister'!Q90,Data[GWP sum])) ->  | AB90: =IF(Y90="","",SUMIF(Data[Konstruktion],'Unikke lister'!Y90,Data[Vægt])) ->  | AC90: =IF(Y90="","",SUMIF(Data[Konstruktion],'Unikke lister'!Y90,Data[GWP sum])) ->  | AM90: Mørtel, fliseklæber | AN90: Gulv, vådrumsgulv, keramiske fliser (Klon) | AO90: 23 | AP90: Mørtel, fliseklæber | AQ90: 15.5 | AR90: 5.63272635
R91: =IF(Q91="","",SUMIF(Data[Bygningsdel],'Unikke lister'!Q91,Data[Vægt])) ->  | U91: =IF(Q91="","",SUMIF(Data[Bygningsdel],'Unikke lister'!Q91,Data[GWP sum])) ->  | AB91: =IF(Y91="","",SUMIF(Data[Konstruktion],'Unikke lister'!Y91,Data[Vægt])) ->  | AC91: =IF(Y91="","",SUMIF(Data[Konstruktion],'Unikke lister'!Y91,Data[GWP sum])) ->  | AM91: Vandtætningsmembran, flydende | AN91: Gulv, vådrumsgulv, keramiske fliser (Klon) | AO91: 23 | AP91: Vandtætningsmembran, flydende | AQ91: 6 | AR91: 6.675978
R92: =IF(Q92="","",SUMIF(Data[Bygningsdel],'Unikke lister'!Q92,Data[Vægt])) ->  | U92: =IF(Q92="","",SUMIF(Data[Bygningsdel],'Unikke lister'!Q92,Data[GWP sum])) ->  | AB92: =IF(Y92="","",SUMIF(Data[Konstruktion],'Unikke lister'!Y92,Data[Vægt])) ->  | AC92: =IF(Y92="","",SUMIF(Data[Konstruktion],'Unikke lister'!Y92,Data[GWP sum])) ->  | AM92: Cembrit Windstopper Extreme, 9 mm | AN92: Let trækassette, terræn | AO92: 24 | AP92: Cembrit Windstopper Extreme, 9 mm | AQ92: 806.4 | AR92: 525.056
R93: =IF(Q93="","",SUMIF(Data[Bygningsdel],'Unikke lister'!Q93,Data[Vægt])) ->  | U93: =IF(Q93="","",SUMIF(Data[Bygningsdel],'Unikke lister'!Q93,Data[GWP sum])) ->  | AB93: =IF(Y93="","",SUMIF(Data[Konstruktion],'Unikke lister'!Y93,Data[Vægt])) ->  | AC93: =IF(Y93="","",SUMIF(Data[Konstruktion],'Unikke lister'!Y93,Data[GWP sum])) ->  | AM93: Dampspærre PE (tykkelse 0,0002 m) | AN93: Let trækassette, terræn | AO93: 24 | AP93: Dampspærre PE (tykkelse 0,0002 m) | AQ93: 11.2 | AR93: 53.49988
R94: =IF(Q94="","",SUMIF(Data[Bygningsdel],'Unikke lister'!Q94,Data[Vægt])) ->  | U94: =IF(Q94="","",SUMIF(Data[Bygningsdel],'Unikke lister'!Q94,Data[GWP sum])) ->  | AB94: =IF(Y94="","",SUMIF(Data[Konstruktion],'Unikke lister'!Y94,Data[Vægt])) ->  | AC94: =IF(Y94="","",SUMIF(Data[Konstruktion],'Unikke lister'!Y94,Data[GWP sum])) ->  | AM94: Papirisolering kl 37 - ISOCELL | AN94: Let trækassette, terræn | AO94: 24 | AP94: Papirisolering kl 37 - ISOCELL | AQ94: 800.8 | AR94: 176.176
R95: =IF(Q95="","",SUMIF(Data[Bygningsdel],'Unikke lister'!Q95,Data[Vægt])) ->  | U95: =IF(Q95="","",SUMIF(Data[Bygningsdel],'Unikke lister'!Q95,Data[GWP sum])) ->  | AB95: =IF(Y95="","",SUMIF(Data[Konstruktion],'Unikke lister'!Y95,Data[Vægt])) ->  | AC95: =IF(Y95="","",SUMIF(Data[Konstruktion],'Unikke lister'!Y95,Data[GWP sum])) ->  | AM95: Savede og tørrede konstruktionstræprodukter af fyr og gran, Fobrænding | AN95: Let trækassette, terræn | AO95: 24 | AP95: Savede og tørrede konstruktionstræprodukter af fyr og gran, Fobrænding | AQ95: 1404.48 | AR95: 147.84
R96: =IF(Q96="","",SUMIF(Data[Bygningsdel],'Unikke lister'!Q96,Data[Vægt])) ->  | U96: =IF(Q96="","",SUMIF(Data[Bygningsdel],'Unikke lister'!Q96,Data[GWP sum])) ->  | AB96: =IF(Y96="","",SUMIF(Data[Konstruktion],'Unikke lister'!Y96,Data[Vægt])) ->  | AC96: =IF(Y96="","",SUMIF(Data[Konstruktion],'Unikke lister'!Y96,Data[GWP sum])) ->  | AM96: Spaandex spånplader, Spaandex spånplader (DK) | AN96: Let trækassette, terræn | AO96: 24 | AP96: Spaandex spånplader, Spaandex spånplader (DK) | AQ96: 739.2 | AR96: 221.76
R97: =IF(Q97="","",SUMIF(Data[Bygningsdel],'Unikke lister'!Q97,Data[Vægt])) ->  | U97: =IF(Q97="","",SUMIF(Data[Bygningsdel],'Unikke lister'!Q97,Data[GWP sum])) ->  | AB97: =IF(Y97="","",SUMIF(Data[Konstruktion],'Unikke lister'!Y97,Data[Vægt])) ->  | AC97: =IF(Y97="","",SUMIF(Data[Konstruktion],'Unikke lister'!Y97,Data[GWP sum])) ->  | AM97: Trinlydsdug - Scan Underlay | AN97: Trægulv terrændæk | AO97: 25 | AP97: Trinlydsdug - Scan Underlay | AQ97: 48.3 | AR97: 24.16487962
R98: =IF(Q98="","",SUMIF(Data[Bygningsdel],'Unikke lister'!Q98,Data[Vægt])) ->  | U98: =IF(Q98="","",SUMIF(Data[Bygningsdel],'Unikke lister'!Q98,Data[GWP sum])) ->  | AB98: =IF(Y98="","",SUMIF(Data[Konstruktion],'Unikke lister'!Y98,Data[Vægt])) ->  | AC98: =IF(Y98="","",SUMIF(Data[Konstruktion],'Unikke lister'!Y98,Data[GWP sum])) ->  | AM98: Trægulv 14 mm ask - Tarkett Sverige | AN98: Trægulv terrændæk | AO98: 25 | AP98: Trægulv 14 mm ask - Tarkett Sverige | AQ98: 363.4 | AR98: 212.06
R99: =IF(Q99="","",SUMIF(Data[Bygningsdel],'Unikke lister'!Q99,Data[Vægt])) ->  | U99: =IF(Q99="","",SUMIF(Data[Bygningsdel],'Unikke lister'!Q99,Data[GWP sum])) ->  | AB99: =IF(Y99="","",SUMIF(Data[Konstruktion],'Unikke lister'!Y99,Data[Vægt])) ->  | AC99: =IF(Y99="","",SUMIF(Data[Konstruktion],'Unikke lister'!Y99,Data[GWP sum])) ->  | AM99: Savede og tørrede konstruktionstræprodukter af fyr og gran, Fobrænding | AN99: Trætrappe pr. etage | AO99: 26 | AP99: Savede og tørrede konstruktionstræprodukter af fyr og gran, Fobrænding | AQ99: 160 | AR99: 16.84210526
R100: =IF(Q100="","",SUMIF(Data[Bygningsdel],'Unikke lister'!Q100,Data[Vægt])) ->  | U100: =IF(Q100="","",SUMIF(Data[Bygningsdel],'Unikke lister'!Q100,Data[GWP sum])) ->  | AB100: =IF(Y100="","",SUMIF(Data[Konstruktion],'Unikke lister'!Y100,Data[Vægt])) ->  | AC100: =IF(Y100="","",SUMIF(Data[Konstruktion],'Unikke lister'!Y100,Data[GWP sum])) ->  | AM100: Trægulv 14 mm ask - Tarkett Sverige | AN100: Trætrappe pr. etage | AO100: 26 | AP100: Trægulv 14 mm ask - Tarkett Sverige | AQ100: 71.1 | AR100: 41.49
AB101: =IF(Y101="","",SUMIF(Data[Konstruktion],'Unikke lister'!Y101,Data[Vægt])) ->  | AC101: =IF(Y101="","",SUMIF(Data[Konstruktion],'Unikke lister'!Y101,Data[GWP sum])) ->  | AM101: WISA Gran krydsfiner, ubehandlet, Fobrænding | AN101: Trætrappe pr. etage | AO101: 26 | AP101: WISA Gran krydsfiner, ubehandlet, Fobrænding | AQ101: 43.2 | AR101: 12.96
AB102: =IF(Y102="","",SUMIF(Data[Konstruktion],'Unikke lister'!Y102,Data[Vægt])) ->  | AC102: =IF(Y102="","",SUMIF(Data[Konstruktion],'Unikke lister'!Y102,Data[GWP sum])) ->  | AM102: Brugsvandsrør, rustfri stål | AN102: Rustfrit stålrør | AO102: 27 | AP102: Brugsvandsrør, rustfri stål | AQ102: 39 | AR102: 138.8361807
AB103: =IF(Y103="","",SUMIF(Data[Konstruktion],'Unikke lister'!Y103,Data[Vægt])) ->  | AC103: =IF(Y103="","",SUMIF(Data[Konstruktion],'Unikke lister'!Y103,Data[GWP sum])) ->  | AM103: Buffertank, rustfri stål | AN103: Metroair 330, indedel til VP | AO103: Varmepumpe | AP103: Varmepumpe | AQ103: 220 | AR103: 2077.5722
AB104: =IF(Y104="","",SUMIF(Data[Konstruktion],'Unikke lister'!Y104,Data[Vægt])) ->  | AC104: =IF(Y104="","",SUMIF(Data[Konstruktion],'Unikke lister'!Y104,Data[GWP sum])) ->  | AM104: Magna3 25-(40/60/80/100/120) | AN104: Magna3 25-40 | AO104: 29 | AP104: Magna3 25-(40/60/80/100/120) | AQ104: 6.41 | AR104: 109.2852
AB105: =IF(Y105="","",SUMIF(Data[Konstruktion],'Unikke lister'!Y105,Data[Vægt])) ->  | AC105: =IF(Y105="","",SUMIF(Data[Konstruktion],'Unikke lister'!Y105,Data[GWP sum])) ->  | AM105: Panel radiator 500mm x 700mm - Lyngson | AN105: Radiator, 142/2000 | AO105: Radiator | AP105: Radiator | AQ105: 16.15878856 | AR105: 67.52868582
AB106: =IF(Y106="","",SUMIF(Data[Konstruktion],'Unikke lister'!Y106,Data[Vægt])) ->  | AC106: =IF(Y106="","",SUMIF(Data[Konstruktion],'Unikke lister'!Y106,Data[GWP sum])) ->  | AM106: Panel radiator 500mm x 700mm - Lyngson | AN106: Radiator, 200/1000 | AO106: Radiator | AP106: Radiator | AQ106: 22.75885713 | AR106: 95.11082507
AB107: =IF(Y107="","",SUMIF(Data[Konstruktion],'Unikke lister'!Y107,Data[Vægt])) ->  | AC107: =IF(Y107="","",SUMIF(Data[Konstruktion],'Unikke lister'!Y107,Data[GWP sum])) ->  | AM107: Panel radiator 500mm x 700mm - Lyngson | AN107: Radiator, 200/1100 | AO107: Radiator | AP107: Radiator | AQ107: 12.51737144 | AR107: 52.31095386
AB108: =IF(Y108="","",SUMIF(Data[Konstruktion],'Unikke lister'!Y108,Data[Vægt])) ->  | AC108: =IF(Y108="","",SUMIF(Data[Konstruktion],'Unikke lister'!Y108,Data[GWP sum])) ->  | AM108: Panel radiator 500mm x 700mm - Lyngson | AN108: Radiator, 200/2000 | AO108: Radiator | AP108: Radiator | AQ108: 45.51771429 | AR108: 190.2216503
AB109: =IF(Y109="","",SUMIF(Data[Konstruktion],'Unikke lister'!Y109,Data[Vægt])) ->  | AC109: =IF(Y109="","",SUMIF(Data[Konstruktion],'Unikke lister'!Y109,Data[GWP sum])) ->  | AM109: Panel radiator 500mm x 700mm - Lyngson | AN109: Radiator, 200/600 | AO109: Radiator | AP109: Radiator | AQ109: 6.827657146 | AR109: 28.53324755
AB110: =IF(Y110="","",SUMIF(Data[Konstruktion],'Unikke lister'!Y110,Data[Vægt])) ->  | AC110: =IF(Y110="","",SUMIF(Data[Konstruktion],'Unikke lister'!Y110,Data[GWP sum])) ->  | AM110: Panel radiator 500mm x 700mm - Lyngson | AN110: Radiator, 300/400 | AO110: Radiator | AP110: Radiator | AQ110: 6.827657146 | AR110: 28.53324755
AB111: =IF(Y111="","",SUMIF(Data[Konstruktion],'Unikke lister'!Y111,Data[Vægt])) ->  | AC111: =IF(Y111="","",SUMIF(Data[Konstruktion],'Unikke lister'!Y111,Data[GWP sum])) ->  | AM111: Panel radiator 500mm x 700mm - Lyngson | AN111: Radiator, 600/900 | AO111: Radiator | AP111: Radiator | AQ111: 30.72445715 | AR111: 128.399614
AB112: =IF(Y112="","",SUMIF(Data[Konstruktion],'Unikke lister'!Y112,Data[Vægt])) ->  | AC112: =IF(Y112="","",SUMIF(Data[Konstruktion],'Unikke lister'!Y112,Data[GWP sum])) ->  | AM112: Varmepumpe (luft-vand) 10 kW | AN112: Varmepumpe luft til vand | AO112: Varmepumpe | AP112: Varmepumpe | AQ112: 83.08 | AR112: 611.7642424
AB113: =IF(Y113="","",SUMIF(Data[Konstruktion],'Unikke lister'!Y113,Data[Vægt])) ->  | AC113: =IF(Y113="","",SUMIF(Data[Konstruktion],'Unikke lister'!Y113,Data[GWP sum])) ->  | AM113: Brugsvandsrør, rustfri stål | AN113: Press rør | AO113: 31 | AP113: Brugsvandsrør, rustfri stål | AQ113: 125.855 | AR113: 448.031475
AB114: =IF(Y114="","",SUMIF(Data[Konstruktion],'Unikke lister'!Y114,Data[Vægt])) ->  | AC114: =IF(Y114="","",SUMIF(Data[Konstruktion],'Unikke lister'!Y114,Data[GWP sum])) ->  | AM114: Ventilationskanal, galvaniseret stål | AN114: Ventilationskanaler Ø125, enfamiliehuse og etageboliger, central | AO114: 32 | AP114: Ventilationskanal, galvaniseret stål | AQ114: 1.525 | AR114: 4.649506879
AB115: =IF(Y115="","",SUMIF(Data[Konstruktion],'Unikke lister'!Y115,Data[Vægt])) ->  | AC115: =IF(Y115="","",SUMIF(Data[Konstruktion],'Unikke lister'!Y115,Data[GWP sum])) ->  | AM115: Fastgørelsesmidler/skruer i galvaniseret stål | AN115: Dør, indvendig | AO115: Indvendig dør | AP115: Indvendig dør | AQ115: 4 | AR115: 14.22276828
AB116: =IF(Y116="","",SUMIF(Data[Konstruktion],'Unikke lister'!Y116,Data[Vægt])) ->  | AC116: =IF(Y116="","",SUMIF(Data[Konstruktion],'Unikke lister'!Y116,Data[GWP sum])) ->  | AM116: Overflade, Indendørsmaling, emulsions maling, slidstærk | AN116: Dør, indvendig | AO116: Indvendig dør | AP116: Indvendig dør | AQ116: 1.43 | AR116: 3.769816765
AB117: =IF(Y117="","",SUMIF(Data[Konstruktion],'Unikke lister'!Y117,Data[Vægt])) ->  | AC117: =IF(Y117="","",SUMIF(Data[Konstruktion],'Unikke lister'!Y117,Data[GWP sum])) ->  | AM117: Spånplade | AN117: Dør, indvendig | AO117: Indvendig dør | AP117: Indvendig dør | AQ117: 132 | AR117: 74.46233143
AB118: =IF(Y118="","",SUMIF(Data[Konstruktion],'Unikke lister'!Y118,Data[Vægt])) ->  | AC118: =IF(Y118="","",SUMIF(Data[Konstruktion],'Unikke lister'!Y118,Data[GWP sum])) ->  | AM118: Træ, fyrretræ (12% fugt / 10,7% H2O) | AN118: Dør, indvendig | AO118: Indvendig dør | AP118: Indvendig dør | AQ118: 40 | AR118: 14.71720117
AB119: =IF(Y119="","",SUMIF(Data[Konstruktion],'Unikke lister'!Y119,Data[Vægt])) ->  | AC119: =IF(Y119="","",SUMIF(Data[Konstruktion],'Unikke lister'!Y119,Data[GWP sum])) ->  | AM119: Grå støbejern | AN119: Udvendig dør, træ | AO119: Udvendig dør | AP119: Udvendig dør | AQ119: 0.105 | AR119: 0.1717844173
AB120: =IF(Y120="","",SUMIF(Data[Konstruktion],'Unikke lister'!Y120,Data[Vægt])) ->  | AC120: =IF(Y120="","",SUMIF(Data[Konstruktion],'Unikke lister'!Y120,Data[GWP sum])) ->  | AM120: Høvlede konstruktionstræsprodukter af fyr og gran, Fobrænding | AN120: Udvendig dør, træ | AO120: Udvendig dør | AP120: Udvendig dør | AQ120: 3.423 | AR120: 0.4353815789
AB121: =IF(Y121="","",SUMIF(Data[Konstruktion],'Unikke lister'!Y121,Data[Vægt])) ->  | AC121: =IF(Y121="","",SUMIF(Data[Konstruktion],'Unikke lister'!Y121,Data[GWP sum])) ->  | AM121: Savede og tørrede konstruktionstræprodukter af fyr og gran, Fobrænding | AN121: Udvendig dør, træ | AO121: Udvendig dør | AP121: Udvendig dør | AQ121: 47.313 | AR121: 9.960631579
AB122: =IF(Y122="","",SUMIF(Data[Konstruktion],'Unikke lister'!Y122,Data[Vægt])) ->  | AC122: =IF(Y122="","",SUMIF(Data[Konstruktion],'Unikke lister'!Y122,Data[GWP sum])) ->  | AM122: Trævindue med 3-lags rude | AN122: Facadevinduer | AO122: Facadevindue | AP122: Facadevindue | AQ122: 752.4 | AR122: 2783
AB123: =IF(Y123="","",SUMIF(Data[Konstruktion],'Unikke lister'!Y123,Data[Vægt])) ->  | AC123: =IF(Y123="","",SUMIF(Data[Konstruktion],'Unikke lister'!Y123,Data[GWP sum])) ->  | AM123: Velux GGL ovenlys m. aluinddækning, 3-lagsrude (træ) | AN123: Velux GGL ovenlys m. aluinddækning, 3-lagsrude (træ) | AO123: Velux ovenlys | AP123: Velux ovenlys | AQ123: 394.3125 | AR123: 1431.882
AB124: =IF(Y124="","",SUMIF(Data[Konstruktion],'Unikke lister'!Y124,Data[Vægt])) ->  | AC124: =IF(Y124="","",SUMIF(Data[Konstruktion],'Unikke lister'!Y124,Data[GWP sum])) ->  | AM124: Velux modular skylight, 3-lagsrude | AN124: Velux modular skylight, 3-lagsrude | AO124: Velux fladt ovenlys | AP124: Velux fladt ovenlys | AQ124: 134.4 | AR124: 800.96
AB125: =IF(Y125="","",SUMIF(Data[Konstruktion],'Unikke lister'!Y125,Data[Vægt])) ->  | AC125: =IF(Y125="","",SUMIF(Data[Konstruktion],'Unikke lister'!Y125,Data[GWP sum])) ->  | AM125: Cembrit Windstopper Extreme, 9 mm | AN125: Facadekassette uden beklædning | AO125: 38 | AP125: Cembrit Windstopper Extreme, 9 mm | AQ125: 2131.2 | AR125: 1387.648
AB126: =IF(Y126="","",SUMIF(Data[Konstruktion],'Unikke lister'!Y126,Data[Vægt])) ->  | AC126: =IF(Y126="","",SUMIF(Data[Konstruktion],'Unikke lister'!Y126,Data[GWP sum])) ->  | AM126: Dampspærre PE (tykkelse 0,0002 m) | AN126: Facadekassette uden beklædning | AO126: 38 | AP126: Dampspærre PE (tykkelse 0,0002 m) | AQ126: 29.6 | AR126: 141.39254
AB127: =IF(Y127="","",SUMIF(Data[Konstruktion],'Unikke lister'!Y127,Data[Vægt])) ->  | AC127: =IF(Y127="","",SUMIF(Data[Konstruktion],'Unikke lister'!Y127,Data[GWP sum])) ->  | AM127: Fermacell fiberplade 12,5 mm | AN127: Facadekassette uden beklædning | AO127: 38 | AP127: Fermacell fiberplade 12,5 mm | AQ127: 4366 | AR127: 396.9983524
AB128: =IF(Y128="","",SUMIF(Data[Konstruktion],'Unikke lister'!Y128,Data[Vægt])) ->  | AC128: =IF(Y128="","",SUMIF(Data[Konstruktion],'Unikke lister'!Y128,Data[GWP sum])) ->  | AM128: OSB2 Unsanded, Kronospan | AN128: Facadekassette uden beklædning | AO128: 38 | AP128: OSB2 Unsanded, Kronospan | AQ128: 1625.04 | AR128: 705.96
AB129: =IF(Y129="","",SUMIF(Data[Konstruktion],'Unikke lister'!Y129,Data[Vægt])) ->  | AC129: =IF(Y129="","",SUMIF(Data[Konstruktion],'Unikke lister'!Y129,Data[GWP sum])) ->  | AM129: Papirisolering kl 37 - ISOCELL | AN129: Facadekassette uden beklædning | AO129: 38 | AP129: Papirisolering kl 37 - ISOCELL | AQ129: 1850 | AR129: 407
AB130: =IF(Y130="","",SUMIF(Data[Konstruktion],'Unikke lister'!Y130,Data[Vægt])) ->  | AC130: =IF(Y130="","",SUMIF(Data[Konstruktion],'Unikke lister'!Y130,Data[GWP sum])) ->  | AM130: Papirisolering kl 37 - ISOCELL | AN130: Facadekassette uden beklædning | AO130: 38 | AP130: Papirisolering kl 37 - ISOCELL | AQ130: 282.68 | AR130: 62.1896
AB131: =IF(Y131="","",SUMIF(Data[Konstruktion],'Unikke lister'!Y131,Data[Vægt])) ->  | AC131: =IF(Y131="","",SUMIF(Data[Konstruktion],'Unikke lister'!Y131,Data[GWP sum])) ->  | AM131: Savede og tørrede konstruktionstræprodukter af fyr og gran, Fobrænding | AN131: Facadekassette uden beklædning | AO131: 38 | AP131: Savede og tørrede konstruktionstræprodukter af fyr og gran, Fobrænding | AQ131: 2969.472 | AR131: 312.576
AA132: =IF(Y132="","",IF(Z132="",Y132,Z132)) ->  | AB132: =IF(Y132="","",SUMIF(Data[Konstruktion],'Unikke lister'!Y132,Data[Vægt])) ->  | AC132: =IF(Y132="","",SUMIF(Data[Konstruktion],'Unikke lister'!Y132,Data[GWP sum])) ->  | AM132: Savede og tørrede konstruktionstræprodukter af fyr og gran, Fobrænding | AN132: Facadekassette uden beklædning | AO132: 38 | AP132: Savede og tørrede konstruktionstræprodukter af fyr og gran, Fobrænding | AQ132: 472.416 | AR132: 49.728
AB133: =IF(Y133="","",SUMIF(Data[Konstruktion],'Unikke lister'!Y133,Data[Vægt])) ->  | AC133: =IF(Y133="","",SUMIF(Data[Konstruktion],'Unikke lister'!Y133,Data[GWP sum])) ->  | AE133: =IF(AD133="","",SUMIF($AA$4:$AA$200,AD133,$AB$4:$AB$200)) ->  | AF133: =IF(AD133="","",AE133/$AE$3) ->  | AG133: =IF(AD133="","",_xlfn.RANK.EQ(AE133,$AE$4:$AE$200,0)) ->  | AH133: =IF(AD133="","",SUMIF($AA$4:$AA$200,AD133,$AC$4:$AC$200)) ->  | AI133: =IF(AD133="","",AH133/$AH$3) ->  | AJ133: =IF(AD133="","",_xlfn.RANK.EQ(AH133,$AH$4:$AH$200,0)) ->  | AM133: Cembrit Windstopper Extreme, 9 mm | AN133: Tilbagetrukket facadekassette uden beklædning | AO133: =IF(AN133="","",IFERROR(MATCH(AN133,$AD$4:$AD$1000,0),_xlfn.XLOOKUP(AN133,$Y$4:$Y$1000,$AA$4:$AA$1000,"",0))) -> 39 | AP133: =IF(AN133="","",IF(N(AO133)=0,AO133,AM133)) -> Cembrit Windstopper Extreme, 9 mm | AQ133: 129.6 | AR133: 84.384 | AU133: =IF(AS133="","",IF(AT133="",AS133,AT133)) ->  | AV133: =IF(AS133="","",SUMIF($AP$4:$AP$1000,AS133,$AQ$4:$AQ$1000)) ->  | AW133: =IF(AS133="","",SUMIF($AP$4:$AP$1000,AS133,$AR$4:$AR$1000)) ->  | AY133: =IF(AX133="","",SUMIF($AU$4:$AU$300,AX133,$AV$4:$AV$300)) ->  | AZ133: =IF(AX133="","",AY133/$AY$3) ->  | BA133: =IF(AX133="","",_xlfn.RANK.EQ(AY133,$AY$4:$AY$300,0)) ->  | BB133: =IF(AX133="","",SUMIF($AU$4:$AU$300,AX133,$AW$4:$AW$300)) ->  | BC133: =IF(AX133="","",BB133/$BB$3) ->  | BD133: =IF(AX133="","",_xlfn.RANK.EQ(BB133,$BB$4:$BB$300,0)) -> 
AB134: =IF(Y134="","",SUMIF(Data[Konstruktion],'Unikke lister'!Y134,Data[Vægt])) ->  | AC134: =IF(Y134="","",SUMIF(Data[Konstruktion],'Unikke lister'!Y134,Data[GWP sum])) ->  | AM134: Dampspærre PE (tykkelse 0,0002 m) | AN134: Tilbagetrukket facadekassette uden beklædning | AO134: 39 | AP134: Dampspærre PE (tykkelse 0,0002 m) | AQ134: 1.8 | AR134: 8.598195
AB135: =IF(Y135="","",SUMIF(Data[Konstruktion],'Unikke lister'!Y135,Data[Vægt])) ->  | AC135: =IF(Y135="","",SUMIF(Data[Konstruktion],'Unikke lister'!Y135,Data[GWP sum])) ->  | AM135: Fermacell fiberplade 12,5 mm | AN135: Tilbagetrukket facadekassette uden beklædning | AO135: 39 | AP135: Fermacell fiberplade 12,5 mm | AQ135: 265.5 | AR135: 24.1417917
AB136: =IF(Y136="","",SUMIF(Data[Konstruktion],'Unikke lister'!Y136,Data[Vægt])) ->  | AC136: =IF(Y136="","",SUMIF(Data[Konstruktion],'Unikke lister'!Y136,Data[GWP sum])) ->  | AM136: OSB2 Unsanded, Kronospan | AN136: Tilbagetrukket facadekassette uden beklædning | AO136: 39 | AP136: OSB2 Unsanded, Kronospan | AQ136: 98.82 | AR136: 42.93
AB137: =IF(Y137="","",SUMIF(Data[Konstruktion],'Unikke lister'!Y137,Data[Vægt])) ->  | AC137: =IF(Y137="","",SUMIF(Data[Konstruktion],'Unikke lister'!Y137,Data[GWP sum])) ->  | AM137: Papirisolering kl 37 - ISOCELL | AN137: Tilbagetrukket facadekassette uden beklædning | AO137: 39 | AP137: Papirisolering kl 37 - ISOCELL | AQ137: 74.7 | AR137: 16.434
AB138: =IF(Y138="","",SUMIF(Data[Konstruktion],'Unikke lister'!Y138,Data[Vægt])) ->  | AC138: =IF(Y138="","",SUMIF(Data[Konstruktion],'Unikke lister'!Y138,Data[GWP sum])) ->  | AM138: Papirisolering kl 37 - ISOCELL | AN138: Tilbagetrukket facadekassette uden beklædning | AO138: 39 | AP138: Papirisolering kl 37 - ISOCELL | AQ138: 17.19 | AR138: 3.7818
AB139: =IF(Y139="","",SUMIF(Data[Konstruktion],'Unikke lister'!Y139,Data[Vægt])) ->  | AC139: =IF(Y139="","",SUMIF(Data[Konstruktion],'Unikke lister'!Y139,Data[GWP sum])) ->  | AM139: Savede og tørrede konstruktionstræprodukter af fyr og gran, Fobrænding | AN139: Tilbagetrukket facadekassette uden beklædning | AO139: 39 | AP139: Savede og tørrede konstruktionstræprodukter af fyr og gran, Fobrænding | AQ139: 119.016 | AR139: 12.528
AB140: =IF(Y140="","",SUMIF(Data[Konstruktion],'Unikke lister'!Y140,Data[Vægt])) ->  | AC140: =IF(Y140="","",SUMIF(Data[Konstruktion],'Unikke lister'!Y140,Data[GWP sum])) ->  | AM140: Savede og tørrede konstruktionstræprodukter af fyr og gran, Fobrænding | AN140: Tilbagetrukket facadekassette uden beklædning | AO140: 39 | AP140: Savede og tørrede konstruktionstræprodukter af fyr og gran, Fobrænding | AQ140: 28.728 | AR140: 3.024
AB141: =IF(Y141="","",SUMIF(Data[Konstruktion],'Unikke lister'!Y141,Data[Vægt])) ->  | AC141: =IF(Y141="","",SUMIF(Data[Konstruktion],'Unikke lister'!Y141,Data[GWP sum])) ->  | AM141: Savede og tørrede konstruktionstræprodukter af fyr og gran, Fobrænding | AN141: Træbeklædning med ophæng | AO141: 40 | AP141: Savede og tørrede konstruktionstræprodukter af fyr og gran, Fobrænding | AQ141: 134.976 | AR141: 14.208
AB142: =IF(Y142="","",SUMIF(Data[Konstruktion],'Unikke lister'!Y142,Data[Vægt])) ->  | AC142: =IF(Y142="","",SUMIF(Data[Konstruktion],'Unikke lister'!Y142,Data[GWP sum])) ->  | AM142: Savede og tørrede konstruktionstræprodukter af fyr og gran, Fobrænding | AN142: Træbeklædning med ophæng | AO142: 40 | AP142: Savede og tørrede konstruktionstræprodukter af fyr og gran, Fobrænding | AQ142: 269.952 | AR142: 28.416
AB143: =IF(Y143="","",SUMIF(Data[Konstruktion],'Unikke lister'!Y143,Data[Vægt])) ->  | AC143: =IF(Y143="","",SUMIF(Data[Konstruktion],'Unikke lister'!Y143,Data[GWP sum])) ->  | AM143: Træbeklædning 19 mm, ubehandlet gran - InnTre Kjeldstad AS | AN143: Træbeklædning med ophæng | AO143: 40 | AP143: Træbeklædning 19 mm, ubehandlet gran - InnTre Kjeldstad AS | AQ143: 1409.7148 | AR143: 392.6660816
AB144: =IF(Y144="","",SUMIF(Data[Konstruktion],'Unikke lister'!Y144,Data[Vægt])) ->  | AC144: =IF(Y144="","",SUMIF(Data[Konstruktion],'Unikke lister'!Y144,Data[GWP sum])) ->  | AM144: Savede og tørrede konstruktionstræprodukter af fyr og gran, Fobrænding | AN144: Træbeklædning tilbagetrukket med ophæng | AO144: 41 | AP144: Savede og tørrede konstruktionstræprodukter af fyr og gran, Fobrænding | AQ144: 8.208 | AR144: 0.864
AB145: =IF(Y145="","",SUMIF(Data[Konstruktion],'Unikke lister'!Y145,Data[Vægt])) ->  | AC145: =IF(Y145="","",SUMIF(Data[Konstruktion],'Unikke lister'!Y145,Data[GWP sum])) ->  | AM145: Savede og tørrede konstruktionstræprodukter af fyr og gran, Fobrænding | AN145: Træbeklædning tilbagetrukket med ophæng | AO145: 41 | AP145: Savede og tørrede konstruktionstræprodukter af fyr og gran, Fobrænding | AQ145: 16.416 | AR145: 1.728
AB146: =IF(Y146="","",SUMIF(Data[Konstruktion],'Unikke lister'!Y146,Data[Vægt])) ->  | AC146: =IF(Y146="","",SUMIF(Data[Konstruktion],'Unikke lister'!Y146,Data[GWP sum])) ->  | AM146: Træbeklædning 19 mm, ubehandlet gran - InnTre Kjeldstad AS | AN146: Træbeklædning tilbagetrukket med ophæng | AO146: 41 | AP146: Træbeklædning 19 mm, ubehandlet gran - InnTre Kjeldstad AS | AQ146: 85.7259 | AR146: 23.8783428
AB147: =IF(Y147="","",SUMIF(Data[Konstruktion],'Unikke lister'!Y147,Data[Vægt])) ->  | AC147: =IF(Y147="","",SUMIF(Data[Konstruktion],'Unikke lister'!Y147,Data[GWP sum])) -> 
AB148: =IF(Y148="","",SUMIF(Data[Konstruktion],'Unikke lister'!Y148,Data[Vægt])) ->  | AC148: =IF(Y148="","",SUMIF(Data[Konstruktion],'Unikke lister'!Y148,Data[GWP sum])) -> 
AB149: =IF(Y149="","",SUMIF(Data[Konstruktion],'Unikke lister'!Y149,Data[Vægt])) ->  | AC149: =IF(Y149="","",SUMIF(Data[Konstruktion],'Unikke lister'!Y149,Data[GWP sum])) ->  | AO149: =IF(AN149="","",IFERROR(MATCH(AN149,$AD$4:$AD$1000,0),_xlfn.XLOOKUP(AN149,$Y$4:$Y$1000,$AA$4:$AA$1000,"",0))) ->  | AP149: =IF(AN149="","",IF(N(AO149)=0,AO149,AM149)) -> 
AB150: =IF(Y150="","",SUMIF(Data[Konstruktion],'Unikke lister'!Y150,Data[Vægt])) ->  | AC150: =IF(Y150="","",SUMIF(Data[Konstruktion],'Unikke lister'!Y150,Data[GWP sum])) ->  | AP150: =IF(AN150="","",IF(N(AO150)=0,AO150,AM150)) -> 
AB151: =IF(Y151="","",SUMIF(Data[Konstruktion],'Unikke lister'!Y151,Data[Vægt])) ->  | AC151: =IF(Y151="","",SUMIF(Data[Konstruktion],'Unikke lister'!Y151,Data[GWP sum])) -> 
AB152: =IF(Y152="","",SUMIF(Data[Konstruktion],'Unikke lister'!Y152,Data[Vægt])) ->  | AC152: =IF(Y152="","",SUMIF(Data[Konstruktion],'Unikke lister'!Y152,Data[GWP sum])) -> 
AB153: =IF(Y153="","",SUMIF(Data[Konstruktion],'Unikke lister'!Y153,Data[Vægt])) ->  | AC153: =IF(Y153="","",SUMIF(Data[Konstruktion],'Unikke lister'!Y153,Data[GWP sum])) -> 
AB154: =IF(Y154="","",SUMIF(Data[Konstruktion],'Unikke lister'!Y154,Data[Vægt])) ->  | AC154: =IF(Y154="","",SUMIF(Data[Konstruktion],'Unikke lister'!Y154,Data[GWP sum])) -> 
AB155: =IF(Y155="","",SUMIF(Data[Konstruktion],'Unikke lister'!Y155,Data[Vægt])) ->  | AC155: =IF(Y155="","",SUMIF(Data[Konstruktion],'Unikke lister'!Y155,Data[GWP sum])) -> 
AB156: =IF(Y156="","",SUMIF(Data[Konstruktion],'Unikke lister'!Y156,Data[Vægt])) ->  | AC156: =IF(Y156="","",SUMIF(Data[Konstruktion],'Unikke lister'!Y156,Data[GWP sum])) -> 
AB157: =IF(Y157="","",SUMIF(Data[Konstruktion],'Unikke lister'!Y157,Data[Vægt])) ->  | AC157: =IF(Y157="","",SUMIF(Data[Konstruktion],'Unikke lister'!Y157,Data[GWP sum])) -> 
AB158: =IF(Y158="","",SUMIF(Data[Konstruktion],'Unikke lister'!Y158,Data[Vægt])) ->  | AC158: =IF(Y158="","",SUMIF(Data[Konstruktion],'Unikke lister'!Y158,Data[GWP sum])) -> 
AB159: =IF(Y159="","",SUMIF(Data[Konstruktion],'Unikke lister'!Y159,Data[Vægt])) ->  | AC159: =IF(Y159="","",SUMIF(Data[Konstruktion],'Unikke lister'!Y159,Data[GWP sum])) -> 
AB160: =IF(Y160="","",SUMIF(Data[Konstruktion],'Unikke lister'!Y160,Data[Vægt])) ->  | AC160: =IF(Y160="","",SUMIF(Data[Konstruktion],'Unikke lister'!Y160,Data[GWP sum])) -> 
AB161: =IF(Y161="","",SUMIF(Data[Konstruktion],'Unikke lister'!Y161,Data[Vægt])) ->  | AC161: =IF(Y161="","",SUMIF(Data[Konstruktion],'Unikke lister'!Y161,Data[GWP sum])) -> 
AB162: =IF(Y162="","",SUMIF(Data[Konstruktion],'Unikke lister'!Y162,Data[Vægt])) ->  | AC162: =IF(Y162="","",SUMIF(Data[Konstruktion],'Unikke lister'!Y162,Data[GWP sum])) -> 
AB163: =IF(Y163="","",SUMIF(Data[Konstruktion],'Unikke lister'!Y163,Data[Vægt])) ->  | AC163: =IF(Y163="","",SUMIF(Data[Konstruktion],'Unikke lister'!Y163,Data[GWP sum])) -> 
AB164: =IF(Y164="","",SUMIF(Data[Konstruktion],'Unikke lister'!Y164,Data[Vægt])) ->  | AC164: =IF(Y164="","",SUMIF(Data[Konstruktion],'Unikke lister'!Y164,Data[GWP sum])) -> 
AB165: =IF(Y165="","",SUMIF(Data[Konstruktion],'Unikke lister'!Y165,Data[Vægt])) ->  | AC165: =IF(Y165="","",SUMIF(Data[Konstruktion],'Unikke lister'!Y165,Data[GWP sum])) -> 
AB166: =IF(Y166="","",SUMIF(Data[Konstruktion],'Unikke lister'!Y166,Data[Vægt])) ->  | AC166: =IF(Y166="","",SUMIF(Data[Konstruktion],'Unikke lister'!Y166,Data[GWP sum])) -> 
AB167: =IF(Y167="","",SUMIF(Data[Konstruktion],'Unikke lister'!Y167,Data[Vægt])) ->  | AC167: =IF(Y167="","",SUMIF(Data[Konstruktion],'Unikke lister'!Y167,Data[GWP sum])) -> 
AB168: =IF(Y168="","",SUMIF(Data[Konstruktion],'Unikke lister'!Y168,Data[Vægt])) ->  | AC168: =IF(Y168="","",SUMIF(Data[Konstruktion],'Unikke lister'!Y168,Data[GWP sum])) -> 
AB169: =IF(Y169="","",SUMIF(Data[Konstruktion],'Unikke lister'!Y169,Data[Vægt])) ->  | AC169: =IF(Y169="","",SUMIF(Data[Konstruktion],'Unikke lister'!Y169,Data[GWP sum])) -> 
AB170: =IF(Y170="","",SUMIF(Data[Konstruktion],'Unikke lister'!Y170,Data[Vægt])) ->  | AC170: =IF(Y170="","",SUMIF(Data[Konstruktion],'Unikke lister'!Y170,Data[GWP sum])) -> 
AB171: =IF(Y171="","",SUMIF(Data[Konstruktion],'Unikke lister'!Y171,Data[Vægt])) ->  | AC171: =IF(Y171="","",SUMIF(Data[Konstruktion],'Unikke lister'!Y171,Data[GWP sum])) -> 
AB172: =IF(Y172="","",SUMIF(Data[Konstruktion],'Unikke lister'!Y172,Data[Vægt])) ->  | AC172: =IF(Y172="","",SUMIF(Data[Konstruktion],'Unikke lister'!Y172,Data[GWP sum])) -> 
AB173: =IF(Y173="","",SUMIF(Data[Konstruktion],'Unikke lister'!Y173,Data[Vægt])) ->  | AC173: =IF(Y173="","",SUMIF(Data[Konstruktion],'Unikke lister'!Y173,Data[GWP sum])) -> 
AB174: =IF(Y174="","",SUMIF(Data[Konstruktion],'Unikke lister'!Y174,Data[Vægt])) ->  | AC174: =IF(Y174="","",SUMIF(Data[Konstruktion],'Unikke lister'!Y174,Data[GWP sum])) -> 
AB175: =IF(Y175="","",SUMIF(Data[Konstruktion],'Unikke lister'!Y175,Data[Vægt])) ->  | AC175: =IF(Y175="","",SUMIF(Data[Konstruktion],'Unikke lister'!Y175,Data[GWP sum])) -> 
AB176: =IF(Y176="","",SUMIF(Data[Konstruktion],'Unikke lister'!Y176,Data[Vægt])) ->  | AC176: =IF(Y176="","",SUMIF(Data[Konstruktion],'Unikke lister'!Y176,Data[GWP sum])) -> 
AB177: =IF(Y177="","",SUMIF(Data[Konstruktion],'Unikke lister'!Y177,Data[Vægt])) ->  | AC177: =IF(Y177="","",SUMIF(Data[Konstruktion],'Unikke lister'!Y177,Data[GWP sum])) -> 
AB178: =IF(Y178="","",SUMIF(Data[Konstruktion],'Unikke lister'!Y178,Data[Vægt])) ->  | AC178: =IF(Y178="","",SUMIF(Data[Konstruktion],'Unikke lister'!Y178,Data[GWP sum])) -> 
AB179: =IF(Y179="","",SUMIF(Data[Konstruktion],'Unikke lister'!Y179,Data[Vægt])) ->  | AC179: =IF(Y179="","",SUMIF(Data[Konstruktion],'Unikke lister'!Y179,Data[GWP sum])) -> 
AB180: =IF(Y180="","",SUMIF(Data[Konstruktion],'Unikke lister'!Y180,Data[Vægt])) ->  | AC180: =IF(Y180="","",SUMIF(Data[Konstruktion],'Unikke lister'!Y180,Data[GWP sum])) -> 
AB181: =IF(Y181="","",SUMIF(Data[Konstruktion],'Unikke lister'!Y181,Data[Vægt])) ->  | AC181: =IF(Y181="","",SUMIF(Data[Konstruktion],'Unikke lister'!Y181,Data[GWP sum])) -> 
AB182: =IF(Y182="","",SUMIF(Data[Konstruktion],'Unikke lister'!Y182,Data[Vægt])) ->  | AC182: =IF(Y182="","",SUMIF(Data[Konstruktion],'Unikke lister'!Y182,Data[GWP sum])) -> 
AB183: =IF(Y183="","",SUMIF(Data[Konstruktion],'Unikke lister'!Y183,Data[Vægt])) ->  | AC183: =IF(Y183="","",SUMIF(Data[Konstruktion],'Unikke lister'!Y183,Data[GWP sum])) -> 
AB184: =IF(Y184="","",SUMIF(Data[Konstruktion],'Unikke lister'!Y184,Data[Vægt])) ->  | AC184: =IF(Y184="","",SUMIF(Data[Konstruktion],'Unikke lister'!Y184,Data[GWP sum])) -> 
AB185: =IF(Y185="","",SUMIF(Data[Konstruktion],'Unikke lister'!Y185,Data[Vægt])) ->  | AC185: =IF(Y185="","",SUMIF(Data[Konstruktion],'Unikke lister'!Y185,Data[GWP sum])) -> 
AB186: =IF(Y186="","",SUMIF(Data[Konstruktion],'Unikke lister'!Y186,Data[Vægt])) ->  | AC186: =IF(Y186="","",SUMIF(Data[Konstruktion],'Unikke lister'!Y186,Data[GWP sum])) -> 
AB187: =IF(Y187="","",SUMIF(Data[Konstruktion],'Unikke lister'!Y187,Data[Vægt])) ->  | AC187: =IF(Y187="","",SUMIF(Data[Konstruktion],'Unikke lister'!Y187,Data[GWP sum])) -> 
AB188: =IF(Y188="","",SUMIF(Data[Konstruktion],'Unikke lister'!Y188,Data[Vægt])) ->  | AC188: =IF(Y188="","",SUMIF(Data[Konstruktion],'Unikke lister'!Y188,Data[GWP sum])) -> 
AB189: =IF(Y189="","",SUMIF(Data[Konstruktion],'Unikke lister'!Y189,Data[Vægt])) ->  | AC189: =IF(Y189="","",SUMIF(Data[Konstruktion],'Unikke lister'!Y189,Data[GWP sum])) -> 
AB190: =IF(Y190="","",SUMIF(Data[Konstruktion],'Unikke lister'!Y190,Data[Vægt])) ->  | AC190: =IF(Y190="","",SUMIF(Data[Konstruktion],'Unikke lister'!Y190,Data[GWP sum])) -> 
AB191: =IF(Y191="","",SUMIF(Data[Konstruktion],'Unikke lister'!Y191,Data[Vægt])) ->  | AC191: =IF(Y191="","",SUMIF(Data[Konstruktion],'Unikke lister'!Y191,Data[GWP sum])) -> 
AB192: =IF(Y192="","",SUMIF(Data[Konstruktion],'Unikke lister'!Y192,Data[Vægt])) ->  | AC192: =IF(Y192="","",SUMIF(Data[Konstruktion],'Unikke lister'!Y192,Data[GWP sum])) -> 
AB193: =IF(Y193="","",SUMIF(Data[Konstruktion],'Unikke lister'!Y193,Data[Vægt])) ->  | AC193: =IF(Y193="","",SUMIF(Data[Konstruktion],'Unikke lister'!Y193,Data[GWP sum])) -> 
AB194: =IF(Y194="","",SUMIF(Data[Konstruktion],'Unikke lister'!Y194,Data[Vægt])) ->  | AC194: =IF(Y194="","",SUMIF(Data[Konstruktion],'Unikke lister'!Y194,Data[GWP sum])) -> 
AB195: =IF(Y195="","",SUMIF(Data[Konstruktion],'Unikke lister'!Y195,Data[Vægt])) ->  | AC195: =IF(Y195="","",SUMIF(Data[Konstruktion],'Unikke lister'!Y195,Data[GWP sum])) -> 
AA196: =IF(Y196="","",IF(Z196="",Y196,Z196)) ->  | AB196: =IF(Y196="","",SUMIF(Data[Konstruktion],'Unikke lister'!Y196,Data[Vægt])) ->  | AC196: =IF(Y196="","",SUMIF(Data[Konstruktion],'Unikke lister'!Y196,Data[GWP sum])) -> 
AB197: =IF(Y197="","",SUMIF(Data[Konstruktion],'Unikke lister'!Y197,Data[Vægt])) ->  | AC197: =IF(Y197="","",SUMIF(Data[Konstruktion],'Unikke lister'!Y197,Data[GWP sum])) ->  | AE197: =IF(AD197="","",SUMIF($AA$4:$AA$200,AD197,$AB$4:$AB$200)) ->  | AF197: =IF(AD197="","",AE197/$AE$3) ->  | AG197: =IF(AD197="","",_xlfn.RANK.EQ(AE197,$AE$4:$AE$200,0)) ->  | AH197: =IF(AD197="","",SUMIF($AA$4:$AA$200,AD197,$AC$4:$AC$200)) ->  | AI197: =IF(AD197="","",AH197/$AH$3) ->  | AJ197: =IF(AD197="","",_xlfn.RANK.EQ(AH197,$AH$4:$AH$200,0)) ->  | AO197: =IF(AN197="","",IFERROR(MATCH(AN197,$AD$4:$AD$1000,0),_xlfn.XLOOKUP(AN197,$Y$4:$Y$1000,$AA$4:$AA$1000,"",0))) ->  | AU197: =IF(AS197="","",IF(AT197="",AS197,AT197)) ->  | AV197: =IF(AS197="","",SUMIF($AP$4:$AP$1000,AS197,$AQ$4:$AQ$1000)) ->  | AW197: =IF(AS197="","",SUMIF($AP$4:$AP$1000,AS197,$AR$4:$AR$1000)) ->  | AY197: =IF(AX197="","",SUMIF($AU$4:$AU$300,AX197,$AV$4:$AV$300)) ->  | AZ197: =IF(AX197="","",AY197/$AY$3) ->  | BA197: =IF(AX197="","",_xlfn.RANK.EQ(AY197,$AY$4:$AY$300,0)) ->  | BB197: =IF(AX197="","",SUMIF($AU$4:$AU$300,AX197,$AW$4:$AW$300)) ->  | BC197: =IF(AX197="","",BB197/$BB$3) ->  | BD197: =IF(AX197="","",_xlfn.RANK.EQ(BB197,$BB$4:$BB$300,0)) -> 
AB198: =IF(Y198="","",SUMIF(Data[Konstruktion],'Unikke lister'!Y198,Data[Vægt])) ->  | AC198: =IF(Y198="","",SUMIF(Data[Konstruktion],'Unikke lister'!Y198,Data[GWP sum])) -> 
AB199: =IF(Y199="","",SUMIF(Data[Konstruktion],'Unikke lister'!Y199,Data[Vægt])) ->  | AC199: =IF(Y199="","",SUMIF(Data[Konstruktion],'Unikke lister'!Y199,Data[GWP sum])) ->  | AZ199: =IF(AX199="","",AY199/$AY$3) ->  | BA199: =IF(AX199="","",_xlfn.RANK.EQ(AY199,$AY$4:$AY$300,0)) ->  | BB199: =IF(AX199="","",SUMIF($AU$4:$AU$300,AX199,$AW$4:$AW$300)) ->  | BC199: =IF(AX199="","",BB199/$BB$3) ->  | BD199: =IF(AX199="","",_xlfn.RANK.EQ(BB199,$BB$4:$BB$300,0)) -> 
AB200: =IF(Y200="","",SUMIF(Data[Konstruktion],'Unikke lister'!Y200,Data[Vægt])) ->  | AC200: =IF(Y200="","",SUMIF(Data[Konstruktion],'Unikke lister'!Y200,Data[GWP sum])) -> 
... 29 more rows

Sheet Sorteret vægt
A2: Bygningsgrupper | H2: Bygningsdele | O2: Konstruktioner | V2: Byggevarer top 10 | AC2: Byggevarer top 5
A3: Nr. | B3: Navn | C3: Vægt [kg] | D3: [tons] | E3: GWP [kg CO2] | H3: Nr. | I3: Navn | J3: Vægt [kg] | K3: [tons] | L3: GWP [kg CO2] | O3: Nr. | P3: Navn | Q3: Vægt [kg] | R3: [tons] | S3: GWP [kg CO2] | V3: Nr. | W3: Navn | X3: Vægt [kg] | Y3: [tons] | Z3: GWP [kg CO2] | AC3: Nr. | AD3: Navn | AE3: Vægt [kg] | AF3: [tons] | AG3: GWP [kg CO2]
B4: Alle bygningsgrupper | C4: ='Unikke lister'!B3 -> 46763.73322 | D4: =C4/1000 -> 46.76373322 | E4: ='Unikke lister'!E3 -> 25840.01202 | I4: Alle bygningdele | J4: =C4 -> 46763.73322 | K4: =J4/1000 -> 46.76373322 | L4: =E4 -> 25840.01202 | P4: Alle konstruktioner | Q4: =J4 -> 46763.73322 | R4: =Q4/1000 -> 46.76373322 | S4: =L4 -> 25840.01202 | W4: Byggevarer total | X4: =Q4 -> 46763.73322 | Y4: =X4/1000 -> 46.76373322 | Z4: =S4 -> 25840.01202 | AD4: Byggevarer total | AE4: =X4 -> 46763.73322 | AF4: =Y4 -> 46.76373322 | AG4: 25840.01202
A5: 1 | B5: =_xlfn.XLOOKUP(A5,'Unikke lister'!$D$4:$D$20,'Unikke lister'!$A$4:$B$20,"",0) -> Ydervægge | C5: 16386.7547 | D5: =C5/1000 -> 16.3867547 | E5: =_xlfn.XLOOKUP(B5,'Unikke lister'!$A$4:$A$20,'Unikke lister'!$E$4:$E$20,"",0) -> 4121.074703 | H5: 1 | I5: =_xlfn.XLOOKUP(H5,'Unikke lister'!$T$4:$T$54,'Unikke lister'!$Q$4:$R$54,"",0) -> Ydervæg, trækassette | J5: 16386.7547 | K5: =J5/1000 -> 16.3867547 | L5: =_xlfn.XLOOKUP(I5,'Unikke lister'!$Q$4:$Q$54,'Unikke lister'!$U$4:$U$54,"",0) -> 4121.074703 | O5: 1 | P5: =_xlfn.XLOOKUP(O5,'Unikke lister'!$AG$4:$AG$200,'Unikke lister'!$AD$4:$AE$200,"",0) -> Facadekassette uden beklædning | Q5: 13726.408 | R5: =Q5/1000 -> 13.726408 | S5: =_xlfn.XLOOKUP(P5,'Unikke lister'!$AD$4:$AD$200,'Unikke lister'!$AH$4:$AH$200,"",0) -> 3463.492492 | V5: 1 | W5: =_xlfn.XLOOKUP(V5,'Unikke lister'!$BA$4:$BA$300,'Unikke lister'!$AX$4:$AY$300,"",0) -> Konstruktionstræ | X5: 12327.5788 | Y5: =X5/1000 -> 12.3275788 | Z5: =_xlfn.XLOOKUP(W5,'Unikke lister'!$AX$4:$AX$300,'Unikke lister'!$BB$4:$BB$300,"",0) -> 1297.639874 | AC5: 1 | AD5: =_xlfn.XLOOKUP(AC5,'Unikke lister'!$BA$4:$BA$300,'Unikke lister'!$AX$4:$AY$300,"",0) -> Konstruktionstræ | AE5: 12327.5788 | AF5: =AE5/1000 -> 12.3275788 | AG5: =_xlfn.XLOOKUP(AD5,'Unikke lister'!$AX$4:$AX$300,'Unikke lister'!$BB$4:$BB$300,"",0) -> 1297.639874
A6: 2 | B6: =_xlfn.XLOOKUP(A6,'Unikke lister'!$D$4:$D$20,'Unikke lister'!$A$4:$B$20,"",0) -> Tage | C6: 12661.062 | D6: 12.661062 | E6: =_xlfn.XLOOKUP(B6,'Unikke lister'!$A$4:$A$20,'Unikke lister'!$E$4:$E$20,"",0) -> 5513.064098 | H6: 2 | I6: =_xlfn.XLOOKUP(H6,'Unikke lister'!$T$4:$T$54,'Unikke lister'!$Q$4:$R$54,"",0) -> Tag, trækassette | J6: 12661.062 | K6: 12.661062 | L6: =_xlfn.XLOOKUP(I6,'Unikke lister'!$Q$4:$Q$54,'Unikke lister'!$U$4:$U$54,"",0) -> 5513.064098 | O6: 2 | P6: =_xlfn.XLOOKUP(O6,'Unikke lister'!$AG$4:$AG$200,'Unikke lister'!$AD$4:$AE$200,"",0) -> Tagkassette, ståltag | Q6: 10885.992 | R6: 10.885992 | S6: =_xlfn.XLOOKUP(P6,'Unikke lister'!$AD$4:$AD$200,'Unikke lister'!$AH$4:$AH$200,"",0) -> 4973.252583 | V6: 2 | W6: =_xlfn.XLOOKUP(V6,'Unikke lister'!$BA$4:$BA$300,'Unikke lister'!$AX$4:$AY$300,"",0) -> Fibergips | X6: 10095.4 | Y6: 10.0954 | Z6: =_xlfn.XLOOKUP(W6,'Unikke lister'!$AX$4:$AX$200,'Unikke lister'!$BB$4:$BB$200,"",0) -> 917.9700336 | AC6: 2 | AD6: =_xlfn.XLOOKUP(AC6,'Unikke lister'!$BA$4:$BA$300,'Unikke lister'!$AX$4:$AY$300,"",0) -> Fibergips | AE6: 10095.4 | AF6: 10.0954 | AG6: =_xlfn.XLOOKUP(AD6,'Unikke lister'!$AX$4:$AX$300,'Unikke lister'!$BB$4:$BB$300,"",0) -> 917.9700336
A7: 3 | B7: =_xlfn.XLOOKUP(A7,'Unikke lister'!$D$4:$D$20,'Unikke lister'!$A$4:$B$20,"",0) -> Dæk | C7: 5343.0588 | D7: 5.3430588 | E7: =_xlfn.XLOOKUP(B7,'Unikke lister'!$A$4:$A$20,'Unikke lister'!$E$4:$E$20,"",0) -> 1200.331331 | H7: 3 | I7: =_xlfn.XLOOKUP(H7,'Unikke lister'!$T$4:$T$54,'Unikke lister'!$Q$4:$R$54,"",0) -> Etagedæk, bjælkelag | J7: 5343.0588 | K7: 5.3430588 | L7: =_xlfn.XLOOKUP(I7,'Unikke lister'!$Q$4:$Q$54,'Unikke lister'!$U$4:$U$54,"",0) -> 1200.331331 | O7: 3 | P7: =_xlfn.XLOOKUP(O7,'Unikke lister'!$AG$4:$AG$200,'Unikke lister'!$AD$4:$AE$200,"",0) -> Let trækassette, terræn | Q7: 3762.08 | R7: 3.76208 | S7: =_xlfn.XLOOKUP(P7,'Unikke lister'!$AD$4:$AD$200,'Unikke lister'!$AH$4:$AH$200,"",0) -> 1124.33188 | V7: 3 | W7: =_xlfn.XLOOKUP(V7,'Unikke lister'!$BA$4:$BA$300,'Unikke lister'!$AX$4:$AY$300,"",0) -> Papirisolering | X7: 4965.77 | Y7: 4.96577 | Z7: =_xlfn.XLOOKUP(W7,'Unikke lister'!$AX$4:$AX$200,'Unikke lister'!$BB$4:$BB$200,"",0) -> 1519.3574 | AC7: 3 | AD7: =_xlfn.XLOOKUP(AC7,'Unikke lister'!$BA$4:$BA$300,'Unikke lister'!$AX$4:$AY$300,"",0) -> Papirisolering | AE7: 4965.77 | AF7: 4.96577 | AG7: =_xlfn.XLOOKUP(AD7,'Unikke lister'!$AX$4:$AX$300,'Unikke lister'!$BB$4:$BB$300,"",0) -> 1519.3574
A8: 4 | B8: =_xlfn.XLOOKUP(A8,'Unikke lister'!$D$4:$D$20,'Unikke lister'!$A$4:$B$20,"",0) -> Terrændæk | C8: 4895.28 | D8: 4.89528 | E8: =_xlfn.XLOOKUP(B8,'Unikke lister'!$A$4:$A$20,'Unikke lister'!$E$4:$E$20,"",0) -> 1523.631534 | H8: 4 | I8: =_xlfn.XLOOKUP(H8,'Unikke lister'!$T$4:$T$54,'Unikke lister'!$Q$4:$R$54,"",0) -> Terrændæk, trækassette | J8: 4895.28 | K8: 4.89528 | L8: =_xlfn.XLOOKUP(I8,'Unikke lister'!$Q$4:$Q$54,'Unikke lister'!$U$4:$U$54,"",0) -> 1523.631534 | O8: 4 | P8: =_xlfn.XLOOKUP(O8,'Unikke lister'!$AG$4:$AG$200,'Unikke lister'!$AD$4:$AE$200,"",0) -> Etagedæk, 70 mm gulvopbygning | Q8: 2926.44 | R8: 2.92644 | S8: =_xlfn.XLOOKUP(P8,'Unikke lister'!$AD$4:$AD$200,'Unikke lister'!$AH$4:$AH$200,"",0) -> 836.1232519 | V8: 4 | W8: =_xlfn.XLOOKUP(V8,'Unikke lister'!$BA$4:$BA$300,'Unikke lister'!$AX$4:$AY$300,"",0) -> OSB plade | X8: 3107.34 | Y8: 3.10734 | Z8: =_xlfn.XLOOKUP(W8,'Unikke lister'!$AX$4:$AX$200,'Unikke lister'!$BB$4:$BB$200,"",0) -> 1349.91 | AC8: 4 | AD8: =_xlfn.XLOOKUP(AC8,'Unikke lister'!$BA$4:$BA$300,'Unikke lister'!$AX$4:$AY$300,"",0) -> OSB plade | AE8: 3107.34 | AF8: 3.10734 | AG8: =_xlfn.XLOOKUP(AD8,'Unikke lister'!$AX$4:$AX$300,'Unikke lister'!$BB$4:$BB$300,"",0) -> 1349.91
A9: 5 | B9: =_xlfn.XLOOKUP(A9,'Unikke lister'!$D$4:$D$20,'Unikke lister'!$A$4:$B$20,"",0) -> Indervægge | C9: 3311.928 | D9: 3.311928 | E9: =_xlfn.XLOOKUP(B9,'Unikke lister'!$A$4:$A$20,'Unikke lister'!$E$4:$E$20,"",0) -> 1113.642656 | H9: 5 | I9: =_xlfn.XLOOKUP(H9,'Unikke lister'!$T$4:$T$54,'Unikke lister'!$Q$4:$R$54,"",0) -> Indervægge | J9: 3311.928 | K9: 3.311928 | L9: =_xlfn.XLOOKUP(I9,'Unikke lister'!$Q$4:$Q$54,'Unikke lister'!$U$4:$U$54,"",0) -> 1113.642656 | O9: 5 | P9: =_xlfn.XLOOKUP(O9,'Unikke lister'!$AG$4:$AG$200,'Unikke lister'!$AD$4:$AE$200,"",0) -> Træbeklædning med ophæng | Q9: 1814.6428 | R9: 1.8146428 | S9: =_xlfn.XLOOKUP(P9,'Unikke lister'!$AD$4:$AD$200,'Unikke lister'!$AH$4:$AH$200,"",0) -> 435.2900816 | V9: 5 | W9: =_xlfn.XLOOKUP(V9,'Unikke lister'!$BA$4:$BA$300,'Unikke lister'!$AX$4:$AY$300,"",0) -> Vindspærre | X9: 3067.2 | Y9: 3.0672 | Z9: =_xlfn.XLOOKUP(W9,'Unikke lister'!$AX$4:$AX$200,'Unikke lister'!$BB$4:$BB$200,"",0) -> 1997.088 | AC9: 5 | AD9: =_xlfn.XLOOKUP(AC9,'Unikke lister'!$BA$4:$BA$300,'Unikke lister'!$AX$4:$AY$300,"",0) -> Vindspærre | AE9: 3067.2 | AF9: 3.0672 | AG9: =_xlfn.XLOOKUP(AD9,'Unikke lister'!$AX$4:$AX$300,'Unikke lister'!$BB$4:$BB$300,"",0) -> 1997.088
A10: 6 | B10: =_xlfn.XLOOKUP(A10,'Unikke lister'!$D$4:$D$20,'Unikke lister'!$A$4:$B$20,"",0) -> Vinduer, døre, glasfacader | C10: 1509.3835 | D10: 1.5093835 | E10: =_xlfn.XLOOKUP(B10,'Unikke lister'!$A$4:$A$20,'Unikke lister'!$E$4:$E$20,"",0) -> 5133.581915 | H10: 6 | I10: =_xlfn.XLOOKUP(H10,'Unikke lister'!$T$4:$T$54,'Unikke lister'!$Q$4:$R$54,"",0) -> Skruefundament | J10: 1442.43872 | K10: 1.44243872 | L10: =_xlfn.XLOOKUP(I10,'Unikke lister'!$Q$4:$Q$54,'Unikke lister'!$U$4:$U$54,"",0) -> 1038.397039 | O10: 6 | P10: =_xlfn.XLOOKUP(O10,'Unikke lister'!$AG$4:$AG$200,'Unikke lister'!$AD$4:$AE$200,"",0) -> Tagkassette, tagpap | Q10: 1775.07 | R10: 1.77507 | S10: =_xlfn.XLOOKUP(P10,'Unikke lister'!$AD$4:$AD$200,'Unikke lister'!$AH$4:$AH$200,"",0) -> 539.8115145 | V10: 6 | W10: =_xlfn.XLOOKUP(V10,'Unikke lister'!$BA$4:$BA$300,'Unikke lister'!$AX$4:$AY$300,"",0) -> Krydsfiner | X10: 2867.04 | Y10: 2.86704 | Z10: =_xlfn.XLOOKUP(W10,'Unikke lister'!$AX$4:$AX$200,'Unikke lister'!$BB$4:$BB$200,"",0) -> 1207.872 | AD10: Resterende byggevarer | AE10: =AE4-SUM(AE5:AE9) -> 13200.44442 | AF10: =AF4-SUM(AF5:AF9) -> 13.20044442 | AG10: 18758.04672
A11: 7 | B11: =_xlfn.XLOOKUP(A11,'Unikke lister'!$D$4:$D$20,'Unikke lister'!$A$4:$B$20,"",0) -> Fundamenter | C11: 1442.43872 | D11: 1.44243872 | E11: =_xlfn.XLOOKUP(B11,'Unikke lister'!$A$4:$A$20,'Unikke lister'!$E$4:$E$20,"",0) -> 1038.397039 | H11: 7 | I11: =_xlfn.XLOOKUP(H11,'Unikke lister'!$T$4:$T$54,'Unikke lister'!$Q$4:$R$54,"",0) -> Facadevinduer | J11: 752.4 | K11: 0.7524 | L11: =_xlfn.XLOOKUP(I11,'Unikke lister'!$Q$4:$Q$54,'Unikke lister'!$U$4:$U$54,"",0) -> 2783 | O11: 7 | P11: =_xlfn.XLOOKUP(O11,'Unikke lister'!$AG$4:$AG$200,'Unikke lister'!$AD$4:$AE$200,"",0) -> Etagedæk 2. sal, 230 mm bjælkelag | Q11: 1344.024 | R11: 1.344024 | S11: =_xlfn.XLOOKUP(P11,'Unikke lister'!$AD$4:$AD$200,'Unikke lister'!$AH$4:$AH$200,"",0) -> 209.794703 | V11: 7 | W11: =_xlfn.XLOOKUP(V11,'Unikke lister'!$BA$4:$BA$300,'Unikke lister'!$AX$4:$AY$300,"",0) -> Træbeklædning | X11: 1495.4407 | Y11: 1.4954407 | Z11: =_xlfn.XLOOKUP(W11,'Unikke lister'!$AX$4:$AX$200,'Unikke lister'!$BB$4:$BB$200,"",0) -> 416.5444244
A12: 8 | B12: =_xlfn.XLOOKUP(A12,'Unikke lister'!$D$4:$D$20,'Unikke lister'!$A$4:$B$20,"",0) -> Varme | C12: 356.6775029 | D12: 0.3566775029 | E12: =_xlfn.XLOOKUP(B12,'Unikke lister'!$A$4:$A$20,'Unikke lister'!$E$4:$E$20,"",0) -> 1759.719142 | H12: 8 | I12: =_xlfn.XLOOKUP(H12,'Unikke lister'!$T$4:$T$54,'Unikke lister'!$Q$4:$R$54,"",0) -> Ovenlys | J12: 528.7125 | K12: 0.5287125 | L12: =_xlfn.XLOOKUP(I12,'Unikke lister'!$Q$4:$Q$54,'Unikke lister'!$U$4:$U$54,"",0) -> 2232.842 | O12: 8 | P12: =_xlfn.XLOOKUP(O12,'Unikke lister'!$AG$4:$AG$200,'Unikke lister'!$AD$4:$AE$200,"",0) -> Etagedæk 1. sal, 270 mm bjælkelag | Q12: 1072.5948 | R12: 1.0725948 | S12: =_xlfn.XLOOKUP(P12,'Unikke lister'!$AD$4:$AD$200,'Unikke lister'!$AH$4:$AH$200,"",0) -> 154.4133756 | V12: 8 | W12: =_xlfn.XLOOKUP(V12,'Unikke lister'!$BA$4:$BA$300,'Unikke lister'!$AX$4:$AY$300,"",0) -> Traægulv | X12: 955.9 | Y12: 0.9559 | Z12: =_xlfn.XLOOKUP(W12,'Unikke lister'!$AX$4:$AX$200,'Unikke lister'!$BB$4:$BB$200,"",0) -> 557.81
A13: 9 | B13: =_xlfn.XLOOKUP(A13,'Unikke lister'!$D$4:$D$20,'Unikke lister'!$A$4:$B$20,"",0) -> Trapper og ramper | C13: 274.3 | D13: 0.2743 | E13: =_xlfn.XLOOKUP(B13,'Unikke lister'!$A$4:$A$20,'Unikke lister'!$E$4:$E$20,"",0) -> 71.29210526 | H13: 9 | I13: =_xlfn.XLOOKUP(H13,'Unikke lister'!$T$4:$T$54,'Unikke lister'!$Q$4:$R$54,"",0) -> Trappe | J13: 274.3 | K13: 0.2743 | L13: =_xlfn.XLOOKUP(I13,'Unikke lister'!$Q$4:$Q$54,'Unikke lister'!$U$4:$U$54,"",0) -> 71.29210526 | O13: 9 | P13: =_xlfn.XLOOKUP(O13,'Unikke lister'!$AG$4:$AG$200,'Unikke lister'!$AD$4:$AE$200,"",0) -> 100 mm indervæg, krydsfiner | Q13: 820.031 | R13: 0.820031 | S13: =_xlfn.XLOOKUP(P13,'Unikke lister'!$AD$4:$AD$200,'Unikke lister'!$AH$4:$AH$200,"",0) -> 370.2641698 | V13: 9 | W13: =_xlfn.XLOOKUP(V13,'Unikke lister'!$BA$4:$BA$300,'Unikke lister'!$AX$4:$AY$300,"",0) -> Facadevindue | X13: 752.4 | Y13: 0.7524 | Z13: =_xlfn.XLOOKUP(W13,'Unikke lister'!$AX$4:$AX$200,'Unikke lister'!$BB$4:$BB$200,"",0) -> 2783
A14: 10 | B14: =_xlfn.XLOOKUP(A14,'Unikke lister'!$D$4:$D$20,'Unikke lister'!$A$4:$B$20,"",0) -> Vand | C14: 259 | D14: 0.259 | E14: =_xlfn.XLOOKUP(B14,'Unikke lister'!$A$4:$A$20,'Unikke lister'!$E$4:$E$20,"",0) -> 2216.408381 | H14: 10 | I14: =_xlfn.XLOOKUP(H14,'Unikke lister'!$T$4:$T$54,'Unikke lister'!$Q$4:$R$54,"",0) -> VVB og buffertank | J14: 220 | K14: 0.22 | L14: =_xlfn.XLOOKUP(I14,'Unikke lister'!$Q$4:$Q$54,'Unikke lister'!$U$4:$U$54,"",0) -> 2077.5722 | O14: 10 | P14: =_xlfn.XLOOKUP(O14,'Unikke lister'!$AG$4:$AG$200,'Unikke lister'!$AD$4:$AE$200,"",0) -> Facadevindue | Q14: 752.4 | R14: 0.7524 | S14: =_xlfn.XLOOKUP(P14,'Unikke lister'!$AD$4:$AD$200,'Unikke lister'!$AH$4:$AH$200,"",0) -> 2783 | V14: 10 | W14: =_xlfn.XLOOKUP(V14,'Unikke lister'!$BA$4:$BA$300,'Unikke lister'!$AX$4:$AY$300,"",0) -> Skruefundament | X14: 750 | Y14: 0.75 | Z14: =_xlfn.XLOOKUP(W14,'Unikke lister'!$AX$4:$AX$200,'Unikke lister'!$BB$4:$BB$200,"",0) -> 845.133
B15: Resterende bygningsgrupper | C15: =C4-SUM(C5:C14) -> 323.85 | D15: 0.32385 | E15: =E4-SUM(E5:E14) -> 2148.86912 | I15: Resterende bygningsdele | J15: =J4-SUM(J5:J14) -> 947.7985029 | K15: 0.9477985029 | L15: =L4-SUM(L5:L14) -> 4165.164357 | P15: Resterende konstruktioner | Q15: =Q4-SUM(Q5:Q14) -> 7884.050623 | R15: 7.884050623 | S15: =S4-SUM(S5:S14) -> 10950.23797 | W15: Resterende byggevarer | X15: =X4-SUM(X5:X14) -> 6379.663723 | Y15: =Y4-SUM(Y5:Y14) -> 6.379663723 | Z15: 12947.68729

Sheet Mængde (hidden)
A1: Indeks | B1: Gruppe | C1: Undergruppe | D1: Bygningsdel | E1: Konstruktion | F1: Byggevare | G1: Indtastet mængde | H1: Column4 | I1: Beregnet mængde | J1: Column6 | K1: Vægt | L1: Column8
A2: 1 | B2: Afløb | C2: Faldstammer | D2: Afløbsrør | E2: Afløbsrør, PP | F2: Rør, Kloakrør PP | G2: 1.5 | H2: kg/m | I2: 37.5 | J2: kg | K2: 37.5 | L2: kg
A3: 2 | B3: Afløb | C3: Nedløb fra tag | D3: Tagrende | E3: Nedløbsrør | F3: Stål, valsede profiler og plader | G3: 1.25 | H3: kg/m | I3: 7.5 | J3: kg | K3: 7.5 | L3: kg
A4: 3 | B4: Afløb | C4: Nedløb fra tag | D4: Tagrende | E4: Tagrende | F4: Stål, valsede profiler og plader | G4: 1.45 | H4: kg/m | I4: 23.925 | J4: kg | K4: 23.925 | L4: kg
A5: 4 | B5: Dæk | C5: Etagedæk | D5: Etagedæk, bjælkelag | E5: Etagedæk 1. sal, 270 mm bjælkelag | F5: Fastgørelsesmidler/skruer i galvaniseret stål | G5: 0.3 | H5: kg/m² | I5: 12.03 | J5: kg | K5: 12.03 | L5: kg
A6: 5 | B6: Dæk | C6: Etagedæk | D6: Etagedæk, bjælkelag | E6: Etagedæk 1. sal, 270 mm bjælkelag | F6: Savede og tørrede konstruktionstræprodukter af fyr og gran, Fobrænding | G6: 0.034 | H6: m³/m² | I6: 1.3634 | J6: m³ | K6: 621.7104 | L6: kg
A7: 6 | B7: Dæk | C7: Etagedæk | D7: Etagedæk, bjælkelag | E7: Etagedæk 1. sal, 270 mm bjælkelag | F7: Savede og tørrede konstruktionstræprodukter af fyr og gran, Fobrænding | G7: 0.024 | H7: m³/m² | I7: 0.9624 | J7: m³ | K7: 438.8544 | L7: kg
A8: 7 | B8: Dæk | C8: Etagedæk | D8: Etagedæk, bjælkelag | E8: Etagedæk 2. sal, 230 mm bjælkelag | F8: Fastgørelsesmidler/skruer i galvaniseret stål | G8: 0.3 | H8: kg/m² | I8: 19.8 | J8: kg | K8: 19.8 | L8: kg
A9: 8 | B9: Dæk | C9: Etagedæk | D9: Etagedæk, bjælkelag | E9: Etagedæk 2. sal, 230 mm bjælkelag | F9: Savede og tørrede konstruktionstræprodukter af fyr og gran, Fobrænding | G9: 0.044 | H9: m³/m² | I9: 2.904 | J9: m³ | K9: 1324.224 | L9: kg
A10: 9 | B10: Dæk | C10: Etagedæk | D10: Etagedæk, bjælkelag | E10: Etagedæk, 70 mm gulvopbygning | F10: Fermacell fiberplade 12,5 mm | G10: 1 | H10: m²/m² | I10: 66 | J10: m² | K10: 973.5 | L10: kg
A11: 10 | B11: Dæk | C11: Etagedæk | D11: Etagedæk, bjælkelag | E11: Etagedæk, 70 mm gulvopbygning | F11: Trinlydsdug - Scan Underlay | G11: 1 | H11: m²/m² | I11: 66 | J11: m² | K11: 69.3 | L11: kg
A12: 11 | B12: Dæk | C12: Etagedæk | D12: Etagedæk, bjælkelag | E12: Etagedæk, 70 mm gulvopbygning | F12: Trægulv 14 mm ask - Tarkett Sverige | G12: 1 | H12: m²/m² | I12: 66 | J12: m² | K12: 521.4 | L12: kg
A13: 12 | B13: Dæk | C13: Etagedæk | D13: Etagedæk, bjælkelag | E13: Etagedæk, 70 mm gulvopbygning | F13: WISA Gran krydsfiner, ubehandlet, Fobrænding | G13: 0.018 | H13: m³/m² | I13: 1.188 | J13: m³ | K13: 570.24 | L13: kg
A14: 13 | B14: Dæk | C14: Etagedæk | D14: Etagedæk, bjælkelag | E14: Etagedæk, 70 mm gulvopbygning | F14: WISA Gran krydsfiner, ubehandlet, Fobrænding | G14: 0.025 | H14: m³/m² | I14: 1.65 | J14: m³ | K14: 792 | L14: kg
A15: 14 | B15: El- og mekaniske anlæg | C15: Energiproduktion | D15: Solceller | E15: Solceller, Sunpower | F15: Solceller, Sunpower | G15: 1 | H15: m²/m² | I15: 10.6 | J15: m² | K15: 201.4 | L15: kg
A16: 15 | B16: Fundamenter | C16: Punktfundament | D16: Skruefundament | E16: Krinner V114x5-M24 | F16: Stål, valsede profiler og plader | G16: 7 | H16: kg/stk. | I16: 112 | J16: kg | K16: 112 | L16: kg
A17: 16 | B17: Fundamenter | C17: Punktfundament | D17: Skruefundament | E17: Krinner V114x5x2000 | F17: Stål, valsede profiler og plader | G17: 29 | H17: kg/stk. | I17: 464 | J17: kg | K17: 464 | L17: kg
A18: 17 | B18: Fundamenter | C18: Punktfundament | D18: Skruefundament | E18: Krinner V140x6,3-M24 | F18: Stål, valsede profiler og plader | G18: 10 | H18: kg/stk. | I18: 30 | J18: kg | K18: 30 | L18: kg
A19: 18 | B19: Fundamenter | C19: Punktfundament | D19: Skruefundament | E19: Krinner V140x6,3x2000 | F19: Stål, valsede profiler og plader | G19: 48 | H19: kg/stk. | I19: 144 | J19: kg | K19: 144 | L19: kg
A20: 19 | B20: Fundamenter | C20: Punktfundament | D20: Skruefundament | E20: Rem 200x185, limtræ | F20: Fastgørelsesmidler/skruer i galvaniseret stål | G20: 0.08621 | H20: kg/m | I20: 1.37936 | J20: kg | K20: 1.37936 | L20: kg
A21: 20 | B21: Fundamenter | C21: Punktfundament | D21: Skruefundament | E21: Rem 200x185, limtræ | F21: Limtræs-produkter af fyr og gran, Fobrænding | G21: 0.037 | H21: m³/m | I21: 0.592 | J21: m³ | K21: 296 | L21: kg
A22: 21 | B22: Fundamenter | C22: Punktfundament | D22: Skruefundament | E22: Rem 266x185, limtræ | F22: Fastgørelsesmidler/skruer i galvaniseret stål | G22: 0.08621 | H22: kg/m | I22: 1.37936 | J22: kg | K22: 1.37936 | L22: kg
A23: 22 | B23: Fundamenter | C23: Punktfundament | D23: Skruefundament | E23: Rem 266x185, limtræ | F23: Limtræs-produkter af fyr og gran, Fobrænding | G23: 0.04921 | H23: m³/m | I23: 0.78736 | J23: m³ | K23: 393.68 | L23: kg
A24: 23 | B24: Indervægge | C24: Bærende indervægge | D24: Indervægge | E24: 100 mm indervæg, fibergips | F24: Fermacell fiberplade 12,5 mm | G24: 1.2 | H24: m²/m² | I24: 30 | J24: m² | K24: 442.5 | L24: kg
A25: 24 | B25: Indervægge | C25: Bærende indervægge | D25: Indervægge | E25: 100 mm indervæg, fibergips | F25: Fermacell fiberplade 12,5 mm | G25: 1.2 | H25: kg/m² | I25: 2.033898305 | J25: m² | K25: 30 | L25: kg
A26: 25 | B26: Indervægge | C26: Bærende indervægge | D26: Indervægge | E26: 100 mm indervæg, fibergips | F26: Savede og tørrede konstruktionstræprodukter af fyr og gran, Fobrænding | G26: 0.0105 | H26: m³/m² | I26: 0.2625 | J26: m³ | K26: 119.7 | L26: kg
A27: 26 | B27: Indervægge | C27: Bærende indervægge | D27: Indervægge | E27: 100 mm indervæg, fibergips | F27: Træfiberisolering (bats), kl. 38 - Hunton | G27: 0.0595 | H27: m³/m² | I27: 1.4875 | J27: m³ | K27: 74.375 | L27: kg
A28: 27 | B28: Indervægge | C28: Bærende indervægge | D28: Indervægge | E28: 100 mm indervæg, krydsfiner | F28: Savede og tørrede konstruktionstræprodukter af fyr og gran, Fobrænding | G28: 0.0105 | H28: m³/m² | I28: 0.3885 | J28: m³ | K28: 177.156 | L28: kg
A29: 28 | B29: Indervægge | C29: Bærende indervægge | D29: Indervægge | E29: 100 mm indervæg, krydsfiner | F29: Træfiberisolering (bats), kl. 38 - Hunton | G29: 0.0595 | H29: m³/m² | I29: 2.2015 | J29: m³ | K29: 110.075 | L29: kg
A30: 29 | B30: Indervægge | C30: Bærende indervægge | D30: Indervægge | E30: 100 mm indervæg, krydsfiner | F30: WISA Gran krydsfiner, ubehandlet, Fobrænding | G30: 0.015 | H30: m³/m² | I30: 0.555 | J30: m³ | K30: 266.4 | L30: kg
A31: 30 | B31: Indervægge | C31: Bærende indervægge | D31: Indervægge | E31: 100 mm indervæg, krydsfiner | F31: WISA Gran krydsfiner, ubehandlet, Fobrænding | G31: 0.015 | H31: m³/m² | I31: 0.555 | J31: m³ | K31: 266.4 | L31: kg
A32: 31 | B32: Indervægge | C32: Bærende indervægge | D32: Indervægge | E32: 100 mm indervæg, krydsfiner og fibergips | F32: Fermacell fiberplade 12,5 mm | G32: 1.2 | H32: m²/m² | I32: 6 | J32: m² | K32: 88.5 | L32: kg
A33: 32 | B33: Indervægge | C33: Bærende indervægge | D33: Indervægge | E33: 100 mm indervæg, krydsfiner og fibergips | F33: Savede og tørrede konstruktionstræprodukter af fyr og gran, Fobrænding | G33: 0.0105 | H33: m³/m² | I33: 0.0525 | J33: m³ | K33: 23.94 | L33: kg
A34: 33 | B34: Indervægge | C34: Bærende indervægge | D34: Indervægge | E34: 100 mm indervæg, krydsfiner og fibergips | F34: Træfiberisolering (bats), kl. 38 - Hunton | G34: 0.0595 | H34: m³/m² | I34: 0.2975 | J34: m³ | K34: 14.875 | L34: kg
A35: 34 | B35: Indervægge | C35: Bærende indervægge | D35: Indervægge | E35: 100 mm indervæg, krydsfiner og fibergips | F35: WISA Gran krydsfiner, ubehandlet, Fobrænding | G35: 0.015 | H35: m³/m² | I35: 0.075 | J35: m³ | K35: 36 | L35: kg
A36: 35 | B36: Indervægge | C36: Bærende indervægge | D36: Indervægge | E36: 110 mm indervæg mod bad, krydsfiner og fibergips med klinker | F36: Fermacell fiberplade 12,5 mm | G36: 1.2 | H36: m²/m² | I36: 7.2 | J36: m² | K36: 106.2 | L36: kg
A37: 36 | B37: Indervægge | C37: Bærende indervægge | D37: Indervægge | E37: 110 mm indervæg mod bad, krydsfiner og fibergips med klinker | F37: Keramikfliser, glaseret | G37: 1 | H37: m²/m² | I37: 6 | J37: m² | K37: 120 | L37: kg
A38: 37 | B38: Indervægge | C38: Bærende indervægge | D38: Indervægge | E38: 110 mm indervæg mod bad, krydsfiner og fibergips med klinker | F38: Mørtel, fliseklæber | G38: 3.1 | H38: kg/m² | I38: 18.6 | J38: kg | K38: 18.6 | L38: kg
A39: 38 | B39: Indervægge | C39: Bærende indervægge | D39: Indervægge | E39: 110 mm indervæg mod bad, krydsfiner og fibergips med klinker | F39: Savede og tørrede konstruktionstræprodukter af fyr og gran, Fobrænding | G39: 0.0105 | H39: m³/m² | I39: 0.063 | J39: m³ | K39: 28.728 | L39: kg
A40: 39 | B40: Indervægge | C40: Bærende indervægge | D40: Indervægge | E40: 110 mm indervæg mod bad, krydsfiner og fibergips med klinker | F40: Træfiberisolering (bats), kl. 38 - Hunton | G40: 0.0595 | H40: m³/m² | I40: 0.357 | J40: m³ | K40: 17.85 | L40: kg
A41: 40 | B41: Indervægge | C41: Bærende indervægge | D41: Indervægge | E41: 110 mm indervæg mod bad, krydsfiner og fibergips med klinker | F41: Vandtætningsmembran, flydende | G41: 1.2 | H41: kg/m² | I41: 7.2 | J41: kg | K41: 7.2 | L41: kg
A42: 41 | B42: Indervægge | C42: Bærende indervægge | D42: Indervægge | E42: 110 mm indervæg mod bad, krydsfiner og fibergips med klinker | F42: WISA Gran krydsfiner, ubehandlet, Fobrænding | G42: 0.015 | H42: m³/m² | I42: 0.09 | J42: m³ | K42: 43.2 | L42: kg
A43: 42 | B43: Indervægge | C43: Bærende indervægge | D43: Indervægge | E43: 150 mm indervæg mod bad, krydsfiner og fibergips med klinker | F43: Fermacell fiberplade 12,5 mm | G43: 1.2 | H43: m²/m² | I43: 7.2 | J43: m² | K43: 106.2 | L43: kg
A44: 43 | B44: Indervægge | C44: Bærende indervægge | D44: Indervægge | E44: 150 mm indervæg mod bad, krydsfiner og fibergips med klinker | F44: Keramikfliser, glaseret | G44: 1 | H44: m²/m² | I44: 6 | J44: m² | K44: 120 | L44: kg
A45: 44 | B45: Indervægge | C45: Bærende indervægge | D45: Indervægge | E45: 150 mm indervæg mod bad, krydsfiner og fibergips med klinker | F45: Mørtel, fliseklæber | G45: 3.1 | H45: kg/m² | I45: 18.6 | J45: kg | K45: 18.6 | L45: kg
A46: 45 | B46: Indervægge | C46: Bærende indervægge | D46: Indervægge | E46: 150 mm indervæg mod bad, krydsfiner og fibergips med klinker | F46: Savede og tørrede konstruktionstræprodukter af fyr og gran, Fobrænding | G46: 0.0165 | H46: m³/m² | I46: 0.099 | J46: m³ | K46: 45.144 | L46: kg
A47: 46 | B47: Indervægge | C47: Bærende indervægge | D47: Indervægge | E47: 150 mm indervæg mod bad, krydsfiner og fibergips med klinker | F47: Træfiberisolering (bats), kl. 38 - Hunton | G47: 0.0935 | H47: m³/m² | I47: 0.561 | J47: m³ | K47: 28.05 | L47: kg
A48: 47 | B48: Indervægge | C48: Bærende indervægge | D48: Indervægge | E48: 150 mm indervæg mod bad, krydsfiner og fibergips med klinker | F48: Vandtætningsmembran, flydende | G48: 1.2 | H48: kg/m² | I48: 7.2 | J48: kg | K48: 7.2 | L48: kg
A49: 48 | B49: Indervægge | C49: Bærende indervægge | D49: Indervægge | E49: 150 mm indervæg mod bad, krydsfiner og fibergips med klinker | F49: WISA Gran krydsfiner, ubehandlet, Fobrænding | G49: 0.015 | H49: m³/m² | I49: 0.09 | J49: m³ | K49: 43.2 | L49: kg
A50: 49 | B50: Indervægge | C50: Bærende indervægge | D50: Indervægge | E50: 45 mm indervæg mod skakt, krydsfiner | F50: Savede og tørrede konstruktionstræprodukter af fyr og gran, Fobrænding | G50: 0.005 | H50: m³/m² | I50: 0.11 | J50: m³ | K50: 50.16 | L50: kg
A51: 50 | B51: Indervægge | C51: Bærende indervægge | D51: Indervægge | E51: 45 mm indervæg mod skakt, krydsfiner | F51: WISA Gran krydsfiner, ubehandlet, Fobrænding | G51: 0.03 | H51: m³/m² | I51: 0.66 | J51: m³ | K51: 316.8 | L51: kg
A52: 51 | B52: Indervægge | C52: Bærende indervægge | D52: Indervægge | E52: 60 mm skunkvægge, krydsfiner | F52: Savede og tørrede konstruktionstræprodukter af fyr og gran, Fobrænding | G52: 0.007 | H52: m³/m² | I52: 0.14 | J52: m³ | K52: 63.84 | L52: kg
A53: 52 | B53: Indervægge | C53: Bærende indervægge | D53: Indervægge | E53: 60 mm skunkvægge, krydsfiner | F53: WISA Gran krydsfiner, ubehandlet, Fobrænding | G53: 0.015 | H53: m³/m² | I53: 0.3 | J53: m³ | K53: 144 | L53: kg
A54: 53 | B54: Indervægge | C54: Bærende indervægge | D54: Indervægge | E54: 80 mm indervæg, krydsfiner | F54: Savede og tørrede konstruktionstræprodukter af fyr og gran, Fobrænding | G54: 0.0075 | H54: m³/m² | I54: 0.0225 | J54: m³ | K54: 10.26 | L54: kg
A55: 54 | B55: Indervægge | C55: Bærende indervægge | D55: Indervægge | E55: 80 mm indervæg, krydsfiner | F55: Træfiberisolering (bats), kl. 38 - Hunton | G55: 0.0425 | H55: m³/m² | I55: 0.1275 | J55: m³ | K55: 6.375 | L55: kg
A56: 55 | B56: Indervægge | C56: Bærende indervægge | D56: Indervægge | E56: 80 mm indervæg, krydsfiner | F56: WISA Gran krydsfiner, ubehandlet, Fobrænding | G56: 0.015 | H56: m³/m² | I56: 0.045 | J56: m³ | K56: 21.6 | L56: kg
A57: 56 | B57: Indervægge | C57: Bærende indervægge | D57: Indervægge | E57: 80 mm indervæg, krydsfiner | F57: WISA Gran krydsfiner, ubehandlet, Fobrænding | G57: 0.015 | H57: m³/m² | I57: 0.045 | J57: m³ | K57: 21.6 | L57: kg
A58: 57 | B58: Indervægge | C58: Bærende indervægge | D58: Indervægge | E58: Klinkebeklædning på badeværelse | F58: Keramikfliser, glaseret | G58: 1 | H58: m²/m² | I58: 13 | J58: m² | K58: 260 | L58: kg
A59: 58 | B59: Indervægge | C59: Bærende indervægge | D59: Indervægge | E59: Klinkebeklædning på badeværelse | F59: Mørtel, fliseklæber | G59: 3.2 | H59: kg/m² | I59: 41.6 | J59: kg | K59: 41.6 | L59: kg
A60: 59 | B60: Indervægge | C60: Bærende indervægge | D60: Indervægge | E60: Klinkebeklædning på badeværelse | F60: Vandtætningsmembran, flydende | G60: 1.2 | H60: kg/m² | I60: 15.6 | J60: kg | K60: 15.6 | L60: kg
A61: 60 | B61: Søjler og bjælker | C61: Søjler | D61: Træsøjle | E61: Limtræssøjle 140 x 140 mm | F61: Limtræs-produkter af fyr og gran, Fobrænding | G61: 0.052 | H61: m³/stk. | I61: 0.104 | J61: m³ | K61: 52 | L61: kg
A62: 61 | B62: Tage | C62: Tage | D62: Tag, trækassette | E62: Tagkassette, ståltag | F62: Asfaltimprægneret porøs træfiberplade, 18 mm - Hunton Undertag | G62: 1.39 | H62: m²/m² | I62: 154.29 | J62: m² | K62: 709.734 | L62: kg
A63: 62 | B63: Tage | C63: Tage | D63: Tag, trækassette | E63: Tagkassette, ståltag | F63: Dampspærre PE (tykkelse 0,0002 m) | G63: 1 | H63: m²/m² | I63: 111 | J63: m² | K63: 22.2 | L63: kg
A64: 63 | B64: Tage | C64: Tage | D64: Tag, trækassette | E64: Tagkassette, ståltag | F64: Fermacell fiberplade 12,5 mm | G64: 2 | H64: m²/m² | I64: 222 | J64: m² | K64: 3274.5 | L64: kg
A65: 64 | B65: Tage | C65: Tage | D65: Tag, trækassette | E65: Tagkassette, ståltag | F65: Galvaniseret stålplade - Plannja | G65: 5.5 | H65: kg/m² | I65: 610.5 | J65: kg | K65: 610.5 | L65: kg
A66: 65 | B66: Tage | C66: Tage | D66: Tag, trækassette | E66: Tagkassette, ståltag | F66: OSB-plade | G66: 0.018 | H66: m³/m² | I66: 1.998 | J66: m³ | K66: 1198.8 | L66: kg
A67: 66 | B67: Tage | C67: Tage | D67: Tag, trækassette | E67: Tagkassette, ståltag | F67: Papirisolering kl 37 - ISOCELL | G67: 13.6 | H67: kg/m² | I67: 1509.6 | J67: kg | K67: 1509.6 | L67: kg
A68: 67 | B68: Tage | C68: Tage | D68: Tag, trækassette | E68: Tagkassette, ståltag | F68: Papirisolering kl 37 - ISOCELL | G68: 1.8 | H68: kg/m² | I68: 199.8 | J68: kg | K68: 199.8 | L68: kg
A69: 68 | B69: Tage | C69: Tage | D69: Tag, trækassette | E69: Tagkassette, ståltag | F69: Savede og tørrede konstruktionstræprodukter af fyr og gran, Fobrænding | G69: 0.007 | H69: m³/m² | I69: 0.777 | J69: m³ | K69: 354.312 | L69: kg
A70: 69 | B70: Tage | C70: Tage | D70: Tag, trækassette | E70: Tagkassette, ståltag | F70: Savede og tørrede konstruktionstræprodukter af fyr og gran, Fobrænding | G70: 0.002 | H70: kg/m² | I70: 0.0004868421053 | J70: m³ | K70: 0.222 | L70: kg
A71: 70 | B71: Tage | C71: Tage | D71: Tag, trækassette | E71: Tagkassette, ståltag | F71: Savede og tørrede konstruktionstræprodukter af fyr og gran, Fobrænding | G71: 0.008 | H71: m³/m² | I71: 0.888 | J71: m³ | K71: 404.928 | L71: kg
A72: 71 | B72: Tage | C72: Tage | D72: Tag, trækassette | E72: Tagkassette, ståltag | F72: Savede og tørrede konstruktionstræprodukter af fyr og gran, Fobrænding | G72: 0.044 | H72: m³/m² | I72: 4.884 | J72: m³ | K72: 2227.104 | L72: kg
A73: 72 | B73: Tage | C73: Tage | D73: Tag, trækassette | E73: Tagkassette, ståltag | F73: Savede og tørrede konstruktionstræprodukter af fyr og gran, Fobrænding | G73: 0.007 | H73: m³/m² | I73: 0.777 | J73: m³ | K73: 354.312 | L73: kg
A74: 73 | B74: Tage | C74: Tage | D74: Tag, trækassette | E74: Tagkassette, tagpap | F74: Dampspærre PE (tykkelse 0,0002 m) | G74: 1 | H74: m²/m² | I74: 15 | J74: m² | K74: 3 | L74: kg
A75: 74 | B75: Tage | C75: Tage | D75: Tag, trækassette | E75: Tagkassette, tagpap | F75: Derbigum NT | G75: 1 | H75: m²/m² | I75: 15 | J75: m² | K75: 132.15 | L75: kg
A76: 75 | B76: Tage | C76: Tage | D76: Tag, trækassette | E76: Tagkassette, tagpap | F76: Fermacell fiberplade 12,5 mm | G76: 2 | H76: m²/m² | I76: 30 | J76: m² | K76: 442.5 | L76: kg
A77: 76 | B77: Tage | C77: Tage | D77: Tag, trækassette | E77: Tagkassette, tagpap | F77: Papirisolering kl 37 - ISOCELL | G77: 13.6 | H77: kg/m² | I77: 204 | J77: kg | K77: 204 | L77: kg
A78: 77 | B78: Tage | C78: Tage | D78: Tag, trækassette | E78: Tagkassette, tagpap | F78: Papirisolering kl 37 - ISOCELL | G78: 1.8 | H78: kg/m² | I78: 27 | J78: kg | K78: 27 | L78: kg
A79: 78 | B79: Tage | C79: Tage | D79: Tag, trækassette | E79: Tagkassette, tagpap | F79: Savede og tørrede konstruktionstræprodukter af fyr og gran, Fobrænding | G79: 0.011 | H79: m³/m² | I79: 0.165 | J79: m³ | K79: 75.24 | L79: kg
A80: 79 | B80: Tage | C80: Tage | D80: Tag, trækassette | E80: Tagkassette, tagpap | F80: Savede og tørrede konstruktionstræprodukter af fyr og gran, Fobrænding | G80: 0.011 | H80: m³/m² | I80: 0.165 | J80: m³ | K80: 75.24 | L80: kg
A81: 80 | B81: Tage | C81: Tage | D81: Tag, trækassette | E81: Tagkassette, tagpap | F81: Savede og tørrede konstruktionstræprodukter af fyr og gran, Fobrænding | G81: 0.044 | H81: m³/m² | I81: 0.66 | J81: m³ | K81: 300.96 | L81: kg
A82: 81 | B82: Tage | C82: Tage | D82: Tag, trækassette | E82: Tagkassette, tagpap | F82: Savede og tørrede konstruktionstræprodukter af fyr og gran, Fobrænding | G82: 0.007 | H82: m³/m² | I82: 0.105 | J82: m³ | K82: 47.88 | L82: kg
A83: 82 | B83: Tage | C83: Tage | D83: Tag, trækassette | E83: Tagkassette, tagpap | F83: WISA Gran krydsfiner, ubehandlet, Fobrænding | G83: 0.021 | H83: m³/m² | I83: 0.315 | J83: m³ | K83: 151.2 | L83: kg
A84: 83 | B84: Tage | C84: Tage | D84: Tag, trækassette | E84: Tagkassette, tagpap | F84: WISA Gran krydsfiner, ubehandlet, Fobrænding | G84: 0.021 | H84: m³/m² | I84: 0.315 | J84: m³ | K84: 151.2 | L84: kg
A85: 84 | B85: Terrændæk | C85: Terrændæk | D85: Terrændæk, trækassette | E85: Gulv, vådrumsgulv, keramiske fliser | F85: Afretningslag, cementbaseret | G85: 120 | H85: kg/m² | I85: 600 | J85: kg | K85: 600 | L85: kg
A86: 85 | B86: Terrændæk | C86: Terrændæk | D86: Terrændæk, trækassette | E86: Gulv, vådrumsgulv, keramiske fliser | F86: EPS isolering til lofter / gulve og kælderydervæg / terrændæk 040 | G86: 0.003 | H86: m³/m² | I86: 0.015 | J86: m³ | K86: 0.2775 | L86: kg
A87: 86 | B87: Terrændæk | C87: Terrændæk | D87: Terrændæk, trækassette | E87: Gulv, vådrumsgulv, keramiske fliser | F87: Keramikfliser, glaseret | G87: 1 | H87: m²/m² | I87: 5 | J87: m² | K87: 100 | L87: kg
A88: 87 | B88: Terrændæk | C88: Terrændæk | D88: Terrændæk, trækassette | E88: Gulv, vådrumsgulv, keramiske fliser | F88: Mørtel, fliseklæber | G88: 3.1 | H88: kg/m² | I88: 15.5 | J88: kg | K88: 15.5 | L88: kg
A89: 88 | B89: Terrændæk | C89: Terrændæk | D89: Terrændæk, trækassette | E89: Gulv, vådrumsgulv, keramiske fliser | F89: Vandtætningsmembran, flydende | G89: 1.2 | H89: kg/m² | I89: 6 | J89: kg | K89: 6 | L89: kg
A90: 89 | B90: Terrændæk | C90: Terrændæk | D90: Terrændæk, trækassette | E90: Let trækassette, terræn | F90: Cembrit Windstopper Extreme, 9 mm | G90: 1 | H90: m²/m² | I90: 56 | J90: m² | K90: 806.4 | L90: kg
A91: 90 | B91: Terrændæk | C91: Terrændæk | D91: Terrændæk, trækassette | E91: Let trækassette, terræn | F91: Dampspærre PE (tykkelse 0,0002 m) | G91: 1 | H91: m²/m² | I91: 56 | J91: m² | K91: 11.2 | L91: kg
A92: 91 | B92: Terrændæk | C92: Terrændæk | D92: Terrændæk, trækassette | E92: Let trækassette, terræn | F92: Papirisolering kl 37 - ISOCELL | G92: 14.3 | H92: kg/m² | I92: 800.8 | J92: kg | K92: 800.8 | L92: kg
A93: 92 | B93: Terrændæk | C93: Terrændæk | D93: Terrændæk, trækassette | E93: Let trækassette, terræn | F93: Savede og tørrede konstruktionstræprodukter af fyr og gran, Fobrænding | G93: 0.055 | H93: m³/m² | I93: 3.08 | J93: m³ | K93: 1404.48 | L93: kg
A94: 93 | B94: Terrændæk | C94: Terrændæk | D94: Terrændæk, trækassette | E94: Let trækassette, terræn | F94: Spaandex spånplader, Spaandex spånplader (DK) | G94: 13.2 | H94: kg/m² | I94: 739.2 | J94: kg | K94: 739.2 | L94: kg
A95: 94 | B95: Terrændæk | C95: Terrændæk | D95: Terrændæk, trækassette | E95: Trægulv terrændæk | F95: Trinlydsdug - Scan Underlay | G95: 1 | H95: m²/m² | I95: 46 | J95: m² | K95: 48.3 | L95: kg
A96: 95 | B96: Terrændæk | C96: Terrændæk | D96: Terrændæk, trækassette | E96: Trægulv terrændæk | F96: Trægulv 14 mm ask - Tarkett Sverige | G96: 1 | H96: m²/m² | I96: 46 | J96: m² | K96: 363.4 | L96: kg
A97: 96 | B97: Trapper og ramper | C97: Trapper og ramper | D97: Trappe | E97: Trætrappe pr. etage | F97: Savede og tørrede konstruktionstræprodukter af fyr og gran, Fobrænding | G97: 80 | H97: kg/stk. | I97: 0.350877193 | J97: m³ | K97: 160 | L97: kg
A98: 97 | B98: Trapper og ramper | C98: Trapper og ramper | D98: Trappe | E98: Trætrappe pr. etage | F98: Trægulv 14 mm ask - Tarkett Sverige | G98: 4.5 | H98: m²/stk. | I98: 9 | J98: m² | K98: 71.1 | L98: kg
A99: 98 | B99: Trapper og ramper | C99: Trapper og ramper | D99: Trappe | E99: Trætrappe pr. etage | F99: WISA Gran krydsfiner, ubehandlet, Fobrænding | G99: 0.045 | H99: m³/stk. | I99: 0.09 | J99: m³ | K99: 43.2 | L99: kg
A100: 99 | B100: Vand | C100: Vandrør | D100: Vandrør | E100: Rustfrit stålrør | F100: Brugsvandsrør, rustfri stål | G100: 1.3 | H100: kg/m | I100: 39 | J100: kg | K100: 39 | L100: kg
A101: 100 | B101: Vand | C101: Varmtvandsbeholder | D101: VVB og buffertank | E101: Metroair 330, indedel til VP | F101: Buffertank, rustfri stål | G101: 220 | H101: kg/stk. | I101: 220 | J101: kg | K101: 220 | L101: kg
A102: 101 | B102: Varme | C102: Andet (varme) | D102: Pumpe | E102: Magna3 25-40 | F102: Magna3 25-(40/60/80/100/120) | G102: 1 | H102: stk./stk. | I102: 1 | J102: stk. | K102: 6.41 | L102: kg
A103: 102 | B103: Varme | C103: Radiatorer | D103: Radiator | E103: Radiator, 142/2000 | F103: Panel radiator 500mm x 700mm - Lyngson | G103: 0.811428571 | H103: stk./stk. | I103: 0.811428571 | J103: stk. | K103: 16.15878856 | L103: kg
A104: 103 | B104: Varme | C104: Radiatorer | D104: Radiator | E104: Radiator, 200/1000 | F104: Panel radiator 500mm x 700mm - Lyngson | G104: 0.571428571 | H104: stk./stk. | I104: 1.142857142 | J104: stk. | K104: 22.75885713 | L104: kg
A105: 104 | B105: Varme | C105: Radiatorer | D105: Radiator | E105: Radiator, 200/1100 | F105: Panel radiator 500mm x 700mm - Lyngson | G105: 0.628571429 | H105: stk./stk. | I105: 0.628571429 | J105: stk. | K105: 12.51737144 | L105: kg
A106: 105 | B106: Varme | C106: Radiatorer | D106: Radiator | E106: Radiator, 200/2000 | F106: Panel radiator 500mm x 700mm - Lyngson | G106: 1.142857143 | H106: stk./stk. | I106: 2.285714286 | J106: stk. | K106: 45.51771429 | L106: kg
A107: 106 | B107: Varme | C107: Radiatorer | D107: Radiator | E107: Radiator, 200/600 | F107: Panel radiator 500mm x 700mm - Lyngson | G107: 0.342857143 | H107: stk./stk. | I107: 0.342857143 | J107: stk. | K107: 6.827657146 | L107: kg
A108: 107 | B108: Varme | C108: Radiatorer | D108: Radiator | E108: Radiator, 300/400 | F108: Panel radiator 500mm x 700mm - Lyngson | G108: 0.342857143 | H108: stk./stk. | I108: 0.342857143 | J108: stk. | K108: 6.827657146 | L108: kg
A109: 108 | B109: Varme | C109: Radiatorer | D109: Radiator | E109: Radiator, 600/900 | F109: Panel radiator 500mm x 700mm - Lyngson | G109: 1.542857143 | H109: stk./stk. | I109: 1.542857143 | J109: stk. | K109: 30.72445715 | L109: kg
A110: 109 | B110: Varme | C110: Varmeforsyningsanlæg | D110: Varmepumpe | E110: Varmepumpe luft til vand | F110: Varmepumpe (luft-vand) 10 kW | G110: 0.62 | H110: stk./stk. | I110: 0.62 | J110: stk. | K110: 83.08 | L110: kg
A111: 110 | B111: Varme | C111: Varmerør | D111: Varmerør | E111: Press rør | F111: Brugsvandsrør, rustfri stål | G111: 1.25855 | H111: kg/m | I111: 125.855 | J111: kg | K111: 125.855 | L111: kg
A112: 111 | B112: Ventilation og køl | C112: Ventilationskanaler | D112: Afkast emhætte | E112: Ventilationskanaler Ø125, enfamiliehuse og etageboliger, central | F112: Ventilationskanal, galvaniseret stål | G112: 1.525 | H112: kg/m | I112: 1.525 | J112: kg | K112: 1.525 | L112: kg
A113: 112 | B113: Vinduer, døre, glasfacader | C113: Døre | D113: Indvendige døre | E113: Dør, indvendig | F113: Fastgørelsesmidler/skruer i galvaniseret stål | G113: 1 | H113: kg/stk. | I113: 4 | J113: kg | K113: 4 | L113: kg
A114: 113 | B114: Vinduer, døre, glasfacader | C114: Døre | D114: Indvendige døre | E114: Dør, indvendig | F114: Overflade, Indendørsmaling, emulsions maling, slidstærk | G114: 0.3575 | H114: kg/stk. | I114: 1.43 | J114: kg | K114: 1.43 | L114: kg
A115: 114 | B115: Vinduer, døre, glasfacader | C115: Døre | D115: Indvendige døre | E115: Dør, indvendig | F115: Spånplade | G115: 33 | H115: kg/stk. | I115: 0.1885714286 | J115: m³ | K115: 132 | L115: kg
A116: 115 | B116: Vinduer, døre, glasfacader | C116: Døre | D116: Indvendige døre | E116: Dør, indvendig | F116: Træ, fyrretræ (12% fugt / 10,7% H2O) | G116: 10 | H116: kg/stk. | I116: 0.07288629738 | J116: m³ | K116: 40 | L116: kg
A117: 116 | B117: Vinduer, døre, glasfacader | C117: Døre | D117: Udvendig dør | E117: Udvendig dør, træ | F117: Grå støbejern | G117: 0.05 | H117: kg/m² | I117: 0.105 | J117: kg | K117: 0.105 | L117: kg
A118: 117 | B118: Vinduer, døre, glasfacader | C118: Døre | D118: Udvendig dør | E118: Udvendig dør, træ | F118: Høvlede konstruktionstræsprodukter af fyr og gran, Fobrænding | G118: 1.63 | H118: kg/m² | I118: 0.007506578947 | J118: m³ | K118: 3.423 | L118: kg
A119: 118 | B119: Vinduer, døre, glasfacader | C119: Døre | D119: Udvendig dør | E119: Udvendig dør, træ | F119: Savede og tørrede konstruktionstræprodukter af fyr og gran, Fobrænding | G119: 22.53 | H119: kg/m² | I119: 0.1037565789 | J119: m³ | K119: 47.313 | L119: kg
A120: 119 | B120: Vinduer, døre, glasfacader | C120: Vinduer | D120: Facadevinduer | E120: Facadevinduer | F120: 3-lags-rude | G120: 0.85 | H120: m²/m² | I120: 18.7 | J120: m² | K120: 561 | L120: kg
A121: 120 | B121: Vinduer, døre, glasfacader | C121: Vinduer | D121: Facadevinduer | E121: Facadevinduer | F121: Trævindue med 3-lags rude | G121: 1 | H121: m²/m² | I121: 22 | J121: m² | K121: 752.4 | L121: kg
A122: 121 | B122: Vinduer, døre, glasfacader | C122: Vinduer | D122: Ovenlys | E122: Velux GGL ovenlys m. aluinddækning, 3-lagsrude (træ) | F122: 3-lags-rude | G122: 0.85 | H122: m²/m² | I122: 7.65 | J122: m² | K122: 229.5 | L122: kg
A123: 122 | B123: Vinduer, døre, glasfacader | C123: Vinduer | D123: Ovenlys | E123: Velux GGL ovenlys m. aluinddækning, 3-lagsrude (træ) | F123: Velux GGL ovenlys m. aluinddækning, 3-lagsrude (træ) | G123: 1 | H123: m²/m² | I123: 9 | J123: m² | K123: 394.3125 | L123: kg
A124: 123 | B124: Vinduer, døre, glasfacader | C124: Vinduer | D124: Ovenlys | E124: Velux modular skylight, 3-lagsrude | F124: 3-lags-rude | G124: 0.85 | H124: m²/m² | I124: 1.7 | J124: m² | K124: 51 | L124: kg
A125: 124 | B125: Vinduer, døre, glasfacader | C125: Vinduer | D125: Ovenlys | E125: Velux modular skylight, 3-lagsrude | F125: Velux modular skylight, 3-lagsrude | G125: 1 | H125: m²/m² | I125: 2 | J125: m² | K125: 134.4 | L125: kg
A126: 125 | B126: Ydervægge | C126: Ydervægge | D126: Ydervæg, trækassette | E126: Facadekassette uden beklædning | F126: Cembrit Windstopper Extreme, 9 mm | G126: 1 | H126: m²/m² | I126: 148 | J126: m² | K126: 2131.2 | L126: kg
A127: 126 | B127: Ydervægge | C127: Ydervægge | D127: Ydervæg, trækassette | E127: Facadekassette uden beklædning | F127: Dampspærre PE (tykkelse 0,0002 m) | G127: 1 | H127: m²/m² | I127: 148 | J127: m² | K127: 29.6 | L127: kg
A128: 127 | B128: Ydervægge | C128: Ydervægge | D128: Ydervæg, trækassette | E128: Facadekassette uden beklædning | F128: Fermacell fiberplade 12,5 mm | G128: 2 | H128: m²/m² | I128: 296 | J128: m² | K128: 4366 | L128: kg
A129: 128 | B129: Ydervægge | C129: Ydervægge | D129: Ydervæg, trækassette | E129: Facadekassette uden beklædning | F129: OSB-plade | G129: 0.018 | H129: m³/m² | I129: 2.664 | J129: m³ | K129: 1598.4 | L129: kg
A130: 129 | B130: Ydervægge | C130: Ydervægge | D130: Ydervæg, trækassette | E130: Facadekassette uden beklædning | F130: Papirisolering kl 37 - ISOCELL | G130: 12.5 | H130: kg/m² | I130: 1850 | J130: kg | K130: 1850 | L130: kg
A131: 130 | B131: Ydervægge | C131: Ydervægge | D131: Ydervæg, trækassette | E131: Facadekassette uden beklædning | F131: Papirisolering kl 37 - ISOCELL | G131: 1.91 | H131: kg/m² | I131: 282.68 | J131: kg | K131: 282.68 | L131: kg
A132: 131 | B132: Ydervægge | C132: Ydervægge | D132: Ydervæg, trækassette | E132: Facadekassette uden beklædning | F132: Savede og tørrede konstruktionstræprodukter af fyr og gran, Fobrænding | G132: 0.044 | H132: m³/m² | I132: 6.512 | J132: m³ | K132: 2969.472 | L132: kg
A133: 132 | B133: Ydervægge | C133: Ydervægge | D133: Ydervæg, trækassette | E133: Facadekassette uden beklædning | F133: Savede og tørrede konstruktionstræprodukter af fyr og gran, Fobrænding | G133: 0.007 | H133: m³/m² | I133: 1.036 | J133: m³ | K133: 472.416 | L133: kg
A134: 133 | B134: Ydervægge | C134: Ydervægge | D134: Ydervæg, trækassette | E134: Tilbagetrukket facadekassette uden beklædning | F134: Cembrit Windstopper Extreme, 9 mm | G134: 1 | H134: m²/m² | I134: 9 | J134: m² | K134: 129.6 | L134: kg
A135: 134 | B135: Ydervægge | C135: Ydervægge | D135: Ydervæg, trækassette | E135: Tilbagetrukket facadekassette uden beklædning | F135: Dampspærre PE (tykkelse 0,0002 m) | G135: 1 | H135: m²/m² | I135: 9 | J135: m² | K135: 1.8 | L135: kg
A136: 135 | B136: Ydervægge | C136: Ydervægge | D136: Ydervæg, trækassette | E136: Tilbagetrukket facadekassette uden beklædning | F136: Fermacell fiberplade 12,5 mm | G136: 2 | H136: m²/m² | I136: 18 | J136: m² | K136: 265.5 | L136: kg
A137: 136 | B137: Ydervægge | C137: Ydervægge | D137: Ydervæg, trækassette | E137: Tilbagetrukket facadekassette uden beklædning | F137: OSB-plade | G137: 0.018 | H137: m³/m² | I137: 0.162 | J137: m³ | K137: 97.2 | L137: kg
A138: 137 | B138: Ydervægge | C138: Ydervægge | D138: Ydervæg, trækassette | E138: Tilbagetrukket facadekassette uden beklædning | F138: Papirisolering kl 37 - ISOCELL | G138: 8.3 | H138: kg/m² | I138: 74.7 | J138: kg | K138: 74.7 | L138: kg
A139: 138 | B139: Ydervægge | C139: Ydervægge | D139: Ydervæg, trækassette | E139: Tilbagetrukket facadekassette uden beklædning | F139: Papirisolering kl 37 - ISOCELL | G139: 1.91 | H139: kg/m² | I139: 17.19 | J139: kg | K139: 17.19 | L139: kg
A140: 139 | B140: Ydervægge | C140: Ydervægge | D140: Ydervæg, trækassette | E140: Tilbagetrukket facadekassette uden beklædning | F140: Savede og tørrede konstruktionstræprodukter af fyr og gran, Fobrænding | G140: 0.029 | H140: m³/m² | I140: 0.261 | J140: m³ | K140: 119.016 | L140: kg
A141: 140 | B141: Ydervægge | C141: Ydervægge | D141: Ydervæg, trækassette | E141: Tilbagetrukket facadekassette uden beklædning | F141: Savede og tørrede konstruktionstræprodukter af fyr og gran, Fobrænding | G141: 0.007 | H141: m³/m² | I141: 0.063 | J141: m³ | K141: 28.728 | L141: kg
A142: 141 | B142: Ydervægge | C142: Ydervægge | D142: Ydervæg, trækassette | E142: Træbeklædning med ophæng | F142: Savede og tørrede konstruktionstræprodukter af fyr og gran, Fobrænding | G142: 0.002 | H142: m³/m² | I142: 0.296 | J142: m³ | K142: 134.976 | L142: kg
A143: 142 | B143: Ydervægge | C143: Ydervægge | D143: Ydervæg, trækassette | E143: Træbeklædning med ophæng | F143: Savede og tørrede konstruktionstræprodukter af fyr og gran, Fobrænding | G143: 0.004 | H143: m³/m² | I143: 0.592 | J143: m³ | K143: 269.952 | L143: kg
A144: 143 | B144: Ydervægge | C144: Ydervægge | D144: Ydervæg, trækassette | E144: Træbeklædning med ophæng | F144: Træbeklædning 19 mm, ubehandlet gran - InnTre Kjeldstad AS | G144: 1.105 | H144: m²/m² | I144: 163.54 | J144: m² | K144: 1409.7148 | L144: kg
A145: 144 | B145: Ydervægge | C145: Ydervægge | D145: Ydervæg, trækassette | E145: Træbeklædning tilbagetrukket med ophæng | F145: Savede og tørrede konstruktionstræprodukter af fyr og gran, Fobrænding | G145: 0.002 | H145: m³/m² | I145: 0.018 | J145: m³ | K145: 8.208 | L145: kg
A146: 145 | B146: Ydervægge | C146: Ydervægge | D146: Ydervæg, trækassette | E146: Træbeklædning tilbagetrukket med ophæng | F146: Savede og tørrede konstruktionstræprodukter af fyr og gran, Fobrænding | G146: 0.004 | H146: m³/m² | I146: 0.036 | J146: m³ | K146: 16.416 | L146: kg
A147: 146 | B147: Ydervægge | C147: Ydervægge | D147: Ydervæg, trækassette | E147: Træbeklædning tilbagetrukket med ophæng | F147: Træbeklædning 19 mm, ubehandlet gran - InnTre Kjeldstad AS | G147: 1.105 | H147: m²/m² | I147: 9.945 | J147: m² | K147: 85.7259 | L147: kg

Sheet Indtastninger (hidden)
A1: Indeks | B1: Beskrivelse | C1: Navn | D1: Kilde | E1: Medregnet | F1: Mængde | G1: Enhed | H1: Levetid | I1: Usikkerhedsfaktor
A2: 1 | B2: Byggevare | C2: Rør, Kloakrør PP | D2: GenDk | E2: TRUE | F2: 1.5 | G2: kg/m | H2: 50 | I2: 1
A3: 2 | B3: Byggevare | C3: Stål, valsede profiler og plader | D3: GenDk | E3: TRUE | F3: 1.25 | G3: kg/m | H3: 60 | I3: 1
A4: 3 | B4: Byggevare | C4: Stål, valsede profiler og plader | D4: GenDk | E4: TRUE | F4: 1.45 | G4: kg/m | H4: 60 | I4: 1
A5: 4 | B5: Byggevare | C5: Fastgørelsesmidler/skruer i galvaniseret stål | D5: GenDk | E5: TRUE | F5: 0.3 | G5: kg/m² | H5: 100 | I5: 1
A6: 5 | B6: Byggevare | C6: Savede og tørrede konstruktionstræprodukter af fyr og gran, Fobrænding | D6: EPDDanmark | E6: TRUE | F6: 0.034 | G6: m³/m² | H6: 100 | I6: 1
A7: 6 | B7: Byggevare | C7: Savede og tørrede konstruktionstræprodukter af fyr og gran, Fobrænding | D7: EPDDanmark | E7: TRUE | F7: 0.024 | G7: m³/m² | H7: 100 | I7: 1
A8: 7 | B8: Byggevare | C8: Fastgørelsesmidler/skruer i galvaniseret stål | D8: GenDk | E8: TRUE | F8: 0.3 | G8: kg/m² | H8: 100 | I8: 1
A9: 8 | B9: Byggevare | C9: Savede og tørrede konstruktionstræprodukter af fyr og gran, Fobrænding | D9: EPDDanmark | E9: TRUE | F9: 0.044 | G9: m³/m² | H9: 100 | I9: 1
A10: 9 | B10: Byggevare | C10: Fermacell fiberplade 12,5 mm | D10: User | E10: TRUE | F10: 1 | G10: m²/m² | H10: 60 | I10: 1
A11: 10 | B11: Byggevare | C11: Trinlydsdug - Scan Underlay | D11: User | E11: TRUE | F11: 1 | G11: m²/m² | H11: 60 | I11: 1
A12: 11 | B12: Byggevare | C12: Trægulv 14 mm ask - Tarkett Sverige | D12: User | E12: TRUE | F12: 1 | G12: m²/m² | H12: 60 | I12: 1
A13: 12 | B13: Byggevare | C13: WISA Gran krydsfiner, ubehandlet, Fobrænding | D13: EPDDanmark | E13: TRUE | F13: 0.018 | G13: m³/m² | H13: 60 | I13: 1
A14: 13 | B14: Byggevare | C14: WISA Gran krydsfiner, ubehandlet, Fobrænding | D14: EPDDanmark | E14: TRUE | F14: 0.025 | G14: m³/m² | H14: 60 | I14: 1
A15: 14 | B15: Byggevare | C15: Solceller, Sunpower | D15: User | E15: TRUE | F15: 1 | G15: m²/m² | H15: 30 | I15: 1
A16: 15 | B16: Byggevare | C16: Stål, valsede profiler og plader | D16: GenDk | E16: TRUE | F16: 7 | G16: kg/stk. | H16: 120 | I16: 1
A17: 16 | B17: Byggevare | C17: Stål, valsede profiler og plader | D17: GenDk | E17: TRUE | F17: 29 | G17: kg/stk. | H17: 120 | I17: 1
A18: 17 | B18: Byggevare | C18: Stål, valsede profiler og plader | D18: GenDk | E18: TRUE | F18: 10 | G18: kg/stk. | H18: 120 | I18: 1
A19: 18 | B19: Byggevare | C19: Stål, valsede profiler og plader | D19: GenDk | E19: TRUE | F19: 48 | G19: kg/stk. | H19: 120 | I19: 1
A20: 19 | B20: Byggevare | C20: Fastgørelsesmidler/skruer i galvaniseret stål | D20: GenDk | E20: TRUE | F20: 0.08621 | G20: kg/m | H20: 100 | I20: 1
A21: 20 | B21: Byggevare | C21: Limtræs-produkter af fyr og gran, Fobrænding | D21: EPDDanmark | E21: TRUE | F21: 0.037 | G21: m³/m | H21: 100 | I21: 1
A22: 21 | B22: Byggevare | C22: Fastgørelsesmidler/skruer i galvaniseret stål | D22: GenDk | E22: TRUE | F22: 0.08621 | G22: kg/m | H22: 100 | I22: 1
A23: 22 | B23: Byggevare | C23: Limtræs-produkter af fyr og gran, Fobrænding | D23: EPDDanmark | E23: TRUE | F23: 0.04921 | G23: m³/m | H23: 100 | I23: 1
A24: 23 | B24: Byggevare | C24: Fermacell fiberplade 12,5 mm | D24: User | E24: TRUE | F24: 1.2 | G24: m²/m² | H24: 50 | I24: 1
A25: 24 | B25: Byggevare | C25: Fermacell fiberplade 12,5 mm | D25: User | E25: TRUE | F25: 1.2 | G25: kg/m² | H25: 50 | I25: 1
A26: 25 | B26: Byggevare | C26: Savede og tørrede konstruktionstræprodukter af fyr og gran, Fobrænding | D26: EPDDanmark | E26: TRUE | F26: 0.0105 | G26: m³/m² | H26: 100 | I26: 1
A27: 26 | B27: Byggevare | C27: Træfiberisolering (bats), kl. 38 - Hunton | D27: User | E27: TRUE | F27: 0.0595 | G27: m³/m² | H27: 100 | I27: 1
A28: 27 | B28: Byggevare | C28: Savede og tørrede konstruktionstræprodukter af fyr og gran, Fobrænding | D28: EPDDanmark | E28: TRUE | F28: 0.0105 | G28: m³/m² | H28: 100 | I28: 1
A29: 28 | B29: Byggevare | C29: Træfiberisolering (bats), kl. 38 - Hunton | D29: User | E29: TRUE | F29: 0.0595 | G29: m³/m² | H29: 100 | I29: 1
A30: 29 | B30: Byggevare | C30: WISA Gran krydsfiner, ubehandlet, Fobrænding | D30: EPDDanmark | E30: TRUE | F30: 0.015 | G30: m³/m² | H30: 30 | I30: 1
A31: 30 | B31: Byggevare | C31: WISA Gran krydsfiner, ubehandlet, Fobrænding | D31: EPDDanmark | E31: TRUE | F31: 0.015 | G31: m³/m² | H31: 30 | I31: 1
A32: 31 | B32: Byggevare | C32: Fermacell fiberplade 12,5 mm | D32: User | E32: TRUE | F32: 1.2 | G32: m²/m² | H32: 50 | I32: 1
A33: 32 | B33: Byggevare | C33: Savede og tørrede konstruktionstræprodukter af fyr og gran, Fobrænding | D33: EPDDanmark | E33: TRUE | F33: 0.0105 | G33: m³/m² | H33: 100 | I33: 1
A34: 33 | B34: Byggevare | C34: Træfiberisolering (bats), kl. 38 - Hunton | D34: User | E34: TRUE | F34: 0.0595 | G34: m³/m² | H34: 100 | I34: 1
A35: 34 | B35: Byggevare | C35: WISA Gran krydsfiner, ubehandlet, Fobrænding | D35: EPDDanmark | E35: TRUE | F35: 0.015 | G35: m³/m² | H35: 30 | I35: 1
A36: 35 | B36: Byggevare | C36: Fermacell fiberplade 12,5 mm | D36: User | E36: TRUE | F36: 1.2 | G36: m²/m² | H36: 60 | I36: 1
A37: 36 | B37: Byggevare | C37: Keramikfliser, glaseret | D37: GenDk | E37: TRUE | F37: 1 | G37: m²/m² | H37: 80 | I37: 1
A38: 37 | B38: Byggevare | C38: Mørtel, fliseklæber | D38: GenDk | E38: TRUE | F38: 3.1 | G38: kg/m² | H38: 80 | I38: 1
A39: 38 | B39: Byggevare | C39: Savede og tørrede konstruktionstræprodukter af fyr og gran, Fobrænding | D39: EPDDanmark | E39: TRUE | F39: 0.0105 | G39: m³/m² | H39: 100 | I39: 1
A40: 39 | B40: Byggevare | C40: Træfiberisolering (bats), kl. 38 - Hunton | D40: User | E40: TRUE | F40: 0.0595 | G40: m³/m² | H40: 100 | I40: 1
A41: 40 | B41: Byggevare | C41: Vandtætningsmembran, flydende | D41: GenDk | E41: TRUE | F41: 1.2 | G41: kg/m² | H41: 50 | I41: 1
A42: 41 | B42: Byggevare | C42: WISA Gran krydsfiner, ubehandlet, Fobrænding | D42: EPDDanmark | E42: TRUE | F42: 0.015 | G42: m³/m² | H42: 30 | I42: 1
A43: 42 | B43: Byggevare | C43: Fermacell fiberplade 12,5 mm | D43: User | E43: TRUE | F43: 1.2 | G43: m²/m² | H43: 60 | I43: 1
A44: 43 | B44: Byggevare | C44: Keramikfliser, glaseret | D44: GenDk | E44: TRUE | F44: 1 | G44: m²/m² | H44: 80 | I44: 1
A45: 44 | B45: Byggevare | C45: Mørtel, fliseklæber | D45: GenDk | E45: TRUE | F45: 3.1 | G45: kg/m² | H45: 80 | I45: 1
A46: 45 | B46: Byggevare | C46: Savede og tørrede konstruktionstræprodukter af fyr og gran, Fobrænding | D46: EPDDanmark | E46: TRUE | F46: 0.0165 | G46: m³/m² | H46: 100 | I46: 1
A47: 46 | B47: Byggevare | C47: Træfiberisolering (bats), kl. 38 - Hunton | D47: User | E47: TRUE | F47: 0.0935 | G47: m³/m² | H47: 100 | I47: 1
A48: 47 | B48: Byggevare | C48: Vandtætningsmembran, flydende | D48: GenDk | E48: TRUE | F48: 1.2 | G48: kg/m² | H48: 50 | I48: 1
A49: 48 | B49: Byggevare | C49: WISA Gran krydsfiner, ubehandlet, Fobrænding | D49: EPDDanmark | E49: TRUE | F49: 0.015 | G49: m³/m² | H49: 30 | I49: 1
A50: 49 | B50: Byggevare | C50: Savede og tørrede konstruktionstræprodukter af fyr og gran, Fobrænding | D50: EPDDanmark | E50: TRUE | F50: 0.005 | G50: m³/m² | H50: 100 | I50: 1
A51: 50 | B51: Byggevare | C51: WISA Gran krydsfiner, ubehandlet, Fobrænding | D51: EPDDanmark | E51: TRUE | F51: 0.03 | G51: m³/m² | H51: 30 | I51: 1
A52: 51 | B52: Byggevare | C52: Savede og tørrede konstruktionstræprodukter af fyr og gran, Fobrænding | D52: EPDDanmark | E52: TRUE | F52: 0.007 | G52: m³/m² | H52: 100 | I52: 1
A53: 52 | B53: Byggevare | C53: WISA Gran krydsfiner, ubehandlet, Fobrænding | D53: EPDDanmark | E53: TRUE | F53: 0.015 | G53: m³/m² | H53: 30 | I53: 1
A54: 53 | B54: Byggevare | C54: Savede og tørrede konstruktionstræprodukter af fyr og gran, Fobrænding | D54: EPDDanmark | E54: TRUE | F54: 0.0075 | G54: m³/m² | H54: 100 | I54: 1
A55: 54 | B55: Byggevare | C55: Træfiberisolering (bats), kl. 38 - Hunton | D55: User | E55: TRUE | F55: 0.0425 | G55: m³/m² | H55: 100 | I55: 1
A56: 55 | B56: Byggevare | C56: WISA Gran krydsfiner, ubehandlet, Fobrænding | D56: EPDDanmark | E56: TRUE | F56: 0.015 | G56: m³/m² | H56: 30 | I56: 1
A57: 56 | B57: Byggevare | C57: WISA Gran krydsfiner, ubehandlet, Fobrænding | D57: EPDDanmark | E57: TRUE | F57: 0.015 | G57: m³/m² | H57: 30 | I57: 1
A58: 57 | B58: Byggevare | C58: Keramikfliser, glaseret | D58: GenDk | E58: TRUE | F58: 1 | G58: m²/m² | H58: 80 | I58: 1
A59: 58 | B59: Byggevare | C59: Mørtel, fliseklæber | D59: GenDk | E59: TRUE | F59: 3.2 | G59: kg/m² | H59: 80 | I59: 1
A60: 59 | B60: Byggevare | C60: Vandtætningsmembran, flydende | D60: GenDk | E60: TRUE | F60: 1.2 | G60: kg/m² | H60: 50 | I60: 1
A61: 60 | B61: Byggevare | C61: Limtræs-produkter af fyr og gran, Fobrænding | D61: EPDDanmark | E61: TRUE | F61: 0.052 | G61: m³/stk. | H61: 120 | I61: 1
A62: 61 | B62: Byggevare | C62: Asfaltimprægneret porøs træfiberplade, 18 mm - Hunton Undertag | D62: User | E62: TRUE | F62: 1.39 | G62: m²/m² | H62: 50 | I62: 1
A63: 62 | B63: Byggevare | C63: Dampspærre PE (tykkelse 0,0002 m) | D63: GenDk | E63: TRUE | F63: 1 | G63: m²/m² | H63: 50 | I63: 1
A64: 63 | B64: Byggevare | C64: Fermacell fiberplade 12,5 mm | D64: User | E64: TRUE | F64: 2 | G64: m²/m² | H64: 60 | I64: 1
A65: 64 | B65: Byggevare | C65: Galvaniseret stålplade - Plannja | D65: User | E65: TRUE | F65: 5.5 | G65: kg/m² | H65: 50 | I65: 1
A66: 65 | B66: Byggevare | C66: OSB-plade | D66: GenDk | E66: TRUE | F66: 0.018 | G66: m³/m² | H66: 120 | I66: 1
A67: 66 | B67: Byggevare | C67: Papirisolering kl 37 - ISOCELL | D67: User | E67: TRUE | F67: 13.6 | G67: kg/m² | H67: 50 | I67: 1
A68: 67 | B68: Byggevare | C68: Papirisolering kl 37 - ISOCELL | D68: User | E68: TRUE | F68: 1.8 | G68: kg/m² | H68: 50 | I68: 1
A69: 68 | B69: Byggevare | C69: Savede og tørrede konstruktionstræprodukter af fyr og gran, Fobrænding | D69: EPDDanmark | E69: TRUE | F69: 0.007 | G69: m³/m² | H69: 120 | I69: 1
A70: 69 | B70: Byggevare | C70: Savede og tørrede konstruktionstræprodukter af fyr og gran, Fobrænding | D70: EPDDanmark | E70: TRUE | F70: 0.002 | G70: kg/m² | H70: 120 | I70: 1
A71: 70 | B71: Byggevare | C71: Savede og tørrede konstruktionstræprodukter af fyr og gran, Fobrænding | D71: EPDDanmark | E71: TRUE | F71: 0.008 | G71: m³/m² | H71: 120 | I71: 1
A72: 71 | B72: Byggevare | C72: Savede og tørrede konstruktionstræprodukter af fyr og gran, Fobrænding | D72: EPDDanmark | E72: TRUE | F72: 0.044 | G72: m³/m² | H72: 120 | I72: 1
A73: 72 | B73: Byggevare | C73: Savede og tørrede konstruktionstræprodukter af fyr og gran, Fobrænding | D73: EPDDanmark | E73: TRUE | F73: 0.007 | G73: m³/m² | H73: 120 | I73: 1
A74: 73 | B74: Byggevare | C74: Dampspærre PE (tykkelse 0,0002 m) | D74: GenDk | E74: TRUE | F74: 1 | G74: m²/m² | H74: 50 | I74: 1
A75: 74 | B75: Byggevare | C75: Derbigum NT | D75: EPDDanmark | E75: TRUE | F75: 1 | G75: m²/m² | H75: 40 | I75: 1
A76: 75 | B76: Byggevare | C76: Fermacell fiberplade 12,5 mm | D76: User | E76: TRUE | F76: 2 | G76: m²/m² | H76: 60 | I76: 1
A77: 76 | B77: Byggevare | C77: Papirisolering kl 37 - ISOCELL | D77: User | E77: TRUE | F77: 13.6 | G77: kg/m² | H77: 50 | I77: 1
A78: 77 | B78: Byggevare | C78: Papirisolering kl 37 - ISOCELL | D78: User | E78: TRUE | F78: 1.8 | G78: kg/m² | H78: 50 | I78: 1
A79: 78 | B79: Byggevare | C79: Savede og tørrede konstruktionstræprodukter af fyr og gran, Fobrænding | D79: EPDDanmark | E79: TRUE | F79: 0.011 | G79: m³/m² | H79: 120 | I79: 1
A80: 79 | B80: Byggevare | C80: Savede og tørrede konstruktionstræprodukter af fyr og gran, Fobrænding | D80: EPDDanmark | E80: TRUE | F80: 0.011 | G80: m³/m² | H80: 120 | I80: 1
A81: 80 | B81: Byggevare | C81: Savede og tørrede konstruktionstræprodukter af fyr og gran, Fobrænding | D81: EPDDanmark | E81: TRUE | F81: 0.044 | G81: m³/m² | H81: 120 | I81: 1
A82: 81 | B82: Byggevare | C82: Savede og tørrede konstruktionstræprodukter af fyr og gran, Fobrænding | D82: EPDDanmark | E82: TRUE | F82: 0.007 | G82: m³/m² | H82: 120 | I82: 1
A83: 82 | B83: Byggevare | C83: WISA Gran krydsfiner, ubehandlet, Fobrænding | D83: EPDDanmark | E83: TRUE | F83: 0.021 | G83: m³/m² | H83: 120 | I83: 1
A84: 83 | B84: Byggevare | C84: WISA Gran krydsfiner, ubehandlet, Fobrænding | D84: EPDDanmark | E84: TRUE | F84: 0.021 | G84: m³/m² | H84: 120 | I84: 1
A85: 84 | B85: Byggevare | C85: Afretningslag, cementbaseret | D85: GenDk | E85: TRUE | F85: 120 | G85: kg/m² | H85: 80 | I85: 1
A86: 85 | B86: Byggevare | C86: EPS isolering til lofter / gulve og kælderydervæg / terrændæk 040 | D86: GenDk | E86: TRUE | F86: 0.003 | G86: m³/m² | H86: 80 | I86: 1
A87: 86 | B87: Byggevare | C87: Keramikfliser, glaseret | D87: GenDk | E87: TRUE | F87: 1 | G87: m²/m² | H87: 100 | I87: 1
A88: 87 | B88: Byggevare | C88: Mørtel, fliseklæber | D88: GenDk | E88: TRUE | F88: 3.1 | G88: kg/m² | H88: 100 | I88: 1
A89: 88 | B89: Byggevare | C89: Vandtætningsmembran, flydende | D89: GenDk | E89: TRUE | F89: 1.2 | G89: kg/m² | H89: 80 | I89: 1
A90: 89 | B90: Byggevare | C90: Cembrit Windstopper Extreme, 9 mm | D90: User | E90: TRUE | F90: 1 | G90: m²/m² | H90: 50 | I90: 1
A91: 90 | B91: Byggevare | C91: Dampspærre PE (tykkelse 0,0002 m) | D91: GenDk | E91: TRUE | F91: 1 | G91: m²/m² | H91: 80 | I91: 1
A92: 91 | B92: Byggevare | C92: Papirisolering kl 37 - ISOCELL | D92: User | E92: TRUE | F92: 14.3 | G92: kg/m² | H92: 50 | I92: 1
A93: 92 | B93: Byggevare | C93: Savede og tørrede konstruktionstræprodukter af fyr og gran, Fobrænding | D93: EPDDanmark | E93: TRUE | F93: 0.055 | G93: m³/m² | H93: 100 | I93: 1
A94: 93 | B94: Byggevare | C94: Spaandex spånplader, Spaandex spånplader (DK) | D94: EPDDanmark | E94: TRUE | F94: 13.2 | G94: kg/m² | H94: 100 | I94: 1
A95: 94 | B95: Byggevare | C95: Trinlydsdug - Scan Underlay | D95: User | E95: TRUE | F95: 1 | G95: m²/m² | H95: 80 | I95: 1
A96: 95 | B96: Byggevare | C96: Trægulv 14 mm ask - Tarkett Sverige | D96: User | E96: TRUE | F96: 1 | G96: m²/m² | H96: 80 | I96: 1
A97: 96 | B97: Byggevare | C97: Savede og tørrede konstruktionstræprodukter af fyr og gran, Fobrænding | D97: EPDDanmark | E97: TRUE | F97: 80 | G97: kg/stk. | H97: 100 | I97: 1
A98: 97 | B98: Byggevare | C98: Trægulv 14 mm ask - Tarkett Sverige | D98: User | E98: TRUE | F98: 4.5 | G98: m²/stk. | H98: 60 | I98: 1
A99: 98 | B99: Byggevare | C99: WISA Gran krydsfiner, ubehandlet, Fobrænding | D99: EPDDanmark | E99: TRUE | F99: 0.045 | G99: m³/stk. | H99: 100 | I99: 1
A100: 99 | B100: Byggevare | C100: Brugsvandsrør, rustfri stål | D100: GenDk | E100: TRUE | F100: 1.3 | G100: kg/m | H100: 60 | I100: 1
A101: 100 | B101: Byggevare | C101: Buffertank, rustfri stål | D101: GenDk | E101: TRUE | F101: 220 | G101: kg/stk. | H101: 30 | I101: 1
A102: 101 | B102: Byggevare | C102: Magna3 25-(40/60/80/100/120) | D102: User | E102: TRUE | F102: 1 | G102: stk./stk. | H102: 30 | I102: 1
A103: 102 | B103: Byggevare | C103: Panel radiator 500mm x 700mm - Lyngson | D103: User | E103: TRUE | F103: 0.811428571 | G103: stk./stk. | H103: 40 | I103: 1
A104: 103 | B104: Byggevare | C104: Panel radiator 500mm x 700mm - Lyngson | D104: User | E104: TRUE | F104: 0.571428571 | G104: stk./stk. | H104: 40 | I104: 1
A105: 104 | B105: Byggevare | C105: Panel radiator 500mm x 700mm - Lyngson | D105: User | E105: TRUE | F105: 0.628571429 | G105: stk./stk. | H105: 40 | I105: 1
A106: 105 | B106: Byggevare | C106: Panel radiator 500mm x 700mm - Lyngson | D106: User | E106: TRUE | F106: 1.142857143 | G106: stk./stk. | H106: 40 | I106: 1
A107: 106 | B107: Byggevare | C107: Panel radiator 500mm x 700mm - Lyngson | D107: User | E107: TRUE | F107: 0.342857143 | G107: stk./stk. | H107: 40 | I107: 1
A108: 107 | B108: Byggevare | C108: Panel radiator 500mm x 700mm - Lyngson | D108: User | E108: TRUE | F108: 0.342857143 | G108: stk./stk. | H108: 40 | I108: 1
A109: 108 | B109: Byggevare | C109: Panel radiator 500mm x 700mm - Lyngson | D109: User | E109: TRUE | F109: 1.542857143 | G109: stk./stk. | H109: 40 | I109: 1
A110: 109 | B110: Byggevare | C110: Varmepumpe (luft-vand) 10 kW | D110: GenDk | E110: TRUE | F110: 0.62 | G110: stk./stk. | H110: 30 | I110: 1
A111: 110 | B111: Byggevare | C111: Brugsvandsrør, rustfri stål | D111: GenDk | E111: TRUE | F111: 1.25855 | G111: kg/m | H111: 80 | I111: 1
A112: 111 | B112: Byggevare | C112: Ventilationskanal, galvaniseret stål | D112: GenDk | E112: TRUE | F112: 1.525 | G112: kg/m | H112: 50 | I112: 1
A113: 112 | B113: Byggevare | C113: Fastgørelsesmidler/skruer i galvaniseret stål | D113: GenDk | E113: TRUE | F113: 1 | G113: kg/stk. | H113: 50 | I113: 1
A114: 113 | B114: Byggevare | C114: Overflade, Indendørsmaling, emulsions maling, slidstærk | D114: GenDk | E114: TRUE | F114: 0.3575 | G114: kg/stk. | H114: 50 | I114: 1
A115: 114 | B115: Byggevare | C115: Spånplade | D115: GenDk | E115: TRUE | F115: 33 | G115: kg/stk. | H115: 50 | I115: 1
A116: 115 | B116: Byggevare | C116: Træ, fyrretræ (12% fugt / 10,7% H2O) | D116: GenDk | E116: TRUE | F116: 10 | G116: kg/stk. | H116: 50 | I116: 1
A117: 116 | B117: Byggevare | C117: Grå støbejern | D117: GenDk | E117: TRUE | F117: 0.05 | G117: kg/m² | H117: 60 | I117: 1
A118: 117 | B118: Byggevare | C118: Høvlede konstruktionstræsprodukter af fyr og gran, Fobrænding | D118: EPDDanmark | E118: TRUE | F118: 1.63 | G118: kg/m² | H118: 60 | I118: 1
A119: 118 | B119: Byggevare | C119: Savede og tørrede konstruktionstræprodukter af fyr og gran, Fobrænding | D119: EPDDanmark | E119: TRUE | F119: 22.53 | G119: kg/m² | H119: 40 | I119: 1
A120: 119 | B120: Byggevare | C120: 3-lags-rude | D120: GenDk | E120: TRUE | F120: 0.85 | G120: m²/m² | H120: 25 | I120: 1
A121: 120 | B121: Byggevare | C121: Trævindue med 3-lags rude | D121: EPDDanmark | E121: TRUE | F121: 1 | G121: m²/m² | H121: 50 | I121: 1
A122: 121 | B122: Byggevare | C122: 3-lags-rude | D122: GenDk | E122: TRUE | F122: 0.85 | G122: m²/m² | H122: 25 | I122: 1
A123: 122 | B123: Byggevare | C123: Velux GGL ovenlys m. aluinddækning, 3-lagsrude (træ) | D123: User | E123: TRUE | F123: 1 | G123: m²/m² | H123: 50 | I123: 1
A124: 123 | B124: Byggevare | C124: 3-lags-rude | D124: GenDk | E124: TRUE | F124: 0.85 | G124: m²/m² | H124: 25 | I124: 1
A125: 124 | B125: Byggevare | C125: Velux modular skylight, 3-lagsrude | D125: User | E125: TRUE | F125: 1 | G125: m²/m² | H125: 50 | I125: 1
A126: 125 | B126: Byggevare | C126: Cembrit Windstopper Extreme, 9 mm | D126: User | E126: TRUE | F126: 1 | G126: m²/m² | H126: 80 | I126: 1
A127: 126 | B127: Byggevare | C127: Dampspærre PE (tykkelse 0,0002 m) | D127: GenDk | E127: TRUE | F127: 1 | G127: m²/m² | H127: 80 | I127: 1
A128: 127 | B128: Byggevare | C128: Fermacell fiberplade 12,5 mm | D128: User | E128: TRUE | F128: 2 | G128: m²/m² | H128: 50 | I128: 1
A129: 128 | B129: Byggevare | C129: OSB-plade | D129: GenDk | E129: TRUE | F129: 0.018 | G129: m³/m² | H129: 120 | I129: 1
A130: 129 | B130: Byggevare | C130: Papirisolering kl 37 - ISOCELL | D130: User | E130: TRUE | F130: 12.5 | G130: kg/m² | H130: 60 | I130: 1
A131: 130 | B131: Byggevare | C131: Papirisolering kl 37 - ISOCELL | D131: User | E131: TRUE | F131: 1.91 | G131: kg/m² | H131: 60 | I131: 1
A132: 131 | B132: Byggevare | C132: Savede og tørrede konstruktionstræprodukter af fyr og gran, Fobrænding | D132: EPDDanmark | E132: TRUE | F132: 0.044 | G132: m³/m² | H132: 120 | I132: 1
A133: 132 | B133: Byggevare | C133: Savede og tørrede konstruktionstræprodukter af fyr og gran, Fobrænding | D133: EPDDanmark | E133: TRUE | F133: 0.007 | G133: m³/m² | H133: 120 | I133: 1
A134: 133 | B134: Byggevare | C134: Cembrit Windstopper Extreme, 9 mm | D134: User | E134: TRUE | F134: 1 | G134: m²/m² | H134: 80 | I134: 1
A135: 134 | B135: Byggevare | C135: Dampspærre PE (tykkelse 0,0002 m) | D135: GenDk | E135: TRUE | F135: 1 | G135: m²/m² | H135: 80 | I135: 1
A136: 135 | B136: Byggevare | C136: Fermacell fiberplade 12,5 mm | D136: User | E136: TRUE | F136: 2 | G136: m²/m² | H136: 50 | I136: 1
A137: 136 | B137: Byggevare | C137: OSB-plade | D137: GenDk | E137: TRUE | F137: 0.018 | G137: m³/m² | H137: 120 | I137: 1
A138: 137 | B138: Byggevare | C138: Papirisolering kl 37 - ISOCELL | D138: User | E138: TRUE | F138: 8.3 | G138: kg/m² | H138: 60 | I138: 1
A139: 138 | B139: Byggevare | C139: Papirisolering kl 37 - ISOCELL | D139: User | E139: TRUE | F139: 1.91 | G139: kg/m² | H139: 60 | I139: 1
A140: 139 | B140: Byggevare | C140: Savede og tørrede konstruktionstræprodukter af fyr og gran, Fobrænding | D140: EPDDanmark | E140: TRUE | F140: 0.029 | G140: m³/m² | H140: 120 | I140: 1
A141: 140 | B141: Byggevare | C141: Savede og tørrede konstruktionstræprodukter af fyr og gran, Fobrænding | D141: EPDDanmark | E141: TRUE | F141: 0.007 | G141: m³/m² | H141: 120 | I141: 1
A142: 141 | B142: Byggevare | C142: Savede og tørrede konstruktionstræprodukter af fyr og gran, Fobrænding | D142: EPDDanmark | E142: TRUE | F142: 0.002 | G142: m³/m² | H142: 120 | I142: 1
A143: 142 | B143: Byggevare | C143: Savede og tørrede konstruktionstræprodukter af fyr og gran, Fobrænding | D143: EPDDanmark | E143: TRUE | F143: 0.004 | G143: m³/m² | H143: 120 | I143: 1
A144: 143 | B144: Byggevare | C144: Træbeklædning 19 mm, ubehandlet gran - InnTre Kjeldstad AS | D144: User | E144: TRUE | F144: 1.105 | G144: m²/m² | H144: 25 | I144: 1
A145: 144 | B145: Byggevare | C145: Savede og tørrede konstruktionstræprodukter af fyr og gran, Fobrænding | D145: EPDDanmark | E145: TRUE | F145: 0.002 | G145: m³/m² | H145: 120 | I145: 1
A146: 145 | B146: Byggevare | C146: Savede og tørrede konstruktionstræprodukter af fyr og gran, Fobrænding | D146: EPDDanmark | E146: TRUE | F146: 0.004 | G146: m³/m² | H146: 120 | I146: 1
A147: 146 | B147: Byggevare | C147: Træbeklædning 19 mm, ubehandlet gran - InnTre Kjeldstad AS | D147: User | E147: TRUE | F147: 1.105 | G147: m²/m² | H147: 25 | I147: 1

Sheet Resultater (hidden)
A1: Indeks | B1: Gruppe | C1: Undergruppe | D1: Bygningsdel | E1: Konstruktion | F1: Byggevare | G1: Udskiftninger | H1: GWP ex_c3 | I1: GWP ex_c4 | J1: GWP ex_d | K1: GWP a1_3 | L1: GWP a4 | M1: GWP a5 | N1: GWP b4 | O1: GWP b6 | P1: GWP c3 | Q1: GWP c4 | R1: GWP d | S1: GWP sum
A2: 1 | B2: Afløb | C2: Faldstammer | D2: Afløbsrør | E2: Afløbsrør, PP | F2: Rør, Kloakrør PP | G2: 0 | H2: 0 | I2: 0 | J2: 0 | K2: 98.244 | L2: 0 | M2: 0 | N2: 0 | O2: 0 | P2: 129.5415 | Q2: 0 | R2: -63.959625 | S2: 227.7855
A3: 2 | B3: Afløb | C3: Nedløb fra tag | D3: Tagrende | E3: Nedløbsrør | F3: Stål, valsede profiler og plader | G3: 0 | H3: 0 | I3: 0 | J3: 0 | K3: 8.4375 | L3: 0 | M3: 0 | N3: 0 | O3: 0 | P3: 0.01383 | Q3: 0 | R3: -3.1005 | S3: 8.45133
A4: 3 | B4: Afløb | C4: Nedløb fra tag | D4: Tagrende | E4: Tagrende | F4: Stål, valsede profiler og plader | G4: 0 | H4: 0 | I4: 0 | J4: 0 | K4: 26.915625 | L4: 0 | M4: 0 | N4: 0 | O4: 0 | P4: 0.0441177 | Q4: 0 | R4: -9.890595 | S4: 26.9597427
A5: 4 | B5: Dæk | C5: Etagedæk | D5: Etagedæk, bjælkelag | E5: Etagedæk 1. sal, 270 mm bjælkelag | F5: Fastgørelsesmidler/skruer i galvaniseret stål | G5: 0 | H5: 0 | I5: 0 | J5: 0 | K5: 42.7667703 | L5: 0 | M5: 0 | N5: 0 | O5: 0 | P5: 0 | Q5: 0.0082053021 | R5: -21.7817586 | S5: 42.7749756
A6: 5 | B6: Dæk | C6: Etagedæk | D6: Etagedæk, bjælkelag | E6: Etagedæk 1. sal, 270 mm bjælkelag | F6: Savede og tørrede konstruktionstræprodukter af fyr og gran, Fobrænding | G6: 0 | H6: 0 | I6: 0 | J6: 0 | K6: -927.112 | L6: 0 | M6: 0 | N6: 0 | O6: 0 | P6: 992.5552 | Q6: 0 | R6: -505.8214 | S6: 65.4432
A7: 6 | B7: Dæk | C7: Etagedæk | D7: Etagedæk, bjælkelag | E7: Etagedæk 1. sal, 270 mm bjælkelag | F7: Savede og tørrede konstruktionstræprodukter af fyr og gran, Fobrænding | G7: 0 | H7: 0 | I7: 0 | J7: 0 | K7: -654.432 | L7: 0 | M7: 0 | N7: 0 | O7: 0 | P7: 700.6272 | Q7: 0 | R7: -357.0504 | S7: 46.1952
A8: 7 | B8: Dæk | C8: Etagedæk | D8: Etagedæk, bjælkelag | E8: Etagedæk 2. sal, 230 mm bjælkelag | F8: Fastgørelsesmidler/skruer i galvaniseret stål | G8: 0 | H8: 0 | I8: 0 | J8: 0 | K8: 70.389198 | L8: 0 | M8: 0 | N8: 0 | O8: 0 | P8: 0 | Q8: 0.013504986 | R8: -35.850276 | S8: 70.40270299
A9: 8 | B9: Dæk | C9: Etagedæk | D9: Etagedæk, bjælkelag | E9: Etagedæk 2. sal, 230 mm bjælkelag | F9: Savede og tørrede konstruktionstræprodukter af fyr og gran, Fobrænding | G9: 0 | H9: 0 | I9: 0 | J9: 0 | K9: -1974.72 | L9: 0 | M9: 0 | N9: 0 | O9: 0 | P9: 2114.112 | Q9: 0 | R9: -1077.384 | S9: 139.392
A10: 9 | B10: Dæk | C10: Etagedæk | D10: Etagedæk, bjælkelag | E10: Etagedæk, 70 mm gulvopbygning | F10: Fermacell fiberplade 12,5 mm | G10: 0 | H10: 0 | I10: 0 | J10: 0 | K10: 75.24 | L10: 0 | M10: 0 | N10: 0 | O10: 0 | P10: 0 | Q10: 13.2799029 | R10: 0 | S10: 88.5199029
A11: 10 | B11: Dæk | C11: Etagedæk | D11: Etagedæk, bjælkelag | E11: Etagedæk, 70 mm gulvopbygning | F11: Trinlydsdug - Scan Underlay | G11: 0 | H11: 0 | I11: 0 | J11: 0 | K11: 33.726 | L11: 0 | M11: 0 | N11: 0 | O11: 0 | P11: 0 | Q11: 0.94534902 | R11: 0 | S11: 34.67134902
A12: 11 | B12: Dæk | C12: Etagedæk | D12: Etagedæk, bjælkelag | E12: Etagedæk, 70 mm gulvopbygning | F12: Trægulv 14 mm ask - Tarkett Sverige | G12: 0 | H12: 0 | I12: 0 | J12: 0 | K12: -494.34 | L12: 0 | M12: 0 | N12: 0 | O12: 0 | P12: 0 | Q12: 798.6 | R12: 0 | S12: 304.26
A13: 12 | B13: Dæk | C13: Etagedæk | D13: Etagedæk, bjælkelag | E13: Etagedæk, 70 mm gulvopbygning | F13: WISA Gran krydsfiner, ubehandlet, Fobrænding | G13: 0 | H13: 0 | I13: 0 | J13: 0 | K13: -711.612 | L13: 0 | M13: 0 | N13: 0 | O13: 0 | P13: 882.684 | Q13: 0 | R13: -464.508 | S13: 171.072
A14: 13 | B14: Dæk | C14: Etagedæk | D14: Etagedæk, bjælkelag | E14: Etagedæk, 70 mm gulvopbygning | F14: WISA Gran krydsfiner, ubehandlet, Fobrænding | G14: 0 | H14: 0 | I14: 0 | J14: 0 | K14: -988.35 | L14: 0 | M14: 0 | N14: 0 | O14: 0 | P14: 1225.95 | Q14: 0 | R14: -645.15 | S14: 237.6
A15: 14 | B15: El- og mekaniske anlæg | C15: Energiproduktion | D15: Solceller | E15: Solceller, Sunpower | F15: Solceller, Sunpower | G15: 1 | H15: 0 | I15: 0 | J15: 0 | K15: 818.32 | L15: 0 | M15: 0 | N15: 819.70277 | O15: 0 | P15: 1.3674 | Q15: 0.01537 | R15: -661.44 | S15: 1639.40554
A16: 15 | B16: Fundamenter | C16: Punktfundament | D16: Skruefundament | E16: Krinner V114x5-M24 | F16: Stål, valsede profiler og plader | G16: 0 | H16: 0 | I16: 0 | J16: 0 | K16: 126 | L16: 0 | M16: 0 | N16: 0 | O16: 0 | P16: 0.206528 | Q16: 0 | R16: -46.3008 | S16: 126.206528
A17: 16 | B17: Fundamenter | C17: Punktfundament | D17: Skruefundament | E17: Krinner V114x5x2000 | F17: Stål, valsede profiler og plader | G17: 0 | H17: 0 | I17: 0 | J17: 0 | K17: 522 | L17: 0 | M17: 0 | N17: 0 | O17: 0 | P17: 0.855616 | Q17: 0 | R17: -191.8176 | S17: 522.855616
A18: 17 | B18: Fundamenter | C18: Punktfundament | D18: Skruefundament | E18: Krinner V140x6,3-M24 | F18: Stål, valsede profiler og plader | G18: 0 | H18: 0 | I18: 0 | J18: 0 | K18: 33.75 | L18: 0 | M18: 0 | N18: 0 | O18: 0 | P18: 0.05532 | Q18: 0 | R18: -12.402 | S18: 33.80532
A19: 18 | B19: Fundamenter | C19: Punktfundament | D19: Skruefundament | E19: Krinner V140x6,3x2000 | F19: Stål, valsede profiler og plader | G19: 0 | H19: 0 | I19: 0 | J19: 0 | K19: 162 | L19: 0 | M19: 0 | N19: 0 | O19: 0 | P19: 0.265536 | Q19: 0 | R19: -59.5296 | S19: 162.265536
A20: 19 | B20: Fundamenter | C20: Punktfundament | D20: Skruefundament | E20: Rem 200x185, limtræ | F20: Fastgørelsesmidler/skruer i galvaniseret stål | G20: 0 | H20: 0 | I20: 0 | J20: 0 | K20: 4.903638594 | L20: 0 | M20: 0 | N20: 0 | O20: 0 | P20: 0 | Q20: 0.0009408200752 | R20: -2.497496803 | S20: 4.904579414
A21: 20 | B21: Fundamenter | C21: Punktfundament | D21: Skruefundament | E21: Rem 200x185, limtræ | F21: Limtræs-produkter af fyr og gran, Fobrænding | G21: 0 | H21: 0 | I21: 0 | J21: 0 | K21: -361.12 | L21: 0 | M21: 0 | N21: 0 | O21: 0 | P21: 439.856 | Q21: 0 | R21: -233.84 | S21: 78.736
A22: 21 | B22: Fundamenter | C22: Punktfundament | D22: Skruefundament | E22: Rem 266x185, limtræ | F22: Fastgørelsesmidler/skruer i galvaniseret stål | G22: 0 | H22: 0 | I22: 0 | J22: 0 | K22: 4.903638594 | L22: 0 | M22: 0 | N22: 0 | O22: 0 | P22: 0 | Q22: 0.0009408200752 | R22: -2.497496803 | S22: 4.904579414
A23: 22 | B23: Fundamenter | C23: Punktfundament | D23: Skruefundament | E23: Rem 266x185, limtræ | F23: Limtræs-produkter af fyr og gran, Fobrænding | G23: 0 | H23: 0 | I23: 0 | J23: 0 | K23: -480.2896 | L23: 0 | M23: 0 | N23: 0 | O23: 0 | P23: 585.00848 | Q23: 0 | R23: -311.0072 | S23: 104.71888
A24: 23 | B24: Indervægge | C24: Bærende indervægge | D24: Indervægge | E24: 100 mm indervæg, fibergips | F24: Fermacell fiberplade 12,5 mm | G24: 0 | H24: 0 | I24: 0 | J24: 0 | K24: 34.2 | L24: 0 | M24: 0 | N24: 0 | O24: 0 | P24: 0 | Q24: 6.0363195 | R24: 0 | S24: 40.2363195
A25: 24 | B25: Indervægge | C25: Bærende indervægge | D25: Indervægge | E25: 100 mm indervæg, fibergips | F25: Fermacell fiberplade 12,5 mm | G25: 0 | H25: 0 | I25: 0 | J25: 0 | K25: 2.318644068 | L25: 0 | M25: 0 | N25: 0 | O25: 0 | P25: 0 | Q25: 0.409242 | R25: 0 | S25: 2.727886068
A26: 25 | B26: Indervægge | C26: Bærende indervægge | D26: Indervægge | E26: 100 mm indervæg, fibergips | F26: Savede og tørrede konstruktionstræprodukter af fyr og gran, Fobrænding | G26: 0 | H26: 0 | I26: 0 | J26: 0 | K26: -178.5 | L26: 0 | M26: 0 | N26: 0 | O26: 0 | P26: 191.1 | Q26: 0 | R26: -97.3875 | S26: 12.6
A27: 26 | B27: Indervægge | C27: Bærende indervægge | D27: Indervægge | E27: 100 mm indervæg, fibergips | F27: Træfiberisolering (bats), kl. 38 - Hunton | G27: 0 | H27: 0 | I27: 0 | J27: 0 | K27: -93.1175 | L27: 0 | M27: 0 | N27: 0 | O27: 0 | P27: 114.68625 | Q27: 0.009743125 | R27: -7.9135 | S27: 21.57849312
A28: 27 | B28: Indervægge | C28: Bærende indervægge | D28: Indervægge | E28: 100 mm indervæg, krydsfiner | F28: Savede og tørrede konstruktionstræprodukter af fyr og gran, Fobrænding | G28: 0 | H28: 0 | I28: 0 | J28: 0 | K28: -264.18 | L28: 0 | M28: 0 | N28: 0 | O28: 0 | P28: 282.828 | Q28: 0 | R28: -144.1335 | S28: 18.648
A29: 28 | B29: Indervægge | C29: Bærende indervægge | D29: Indervægge | E29: 100 mm indervæg, krydsfiner | F29: Træfiberisolering (bats), kl. 38 - Hunton | G29: 0 | H29: 0 | I29: 0 | J29: 0 | K29: -137.8139 | L29: 0 | M29: 0 | N29: 0 | O29: 0 | P29: 169.73565 | Q29: 0.014419825 | R29: -11.71198 | S29: 31.93616982
A30: 29 | B30: Indervægge | C30: Bærende indervægge | D30: Indervægge | E30: 100 mm indervæg, krydsfiner | F30: WISA Gran krydsfiner, ubehandlet, Fobrænding | G30: 1 | H30: 0 | I30: 0 | J30: 0 | K30: -332.445 | L30: 0 | M30: 0 | N30: 79.92 | O30: 0 | P30: 412.365 | Q30: 0 | R30: -434.01 | S30: 159.84
A31: 30 | B31: Indervægge | C31: Bærende indervægge | D31: Indervægge | E31: 100 mm indervæg, krydsfiner | F31: WISA Gran krydsfiner, ubehandlet, Fobrænding | G31: 1 | H31: 0 | I31: 0 | J31: 0 | K31: -332.445 | L31: 0 | M31: 0 | N31: 79.92 | O31: 0 | P31: 412.365 | Q31: 0 | R31: -434.01 | S31: 159.84
A32: 31 | B32: Indervægge | C32: Bærende indervægge | D32: Indervægge | E32: 100 mm indervæg, krydsfiner og fibergips | F32: Fermacell fiberplade 12,5 mm | G32: 0 | H32: 0 | I32: 0 | J32: 0 | K32: 6.84 | L32: 0 | M32: 0 | N32: 0 | O32: 0 | P32: 0 | Q32: 1.2072639 | R32: 0 | S32: 8.0472639
A33: 32 | B33: Indervægge | C33: Bærende indervægge | D33: Indervægge | E33: 100 mm indervæg, krydsfiner og fibergips | F33: Savede og tørrede konstruktionstræprodukter af fyr og gran, Fobrænding | G33: 0 | H33: 0 | I33: 0 | J33: 0 | K33: -35.7 | L33: 0 | M33: 0 | N33: 0 | O33: 0 | P33: 38.22 | Q33: 0 | R33: -19.4775 | S33: 2.52
A34: 33 | B34: Indervægge | C34: Bærende indervægge | D34: Indervægge | E34: 100 mm indervæg, krydsfiner og fibergips | F34: Træfiberisolering (bats), kl. 38 - Hunton | G34: 0 | H34: 0 | I34: 0 | J34: 0 | K34: -18.6235 | L34: 0 | M34: 0 | N34: 0 | O34: 0 | P34: 22.93725 | Q34: 0.001948625 | R34: -1.5827 | S34: 4.315698625
A35: 34 | B35: Indervægge | C35: Bærende indervægge | D35: Indervægge | E35: 100 mm indervæg, krydsfiner og fibergips | F35: WISA Gran krydsfiner, ubehandlet, Fobrænding | G35: 1 | H35: 0 | I35: 0 | J35: 0 | K35: -44.925 | L35: 0 | M35: 0 | N35: 10.8 | O35: 0 | P35: 55.725 | Q35: 0 | R35: -58.65 | S35: 21.6
A36: 35 | B36: Indervægge | C36: Bærende indervægge | D36: Indervægge | E36: 110 mm indervæg mod bad, krydsfiner og fibergips med klinker | F36: Fermacell fiberplade 12,5 mm | G36: 0 | H36: 0 | I36: 0 | J36: 0 | K36: 8.208 | L36: 0 | M36: 0 | N36: 0 | O36: 0 | P36: 0 | Q36: 1.44871668 | R36: 0 | S36: 9.65671668
A37: 36 | B37: Indervægge | C37: Bærende indervægge | D37: Indervægge | E37: 110 mm indervæg mod bad, krydsfiner og fibergips med klinker | F37: Keramikfliser, glaseret | G37: 0 | H37: 0 | I37: 0 | J37: 0 | K37: 37.07814 | L37: 0 | M37: 0 | N37: 0 | O37: 0 | P37: 0.880464 | Q37: 0 | R37: -0.2464776 | S37: 37.958604
A38: 37 | B38: Indervægge | C38: Bærende indervægge | D38: Indervægge | E38: 110 mm indervæg mod bad, krydsfiner og fibergips med klinker | F38: Mørtel, fliseklæber | G38: 0 | H38: 0 | I38: 0 | J38: 0 | K38: 6.4547952 | L38: 0 | M38: 0 | N38: 0 | O38: 0 | P38: 0 | Q38: 0.30447642 | R38: -0.05310765 | S38: 6.75927162
A39: 38 | B39: Indervægge | C39: Bærende indervægge | D39: Indervægge | E39: 110 mm indervæg mod bad, krydsfiner og fibergips med klinker | F39: Savede og tørrede konstruktionstræprodukter af fyr og gran, Fobrænding | G39: 0 | H39: 0 | I39: 0 | J39: 0 | K39: -42.84 | L39: 0 | M39: 0 | N39: 0 | O39: 0 | P39: 45.864 | Q39: 0 | R39: -23.373 | S39: 3.024
A40: 39 | B40: Indervægge | C40: Bærende indervægge | D40: Indervægge | E40: 110 mm indervæg mod bad, krydsfiner og fibergips med klinker | F40: Træfiberisolering (bats), kl. 38 - Hunton | G40: 0 | H40: 0 | I40: 0 | J40: 0 | K40: -22.3482 | L40: 0 | M40: 0 | N40: 0 | O40: 0 | P40: 27.5247 | Q40: 0.00233835 | R40: -1.89924 | S40: 5.17883835
A41: 40 | B41: Indervægge | C41: Bærende indervægge | D41: Indervægge | E41: 110 mm indervæg mod bad, krydsfiner og fibergips med klinker | F41: Vandtætningsmembran, flydende | G41: 0 | H41: 0 | I41: 0 | J41: 0 | K41: 7.992 | L41: 0 | M41: 0 | N41: 0 | O41: 0 | P41: 0.0191736 | Q41: 0 | R41: 0 | S41: 8.0111736
A42: 41 | B42: Indervægge | C42: Bærende indervægge | D42: Indervægge | E42: 110 mm indervæg mod bad, krydsfiner og fibergips med klinker | F42: WISA Gran krydsfiner, ubehandlet, Fobrænding | G42: 1 | H42: 0 | I42: 0 | J42: 0 | K42: -53.91 | L42: 0 | M42: 0 | N42: 12.96 | O42: 0 | P42: 66.87 | Q42: 0 | R42: -70.38 | S42: 25.92
A43: 42 | B43: Indervægge | C43: Bærende indervægge | D43: Indervægge | E43: 150 mm indervæg mod bad, krydsfiner og fibergips med klinker | F43: Fermacell fiberplade 12,5 mm | G43: 0 | H43: 0 | I43: 0 | J43: 0 | K43: 8.208 | L43: 0 | M43: 0 | N43: 0 | O43: 0 | P43: 0 | Q43: 1.44871668 | R43: 0 | S43: 9.65671668
A44: 43 | B44: Indervægge | C44: Bærende indervægge | D44: Indervægge | E44: 150 mm indervæg mod bad, krydsfiner og fibergips med klinker | F44: Keramikfliser, glaseret | G44: 0 | H44: 0 | I44: 0 | J44: 0 | K44: 37.07814 | L44: 0 | M44: 0 | N44: 0 | O44: 0 | P44: 0.880464 | Q44: 0 | R44: -0.2464776 | S44: 37.958604
A45: 44 | B45: Indervægge | C45: Bærende indervægge | D45: Indervægge | E45: 150 mm indervæg mod bad, krydsfiner og fibergips med klinker | F45: Mørtel, fliseklæber | G45: 0 | H45: 0 | I45: 0 | J45: 0 | K45: 6.4547952 | L45: 0 | M45: 0 | N45: 0 | O45: 0 | P45: 0 | Q45: 0.30447642 | R45: -0.05310765 | S45: 6.75927162
A46: 45 | B46: Indervægge | C46: Bærende indervægge | D46: Indervægge | E46: 150 mm indervæg mod bad, krydsfiner og fibergips med klinker | F46: Savede og tørrede konstruktionstræprodukter af fyr og gran, Fobrænding | G46: 0 | H46: 0 | I46: 0 | J46: 0 | K46: -67.32 | L46: 0 | M46: 0 | N46: 0 | O46: 0 | P46: 72.072 | Q46: 0 | R46: -36.729 | S46: 4.752
A47: 46 | B47: Indervægge | C47: Bærende indervægge | D47: Indervægge | E47: 150 mm indervæg mod bad, krydsfiner og fibergips med klinker | F47: Træfiberisolering (bats), kl. 38 - Hunton | G47: 0 | H47: 0 | I47: 0 | J47: 0 | K47: -35.1186 | L47: 0 | M47: 0 | N47: 0 | O47: 0 | P47: 43.2531 | Q47: 0.00367455 | R47: -2.98452 | S47: 8.13817455
A48: 47 | B48: Indervægge | C48: Bærende indervægge | D48: Indervægge | E48: 150 mm indervæg mod bad, krydsfiner og fibergips med klinker | F48: Vandtætningsmembran, flydende | G48: 0 | H48: 0 | I48: 0 | J48: 0 | K48: 7.992 | L48: 0 | M48: 0 | N48: 0 | O48: 0 | P48: 0.0191736 | Q48: 0 | R48: 0 | S48: 8.0111736
A49: 48 | B49: Indervægge | C49: Bærende indervægge | D49: Indervægge | E49: 150 mm indervæg mod bad, krydsfiner og fibergips med klinker | F49: WISA Gran krydsfiner, ubehandlet, Fobrænding | G49: 1 | H49: 0 | I49: 0 | J49: 0 | K49: -53.91 | L49: 0 | M49: 0 | N49: 12.96 | O49: 0 | P49: 66.87 | Q49: 0 | R49: -70.38 | S49: 25.92
A50: 49 | B50: Indervægge | C50: Bærende indervægge | D50: Indervægge | E50: 45 mm indervæg mod skakt, krydsfiner | F50: Savede og tørrede konstruktionstræprodukter af fyr og gran, Fobrænding | G50: 0 | H50: 0 | I50: 0 | J50: 0 | K50: -74.8 | L50: 0 | M50: 0 | N50: 0 | O50: 0 | P50: 80.08 | Q50: 0 | R50: -40.81 | S50: 5.28
A51: 50 | B51: Indervægge | C51: Bærende indervægge | D51: Indervægge | E51: 45 mm indervæg mod skakt, krydsfiner | F51: WISA Gran krydsfiner, ubehandlet, Fobrænding | G51: 1 | H51: 0 | I51: 0 | J51: 0 | K51: -395.34 | L51: 0 | M51: 0 | N51: 95.04 | O51: 0 | P51: 490.38 | Q51: 0 | R51: -516.12 | S51: 190.08
A52: 51 | B52: Indervægge | C52: Bærende indervægge | D52: Indervægge | E52: 60 mm skunkvægge, krydsfiner | F52: Savede og tørrede konstruktionstræprodukter af fyr og gran, Fobrænding | G52: 0 | H52: 0 | I52: 0 | J52: 0 | K52: -95.2 | L52: 0 | M52: 0 | N52: 0 | O52: 0 | P52: 101.92 | Q52: 0 | R52: -51.94 | S52: 6.72
A53: 52 | B53: Indervægge | C53: Bærende indervægge | D53: Indervægge | E53: 60 mm skunkvægge, krydsfiner | F53: WISA Gran krydsfiner, ubehandlet, Fobrænding | G53: 1 | H53: 0 | I53: 0 | J53: 0 | K53: -179.7 | L53: 0 | M53: 0 | N53: 43.2 | O53: 0 | P53: 222.9 | Q53: 0 | R53: -234.6 | S53: 86.4
A54: 53 | B54: Indervægge | C54: Bærende indervægge | D54: Indervægge | E54: 80 mm indervæg, krydsfiner | F54: Savede og tørrede konstruktionstræprodukter af fyr og gran, Fobrænding | G54: 0 | H54: 0 | I54: 0 | J54: 0 | K54: -15.3 | L54: 0 | M54: 0 | N54: 0 | O54: 0 | P54: 16.38 | Q54: 0 | R54: -8.3475 | S54: 1.08
A55: 54 | B55: Indervægge | C55: Bærende indervægge | D55: Indervægge | E55: 80 mm indervæg, krydsfiner | F55: Træfiberisolering (bats), kl. 38 - Hunton | G55: 0 | H55: 0 | I55: 0 | J55: 0 | K55: -7.9815 | L55: 0 | M55: 0 | N55: 0 | O55: 0 | P55: 9.83025 | Q55: 0.000835125 | R55: -0.6783 | S55: 1.849585125
A56: 55 | B56: Indervægge | C56: Bærende indervægge | D56: Indervægge | E56: 80 mm indervæg, krydsfiner | F56: WISA Gran krydsfiner, ubehandlet, Fobrænding | G56: 1 | H56: 0 | I56: 0 | J56: 0 | K56: -26.955 | L56: 0 | M56: 0 | N56: 6.48 | O56: 0 | P56: 33.435 | Q56: 0 | R56: -35.19 | S56: 12.96
A57: 56 | B57: Indervægge | C57: Bærende indervægge | D57: Indervægge | E57: 80 mm indervæg, krydsfiner | F57: WISA Gran krydsfiner, ubehandlet, Fobrænding | G57: 1 | H57: 0 | I57: 0 | J57: 0 | K57: -26.955 | L57: 0 | M57: 0 | N57: 6.48 | O57: 0 | P57: 33.435 | Q57: 0 | R57: -35.19 | S57: 12.96
A58: 57 | B58: Indervægge | C58: Bærende indervægge | D58: Indervægge | E58: Klinkebeklædning på badeværelse | F58: Keramikfliser, glaseret | G58: 0 | H58: 0 | I58: 0 | J58: 0 | K58: 80.33597 | L58: 0 | M58: 0 | N58: 0 | O58: 0 | P58: 1.907672 | Q58: 0 | R58: -0.5340348 | S58: 82.243642
A59: 58 | B59: Indervægge | C59: Bærende indervægge | D59: Indervægge | E59: Klinkebeklædning på badeværelse | F59: Mørtel, fliseklæber | G59: 0 | H59: 0 | I59: 0 | J59: 0 | K59: 14.4365312 | L59: 0 | M59: 0 | N59: 0 | O59: 0 | P59: 0 | Q59: 0.68097952 | R59: -0.1187784 | S59: 15.11751072
A60: 59 | B60: Indervægge | C60: Bærende indervægge | D60: Indervægge | E60: Klinkebeklædning på badeværelse | F60: Vandtætningsmembran, flydende | G60: 0 | H60: 0 | I60: 0 | J60: 0 | K60: 17.316 | L60: 0 | M60: 0 | N60: 0 | O60: 0 | P60: 0.0415428 | Q60: 0 | R60: 0 | S60: 17.3575428
A61: 60 | B61: Søjler og bjælker | C61: Søjler | D61: Træsøjle | E61: Limtræssøjle 140 x 140 mm | F61: Limtræs-produkter af fyr og gran, Fobrænding | G61: 0 | H61: 0 | I61: 0 | J61: 0 | K61: -63.44 | L61: 0 | M61: 0 | N61: 0 | O61: 0 | P61: 77.272 | Q61: 0 | R61: -41.08 | S61: 13.832
A62: 61 | B62: Tage | C62: Tage | D62: Tag, trækassette | E62: Tagkassette, ståltag | F62: Asfaltimprægneret porøs træfiberplade, 18 mm - Hunton Undertag | G62: 0 | H62: 0 | I62: 0 | J62: 0 | K62: -800.7651 | L62: 0 | M62: 0 | N62: 0 | O62: 0 | P62: 1421.0109 | Q62: 0.1928625 | R62: -22.0202688 | S62: 620.4386625
A63: 62 | B63: Tage | C63: Tage | D63: Tag, trækassette | E63: Tagkassette, ståltag | F63: Dampspærre PE (tykkelse 0,0002 m) | G63: 0 | H63: 0 | I63: 0 | J63: 0 | K63: 44.333844 | L63: 0 | M63: 0 | N63: 0 | O63: 0 | P63: 61.710561 | Q63: 0 | R63: -30.465282 | S63: 106.044405
A64: 63 | B64: Tage | C64: Tage | D64: Tag, trækassette | E64: Tagkassette, ståltag | F64: Fermacell fiberplade 12,5 mm | G64: 0 | H64: 0 | I64: 0 | J64: 0 | K64: 253.08 | L64: 0 | M64: 0 | N64: 0 | O64: 0 | P64: 0 | Q64: 44.6687643 | R64: 0 | S64: 297.7487643
A65: 64 | B65: Tage | C65: Tage | D65: Tag, trækassette | E65: Tagkassette, ståltag | F65: Galvaniseret stålplade - Plannja | G65: 0 | H65: 0 | I65: 0 | J65: 0 | K65: 1587.3 | L65: 0 | M65: 0 | N65: 0 | O65: 0 | P65: 1.483515 | Q65: 0.4768005 | R65: -860.805 | S65: 1589.260315
A66: 65 | B66: Tage | C66: Tage | D66: Tag, trækassette | E66: Tagkassette, ståltag | F66: OSB-plade | G66: 0 | H66: 0 | I66: 0 | J66: 0 | K66: -1144.266588 | L66: 0 | M66: 0 | N66: 0 | O66: 0 | P66: 2160.033804 | Q66: 0 | R66: -627.2109612 | S66: 1015.767216
A67: 66 | B67: Tage | C67: Tage | D67: Tag, trækassette | E67: Tagkassette, ståltag | F67: Papirisolering kl 37 - ISOCELL | G67: 0 | H67: 0 | I67: 0 | J67: 0 | K67: -1856.808 | L67: 0 | M67: 0 | N67: 0 | O67: 0 | P67: 2188.92 | Q67: 0 | R67: -674.7912 | S67: 332.112
A68: 67 | B68: Tage | C68: Tage | D68: Tag, trækassette | E68: Tagkassette, ståltag | F68: Papirisolering kl 37 - ISOCELL | G68: 0 | H68: 0 | I68: 0 | J68: 0 | K68: -245.754 | L68: 0 | M68: 0 | N68: 0 | O68: 0 | P68: 289.71 | Q68: 0 | R68: -89.3106 | S68: 43.956
A69: 68 | B69: Tage | C69: Tage | D69: Tag, trækassette | E69: Tagkassette, ståltag | F69: Savede og tørrede konstruktionstræprodukter af fyr og gran, Fobrænding | G69: 0 | H69: 0 | I69: 0 | J69: 0 | K69: -528.36 | L69: 0 | M69: 0 | N69: 0 | O69: 0 | P69: 565.656 | Q69: 0 | R69: -288.267 | S69: 37.296
A70: 69 | B70: Tage | C70: Tage | D70: Tag, trækassette | E70: Tagkassette, ståltag | F70: Savede og tørrede konstruktionstræprodukter af fyr og gran, Fobrænding | G70: 0 | H70: 0 | I70: 0 | J70: 0 | K70: -0.3310526316 | L70: 0 | M70: 0 | N70: 0 | O70: 0 | P70: 0.3544210526 | Q70: 0 | R70: -0.1806184211 | S70: 0.02336842105
A71: 70 | B71: Tage | C71: Tage | D71: Tag, trækassette | E71: Tagkassette, ståltag | F71: Savede og tørrede konstruktionstræprodukter af fyr og gran, Fobrænding | G71: 0 | H71: 0 | I71: 0 | J71: 0 | K71: -603.84 | L71: 0 | M71: 0 | N71: 0 | O71: 0 | P71: 646.464 | Q71: 0 | R71: -329.448 | S71: 42.624
A72: 71 | B72: Tage | C72: Tage | D72: Tag, trækassette | E72: Tagkassette, ståltag | F72: Savede og tørrede konstruktionstræprodukter af fyr og gran, Fobrænding | G72: 0 | H72: 0 | I72: 0 | J72: 0 | K72: -3321.12 | L72: 0 | M72: 0 | N72: 0 | O72: 0 | P72: 3555.552 | Q72: 0 | R72: -1811.964 | S72: 234.432
A73: 72 | B73: Tage | C73: Tage | D73: Tag, trækassette | E73: Tagkassette, ståltag | F73: Savede og tørrede konstruktionstræprodukter af fyr og gran, Fobrænding | G73: 0 | H73: 0 | I73: 0 | J73: 0 | K73: -528.36 | L73: 0 | M73: 0 | N73: 0 | O73: 0 | P73: 565.656 | Q73: 0 | R73: -288.267 | S73: 37.296
A74: 73 | B74: Tage | C74: Tage | D74: Tag, trækassette | E74: Tagkassette, tagpap | F74: Dampspærre PE (tykkelse 0,0002 m) | G74: 0 | H74: 0 | I74: 0 | J74: 0 | K74: 5.99106 | L74: 0 | M74: 0 | N74: 0 | O74: 0 | P74: 8.339265 | Q74: 0 | R74: -4.11693 | S74: 14.330325
A75: 74 | B75: Tage | C75: Tage | D75: Tag, trækassette | E75: Tagkassette, tagpap | F75: Derbigum NT | G75: 1 | H75: 0 | I75: 0 | J75: 0 | K75: 46.8 | L75: 0 | M75: 0 | N75: 51.481515 | O75: 0 | P75: 4.68 | Q75: 0.001515 | R75: -13.29 | S75: 102.96303
A76: 75 | B76: Tage | C76: Tage | D76: Tag, trækassette | E76: Tagkassette, tagpap | F76: Fermacell fiberplade 12,5 mm | G76: 0 | H76: 0 | I76: 0 | J76: 0 | K76: 34.2 | L76: 0 | M76: 0 | N76: 0 | O76: 0 | P76: 0 | Q76: 6.0363195 | R76: 0 | S76: 40.2363195
A77: 76 | B77: Tage | C77: Tage | D77: Tag, trækassette | E77: Tagkassette, tagpap | F77: Papirisolering kl 37 - ISOCELL | G77: 0 | H77: 0 | I77: 0 | J77: 0 | K77: -250.92 | L77: 0 | M77: 0 | N77: 0 | O77: 0 | P77: 295.8 | Q77: 0 | R77: -91.188 | S77: 44.88
A78: 77 | B78: Tage | C78: Tage | D78: Tag, trækassette | E78: Tagkassette, tagpap | F78: Papirisolering kl 37 - ISOCELL | G78: 0 | H78: 0 | I78: 0 | J78: 0 | K78: -33.21 | L78: 0 | M78: 0 | N78: 0 | O78: 0 | P78: 39.15 | Q78: 0 | R78: -12.069 | S78: 5.94
A79: 78 | B79: Tage | C79: Tage | D79: Tag, trækassette | E79: Tagkassette, tagpap | F79: Savede og tørrede konstruktionstræprodukter af fyr og gran, Fobrænding | G79: 0 | H79: 0 | I79: 0 | J79: 0 | K79: -112.2 | L79: 0 | M79: 0 | N79: 0 | O79: 0 | P79: 120.12 | Q79: 0 | R79: -61.215 | S79: 7.92
A80: 79 | B80: Tage | C80: Tage | D80: Tag, trækassette | E80: Tagkassette, tagpap | F80: Savede og tørrede konstruktionstræprodukter af fyr og gran, Fobrænding | G80: 0 | H80: 0 | I80: 0 | J80: 0 | K80: -112.2 | L80: 0 | M80: 0 | N80: 0 | O80: 0 | P80: 120.12 | Q80: 0 | R80: -61.215 | S80: 7.92
A81: 80 | B81: Tage | C81: Tage | D81: Tag, trækassette | E81: Tagkassette, tagpap | F81: Savede og tørrede konstruktionstræprodukter af fyr og gran, Fobrænding | G81: 0 | H81: 0 | I81: 0 | J81: 0 | K81: -448.8 | L81: 0 | M81: 0 | N81: 0 | O81: 0 | P81: 480.48 | Q81: 0 | R81: -244.86 | S81: 31.68
A82: 81 | B82: Tage | C82: Tage | D82: Tag, trækassette | E82: Tagkassette, tagpap | F82: Savede og tørrede konstruktionstræprodukter af fyr og gran, Fobrænding | G82: 0 | H82: 0 | I82: 0 | J82: 0 | K82: -71.4 | L82: 0 | M82: 0 | N82: 0 | O82: 0 | P82: 76.44 | Q82: 0 | R82: -38.955 | S82: 5.04
A83: 82 | B83: Tage | C83: Tage | D83: Tag, trækassette | E83: Tagkassette, tagpap | F83: WISA Gran krydsfiner, ubehandlet, Fobrænding | G83: 0 | H83: 0 | I83: 0 | J83: 0 | K83: -188.685 | L83: 0 | M83: 0 | N83: 0 | O83: 0 | P83: 234.045 | Q83: 0 | R83: -123.165 | S83: 45.36
A84: 83 | B84: Tage | C84: Tage | D84: Tag, trækassette | E84: Tagkassette, tagpap | F84: WISA Gran krydsfiner, ubehandlet, Fobrænding | G84: 0 | H84: 0 | I84: 0 | J84: 0 | K84: -188.685 | L84: 0 | M84: 0 | N84: 0 | O84: 0 | P84: 234.045 | Q84: 0 | R84: -123.165 | S84: 45.36
A85: 84 | B85: Terrændæk | C85: Terrændæk | D85: Terrændæk, trækassette | E85: Gulv, vådrumsgulv, keramiske fliser | F85: Afretningslag, cementbaseret | G85: 0 | H85: 0 | I85: 0 | J85: 0 | K85: 110.1306 | L85: 0 | M85: 0 | N85: 0 | O85: 0 | P85: 0 | Q85: 9.0033 | R85: 0 | S85: 119.1339
A86: 85 | B86: Terrændæk | C86: Terrændæk | D86: Terrændæk, trækassette | E86: Gulv, vådrumsgulv, keramiske fliser | F86: EPS isolering til lofter / gulve og kælderydervæg / terrændæk 040 | G86: 0 | H86: 0 | I86: 0 | J86: 0 | K86: 0.807 | L86: 0 | M86: 0 | N86: 0 | O86: 0 | P86: 0 | Q86: 0.915 | R86: -0.4815 | S86: 1.722
A87: 86 | B87: Terrændæk | C87: Terrændæk | D87: Terrændæk, trækassette | E87: Gulv, vådrumsgulv, keramiske fliser | F87: Keramikfliser, glaseret | G87: 0 | H87: 0 | I87: 0 | J87: 0 | K87: 30.89845 | L87: 0 | M87: 0 | N87: 0 | O87: 0 | P87: 0.73372 | Q87: 0 | R87: -0.205398 | S87: 31.63217
A88: 87 | B88: Terrændæk | C88: Terrændæk | D88: Terrændæk, trækassette | E88: Gulv, vådrumsgulv, keramiske fliser | F88: Mørtel, fliseklæber | G88: 0 | H88: 0 | I88: 0 | J88: 0 | K88: 5.378996 | L88: 0 | M88: 0 | N88: 0 | O88: 0 | P88: 0 | Q88: 0.25373035 | R88: -0.044256375 | S88: 5.63272635
A89: 88 | B89: Terrændæk | C89: Terrændæk | D89: Terrændæk, trækassette | E89: Gulv, vådrumsgulv, keramiske fliser | F89: Vandtætningsmembran, flydende | G89: 0 | H89: 0 | I89: 0 | J89: 0 | K89: 6.66 | L89: 0 | M89: 0 | N89: 0 | O89: 0 | P89: 0.015978 | Q89: 0 | R89: 0 | S89: 6.675978
A90: 89 | B90: Terrændæk | C90: Terrændæk | D90: Terrændæk, trækassette | E90: Let trækassette, terræn | F90: Cembrit Windstopper Extreme, 9 mm | G90: 0 | H90: 0 | I90: 0 | J90: 0 | K90: 514.64 | L90: 0 | M90: 0 | N90: 0 | O90: 0 | P90: 0 | Q90: 10.416 | R90: 0 | S90: 525.056
A91: 90 | B91: Terrændæk | C91: Terrændæk | D91: Terrændæk, trækassette | E91: Let trækassette, terræn | F91: Dampspærre PE (tykkelse 0,0002 m) | G91: 0 | H91: 0 | I91: 0 | J91: 0 | K91: 22.366624 | L91: 0 | M91: 0 | N91: 0 | O91: 0 | P91: 31.133256 | Q91: 0 | R91: -15.369872 | S91: 53.49988
A92: 91 | B92: Terrændæk | C92: Terrændæk | D92: Terrændæk, trækassette | E92: Let trækassette, terræn | F92: Papirisolering kl 37 - ISOCELL | G92: 0 | H92: 0 | I92: 0 | J92: 0 | K92: -984.984 | L92: 0 | M92: 0 | N92: 0 | O92: 0 | P92: 1161.16 | Q92: 0 | R92: -357.9576 | S92: 176.176
A93: 92 | B93: Terrændæk | C93: Terrændæk | D93: Terrændæk, trækassette | E93: Let trækassette, terræn | F93: Savede og tørrede konstruktionstræprodukter af fyr og gran, Fobrænding | G93: 0 | H93: 0 | I93: 0 | J93: 0 | K93: -2094.4 | L93: 0 | M93: 0 | N93: 0 | O93: 0 | P93: 2242.24 | Q93: 0 | R93: -1142.68 | S93: 147.84
A94: 93 | B94: Terrændæk | C94: Terrændæk | D94: Terrændæk, trækassette | E94: Let trækassette, terræn | F94: Spaandex spånplader, Spaandex spånplader (DK) | G94: 0 | H94: 0 | I94: 0 | J94: 0 | K94: -1005.312 | L94: 0 | M94: 0 | N94: 0 | O94: 0 | P94: 1227.072 | Q94: 0 | R94: -680.8032 | S94: 221.76
A95: 94 | B95: Terrændæk | C95: Terrændæk | D95: Terrændæk, trækassette | E95: Trægulv terrændæk | F95: Trinlydsdug - Scan Underlay | G95: 0 | H95: 0 | I95: 0 | J95: 0 | K95: 23.506 | L95: 0 | M95: 0 | N95: 0 | O95: 0 | P95: 0 | Q95: 0.65887962 | R95: 0 | S95: 24.16487962
A96: 95 | B96: Terrændæk | C96: Terrændæk | D96: Terrændæk, trækassette | E96: Trægulv terrændæk | F96: Trægulv 14 mm ask - Tarkett Sverige | G96: 0 | H96: 0 | I96: 0 | J96: 0 | K96: -344.54 | L96: 0 | M96: 0 | N96: 0 | O96: 0 | P96: 0 | Q96: 556.6 | R96: 0 | S96: 212.06
A97: 96 | B97: Trapper og ramper | C97: Trapper og ramper | D97: Trappe | E97: Trætrappe pr. etage | F97: Savede og tørrede konstruktionstræprodukter af fyr og gran, Fobrænding | G97: 0 | H97: 0 | I97: 0 | J97: 0 | K97: -238.5964912 | L97: 0 | M97: 0 | N97: 0 | O97: 0 | P97: 255.4385965 | Q97: 0 | R97: -130.1754386 | S97: 16.84210526
A98: 97 | B98: Trapper og ramper | C98: Trapper og ramper | D98: Trappe | E98: Trætrappe pr. etage | F98: Trægulv 14 mm ask - Tarkett Sverige | G98: 0 | H98: 0 | I98: 0 | J98: 0 | K98: -67.41 | L98: 0 | M98: 0 | N98: 0 | O98: 0 | P98: 0 | Q98: 108.9 | R98: 0 | S98: 41.49
A99: 98 | B99: Trapper og ramper | C99: Trapper og ramper | D99: Trappe | E99: Trætrappe pr. etage | F99: WISA Gran krydsfiner, ubehandlet, Fobrænding | G99: 0 | H99: 0 | I99: 0 | J99: 0 | K99: -53.91 | L99: 0 | M99: 0 | N99: 0 | O99: 0 | P99: 66.87 | Q99: 0 | R99: -35.19 | S99: 12.96
A100: 99 | B100: Vand | C100: Vandrør | D100: Vandrør | E100: Rustfrit stålrør | F100: Brugsvandsrør, rustfri stål | G100: 0 | H100: 0 | I100: 0 | J100: 0 | K100: 138.80958 | L100: 0 | M100: 0 | N100: 0 | O100: 0 | P100: 0 | Q100: 0.02660073 | R100: -103.88703 | S100: 138.8361807
A101: 100 | B101: Vand | C101: Varmtvandsbeholder | D101: VVB og buffertank | E101: Metroair 330, indedel til VP | F101: Buffertank, rustfri stål | G101: 1 | H101: 0 | I101: 0 | J101: 0 | K101: 892.8282 | L101: 0 | M101: 0 | N101: 1038.7861 | O101: 0 | P101: 145.9579 | Q101: 0 | R101: -529.3112 | S101: 2077.5722
A102: 101 | B102: Varme | C102: Andet (varme) | D102: Pumpe | E102: Magna3 25-40 | F102: Magna3 25-(40/60/80/100/120) | G102: 1 | H102: 0 | I102: 0 | J102: 0 | K102: 51.3 | L102: 0 | M102: 0 | N102: 54.6426 | O102: 0 | P102: 3.33 | Q102: 0.0126 | R102: -3.6 | S102: 109.2852
A103: 102 | B103: Varme | C103: Radiatorer | D103: Radiator | E103: Radiator, 142/2000 | F103: Panel radiator 500mm x 700mm - Lyngson | G103: 1 | H103: 0 | I103: 0 | J103: 0 | K103: 33.76354284 | L103: 0 | M103: 0 | N103: 33.76434291 | O103: 0 | P103: 0 | Q103: 0.000800068571 | R103: -59.88342854 | S103: 67.52868582
A104: 103 | B104: Varme | C104: Radiatorer | D104: Radiator | E104: Radiator, 200/1000 | F104: Panel radiator 500mm x 700mm - Lyngson | G104: 1 | H104: 0 | I104: 0 | J104: 0 | K104: 47.55428568 | L104: 0 | M104: 0 | N104: 47.55541254 | O104: 0 | P104: 0 | Q104: 0.001126857142 | R104: -84.34285708 | S104: 95.11082507
A105: 104 | B105: Varme | C105: Radiatorer | D105: Radiator | E105: Radiator, 200/1100 | F105: Panel radiator 500mm x 700mm - Lyngson | G105: 1 | H105: 0 | I105: 0 | J105: 0 | K105: 26.15485716 | L105: 0 | M105: 0 | N105: 26.15547693 | O105: 0 | P105: 0 | Q105: 0.000619771429 | R105: -46.38857146 | S105: 52.31095386
A106: 105 | B106: Varme | C106: Radiatorer | D106: Radiator | E106: Radiator, 200/2000 | F106: Panel radiator 500mm x 700mm - Lyngson | G106: 1 | H106: 0 | I106: 0 | J106: 0 | K106: 95.10857144 | L106: 0 | M106: 0 | N106: 95.11082515 | O106: 0 | P106: 0 | Q106: 0.002253714286 | R106: -168.6857143 | S106: 190.2216503
A107: 106 | B107: Varme | C107: Radiatorer | D107: Radiator | E107: Radiator, 200/600 | F107: Panel radiator 500mm x 700mm - Lyngson | G107: 1 | H107: 0 | I107: 0 | J107: 0 | K107: 14.26628572 | L107: 0 | M107: 0 | N107: 14.26662378 | O107: 0 | P107: 0 | Q107: 0.000338057143 | R107: -25.30285715 | S107: 28.53324755
A108: 107 | B108: Varme | C108: Radiatorer | D108: Radiator | E108: Radiator, 300/400 | F108: Panel radiator 500mm x 700mm - Lyngson | G108: 1 | H108: 0 | I108: 0 | J108: 0 | K108: 14.26628572 | L108: 0 | M108: 0 | N108: 14.26662378 | O108: 0 | P108: 0 | Q108: 0.000338057143 | R108: -25.30285715 | S108: 28.53324755
A109: 108 | B109: Varme | C109: Radiatorer | D109: Radiator | E109: Radiator, 600/900 | F109: Panel radiator 500mm x 700mm - Lyngson | G109: 1 | H109: 0 | I109: 0 | J109: 0 | K109: 64.19828572 | L109: 0 | M109: 0 | N109: 64.19980698 | O109: 0 | P109: 0 | Q109: 0.001521257143 | R109: -113.8628572 | S109: 128.399614
A110: 109 | B110: Varme | C110: Varmeforsyningsanlæg | D110: Varmepumpe | E110: Varmepumpe luft til vand | F110: Varmepumpe (luft-vand) 10 kW | G110: 1 | H110: 0 | I110: 0 | J110: 0 | K110: 284.57442 | L110: 0 | M110: 0 | N110: 305.8821212 | O110: 0 | P110: 18.65301 | Q110: 2.6546912 | R110: -299.48604 | S110: 611.7642424
A111: 110 | B111: Varme | C111: Varmerør | D111: Varmerør | E111: Press rør | F111: Brugsvandsrør, rustfri stål | G111: 0 | H111: 0 | I111: 0 | J111: 0 | K111: 447.9456331 | L111: 0 | M111: 0 | N111: 0 | O111: 0 | P111: 0 | Q111: 0.08584191985 | R111: -335.2487734 | S111: 448.031475
A112: 111 | B112: Ventilation og køl | C112: Ventilationskanaler | D112: Afkast emhætte | E112: Ventilationskanaler Ø125, enfamiliehuse og etageboliger, central | F112: Ventilationskanal, galvaniseret stål | G112: 0 | H112: 0 | I112: 0 | J112: 0 | K112: 4.6470105 | L112: 0 | M112: 0 | N112: 0 | O112: 0 | P112: 0.00249637925 | Q112: 0 | R112: -2.419382 | S112: 4.649506879
A113: 112 | B113: Vinduer, døre, glasfacader | C113: Døre | D113: Indvendige døre | E113: Dør, indvendig | F113: Fastgørelsesmidler/skruer i galvaniseret stål | G113: 0 | H113: 0 | I113: 0 | J113: 0 | K113: 14.22004 | L113: 0 | M113: 0 | N113: 0 | O113: 0 | P113: 0 | Q113: 0.00272828 | R113: -7.24248 | S113: 14.22276828
A114: 113 | B114: Vinduer, døre, glasfacader | C114: Døre | D114: Indvendige døre | E114: Dør, indvendig | F114: Overflade, Indendørsmaling, emulsions maling, slidstærk | G114: 0 | H114: 0 | I114: 0 | J114: 0 | K114: 3.7483589 | L114: 0 | M114: 0 | N114: 0 | O114: 0 | P114: 0 | Q114: 0.021457865 | R114: -0.01547689 | S114: 3.769816765
A115: 114 | B115: Vinduer, døre, glasfacader | C115: Døre | D115: Indvendige døre | E115: Dør, indvendig | F115: Spånplade | G115: 0 | H115: 0 | I115: 0 | J115: 0 | K115: -164.7348686 | L115: 0 | M115: 0 | N115: 0 | O115: 0 | P115: 239.1972 | Q115: 0 | R115: -0.5533232571 | S115: 74.46233143
A116: 115 | B116: Vinduer, døre, glasfacader | C116: Døre | D116: Indvendige døre | E116: Dør, indvendig | F116: Træ, fyrretræ (12% fugt / 10,7% H2O) | G116: 0 | H116: 0 | I116: 0 | J116: 0 | K116: -57.07937318 | L116: 0 | M116: 0 | N116: 0 | O116: 0 | P116: 71.79657434 | Q116: 0 | R116: -18.97478134 | S116: 14.71720117
A117: 116 | B117: Vinduer, døre, glasfacader | C117: Døre | D117: Udvendig dør | E117: Udvendig dør, træ | F117: Grå støbejern | G117: 0 | H117: 0 | I117: 0 | J117: 0 | K117: 0.1717128 | L117: 0 | M117: 0 | N117: 0 | O117: 0 | P117: 0 | Q117: 7.161735e-05 | R117: -0.041265 | S117: 0.1717844173
A118: 117 | B118: Vinduer, døre, glasfacader | C118: Døre | D118: Udvendig dør | E118: Udvendig dør, træ | F118: Høvlede konstruktionstræsprodukter af fyr og gran, Fobrænding | G118: 0 | H118: 0 | I118: 0 | J118: 0 | K118: -5.029407895 | L118: 0 | M118: 0 | N118: 0 | O118: 0 | P118: 5.464789474 | Q118: 0 | R118: -2.784940789 | S118: 0.4353815789
A119: 118 | B119: Vinduer, døre, glasfacader | C119: Døre | D119: Udvendig dør | E119: Udvendig dør, træ | F119: Savede og tørrede konstruktionstræprodukter af fyr og gran, Fobrænding | G119: 1 | H119: 0 | I119: 0 | J119: 0 | K119: -70.55447368 | L119: 0 | M119: 0 | N119: 4.980315789 | O119: 0 | P119: 75.53478947 | Q119: 0 | R119: -76.98738158 | S119: 9.960631579
A120: 119 | B120: Vinduer, døre, glasfacader | C120: Vinduer | D120: Facadevinduer | E120: Facadevinduer | F120: 3-lags-rude | G120: 0 | H120: 0 | I120: 0 | J120: 0 | K120: 0 | L120: 0 | M120: 0 | N120: 1080.34762 | O120: 0 | P120: 56.750012 | Q120: 9.183383 | R120: -26.281541 | S120: 1146.281015
A121: 120 | B121: Vinduer, døre, glasfacader | C121: Vinduer | D121: Facadevinduer | E121: Facadevinduer | F121: Trævindue med 3-lags rude | G121: 0 | H121: 0 | I121: 0 | J121: 0 | K121: 953.26 | L121: 0 | M121: 0 | N121: 0 | O121: 0 | P121: 415.8 | Q121: 22.44 | R121: -378.4 | S121: 1391.5
A122: 121 | B122: Vinduer, døre, glasfacader | C122: Vinduer | D122: Ovenlys | E122: Velux GGL ovenlys m. aluinddækning, 3-lagsrude (træ) | F122: 3-lags-rude | G122: 0 | H122: 0 | I122: 0 | J122: 0 | K122: 0 | L122: 0 | M122: 0 | N122: 441.96039 | O122: 0 | P122: 23.215914 | Q122: 3.7568385 | R122: -10.7515395 | S122: 468.9331425
A123: 122 | B123: Vinduer, døre, glasfacader | C123: Vinduer | D123: Ovenlys | E123: Velux GGL ovenlys m. aluinddækning, 3-lagsrude (træ) | F123: Velux GGL ovenlys m. aluinddækning, 3-lagsrude (træ) | G123: 0 | H123: 0 | I123: 0 | J123: 0 | K123: 657.9 | L123: 0 | M123: 0 | N123: 0 | O123: 0 | P123: 2.241 | Q123: 55.8 | R123: 0 | S123: 715.941
A124: 123 | B124: Vinduer, døre, glasfacader | C124: Vinduer | D124: Ovenlys | E124: Velux modular skylight, 3-lagsrude | F124: 3-lags-rude | G124: 0 | H124: 0 | I124: 0 | J124: 0 | K124: 0 | L124: 0 | M124: 0 | N124: 98.21342 | O124: 0 | P124: 5.159092 | Q124: 0.834853 | R124: -2.389231 | S124: 104.207365
A125: 124 | B125: Vinduer, døre, glasfacader | C125: Vinduer | D125: Ovenlys | E125: Velux modular skylight, 3-lagsrude | F125: Velux modular skylight, 3-lagsrude | G125: 0 | H125: 0 | I125: 0 | J125: 0 | K125: 390.86 | L125: 0 | M125: 0 | N125: 0 | O125: 0 | P125: 6.98 | Q125: 2.64 | R125: -55 | S125: 400.48
A126: 125 | B126: Ydervægge | C126: Ydervægge | D126: Ydervæg, trækassette | E126: Facadekassette uden beklædning | F126: Cembrit Windstopper Extreme, 9 mm | G126: 0 | H126: 0 | I126: 0 | J126: 0 | K126: 1360.12 | L126: 0 | M126: 0 | N126: 0 | O126: 0 | P126: 0 | Q126: 27.528 | R126: 0 | S126: 1387.648
A127: 126 | B127: Ydervægge | C127: Ydervægge | D127: Ydervæg, trækassette | E127: Facadekassette uden beklædning | F127: Dampspærre PE (tykkelse 0,0002 m) | G127: 0 | H127: 0 | I127: 0 | J127: 0 | K127: 59.111792 | L127: 0 | M127: 0 | N127: 0 | O127: 0 | P127: 82.280748 | Q127: 0 | R127: -40.620376 | S127: 141.39254
A128: 127 | B128: Ydervægge | C128: Ydervægge | D128: Ydervæg, trækassette | E128: Facadekassette uden beklædning | F128: Fermacell fiberplade 12,5 mm | G128: 0 | H128: 0 | I128: 0 | J128: 0 | K128: 337.44 | L128: 0 | M128: 0 | N128: 0 | O128: 0 | P128: 0 | Q128: 59.5583524 | R128: 0 | S128: 396.9983524
A129: 128 | B129: Ydervægge | C129: Ydervægge | D129: Ydervæg, trækassette | E129: Facadekassette uden beklædning | F129: OSB-plade | G129: 0 | H129: 0 | I129: 0 | J129: 0 | K129: -1525.688784 | L129: 0 | M129: 0 | N129: 0 | O129: 0 | P129: 2880.045072 | Q129: 0 | R129: -836.2812816 | S129: 1354.356288
A130: 129 | B130: Ydervægge | C130: Ydervægge | D130: Ydervæg, trækassette | E130: Facadekassette uden beklædning | F130: Papirisolering kl 37 - ISOCELL | G130: 0 | H130: 0 | I130: 0 | J130: 0 | K130: -2275.5 | L130: 0 | M130: 0 | N130: 0 | O130: 0 | P130: 2682.5 | Q130: 0 | R130: -826.95 | S130: 407
A131: 130 | B131: Ydervægge | C131: Ydervægge | D131: Ydervæg, trækassette | E131: Facadekassette uden beklædning | F131: Papirisolering kl 37 - ISOCELL | G131: 0 | H131: 0 | I131: 0 | J131: 0 | K131: -347.6964 | L131: 0 | M131: 0 | N131: 0 | O131: 0 | P131: 409.886 | Q131: 0 | R131: -126.35796 | S131: 62.1896
A132: 131 | B132: Ydervægge | C132: Ydervægge | D132: Ydervæg, trækassette | E132: Facadekassette uden beklædning | F132: Savede og tørrede konstruktionstræprodukter af fyr og gran, Fobrænding | G132: 0 | H132: 0 | I132: 0 | J132: 0 | K132: -4428.16 | L132: 0 | M132: 0 | N132: 0 | O132: 0 | P132: 4740.736 | Q132: 0 | R132: -2415.952 | S132: 312.576
A133: 132 | B133: Ydervægge | C133: Ydervægge | D133: Ydervæg, trækassette | E133: Facadekassette uden beklædning | F133: Savede og tørrede konstruktionstræprodukter af fyr og gran, Fobrænding | G133: 0 | H133: 0 | I133: 0 | J133: 0 | K133: -704.48 | L133: 0 | M133: 0 | N133: 0 | O133: 0 | P133: 754.208 | Q133: 0 | R133: -384.356 | S133: 49.728
A134: 133 | B134: Ydervægge | C134: Ydervægge | D134: Ydervæg, trækassette | E134: Tilbagetrukket facadekassette uden beklædning | F134: Cembrit Windstopper Extreme, 9 mm | G134: 0 | H134: 0 | I134: 0 | J134: 0 | K134: 82.71 | L134: 0 | M134: 0 | N134: 0 | O134: 0 | P134: 0 | Q134: 1.674 | R134: 0 | S134: 84.384
A135: 134 | B135: Ydervægge | C135: Ydervægge | D135: Ydervæg, trækassette | E135: Tilbagetrukket facadekassette uden beklædning | F135: Dampspærre PE (tykkelse 0,0002 m) | G135: 0 | H135: 0 | I135: 0 | J135: 0 | K135: 3.594636 | L135: 0 | M135: 0 | N135: 0 | O135: 0 | P135: 5.003559 | Q135: 0 | R135: -2.470158 | S135: 8.598195
A136: 135 | B136: Ydervægge | C136: Ydervægge | D136: Ydervæg, trækassette | E136: Tilbagetrukket facadekassette uden beklædning | F136: Fermacell fiberplade 12,5 mm | G136: 0 | H136: 0 | I136: 0 | J136: 0 | K136: 20.52 | L136: 0 | M136: 0 | N136: 0 | O136: 0 | P136: 0 | Q136: 3.6217917 | R136: 0 | S136: 24.1417917
A137: 136 | B137: Ydervægge | C137: Ydervægge | D137: Ydervæg, trækassette | E137: Tilbagetrukket facadekassette uden beklædning | F137: OSB-plade | G137: 0 | H137: 0 | I137: 0 | J137: 0 | K137: -92.778372 | L137: 0 | M137: 0 | N137: 0 | O137: 0 | P137: 175.137876 | Q137: 0 | R137: -50.8549428 | S137: 82.359504
A138: 137 | B138: Ydervægge | C138: Ydervægge | D138: Ydervæg, trækassette | E138: Tilbagetrukket facadekassette uden beklædning | F138: Papirisolering kl 37 - ISOCELL | G138: 0 | H138: 0 | I138: 0 | J138: 0 | K138: -91.881 | L138: 0 | M138: 0 | N138: 0 | O138: 0 | P138: 108.315 | Q138: 0 | R138: -33.3909 | S138: 16.434
A139: 138 | B139: Ydervægge | C139: Ydervægge | D139: Ydervæg, trækassette | E139: Tilbagetrukket facadekassette uden beklædning | F139: Papirisolering kl 37 - ISOCELL | G139: 0 | H139: 0 | I139: 0 | J139: 0 | K139: -21.1437 | L139: 0 | M139: 0 | N139: 0 | O139: 0 | P139: 24.9255 | Q139: 0 | R139: -7.68393 | S139: 3.7818
A140: 139 | B140: Ydervægge | C140: Ydervægge | D140: Ydervæg, trækassette | E140: Tilbagetrukket facadekassette uden beklædning | F140: Savede og tørrede konstruktionstræprodukter af fyr og gran, Fobrænding | G140: 0 | H140: 0 | I140: 0 | J140: 0 | K140: -177.48 | L140: 0 | M140: 0 | N140: 0 | O140: 0 | P140: 190.008 | Q140: 0 | R140: -96.831 | S140: 12.528
A141: 140 | B141: Ydervægge | C141: Ydervægge | D141: Ydervæg, trækassette | E141: Tilbagetrukket facadekassette uden beklædning | F141: Savede og tørrede konstruktionstræprodukter af fyr og gran, Fobrænding | G141: 0 | H141: 0 | I141: 0 | J141: 0 | K141: -42.84 | L141: 0 | M141: 0 | N141: 0 | O141: 0 | P141: 45.864 | Q141: 0 | R141: -23.373 | S141: 3.024
A142: 141 | B142: Ydervægge | C142: Ydervægge | D142: Ydervæg, trækassette | E142: Træbeklædning med ophæng | F142: Savede og tørrede konstruktionstræprodukter af fyr og gran, Fobrænding | G142: 0 | H142: 0 | I142: 0 | J142: 0 | K142: -201.28 | L142: 0 | M142: 0 | N142: 0 | O142: 0 | P142: 215.488 | Q142: 0 | R142: -109.816 | S142: 14.208
A143: 142 | B143: Ydervægge | C143: Ydervægge | D143: Ydervæg, trækassette | E143: Træbeklædning med ophæng | F143: Savede og tørrede konstruktionstræprodukter af fyr og gran, Fobrænding | G143: 0 | H143: 0 | I143: 0 | J143: 0 | K143: -402.56 | L143: 0 | M143: 0 | N143: 0 | O143: 0 | P143: 430.976 | Q143: 0 | R143: -219.632 | S143: 28.416
A144: 143 | B144: Ydervægge | C144: Ydervægge | D144: Ydervæg, trækassette | E144: Træbeklædning med ophæng | F144: Træbeklædning 19 mm, ubehandlet gran - InnTre Kjeldstad AS | G144: 1 | H144: 0 | I144: 0 | J144: 0 | K144: -2060.604 | L144: 0 | M144: 0 | N144: 392.6660816 | O144: 0 | P144: 2453.1 | Q144: 0.1700816 | R144: -275.07428 | S144: 785.3321632
A145: 144 | B145: Ydervægge | C145: Ydervægge | D145: Ydervæg, trækassette | E145: Træbeklædning tilbagetrukket med ophæng | F145: Savede og tørrede konstruktionstræprodukter af fyr og gran, Fobrænding | G145: 0 | H145: 0 | I145: 0 | J145: 0 | K145: -12.24 | L145: 0 | M145: 0 | N145: 0 | O145: 0 | P145: 13.104 | Q145: 0 | R145: -6.678 | S145: 0.864
A146: 145 | B146: Ydervægge | C146: Ydervægge | D146: Ydervæg, trækassette | E146: Træbeklædning tilbagetrukket med ophæng | F146: Savede og tørrede konstruktionstræprodukter af fyr og gran, Fobrænding | G146: 0 | H146: 0 | I146: 0 | J146: 0 | K146: -24.48 | L146: 0 | M146: 0 | N146: 0 | O146: 0 | P146: 26.208 | Q146: 0 | R146: -13.356 | S146: 1.728
A147: 146 | B147: Ydervægge | C147: Ydervægge | D147: Ydervæg, trækassette | E147: Træbeklædning tilbagetrukket med ophæng | F147: Træbeklædning 19 mm, ubehandlet gran - InnTre Kjeldstad AS | G147: 1 | H147: 0 | I147: 0 | J147: 0 | K147: -125.307 | L147: 0 | M147: 0 | N147: 23.8783428 | O147: 0 | P147: 149.175 | Q147: 0.0103428 | R147: -16.72749 | S147: 47.7566856

Sheet Flet (hidden)
A1: Indeks | B1: Gruppe | C1: Undergruppe | D1: Bygningsdel | E1: Konstruktion | F1: Byggevare | G1: Indtastet mængde | H1: Column4 | I1: Beregnet mængde | J1: Column6 | K1: Vægt | L1: Column8 | M1: Udskiftninger | N1: GWP ex_c3 | O1: GWP ex_c4 | P1: GWP ex_d | Q1: GWP a1_3 | R1: GWP a4 | S1: GWP a5 | T1: GWP b4 | U1: GWP b6 | V1: GWP c3 | W1: GWP c4 | X1: GWP d | Y1: GWP sum
A2: 1 | B2: Altaner og altangange | C2: Altanbund | D2: Altaner | E2: Altaner, 1500x3000 | F2: Stålprofil | G2: 759 | H2: kg/stk. | I2: 46299 | J2: kg | K2: 46299 | L2: kg | M2: 0 | N2: 0 | O2: 0 | P2: 0 | Q2: 59854.29158 | R2: 0 | S2: 0 | T2: 0 | U2: 0 | V2: 0 | W2: 41.05290661 | X2: -23654.1591 | Y2: 59895.34449
A3: 2 | B3: Altaner og altangange | C3: Altanbund | D3: Altaner | E3: Altaner, 1500x3250 | F3: Stålprofil | G3: 803 | H3: kg/stk. | I3: 8030 | J3: kg | K3: 8030 | L3: kg | M3: 0 | N3: 0 | O3: 0 | P3: 0 | Q3: 10381.00092 | R3: 0 | S3: 0 | T3: 0 | U3: 0 | V3: 0 | W3: 7.12012873 | X3: -4102.527 | Y3: 10388.12104
A4: 3 | B4: Andet | C4: Andet | D4: Badekabine | E4: Badekabine, let | F4: Armeringsnet | G4: 24.2 | H4: kg/stk. | I4: 1476.2 | J4: kg | K4: 1476.2 | L4: kg | M4: 0 | N4: 0 | O4: 0 | P4: 0 | Q4: 1311.399246 | R4: 0 | S4: 0 | T4: 0 | U4: 0 | V4: 0 | W4: 1.308933254 | X4: -754.19058 | Y4: 1312.70818
A5: 4 | B5: Andet | C5: Andet | D5: Badekabine | E5: Badekabine, let | F5: EPS 30 kg/m3 | G5: 3 | H5: kg/stk. | I5: 6.1 | J5: m³ | K5: 183 | L5: kg | M5: 0 | N5: 0 | O5: 0 | P5: 0 | Q5: 631.4781 | R5: 0 | S5: 0 | T5: 0 | U5: 0 | V5: 0 | W5: 678.7165 | X5: -342.6126 | Y5: 1310.1946
A6: 5 | B6: Andet | C6: Andet | D6: Badekabine | E6: Badekabine, let | F6: Fabriksbeton (C30/37, C35/45 SCC), C35/45 SCC (gulv) | G6: 1042.8 | H6: kg/stk. | I6: 28.22129547 | J6: m³ | K6: 63610.8 | L6: kg | M6: 0 | N6: 0 | O6: 0 | P6: 0 | Q6: 9313.027507 | R6: 0 | S6: 0 | T6: 0 | U6: 0 | V6: 203.0239996 | W6: 149.9397429 | X6: -138.7641098 | Y6: 9665.991249
A7: 6 | B7: Andet | C7: Andet | D7: Badekabine | E7: Badekabine, let | F7: Flugger Sandplast S | G7: 41 | H7: kg/stk. | I7: 2501 | J7: kg | K7: 2501 | L7: kg | M7: 0 | N7: 0 | O7: 0 | P7: 0 | Q7: 865.346 | R7: 0 | S7: 0 | T7: 0 | U7: 0 | V7: 6.660163 | W7: 0 | X7: 0 | Y7: 872.006163
A8: 7 | B8: Andet | C8: Andet | D8: Badekabine | E8: Badekabine, let | F8: Gyproc Normal (12,5 mm) | G8: 22.24 | H8: m²/stk. | I8: 1356.64 | J8: m² | K8: 12209.76 | L8: kg | M8: 0 | N8: 0 | O8: 0 | P8: 0 | Q8: 2984.608 | R8: 0 | S8: 0 | T8: 0 | U8: 0 | V8: 0 | W8: 162.7968 | X8: 27.1328 | Y8: 3147.4048
A9: 8 | B9: Andet | C9: Andet | D9: Badekabine | E9: Badekabine, let | F9: Gyproc stålprofiler og tilbehør | G9: 41 | H9: kg/stk. | I9: 2501 | J9: kg | K9: 2501 | L9: kg | M9: 0 | N9: 0 | O9: 0 | P9: 0 | Q9: 7252.9 | R9: 0 | S9: 0 | T9: 0 | U9: 0 | V9: 6.0024 | W9: 0 | X9: -4001.6 | Y9: 7258.9024
A10: 9 | B10: Andet | C10: Andet | D10: Badekabine | E10: Badekabine, let | F10: Keramikfliser, glaseret | G10: 8.15 | H10: m²/stk. | I10: 497.15 | J10: m² | K10: 9943 | L10: kg | M10: 0 | N10: 0 | O10: 0 | P10: 0 | Q10: 3993.902749 | R10: 0 | S10: 0 | T10: 0 | U10: 0 | V10: 94.83991348 | W10: 0 | X10: -26.54954008 | Y10: 4088.742662
A11: 10 | B11: Andet | C11: Andet | D11: Badekabine | E11: Badekabine, let | F11: Mørtel, fliseklæber | G11: 44.2 | H11: kg/stk. | I11: 2696.2 | J11: kg | K11: 2696.2 | L11: kg | M11: 0 | N11: 0 | O11: 0 | P11: 0 | Q11: 1216.367982 | R11: 0 | S11: 0 | T11: 0 | U11: 0 | V11: 0 | W11: 57.37678068 | X11: -10.00782256 | Y11: 1273.744763
A12: 11 | B12: Andet | C12: Andet | D12: Badekabine | E12: Badekabine, let | F12: PIR Sandwichpanel | G12: 76 | H12: kg/stk. | I12: 965.8333333 | J12: m² | K12: 4636 | L12: kg | M12: 0 | N12: 0 | O12: 0 | P12: 0 | Q12: 36218.75 | R12: 0 | S12: 0 | T12: 0 | U12: 0 | V12: 357.3583333 | W12: 10527.58333 | X12: -17964.5 | Y12: 47103.69167
A13: 12 | B13: Andet | C13: Andet | D13: Badekabine | E13: Badekabine, let | F13: Silikatmaling (indendørs) | G13: 5.8 | H13: kg/stk. | I13: 353.8 | J13: kg | K13: 353.8 | L13: kg | M13: 3 | N13: 0 | O13: 0 | P13: 0 | Q13: 439.2427 | R13: 0 | S13: 0 | T13: 1321.402561 | U13: 0 | V13: 1.22482022 | W13: 0 | X13: 0 | Y13: 1761.870081
A14: 13 | B14: Andet | C14: Andet | D14: Badekabine | E14: Badekabine, tung | F14: Armeringsnet | G14: 24.2 | H14: kg/stk. | I14: 605 | J14: kg | K14: 605 | L14: kg | M14: 0 | N14: 0 | O14: 0 | P14: 0 | Q14: 537.4587075 | R14: 0 | S14: 0 | T14: 0 | U14: 0 | V14: 0 | W14: 0.536448055 | X14: -309.0945 | Y14: 537.9951556
A15: 14 | B15: Andet | C15: Andet | D15: Badekabine | E15: Badekabine, tung | F15: EPS 30 kg/m3 | G15: 3 | H15: kg/stk. | I15: 2.5 | J15: m³ | K15: 75 | L15: kg | M15: 0 | N15: 0 | O15: 0 | P15: 0 | Q15: 258.8025 | R15: 0 | S15: 0 | T15: 0 | U15: 0 | V15: 0 | W15: 278.1625 | X15: -140.415 | Y15: 536.965
A16: 15 | B16: Andet | C16: Andet | D16: Badekabine | E16: Badekabine, tung | F16: Fabriksbeton (C30/37, C35/45 SCC), C35/45 SCC (gulv) | G16: 1042.8 | H16: kg/stk. | I16: 11.5661047 | J16: m³ | K16: 26070 | L16: kg | M16: 0 | N16: 0 | O16: 0 | P16: 0 | Q16: 3816.814552 | R16: 0 | S16: 0 | T16: 0 | U16: 0 | V16: 83.20655723 | W16: 61.45071429 | X16: -56.87053682 | Y16: 3961.471823
A17: 16 | B17: Andet | C17: Andet | D17: Badekabine | E17: Badekabine, tung | F17: Flugger Sandplast S | G17: 41 | H17: kg/stk. | I17: 1025 | J17: kg | K17: 1025 | L17: kg | M17: 0 | N17: 0 | O17: 0 | P17: 0 | Q17: 354.65 | R17: 0 | S17: 0 | T17: 0 | U17: 0 | V17: 2.729575 | W17: 0 | X17: 0 | Y17: 357.379575
A18: 17 | B18: Andet | C18: Andet | D18: Badekabine | E18: Badekabine, tung | F18: Keramikfliser, glaseret | G18: 8.15 | H18: m²/stk. | I18: 203.75 | J18: m² | K18: 4075 | L18: kg | M18: 0 | N18: 0 | O18: 0 | P18: 0 | Q18: 1636.845389 | R18: 0 | S18: 0 | T18: 0 | U18: 0 | V18: 38.868817 | W18: 0 | X18: -10.88095905 | Y18: 1675.714206
A19: 18 | B19: Andet | C19: Andet | D19: Badekabine | E19: Badekabine, tung | F19: Letbeton vægelement, Letbeton vægelement, 220 mm tyk væg, 10% udsparinger | G19: 2394.7 | H19: kg/stk. | I19: 151.6400709 | J19: m² | K19: 59867.5 | L19: kg | M19: 0 | N19: 0 | O19: 0 | P19: 0 | Q19: 10508.65691 | R19: 0 | S19: 0 | T19: 0 | U19: 0 | V19: 191.8246897 | W19: 139.4482092 | X19: -155.2945966 | Y19: 10839.92981
A20: 19 | B20: Andet | C20: Andet | D20: Badekabine | E20: Badekabine, tung | F20: Mørtel, fliseklæber | G20: 44.2 | H20: kg/stk. | I20: 1105 | J20: kg | K20: 1105 | L20: kg | M20: 0 | N20: 0 | O20: 0 | P20: 0 | Q20: 498.511468 | R20: 0 | S20: 0 | T20: 0 | U20: 0 | V20: 0 | W20: 23.51507405 | X20: -4.101566625 | Y20: 522.0265421
A21: 20 | B21: Andet | C21: Andet | D21: Badekabine | E21: Badekabine, tung | F21: Silikatmaling (indendørs) | G21: 5.8 | H21: kg/stk. | I21: 145 | J21: kg | K21: 145 | L21: kg | M21: 3 | N21: 0 | O21: 0 | P21: 0 | Q21: 180.0175 | R21: 0 | S21: 0 | T21: 541.5584265 | U21: 0 | V21: 0.5019755 | W21: 0 | X21: 0 | Y21: 722.077902
A22: 21 | B22: Andet | C22: Andet | D22: Elevator | E22: Elevator | F22: Elevator (grundkomponenter pr. stk.) | G22: 1 | H22: stk./stk. | I22: 4 | J22: stk. | K22: 6412 | L22: kg | M22: 1 | N22: 0 | O22: 0 | P22: 0 | Q22: 27003.6 | R22: 0 | S22: 0 | T22: 27223.43733 | U22: 0 | V22: 194.44724 | W22: 25.390092 | X22: -16428.256 | Y22: 54446.87466
A23: 22 | B23: Andet | C23: Andet | D23: Elevator | E23: Elevator | F23: Elevator (komponenter pr. etage) | G23: 6.75 | H23: stk./stk. | I23: 27 | J23: stk. | K23: 8991 | L23: kg | M23: 1 | N23: 0 | O23: 0 | P23: 0 | Q23: 34022.0439 | R23: 0 | S23: 0 | T23: 34032.40468 | U23: 0 | V23: 10.3607829 | W23: 0 | X23: -34618.1472 | Y23: 68064.80937
A24: 23 | B24: Dæk | C24: Etagedæk | D24: Affaldsrum, gulv (331002) | E24: Gulvopbygning 70 mm | F24: FutureCEM_Fabriksbeton (C20/25 SCC og C25/30) i eksponeringsklasserne X0 og XC1, Fabriksbeton C25/31 (gulv) | G24: 0.07 | H24: m³/m² | I24: 4.9 | J24: m³ | K24: 11005.4 | L24: kg | M24: 0 | N24: 0 | O24: 0 | P24: 0 | Q24: 1051.05 | R24: 0 | S24: 0 | T24: 0 | U24: 0 | V24: 36.2747 | W24: 26.7883 | X24: -24.794 | Y24: 1114.113
A25: 24 | B25: Dæk | C25: Etagedæk | D25: Affaldsrum, gulv (331002) | E25: Gulvopbygning 70 mm | F25: ISOVER Trinlydsplade, 25 mm | G25: 4 | H25: m²/m² | I25: 280 | J25: m² | K25: 875 | L25: kg | M25: 0 | N25: 0 | O25: 0 | P25: 0 | Q25: 655.2 | R25: 0 | S25: 0 | T25: 0 | U25: 0 | V25: 0 | W25: 13.692 | X25: 0 | Y25: 668.892
A26: 25 | B26: Dæk | C26: Etagedæk | D26: Affaldsrum, loft (339001) | E26: Affaldsrum, loft | F26: EPS 80 (38 mm) | G26: 7.89 | H26: m²/m² | I26: 549.933 | J26: m² | K26: 313.46181 | L26: kg | M26: 0 | N26: 0 | O26: 0 | P26: 0 | Q26: 961.832817 | R26: 0 | S26: 0 | T26: 0 | U26: 0 | V26: 1161.458496 | W26: 0 | X26: -485.7558189 | Y26: 2123.291313
A27: 26 | B27: Dæk | C27: Etagedæk | D27: Affaldsrum, loft (339001) | E27: Affaldsrum, loft | F27: Træbetonplade | G27: 0.035 | H27: m³/m² | I27: 2.4395 | J27: m³ | K27: 878.22 | L27: kg | M27: 0 | N27: 0 | O27: 0 | P27: 0 | Q27: -93.14223237 | R27: 0 | S27: 0 | T27: 0 | U27: 0 | V27: 1006.760914 | W27: 0 | X27: -360.8806019 | Y27: 913.6186819
A28: 27 | B28: Dæk | C28: Etagedæk | D28: Bolig, gulv (332001) | E28: Gulvopbygning, standard | F28: FutureCEM_Fabriksbeton (C20/25 SCC og C25/30) i eksponeringsklasserne X0 og XC1, Fabriksbeton C25/31 (gulv) | G28: 0.06 | H28: m³/m² | I28: 252.342 | J28: m³ | K28: 566760.132 | L28: kg | M28: 0 | N28: 0 | O28: 0 | P28: 0 | Q28: 54127.359 | R28: 0 | S28: 0 | T28: 0 | U28: 0 | V28: 1868.087826 | W28: 1379.553714 | X28: -1276.85052 | Y28: 57375.00054
A29: 28 | B29: Dæk | C29: Etagedæk | D29: Bolig, gulv (332001) | E29: Gulvopbygning, standard | F29: ISOVER Trinlydsplade, 25 mm | G29: 4 | H29: m²/m² | I29: 16822.8 | J29: m² | K29: 52571.25 | L29: kg | M29: 0 | N29: 0 | O29: 0 | P29: 0 | Q29: 39365.352 | R29: 0 | S29: 0 | T29: 0 | U29: 0 | V29: 0 | W29: 822.63492 | X29: 0 | Y29: 40187.98692
A30: 29 | B30: Dæk | C30: Etagedæk | D30: Bolig, gulv (332001) | E30: Gulvopbygning, standard | F30: Trægulv, stavparket, 22 mm | G30: 0.68 | H30: m²/m² | I30: 2859.876 | J30: m² | K30: 32888.574 | L30: kg | M30: 0 | N30: 0 | O30: 0 | P30: 0 | Q30: -55951.24324 | R30: 0 | S30: 0 | T30: 0 | U30: 0 | V30: 87759.21309 | W30: 0 | X30: -23667.20412 | Y30: 31807.96985
A31: 30 | B31: Dæk | C31: Etagedæk | D31: Bolig, loft (351001, 353002) | E31: Akustik, ekstra | F31: Træbetonplade | G31: 0.035 | H31: m³/m² | I31: 22.12 | J31: m³ | K31: 7963.2 | L31: kg | M31: 0 | N31: 0 | O31: 0 | P31: 0 | Q31: -844.5608444 | R31: 0 | S31: 0 | T31: 0 | U31: 0 | V31: 9128.73598 | W31: 0 | X31: -3272.260264 | Y31: 8284.175136
A32: 31 | B32: Dæk | C32: Etagedæk | D32: Bolig, loft (351001, 353002) | E32: Loft, nedhængt | F32: Fastgørelsesmidler/skruer i galvaniseret stål | G32: 0.1 | H32: kg/m² | I32: 73.41 | J32: kg | K32: 73.41 | L32: kg | M32: 0 | N32: 0 | O32: 0 | P32: 0 | Q32: 339.2652693 | R32: 0 | S32: 0 | T32: 0 | U32: 0 | V32: 0 | W32: 0.06509198631 | X32: -172.7928985 | Y32: 339.3303613
A33: 32 | B33: Dæk | C33: Etagedæk | D33: Bolig, loft (351001, 353002) | E33: Loft, nedhængt | F33: Gyproc Normal (12,5 mm) | G33: 2 | H33: m²/m² | I33: 1468.2 | J33: m² | K33: 13213.8 | L33: kg | M33: 0 | N33: 0 | O33: 0 | P33: 0 | Q33: 3230.04 | R33: 0 | S33: 0 | T33: 0 | U33: 0 | V33: 0 | W33: 176.184 | X33: 29.364 | Y33: 3406.224
A34: 33 | B34: Dæk | C34: Etagedæk | D34: Bolig, loft (351001, 353002) | E34: Loft, nedhængt | F34: Gyproc stålprofiler og tilbehør | G34: 2 | H34: kg/m² | I34: 1468.2 | J34: kg | K34: 1468.2 | L34: kg | M34: 0 | N34: 0 | O34: 0 | P34: 0 | Q34: 4257.78 | R34: 0 | S34: 0 | T34: 0 | U34: 0 | V34: 3.52368 | W34: 0 | X34: -2349.12 | Y34: 4261.30368
A35: 34 | B35: Dæk | C35: Etagedæk | D35: Bolig, loft (351001, 353002) | E35: Loft, nedhængt | F35: ISOVER Formstykker kl. 37 (37 mm) | G35: 1.22 | H35: m²/m² | I35: 895.602 | J35: m² | K35: 497.05911 | L35: kg | M35: 0 | N35: 0 | O35: 0 | P35: 0 | Q35: 394.960482 | R35: 0 | S35: 0 | T35: 0 | U35: 0 | V35: 0 | W35: 7.77382536 | X35: 0 | Y35: 402.7343074
A36: 35 | B36: Dæk | C36: Etagedæk | D36: Bolig, loft (351001, 353002) | E36: Loft, påbygget | F36: Fastgørelsesmidler/skruer i galvaniseret stål | G36: 0.1 | H36: kg/m² | I36: 65.88 | J36: kg | K36: 65.88 | L36: kg | M36: 0 | N36: 0 | O36: 0 | P36: 0 | Q36: 304.4652764 | R36: 0 | S36: 0 | T36: 0 | U36: 0 | V36: 0 | W36: 0.05841520308 | X36: -155.0687393 | Y36: 304.5236916
A37: 36 | B37: Dæk | C37: Etagedæk | D37: Bolig, loft (351001, 353002) | E37: Loft, påbygget | F37: Gyproc Normal (12,5 mm) | G37: 2 | H37: m²/m² | I37: 1317.6 | J37: m² | K37: 11858.4 | L37: kg | M37: 0 | N37: 0 | O37: 0 | P37: 0 | Q37: 2898.72 | R37: 0 | S37: 0 | T37: 0 | U37: 0 | V37: 0 | W37: 158.112 | X37: 26.352 | Y37: 3056.832
A38: 37 | B38: Dæk | C38: Etagedæk | D38: Bolig, loft (351001, 353002) | E38: Loft, påbygget | F38: Gyproc stålprofiler og tilbehør | G38: 2 | H38: kg/m² | I38: 1317.6 | J38: kg | K38: 1317.6 | L38: kg | M38: 0 | N38: 0 | O38: 0 | P38: 0 | Q38: 3821.04 | R38: 0 | S38: 0 | T38: 0 | U38: 0 | V38: 3.16224 | W38: 0 | X38: -2108.16 | Y38: 3824.20224
A39: 38 | B39: Dæk | C39: Etagedæk | D39: Bolig, loft (351001, 353002) | E39: Loft, påbygget | F39: ISOVER Formstykker kl. 37 (37 mm) | G39: 1.22 | H39: m²/m² | I39: 803.736 | J39: m² | K39: 446.07348 | L39: kg | M39: 0 | N39: 0 | O39: 0 | P39: 0 | Q39: 354.447576 | R39: 0 | S39: 0 | T39: 0 | U39: 0 | V39: 0 | W39: 6.97642848 | X39: 0 | Y39: 361.4240045
A40: 39 | B40: Dæk | C40: Etagedæk | D40: Bolig, loft (351001, 353002) | E40: Loft, påbygget | F40: Fastgørelsesmidler/skruer i galvaniseret stål | G40: 0.1 | H40: kg/m² | I40: 225.03 | J40: kg | K40: 225.03 | L40: kg | M40: 0 | N40: 0 | O40: 0 | P40: 0 | Q40: 1039.97907 | R40: 0 | S40: 0 | T40: 0 | U40: 0 | V40: 0 | W40: 0.1995320757 | X40: -529.6769642 | Y40: 1040.178602
A41: 40 | B41: Dæk | C41: Etagedæk | D41: Bolig, loft (351001, 353002) | E41: Loft, påbygget | F41: Gyproc Normal (12,5 mm) | G41: 2 | H41: m²/m² | I41: 4500.6 | J41: m² | K41: 40505.4 | L41: kg | M41: 0 | N41: 0 | O41: 0 | P41: 0 | Q41: 9901.32 | R41: 0 | S41: 0 | T41: 0 | U41: 0 | V41: 0 | W41: 540.072 | X41: 90.012 | Y41: 10441.392
A42: 41 | B42: Dæk | C42: Etagedæk | D42: Bolig, loft (351001, 353002) | E42: Loft, påbygget | F42: Gyproc stålprofiler og tilbehør | G42: 2 | H42: kg/m² | I42: 4500.6 | J42: kg | K42: 4500.6 | L42: kg | M42: 0 | N42: 0 | O42: 0 | P42: 0 | Q42: 13051.74 | R42: 0 | S42: 0 | T42: 0 | U42: 0 | V42: 10.80144 | W42: 0 | X42: -7200.96 | Y42: 13062.54144
A43: 42 | B43: Dæk | C43: Etagedæk | D43: Bolig, loft (351001, 353002) | E43: Loft, påbygget | F43: ISOVER Formstykker kl. 37 (37 mm) | G43: 1.22 | H43: m²/m² | I43: 2745.366 | J43: m² | K43: 1523.67813 | L43: kg | M43: 0 | N43: 0 | O43: 0 | P43: 0 | Q43: 1210.706406 | R43: 0 | S43: 0 | T43: 0 | U43: 0 | V43: 0 | W43: 23.82977688 | X43: 0 | Y43: 1234.536183
A44: 43 | B44: Dæk | C44: Etagedæk | D44: Bolig, loft (351001, 353002) | E44: Vægside, malerbehandling, silikatmaling, fuldspartling | F44: Puds, kalk-gips, inde | G44: 0.45 | H44: kg/m² | I44: 0.36705 | J44: m³ | K44: 330.345 | L44: kg | M44: 0 | N44: 0 | O44: 0 | P44: 0 | Q44: 94.88426025 | R44: 0 | S44: 0 | T44: 0 | U44: 0 | V44: 0 | W44: 6.444113325 | X44: 0 | Y44: 101.3283736
A45: 44 | B45: Dæk | C45: Etagedæk | D45: Bolig, loft (351001, 353002) | E45: Vægside, malerbehandling, silikatmaling, fuldspartling | F45: Silikatmaling (indendørs) | G45: 0.38 | H45: kg/m² | I45: 278.958 | J45: kg | K45: 278.958 | L45: kg | M45: 3 | N45: 0 | O45: 0 | P45: 0 | Q45: 346.326357 | R45: 0 | S45: 0 | T45: 1041.876245 | U45: 0 | V45: 0.9657247002 | W45: 0 | X45: 0 | Y45: 1389.168327
A46: 45 | B46: Dæk | C46: Etagedæk | D46: Bolig, loft (351001, 353002) | E46: Vægside, malerbehandling, silikatmaling, fuldspartling | F46: Puds, kalk-gips, inde | G46: 0.45 | H46: kg/m² | I46: 0.3294 | J46: m³ | K46: 296.46 | L46: kg | M46: 0 | N46: 0 | O46: 0 | P46: 0 | Q46: 85.151547 | R46: 0 | S46: 0 | T46: 0 | U46: 0 | V46: 0 | W46: 5.7831111 | X46: 0 | Y46: 90.9346581
A47: 46 | B47: Dæk | C47: Etagedæk | D47: Bolig, loft (351001, 353002) | E47: Vægside, malerbehandling, silikatmaling, fuldspartling | F47: Silikatmaling (indendørs) | G47: 0.38 | H47: kg/m² | I47: 250.344 | J47: kg | K47: 250.344 | L47: kg | M47: 3 | N47: 0 | O47: 0 | P47: 0 | Q47: 310.802076 | R47: 0 | S47: 0 | T47: 935.0062257 | U47: 0 | V47: 0.8666658936 | W47: 0 | X47: 0 | Y47: 1246.674968
A48: 47 | B48: Dæk | C48: Etagedæk | D48: Bolig, loft (351001, 353002) | E48: Vægside, malerbehandling, silikatmaling, fuldspartling | F48: Puds, kalk-gips, inde | G48: 0.45 | H48: kg/m² | I48: 1.12515 | J48: m³ | K48: 1012.635 | L48: kg | M48: 0 | N48: 0 | O48: 0 | P48: 0 | Q48: 290.8569008 | R48: 0 | S48: 0 | T48: 0 | U48: 0 | V48: 0 | W48: 19.75369597 | X48: 0 | Y48: 310.6105967
A49: 48 | B49: Dæk | C49: Etagedæk | D49: Bolig, loft (351001, 353002) | E49: Vægside, malerbehandling, silikatmaling, fuldspartling | F49: Silikatmaling (indendørs) | G49: 0.38 | H49: kg/m² | I49: 855.114 | J49: kg | K49: 855.114 | L49: kg | M49: 3 | N49: 0 | O49: 0 | P49: 0 | Q49: 1061.624031 | R49: 0 | S49: 0 | T49: 3193.75305 | U49: 0 | V49: 2.960319157 | W49: 0 | X49: 0 | Y49: 4258.337401
A50: 49 | B50: Dæk | C50: Etagedæk | D50: Dæk mod kælder | E50: Dæk, betonelement, forspændt huldæk 0,22/12,0 m | F50: Huldæk element, 22 cm, 6-10 liner | G50: 1 | H50: m²/m² | I50: 1400 | J50: m² | K50: 482440 | L50: kg | M50: 0 | N50: 0 | O50: 0 | P50: 0 | Q50: 76692 | R50: 0 | S50: 0 | T50: 0 | U50: 0 | V50: 1601.6 | W50: 1170.4 | X50: -1085.7 | Y50: 79464
A51: 50 | B51: Dæk | C51: Etagedæk | D51: Etagedæk (231001-231002) | E51: CLT-dæk 250 mm | F51: CLT, Södra | G51: 0.25 | H51: m³/m² | I51: 860.025 | J51: m³ | K51: 369810.75 | L51: kg | M51: 0 | N51: 0 | O51: 0 | P51: 0 | Q51: -576216.75 | R51: 0 | S51: 0 | T51: 0 | U51: 0 | V51: 605457.6 | W51: 0 | X51: 83422.425 | Y51: 29240.85
A52: 51 | B52: Dæk | C52: Etagedæk | D52: Etagedæk (231001-231002) | E52: Dæk, betonelement, forspændt huldæk 0,22/12,0 m | F52: Huldæk element, 22 cm, 6-10 liner | G52: 1 | H52: m²/m² | I52: 760 | J52: m² | K52: 261896 | L52: kg | M52: 0 | N52: 0 | O52: 0 | P52: 0 | Q52: 41632.8 | R52: 0 | S52: 0 | T52: 0 | U52: 0 | V52: 869.44 | W52: 635.36 | X52: -589.38 | Y52: 43137.6
A53: 52 | B53: Dæk | C53: Etagedæk | D53: Fælledhus, loft (357003) | E53: Loft, akustik | F53: Fastgørelsesmidler/skruer i galvaniseret stål | G53: 0.1 | H53: kg/m² | I53: 5.8 | J53: kg | K53: 5.8 | L53: kg | M53: 0 | N53: 0 | O53: 0 | P53: 0 | Q53: 26.8047754 | R53: 0 | S53: 0 | T53: 0 | U53: 0 | V53: 0 | W53: 0.0051428078 | X53: -13.6520748 | Y53: 26.80991821
A54: 53 | B54: Dæk | C54: Etagedæk | D54: Fælledhus, loft (357003) | E54: Loft, akustik | F54: Gyproc stålprofiler og tilbehør | G54: 2 | H54: kg/m² | I54: 116 | J54: kg | K54: 116 | L54: kg | M54: 0 | N54: 0 | O54: 0 | P54: 0 | Q54: 336.4 | R54: 0 | S54: 0 | T54: 0 | U54: 0 | V54: 0.2784 | W54: 0 | X54: -185.6 | Y54: 336.6784
A55: 54 | B55: Dæk | C55: Etagedæk | D55: Fælledhus, loft (357003) | E55: Loft, akustik | F55: Træbetonplade | G55: 0.05 | H55: m³/m² | I55: 2.9 | J55: m³ | K55: 1044 | L55: kg | M55: 0 | N55: 0 | O55: 0 | P55: 0 | Q55: -110.724523 | R55: 0 | S55: 0 | T55: 0 | U55: 0 | V55: 1196.80535 | W55: 0 | X55: -429.00338 | Y55: 1086.080827
A56: 55 | B56: Dæk | C56: Etagedæk | D56: Fællesarealer, gulv (332002) | E56: Gulvopbygning, standard | F56: FutureCEM_Fabriksbeton (C20/25 SCC og C25/30) i eksponeringsklasserne X0 og XC1, Fabriksbeton C25/31 (gulv) | G56: 0.06 | H56: m³/m² | I56: 13.08 | J56: m³ | K56: 29377.68 | L56: kg | M56: 0 | N56: 0 | O56: 0 | P56: 0 | Q56: 2805.66 | R56: 0 | S56: 0 | T56: 0 | U56: 0 | V56: 96.83124 | W56: 71.50836 | X56: -66.1848 | Y56: 2973.9996
A57: 56 | B57: Dæk | C57: Etagedæk | D57: Fællesarealer, gulv (332002) | E57: Gulvopbygning, standard | F57: ISOVER Trinlydsplade, 25 mm | G57: 4 | H57: m²/m² | I57: 872 | J57: m² | K57: 2725 | L57: kg | M57: 0 | N57: 0 | O57: 0 | P57: 0 | Q57: 2040.48 | R57: 0 | S57: 0 | T57: 0 | U57: 0 | V57: 0 | W57: 42.6408 | X57: 0 | Y57: 2083.1208
A58: 57 | B58: Dæk | C58: Etagedæk | D58: Fællesarealer, gulv (332002) | E58: Gulvopbygning, standard | F58: Trægulv, stavparket, 22 mm | G58: 0.68 | H58: m²/m² | I58: 148.24 | J58: m² | K58: 1704.76 | L58: kg | M58: 0 | N58: 0 | O58: 0 | P58: 0 | Q58: -2900.199973 | R58: 0 | S58: 0 | T58: 0 | U58: 0 | V58: 4548.947489 | W58: 0 | X58: -1226.775685 | Y58: 1648.747516
A59: 58 | B59: Dæk | C59: Etagedæk | D59: Loft (353001) | E59: Loft, gips | F59: Fastgørelsesmidler/skruer i galvaniseret stål | G59: 0.1 | H59: kg/m² | I59: 21.89 | J59: kg | K59: 21.89 | L59: kg | M59: 0 | N59: 0 | O59: 0 | P59: 0 | Q59: 101.1649196 | R59: 0 | S59: 0 | T59: 0 | U59: 0 | V59: 0 | W59: 0.01940966599 | X59: -51.52481334 | Y59: 101.1843292
A60: 59 | B60: Dæk | C60: Etagedæk | D60: Loft (353001) | E60: Loft, gips | F60: Gyproc Protect (15,4 mm) | G60: 2 | H60: m²/m² | I60: 437.8 | J60: m² | K60: 5560.06 | L60: kg | M60: 0 | N60: 0 | O60: 0 | P60: 0 | Q60: 1400.96 | R60: 0 | S60: 0 | T60: 0 | U60: 0 | V60: 6.1292 | W60: 0 | X60: 0 | Y60: 1407.0892
A61: 60 | B61: Dæk | C61: Etagedæk | D61: Loft (353001) | E61: Loft, gips | F61: Gyproc stålprofiler og tilbehør | G61: 2 | H61: kg/m² | I61: 437.8 | J61: kg | K61: 437.8 | L61: kg | M61: 0 | N61: 0 | O61: 0 | P61: 0 | Q61: 1269.62 | R61: 0 | S61: 0 | T61: 0 | U61: 0 | V61: 1.05072 | W61: 0 | X61: -700.48 | Y61: 1270.67072
A62: 61 | B62: Dæk | C62: Etagedæk | D62: Loft (353001) | E62: Vægside, malerbehandling, silikatmaling, fuldspartling | F62: Puds, kalk-gips, inde | G62: 0.45 | H62: kg/m² | I62: 0.10945 | J62: m³ | K62: 98.505 | L62: kg | M62: 0 | N62: 0 | O62: 0 | P62: 0 | Q62: 28.29337225 | R62: 0 | S62: 0 | T62: 0 | U62: 0 | V62: 0 | W62: 1.921558925 | X62: 0 | Y62: 30.21493118
A63: 62 | B63: Dæk | C63: Etagedæk | D63: Loft (353001) | E63: Vægside, malerbehandling, silikatmaling, fuldspartling | F63: Silikatmaling (indendørs) | G63: 0.38 | H63: kg/m² | I63: 83.182 | J63: kg | K63: 83.182 | L63: kg | M63: 3 | N63: 0 | O63: 0 | P63: 0 | Q63: 103.270453 | R63: 0 | S63: 0 | T63: 310.6752623 | U63: 0 | V63: 0.2879677658 | W63: 0 | X63: 0 | Y63: 414.2336831
A64: 63 | B64: Dæk | C64: Etagedæk | D64: Rørkasse (225003) | E64: Træskelet 45 mm | F64: Fastgørelsesmidler/skruer i galvaniseret stål | G64: 0.05 | H64: kg/m² | I64: 11.58 | J64: kg | K64: 11.58 | L64: kg | M64: 0 | N64: 0 | O64: 0 | P64: 0 | Q64: 53.51712054 | R64: 0 | S64: 0 | T64: 0 | U64: 0 | V64: 0 | W64: 0.01026788178 | X64: -27.25707348 | Y64: 53.52738842
A65: 64 | B65: Dæk | C65: Etagedæk | D65: Rørkasse (225003) | E65: Træskelet 45 mm | F65: ISOVER Formstykker kl. 37 (37 mm) | G65: 1.22 | H65: m²/m² | I65: 282.552 | J65: m² | K65: 156.81636 | L65: kg | M65: 0 | N65: 0 | O65: 0 | P65: 0 | Q65: 124.605432 | R65: 0 | S65: 0 | T65: 0 | U65: 0 | V65: 0 | W65: 2.45255136 | X65: 0 | Y65: 127.0579834
A66: 65 | B66: Dæk | C66: Etagedæk | D66: Rørkasse (225003) | E66: Træskelet 45 mm | F66: Savede og tørrede konstruktionstræprodukter af fyr og gran, Fobrænding | G66: 0.0045 | H66: m³/m² | I66: 1.0422 | J66: m³ | K66: 475.2432 | L66: kg | M66: 0 | N66: 0 | O66: 0 | P66: 0 | Q66: -779.5656 | R66: 0 | S66: 0 | T66: 0 | U66: 0 | V66: 834.59376 | W66: 0 | X66: -425.32182 | Y66: 55.02816
A67: 66 | B67: Dæk | C67: Etagedæk | D67: Rørkasse (225003) | E67: Vægside, gipskartonplade 2 lag | F67: Fastgørelsesmidler/skruer i galvaniseret stål | G67: 0.05 | H67: kg/m² | I67: 11.58 | J67: kg | K67: 11.58 | L67: kg | M67: 0 | N67: 0 | O67: 0 | P67: 0 | Q67: 53.51712054 | R67: 0 | S67: 0 | T67: 0 | U67: 0 | V67: 0 | W67: 0.01026788178 | X67: -27.25707348 | Y67: 53.52738842
A68: 67 | B68: Dæk | C68: Etagedæk | D68: Rørkasse (225003) | E68: Vægside, gipskartonplade 2 lag | F68: Gyproc Normal (12,5 mm) | G68: 2 | H68: m²/m² | I68: 463.2 | J68: m² | K68: 4168.8 | L68: kg | M68: 0 | N68: 0 | O68: 0 | P68: 0 | Q68: 1019.04 | R68: 0 | S68: 0 | T68: 0 | U68: 0 | V68: 0 | W68: 55.584 | X68: 9.264 | Y68: 1074.624
A69: 68 | B69: Dæk | C69: Etagedæk | D69: Rørkasse (225003) | E69: Vægside, malerbehandling, silikatmaling, fuldspartling | F69: Puds, kalk-gips, inde | G69: 0.45 | H69: kg/m² | I69: 0.1158 | J69: m³ | K69: 104.22 | L69: kg | M69: 0 | N69: 0 | O69: 0 | P69: 0 | Q69: 29.934879 | R69: 0 | S69: 0 | T69: 0 | U69: 0 | V69: 0 | W69: 2.0330427 | X69: 0 | Y69: 31.9679217
A70: 69 | B70: Dæk | C70: Etagedæk | D70: Rørkasse (225003) | E70: Vægside, malerbehandling, silikatmaling, fuldspartling | F70: Silikatmaling (indendørs) | G70: 0.38 | H70: kg/m² | I70: 88.008 | J70: kg | K70: 88.008 | L70: kg | M70: 3 | N70: 0 | O70: 0 | P70: 0 | Q70: 109.261932 | R70: 0 | S70: 0 | T70: 328.6998207 | U70: 0 | V70: 0.3046748952 | W70: 0 | X70: 0 | Y70: 438.2664276
A71: 70 | B71: Dæk | C71: Etagedæk | D71: Trappeopgang, loft (357001) | E71: Trappeopgang, loft | F71: Gyproc Normal (12,5 mm) | G71: 2 | H71: m²/m² | I71: 331.2 | J71: m² | K71: 2980.8 | L71: kg | M71: 0 | N71: 0 | O71: 0 | P71: 0 | Q71: 728.64 | R71: 0 | S71: 0 | T71: 0 | U71: 0 | V71: 0 | W71: 39.744 | X71: 6.624 | Y71: 768.384
A72: 71 | B72: Dæk | C72: Etagedæk | D72: Trappeopgang, loft (357001) | E72: Trappeopgang, loft | F72: Træbetonplade | G72: 0.035 | H72: m³/m² | I72: 5.796 | J72: m³ | K72: 2086.56 | L72: kg | M72: 0 | N72: 0 | O72: 0 | P72: 0 | Q72: -221.2963225 | R72: 0 | S72: 0 | T72: 0 | U72: 0 | V72: 2391.959934 | W72: 0 | X72: -857.4150312 | Y72: 2170.663611
A73: 72 | B73: El- og mekaniske anlæg | C73: Energiproduktion | D73: Solceller | E73: Solceller | F73: Solcelleanlæg 1000 kWh / m2*a | G73: 1 | H73: m²/m² | I73: 273 | J73: m² | K73: 2457 | L73: kg | M73: 1 | N73: 0 | O73: 0 | P73: 0 | Q73: 105293.8614 | R73: 0 | S73: 0 | T73: 109601.0698 | U73: 0 | V73: 0 | W73: 4307.20836 | X73: -25695.68274 | Y73: 219202.1395
A74: 73 | B74: Fundamenter | C74: Pælefundering | D74: Fundament, pæle | E74: Beton C45/55 inkl. armering | F74: Armeringsnet | G74: 110 | H74: kg/m³ | I74: 1991 | J74: kg | K74: 1991 | L74: kg | M74: 0 | N74: 0 | O74: 0 | P74: 0 | Q74: 1768.727746 | R74: 0 | S74: 0 | T74: 0 | U74: 0 | V74: 0 | W74: 1.765401781 | X74: -1017.2019 | Y74: 1770.493148
A75: 74 | B75: Fundamenter | C75: Pælefundering | D75: Fundament, pæle | E75: Beton C45/55 inkl. armering | F75: FutureCEM_Fabriksbeton(C40/50, C45/55), C45/55 (Fundament) | G75: 1 | H75: m³/m³ | I75: 18.1 | J75: m³ | K75: 40344.9 | L75: kg | M75: 0 | N75: 0 | O75: 0 | P75: 0 | Q75: 7247.24 | R75: 0 | S75: 0 | T75: 0 | U75: 0 | V75: 134.3925 | W75: 99.3509 | X75: -91.9842 | Y75: 7480.9834
A76: 75 | B76: Fundamenter | C76: Randfundamenter | D76: Fundament (punkt, bjælke og sokkel) | E76: Beton C45/55 inkl. armering | F76: Armeringsnet | G76: 110 | H76: kg/m³ | I76: 7194 | J76: kg | K76: 7194 | L76: kg | M76: 0 | N76: 0 | O76: 0 | P76: 0 | Q76: 6390.872631 | R76: 0 | S76: 0 | T76: 0 | U76: 0 | V76: 0 | W76: 6.378855054 | X76: -3675.4146 | Y76: 6397.251486
A77: 76 | B77: Fundamenter | C77: Randfundamenter | D77: Fundament (punkt, bjælke og sokkel) | E77: Beton C45/55 inkl. armering | F77: FutureCEM_Fabriksbeton(C40/50, C45/55), C45/55 (Fundament) | G77: 1 | H77: m³/m³ | I77: 65.4 | J77: m³ | K77: 145776.6 | L77: kg | M77: 0 | N77: 0 | O77: 0 | P77: 0 | Q77: 26186.16 | R77: 0 | S77: 0 | T77: 0 | U77: 0 | V77: 485.595 | W77: 358.9806 | X77: -332.3628 | Y77: 27030.7356
A78: 77 | B78: Fundamenter | C78: Randfundamenter | D78: Sokkel | E78: Betonelement 250 mm | F78: Armeringsnet | G78: 18 | H78: kg/m² | I78: 3186 | J78: kg | K78: 3186 | L78: kg | M78: 0 | N78: 0 | O78: 0 | P78: 0 | Q78: 2830.319739 | R78: 0 | S78: 0 | T78: 0 | U78: 0 | V78: 0 | W78: 2.824997526 | X78: -1627.7274 | Y78: 2833.144737
A79: 78 | B79: Fundamenter | C79: Randfundamenter | D79: Sokkel | E79: Betonelement 250 mm | F79: FutureCEM_Fabriksbeton (C30/37, C35/45 SCC), C35/45 SCC (gulv) | G79: 0.25 | H79: m³/m² | I79: 44.25 | J79: m³ | K79: 99739.5 | L79: kg | M79: 0 | N79: 0 | O79: 0 | P79: 0 | Q79: 11584.65 | R79: 0 | S79: 0 | T79: 0 | U79: 0 | V79: 318.3345 | W79: 235.10025 | X79: -217.57725 | Y79: 12138.08475
A80: 79 | B80: Fundamenter | C80: Randfundamenter | D80: Sokkel | E80: Sokkel | F80: EPS 80 (38 mm) | G80: 5.26 | H80: m²/m² | I80: 931.02 | J80: m² | K80: 530.6814 | L80: kg | M80: 0 | N80: 0 | O80: 0 | P80: 0 | Q80: 1628.35398 | R80: 0 | S80: 0 | T80: 0 | U80: 0 | V80: 1966.31424 | W80: 0 | X80: -822.369966 | Y80: 3594.66822
A81: 80 | B81: Fundamenter | C81: Randfundamenter | D81: Sokkel | E81: Sokkel | F81: Letklinkerbetonblok, ydervæg | G81: 0.1 | H81: m³/m² | I81: 17.7 | J81: m³ | K81: 8867.7 | L81: kg | M81: 0 | N81: 0 | O81: 0 | P81: 0 | Q81: 3958.8705 | R81: 0 | S81: 0 | T81: 0 | U81: 0 | V81: 77.3800989 | W81: 0 | X81: -23.6310399 | Y81: 4036.250599
A82: 81 | B82: Fundamenter | C82: Randfundamenter | D82: Sokkel | E82: Sokkel | F82: Mørtel, fliseklæber | G82: 4.8 | H82: kg/m² | I82: 849.6 | J82: kg | K82: 849.6 | L82: kg | M82: 0 | N82: 0 | O82: 0 | P82: 0 | Q82: 383.2899034 | R82: 0 | S82: 0 | T82: 0 | U82: 0 | V82: 0 | W82: 18.08000626 | X82: -3.15356652 | Y82: 401.3699096
A83: 82 | B83: Indervægge | C83: Bærende indervægge | D83: Betonvægge (221003-221004) | E83: Betonelement 200 mm | F83: FutureCEM_Beton vægelementer, Beton vægelementer, 20 cm tyk væg, med 16-25 kg armering | G83: 1 | H83: m²/m² | I83: 2772 | J83: m² | K83: 1202770.8 | L83: kg | M83: 0 | N83: 0 | O83: 0 | P83: 0 | Q83: 194234.04 | R83: 0 | S83: 0 | T83: 0 | U83: 0 | V83: 3933.468 | W83: 2841.8544 | X83: -3293.136 | Y83: 201009.3624
A84: 83 | B84: Indervægge | C84: Bærende indervægge | D84: Betonvægge (221003-221004) | E84: Betonelement 230 mm | F84: FutureCEM_Beton vægelementer, Beton vægelementer, 20 cm tyk væg, med 16-25 kg armering | G84: 1.15 | H84: m²/m² | I84: 547.4 | J84: m² | K84: 237516.86 | L84: kg | M84: 0 | N84: 0 | O84: 0 | P84: 0 | Q84: 38356.318 | R84: 0 | S84: 0 | T84: 0 | U84: 0 | V84: 776.7606 | W84: 561.19448 | X84: -650.3112 | Y84: 39694.27308
A85: 84 | B85: Indervægge | C85: Bærende indervægge | D85: Betonvægge (221003-221004) | E85: Vægside, malerbehandling, silikatmaling, fuldspartling | F85: Puds, kalk-gips, inde | G85: 0.45 | H85: kg/m² | I85: 3.28635 | J85: m³ | K85: 2957.715 | L85: kg | M85: 0 | N85: 0 | O85: 0 | P85: 0 | Q85: 849.5379068 | R85: 0 | S85: 0 | T85: 0 | U85: 0 | V85: 0 | W85: 57.69680378 | X85: 0 | Y85: 907.2347105
A86: 85 | B86: Indervægge | C86: Bærende indervægge | D86: Betonvægge (221003-221004) | E86: Vægside, malerbehandling, silikatmaling, fuldspartling | F86: Silikatmaling (indendørs) | G86: 0.38 | H86: kg/m² | I86: 2497.626 | J86: kg | K86: 2497.626 | L86: kg | M86: 3 | N86: 0 | O86: 0 | P86: 0 | Q86: 3100.802679 | R86: 0 | S86: 0 | T86: 9328.347631 | U86: 0 | V86: 8.646531449 | W86: 0 | X86: 0 | Y86: 12437.79684
A87: 86 | B87: Indervægge | C87: Ikke-bærende indervægge | D87: Fortsatsvæg i affaldsrum (224015) | E87: Slag- og vandfast plade | F87: Cembrit Windstopper Basic | G87: 11.7 | H87: kg/m² | I87: 87.8 | J87: m² | K87: 1027.26 | L87: kg | M87: 0 | N87: 0 | O87: 0 | P87: 0 | Q87: 395.1 | R87: 0 | S87: 0 | T87: 0 | U87: 0 | V87: 0 | W87: 15.41458944 | X87: 0 | Y87: 410.5145894
A88: 87 | B88: Indervægge | C88: Ikke-bærende indervægge | D88: Fortsatsvæg i affaldsrum (224015) | E88: Træskelet 195 mm | F88: Fastgørelsesmidler/skruer i galvaniseret stål | G88: 0.05 | H88: kg/m² | I88: 4.39 | J88: kg | K88: 4.39 | L88: kg | M88: 0 | N88: 0 | O88: 0 | P88: 0 | Q88: 20.28844207 | R88: 0 | S88: 0 | T88: 0 | U88: 0 | V88: 0 | W88: 0.00389257349 | X88: -10.33320834 | Y88: 20.29233464
A89: 88 | B89: Indervægge | C89: Ikke-bærende indervægge | D89: Fortsatsvæg i affaldsrum (224015) | E89: Træskelet 195 mm | F89: ISOVER Formstykker kl. 37 (37 mm) | G89: 5.27 | H89: m²/m² | I89: 462.706 | J89: m² | K89: 256.80183 | L89: kg | M89: 0 | N89: 0 | O89: 0 | P89: 0 | Q89: 204.053346 | R89: 0 | S89: 0 | T89: 0 | U89: 0 | V89: 0 | W89: 4.01628808 | X89: 0 | Y89: 208.0696341
A90: 89 | B90: Indervægge | C90: Ikke-bærende indervægge | D90: Fortsatsvæg i affaldsrum (224015) | E90: Træskelet 195 mm | F90: Savede og tørrede konstruktionstræprodukter af fyr og gran, Fobrænding | G90: 0.0195 | H90: m³/m² | I90: 1.7121 | J90: m³ | K90: 780.7176 | L90: kg | M90: 0 | N90: 0 | O90: 0 | P90: 0 | Q90: -1280.6508 | R90: 0 | S90: 0 | T90: 0 | U90: 0 | V90: 1371.04968 | W90: 0 | X90: -698.70801 | Y90: 90.39888
A91: 90 | B91: Indervægge | C91: Ikke-bærende indervægge | D91: Glasvæg ved køkken (226001) | E91: Glasvæg (komplet væg) | F91: Aluminiumsprofil | G91: 0.5 | H91: kg/m² | I91: 334 | J91: kg | K91: 334 | L91: kg | M91: 0 | N91: 0 | O91: 0 | P91: 0 | Q91: 4635.9534 | R91: 0 | S91: 0 | T91: 0 | U91: 0 | V91: 0 | W91: 0.296154794 | X91: -3589.870076 | Y91: 4636.249555
A92: 91 | B92: Indervægge | C92: Ikke-bærende indervægge | D92: Glasvæg ved køkken (226001) | E92: Glasvæg (komplet væg) | F92: Fastgørelsesmidler/skruer i galvaniseret stål | G92: 0.05 | H92: kg/m² | I92: 33.4 | J92: kg | K92: 33.4 | L92: kg | M92: 0 | N92: 0 | O92: 0 | P92: 0 | Q92: 154.3585342 | R92: 0 | S92: 0 | T92: 0 | U92: 0 | V92: 0 | W92: 0.0296154794 | X92: -78.6171204 | Y92: 154.3881497
A93: 92 | B93: Indervægge | C93: Ikke-bærende indervægge | D93: Glasvæg ved køkken (226001) | E93: Glasvæg (komplet væg) | F93: Glas 3 mm | G93: 5.67 | H93: m²/m² | I93: 3787.56 | J93: m² | K93: 37875.6 | L93: kg | M93: 0 | N93: 0 | O93: 0 | P93: 0 | Q93: 65629.21103 | R93: 0 | S93: 0 | T93: 0 | U93: 0 | V93: 0 | W93: 806.0158721 | X93: 0 | Y93: 66435.2269
A94: 93 | B94: Indervægge | C94: Ikke-bærende indervægge | D94: Glasvæg ved køkken (226001) | E94: Glasvæg (komplet væg) | F94: Tætningsliste, EPDB, ekstruderet | G94: 0.03 | H94: kg/m² | I94: 20.04 | J94: kg | K94: 20.04 | L94: kg | M94: 0 | N94: 0 | O94: 0 | P94: 0 | Q94: 108.5790046 | R94: 0 | S94: 0 | T94: 0 | U94: 0 | V94: 74.94561204 | W94: 0 | X94: -44.1763764 | Y94: 183.5246166
A95: 94 | B95: Indervægge | C95: Ikke-bærende indervægge | D95: Lejlighedsskel (224001) | E95: Stålskelet 2x70 mm | F95: Fastgørelsesmidler/skruer i galvaniseret stål | G95: 0.05 | H95: kg/m² | I95: 4.0215 | J95: kg | K95: 4.0215 | L95: kg | M95: 0 | N95: 0 | O95: 0 | P95: 0 | Q95: 18.58541453 | R95: 0 | S95: 0 | T95: 0 | U95: 0 | V95: 0 | W95: 0.003565827856 | X95: -9.465830829 | Y95: 18.58898036
A96: 95 | B96: Indervægge | C96: Ikke-bærende indervægge | D96: Lejlighedsskel (224001) | E96: Stålskelet 2x70 mm | F96: Gyproc stålprofiler og tilbehør | G96: 3.7 | H96: kg/m² | I96: 297.591 | J96: kg | K96: 297.591 | L96: kg | M96: 0 | N96: 0 | O96: 0 | P96: 0 | Q96: 863.0139 | R96: 0 | S96: 0 | T96: 0 | U96: 0 | V96: 0.7142184 | W96: 0 | X96: -476.1456 | Y96: 863.7281184
A97: 96 | B97: Indervægge | C97: Ikke-bærende indervægge | D97: Lejlighedsskel (224001) | E97: Stålskelet 2x70 mm | F97: ISOVER Formstykker kl. 37 (37 mm) | G97: 3.78 | H97: m²/m² | I97: 304.0254 | J97: m² | K97: 168.734097 | L97: kg | M97: 0 | N97: 0 | O97: 0 | P97: 0 | Q97: 134.0752014 | R97: 0 | S97: 0 | T97: 0 | U97: 0 | V97: 0 | W97: 2.638940472 | X97: 0 | Y97: 136.7141419
A98: 97 | B98: Indervægge | C98: Ikke-bærende indervægge | D98: Lejlighedsskel (224001) | E98: Vægside, gipskartonplade 2 lag | F98: Fastgørelsesmidler/skruer i galvaniseret stål | G98: 0.05 | H98: kg/m² | I98: 8.043 | J98: kg | K98: 8.043 | L98: kg | M98: 0 | N98: 0 | O98: 0 | P98: 0 | Q98: 37.17082906 | R98: 0 | S98: 0 | T98: 0 | U98: 0 | V98: 0 | W98: 0.007131655713 | X98: -18.93166166 | Y98: 37.17796071
A99: 98 | B99: Indervægge | C99: Ikke-bærende indervægge | D99: Lejlighedsskel (224001) | E99: Vægside, gipskartonplade 2 lag | F99: Gyproc Normal (12,5 mm) | G99: 2 | H99: m²/m² | I99: 321.72 | J99: m² | K99: 2895.48 | L99: kg | M99: 0 | N99: 0 | O99: 0 | P99: 0 | Q99: 707.784 | R99: 0 | S99: 0 | T99: 0 | U99: 0 | V99: 0 | W99: 38.6064 | X99: 6.4344 | Y99: 746.3904
A100: 99 | B100: Indervægge | C100: Ikke-bærende indervægge | D100: Lejlighedsskel (224001) | E100: Vægside, malerbehandling, silikatmaling, fuldspartling | F100: Puds, kalk-gips, inde | G100: 0.45 | H100: kg/m² | I100: 0.08043 | J100: m³ | K100: 72.387 | L100: kg | M100: 0 | N100: 0 | O100: 0 | P100: 0 | Q100: 20.79155715 | R100: 0 | S100: 0 | T100: 0 | U100: 0 | V100: 0 | W100: 1.412069295 | X100: 0 | Y100: 22.20362645
A101: 100 | B101: Indervægge | C101: Ikke-bærende indervægge | D101: Lejlighedsskel (224001) | E101: Vægside, malerbehandling, silikatmaling, fuldspartling | F101: Silikatmaling (indendørs) | G101: 0.38 | H101: kg/m² | I101: 61.1268 | J101: kg | K101: 61.1268 | L101: kg | M101: 3 | N101: 0 | O101: 0 | P101: 0 | Q101: 75.8889222 | R101: 0 | S101: 0 | T101: 228.3016112 | U101: 0 | V101: 0.2116148689 | W101: 0 | X101: 0 | Y101: 304.4021483
A102: 101 | B102: Indervægge | C102: Ikke-bærende indervægge | D102: Rørkasse (225003) | E102: Træskelet 45 mm | F102: Fastgørelsesmidler/skruer i galvaniseret stål | G102: 0.05 | H102: kg/m² | I102: 18.764 | J102: kg | K102: 18.764 | L102: kg | M102: 0 | N102: 0 | O102: 0 | P102: 0 | Q102: 86.71806993 | R102: 0 | S102: 0 | T102: 0 | U102: 0 | V102: 0 | W102: 0.01663786992 | X102: -44.16681578 | Y102: 86.7347078
A103: 102 | B103: Indervægge | C103: Ikke-bærende indervægge | D103: Rørkasse (225003) | E103: Træskelet 45 mm | F103: ISOVER Formstykker kl. 37 (37 mm) | G103: 1.22 | H103: m²/m² | I103: 457.8416 | J103: m² | K103: 254.102088 | L103: kg | M103: 0 | N103: 0 | O103: 0 | P103: 0 | Q103: 201.9081456 | R103: 0 | S103: 0 | T103: 0 | U103: 0 | V103: 0 | W103: 3.974065088 | X103: 0 | Y103: 205.8822107
A104: 103 | B104: Indervægge | C104: Ikke-bærende indervægge | D104: Rørkasse (225003) | E104: Træskelet 45 mm | F104: Savede og tørrede konstruktionstræprodukter af fyr og gran, Fobrænding | G104: 0.0045 | H104: m³/m² | I104: 1.68876 | J104: m³ | K104: 770.07456 | L104: kg | M104: 0 | N104: 0 | O104: 0 | P104: 0 | Q104: -1263.19248 | R104: 0 | S104: 0 | T104: 0 | U104: 0 | V104: 1352.359008 | W104: 0 | X104: -689.182956 | Y104: 89.166528
A105: 104 | B105: Indervægge | C105: Ikke-bærende indervægge | D105: Rørkasse (225003) | E105: Vægside, gipskartonplade 2 lag | F105: Fastgørelsesmidler/skruer i galvaniseret stål | G105: 0.05 | H105: kg/m² | I105: 18.764 | J105: kg | K105: 18.764 | L105: kg | M105: 0 | N105: 0 | O105: 0 | P105: 0 | Q105: 86.71806993 | R105: 0 | S105: 0 | T105: 0 | U105: 0 | V105: 0 | W105: 0.01663786992 | X105: -44.16681578 | Y105: 86.7347078
A106: 105 | B106: Indervægge | C106: Ikke-bærende indervægge | D106: Rørkasse (225003) | E106: Vægside, gipskartonplade 2 lag | F106: Gyproc Normal (12,5 mm) | G106: 2 | H106: m²/m² | I106: 750.56 | J106: m² | K106: 6755.04 | L106: kg | M106: 0 | N106: 0 | O106: 0 | P106: 0 | Q106: 1651.232 | R106: 0 | S106: 0 | T106: 0 | U106: 0 | V106: 0 | W106: 90.0672 | X106: 15.0112 | Y106: 1741.2992
A107: 106 | B107: Indervægge | C107: Ikke-bærende indervægge | D107: Rørkasse (225003) | E107: Vægside, malerbehandling, silikatmaling, fuldspartling | F107: Puds, kalk-gips, inde | G107: 0.45 | H107: kg/m² | I107: 0.18764 | J107: m³ | K107: 168.876 | L107: kg | M107: 0 | N107: 0 | O107: 0 | P107: 0 | Q107: 48.5058782 | R107: 0 | S107: 0 | T107: 0 | U107: 0 | V107: 0 | W107: 3.29430166 | X107: 0 | Y107: 51.80017986
A108: 107 | B108: Indervægge | C108: Ikke-bærende indervægge | D108: Rørkasse (225003) | E108: Vægside, malerbehandling, silikatmaling, fuldspartling | F108: Silikatmaling (indendørs) | G108: 0.38 | H108: kg/m² | I108: 142.6064 | J108: kg | K108: 142.6064 | L108: kg | M108: 3 | N108: 0 | O108: 0 | P108: 0 | Q108: 177.0458456 | R108: 0 | S108: 0 | T108: 532.6186041 | U108: 0 | V108: 0.4936890962 | W108: 0 | X108: 0 | Y108: 710.1581388
A109: 108 | B109: Indervægge | C109: Ikke-bærende indervægge | D109: Skaktvæg (224003) | E109: Træskelet 70 mm | F109: Fastgørelsesmidler/skruer i galvaniseret stål | G109: 0.05 | H109: kg/m² | I109: 54.55 | J109: kg | K109: 54.55 | L109: kg | M109: 0 | N109: 0 | O109: 0 | P109: 0 | Q109: 252.1035342 | R109: 0 | S109: 0 | T109: 0 | U109: 0 | V109: 0 | W109: 0.04836899405 | X109: -128.4001173 | Y109: 252.1519031
A110: 109 | B110: Indervægge | C110: Ikke-bærende indervægge | D110: Skaktvæg (224003) | E110: Træskelet 70 mm | F110: ISOVER Formstykker kl. 37 (37 mm) | G110: 1.89 | H110: m²/m² | I110: 2061.99 | J110: m² | K110: 1144.40445 | L110: kg | M110: 0 | N110: 0 | O110: 0 | P110: 0 | Q110: 909.33759 | R110: 0 | S110: 0 | T110: 0 | U110: 0 | V110: 0 | W110: 17.8980732 | X110: 0 | Y110: 927.2356632
A111: 110 | B111: Indervægge | C111: Ikke-bærende indervægge | D111: Skaktvæg (224003) | E111: Træskelet 70 mm | F111: Savede og tørrede konstruktionstræprodukter af fyr og gran, Fobrænding | G111: 0.007 | H111: m³/m² | I111: 7.637 | J111: m³ | K111: 3482.472 | L111: kg | M111: 0 | N111: 0 | O111: 0 | P111: 0 | Q111: -5712.476 | R111: 0 | S111: 0 | T111: 0 | U111: 0 | V111: 6115.7096 | W111: 0 | X111: -3116.6597 | Y111: 403.2336
A112: 111 | B112: Indervægge | C112: Ikke-bærende indervægge | D112: Skaktvæg (224003) | E112: Vægside, gipskartonplade 2 lag | F112: Fastgørelsesmidler/skruer i galvaniseret stål | G112: 0.05 | H112: kg/m² | I112: 54.55 | J112: kg | K112: 54.55 | L112: kg | M112: 0 | N112: 0 | O112: 0 | P112: 0 | Q112: 252.1035342 | R112: 0 | S112: 0 | T112: 0 | U112: 0 | V112: 0 | W112: 0.04836899405 | X112: -128.4001173 | Y112: 252.1519031
A113: 112 | B113: Indervægge | C113: Ikke-bærende indervægge | D113: Skaktvæg (224003) | E113: Vægside, gipskartonplade 2 lag | F113: Gyproc Normal (12,5 mm) | G113: 2 | H113: m²/m² | I113: 2182 | J113: m² | K113: 19638 | L113: kg | M113: 0 | N113: 0 | O113: 0 | P113: 0 | Q113: 4800.4 | R113: 0 | S113: 0 | T113: 0 | U113: 0 | V113: 0 | W113: 261.84 | X113: 43.64 | Y113: 5062.24
A114: 113 | B114: Indervægge | C114: Ikke-bærende indervægge | D114: Skaktvæg (224003) | E114: Vægside, malerbehandling, silikatmaling, fuldspartling | F114: Puds, kalk-gips, inde | G114: 0.45 | H114: kg/m² | I114: 0.5455 | J114: m³ | K114: 490.95 | L114: kg | M114: 0 | N114: 0 | O114: 0 | P114: 0 | Q114: 141.0144775 | R114: 0 | S114: 0 | T114: 0 | U114: 0 | V114: 0 | W114: 9.57707075 | X114: 0 | Y114: 150.5915482
A115: 114 | B115: Indervægge | C115: Ikke-bærende indervægge | D115: Skaktvæg (224003) | E115: Vægside, malerbehandling, silikatmaling, fuldspartling | F115: Silikatmaling (indendørs) | G115: 0.38 | H115: kg/m² | I115: 414.58 | J115: kg | K115: 414.58 | L115: kg | M115: 3 | N115: 0 | O115: 0 | P115: 0 | Q115: 514.70107 | R115: 0 | S115: 0 | T115: 1548.408914 | U115: 0 | V115: 1.435234502 | W115: 0 | X115: 0 | Y115: 2064.545218
A116: 115 | B116: Indervægge | C116: Ikke-bærende indervægge | D116: Skillevæg 120 mm (224005) | E116: Træskelet 70 mm | F116: Fastgørelsesmidler/skruer i galvaniseret stål | G116: 0.05 | H116: kg/m² | I116: 4.25 | J116: kg | K116: 4.25 | L116: kg | M116: 0 | N116: 0 | O116: 0 | P116: 0 | Q116: 19.64143025 | R116: 0 | S116: 0 | T116: 0 | U116: 0 | V116: 0 | W116: 0.00376843675 | X116: -10.0036755 | Y116: 19.64519869
A117: 116 | B117: Indervægge | C117: Ikke-bærende indervægge | D117: Skillevæg 120 mm (224005) | E117: Træskelet 70 mm | F117: ISOVER Formstykker kl. 37 (37 mm) | G117: 1.89 | H117: m²/m² | I117: 160.65 | J117: m² | K117: 89.16075 | L117: kg | M117: 0 | N117: 0 | O117: 0 | P117: 0 | Q117: 70.84665 | R117: 0 | S117: 0 | T117: 0 | U117: 0 | V117: 0 | W117: 1.394442 | X117: 0 | Y117: 72.241092
A118: 117 | B118: Indervægge | C118: Ikke-bærende indervægge | D118: Skillevæg 120 mm (224005) | E118: Træskelet 70 mm | F118: Savede og tørrede konstruktionstræprodukter af fyr og gran, Fobrænding | G118: 0.007 | H118: m³/m² | I118: 0.595 | J118: m³ | K118: 271.32 | L118: kg | M118: 0 | N118: 0 | O118: 0 | P118: 0 | Q118: -445.06 | R118: 0 | S118: 0 | T118: 0 | U118: 0 | V118: 476.476 | W118: 0 | X118: -242.8195 | Y118: 31.416
A119: 118 | B119: Indervægge | C119: Ikke-bærende indervægge | D119: Skillevæg 120 mm (224005) | E119: Vægside, gipskartonplade 2 lag | F119: Fastgørelsesmidler/skruer i galvaniseret stål | G119: 0.05 | H119: kg/m² | I119: 8.5 | J119: kg | K119: 8.5 | L119: kg | M119: 0 | N119: 0 | O119: 0 | P119: 0 | Q119: 39.2828605 | R119: 0 | S119: 0 | T119: 0 | U119: 0 | V119: 0 | W119: 0.0075368735 | X119: -20.007351 | Y119: 39.29039737
A120: 119 | B120: Indervægge | C120: Ikke-bærende indervægge | D120: Skillevæg 120 mm (224005) | E120: Vægside, gipskartonplade 2 lag | F120: Gyproc Normal (12,5 mm) | G120: 2 | H120: m²/m² | I120: 340 | J120: m² | K120: 3060 | L120: kg | M120: 0 | N120: 0 | O120: 0 | P120: 0 | Q120: 748 | R120: 0 | S120: 0 | T120: 0 | U120: 0 | V120: 0 | W120: 40.8 | X120: 6.8 | Y120: 788.8
A121: 120 | B121: Indervægge | C121: Ikke-bærende indervægge | D121: Skillevæg 120 mm (224005) | E121: Vægside, malerbehandling, silikatmaling, fuldspartling | F121: Puds, kalk-gips, inde | G121: 0.45 | H121: kg/m² | I121: 0.085 | J121: m³ | K121: 76.5 | L121: kg | M121: 0 | N121: 0 | O121: 0 | P121: 0 | Q121: 21.972925 | R121: 0 | S121: 0 | T121: 0 | U121: 0 | V121: 0 | W121: 1.4923025 | X121: 0 | Y121: 23.4652275
A122: 121 | B122: Indervægge | C122: Ikke-bærende indervægge | D122: Skillevæg 120 mm (224005) | E122: Vægside, malerbehandling, silikatmaling, fuldspartling | F122: Silikatmaling (indendørs) | G122: 0.38 | H122: kg/m² | I122: 64.6 | J122: kg | K122: 64.6 | L122: kg | M122: 3 | N122: 0 | O122: 0 | P122: 0 | Q122: 80.2009 | R122: 0 | S122: 0 | T122: 241.2736162 | U122: 0 | V122: 0.22363874 | W122: 0 | X122: 0 | Y122: 321.698155
A123: 122 | B123: Indervægge | C123: Ikke-bærende indervægge | D123: Skillevæg 95 mm (224009) | E123: Træskelet 45 mm | F123: Fastgørelsesmidler/skruer i galvaniseret stål | G123: 0.05 | H123: kg/m² | I123: 114.5745 | J123: kg | K123: 114.5745 | L123: kg | M123: 0 | N123: 0 | O123: 0 | P123: 0 | Q123: 529.5075412 | R123: 0 | S123: 0 | T123: 0 | U123: 0 | V123: 0 | W123: 0.101592178 | X123: -269.6861455 | Y123: 529.6091334
A124: 123 | B124: Indervægge | C124: Ikke-bærende indervægge | D124: Skillevæg 95 mm (224009) | E124: Træskelet 45 mm | F124: ISOVER Formstykker kl. 37 (37 mm) | G124: 1.22 | H124: m²/m² | I124: 2795.6178 | J124: m² | K124: 1551.567879 | L124: kg | M124: 0 | N124: 0 | O124: 0 | P124: 0 | Q124: 1232.86745 | R124: 0 | S124: 0 | T124: 0 | U124: 0 | V124: 0 | W124: 24.2659625 | X124: 0 | Y124: 1257.133412
A125: 124 | B125: Indervægge | C125: Ikke-bærende indervægge | D125: Skillevæg 95 mm (224009) | E125: Træskelet 45 mm | F125: Savede og tørrede konstruktionstræprodukter af fyr og gran, Fobrænding | G125: 0.0045 | H125: m³/m² | I125: 10.311705 | J125: m³ | K125: 4702.13748 | L125: kg | M125: 0 | N125: 0 | O125: 0 | P125: 0 | Q125: -7713.15534 | R125: 0 | S125: 0 | T125: 0 | U125: 0 | V125: 8257.613364 | W125: 0 | X125: -4208.20681 | Y125: 544.458024
A126: 125 | B126: Indervægge | C126: Ikke-bærende indervægge | D126: Skillevæg 95 mm (224009) | E126: Vægside, gipskartonplade 2 lag | F126: Fastgørelsesmidler/skruer i galvaniseret stål | G126: 0.05 | H126: kg/m² | I126: 229.149 | J126: kg | K126: 229.149 | L126: kg | M126: 0 | N126: 0 | O126: 0 | P126: 0 | Q126: 1059.015082 | R126: 0 | S126: 0 | T126: 0 | U126: 0 | V126: 0 | W126: 0.203184356 | X126: -539.3722911 | Y126: 1059.218267
A127: 126 | B127: Indervægge | C127: Ikke-bærende indervægge | D127: Skillevæg 95 mm (224009) | E127: Vægside, gipskartonplade 2 lag | F127: Gyproc Normal (12,5 mm) | G127: 2 | H127: m²/m² | I127: 9165.96 | J127: m² | K127: 82493.64 | L127: kg | M127: 0 | N127: 0 | O127: 0 | P127: 0 | Q127: 20165.112 | R127: 0 | S127: 0 | T127: 0 | U127: 0 | V127: 0 | W127: 1099.9152 | X127: 183.3192 | Y127: 21265.0272
A128: 127 | B128: Indervægge | C128: Ikke-bærende indervægge | D128: Skillevæg 95 mm (224009) | E128: Vægside, malerbehandling, silikatmaling, fuldspartling | F128: Puds, kalk-gips, inde | G128: 0.45 | H128: kg/m² | I128: 2.29149 | J128: m³ | K128: 2062.341 | L128: kg | M128: 0 | N128: 0 | O128: 0 | P128: 0 | Q128: 592.3616225 | R128: 0 | S128: 0 | T128: 0 | U128: 0 | V128: 0 | W128: 40.23054419 | X128: 0 | Y128: 632.5921666
A129: 128 | B129: Indervægge | C129: Ikke-bærende indervægge | D129: Skillevæg 95 mm (224009) | E129: Vægside, malerbehandling, silikatmaling, fuldspartling | F129: Silikatmaling (indendørs) | G129: 0.38 | H129: kg/m² | I129: 1741.5324 | J129: kg | K129: 1741.5324 | L129: kg | M129: 3 | N129: 0 | O129: 0 | P129: 0 | Q129: 2162.112475 | R129: 0 | S129: 0 | T129: 6504.424457 | U129: 0 | V129: 6.029011016 | W129: 0 | X129: 0 | Y129: 8672.565942
A130: 129 | B130: Søjler og bjælker | C130: Søjler | D130: Søjler og bjælker | E130: Beton C45/55 inkl. armering | F130: Armeringsnet | G130: 110 | H130: kg/m³ | I130: 6160 | J130: kg | K130: 6160 | L130: kg | M130: 0 | N130: 0 | O130: 0 | P130: 0 | Q130: 5472.30684 | R130: 0 | S130: 0 | T130: 0 | U130: 0 | V130: 0 | W130: 5.46201656 | X130: -3147.144 | Y130: 5477.768857
A131: 130 | B131: Søjler og bjælker | C131: Søjler | D131: Søjler og bjælker | E131: Beton C45/55 inkl. armering | F131: FutureCEM_Fabriksbeton(C40/50, C45/55), C45/55 (Fundament) | G131: 1 | H131: m³/m³ | I131: 56 | J131: m³ | K131: 124824 | L131: kg | M131: 0 | N131: 0 | O131: 0 | P131: 0 | Q131: 22422.4 | R131: 0 | S131: 0 | T131: 0 | U131: 0 | V131: 415.8 | W131: 307.384 | X131: -284.592 | Y131: 23145.584
A132: 131 | B132: Søjler og bjælker | C132: Søjler | D132: Søjler og bjælker | E132: Beton C45/55 inkl. armering | F132: Armeringsnet | G132: 110 | H132: kg/m³ | I132: 2200 | J132: kg | K132: 2200 | L132: kg | M132: 0 | N132: 0 | O132: 0 | P132: 0 | Q132: 1954.3953 | R132: 0 | S132: 0 | T132: 0 | U132: 0 | V132: 0 | W132: 1.9507202 | X132: -1123.98 | Y132: 1956.34602
A133: 132 | B133: Søjler og bjælker | C133: Søjler | D133: Søjler og bjælker | E133: Beton C45/55 inkl. armering | F133: FutureCEM_Fabriksbeton(C40/50, C45/55), C45/55 (Fundament) | G133: 1 | H133: m³/m³ | I133: 20 | J133: m³ | K133: 44580 | L133: kg | M133: 0 | N133: 0 | O133: 0 | P133: 0 | Q133: 8008 | R133: 0 | S133: 0 | T133: 0 | U133: 0 | V133: 148.5 | W133: 109.78 | X133: -101.64 | Y133: 8266.28
A134: 133 | B134: Søjler og bjælker | C134: Søjler | D134: Søjler og bjælker | E134: Samlinger | F134: Stålprofil | G134: 1 | H134: kg/kg | I134: 101853.8 | J134: kg | K134: 101853.8 | L134: kg | M134: 0 | N134: 0 | O134: 0 | P134: 0 | Q134: 131674.2704 | R134: 0 | S134: 0 | T134: 0 | U134: 0 | V134: 0 | W134: 90.31284778 | X134: -52037.10642 | Y134: 131764.5832
A135: 134 | B135: Søjler og bjælker | C135: Søjler | D135: Søjler og bjælker | E135: Stålbjælker | F135: Stålprofil | G135: 1 | H135: kg/kg | I135: 2221.55 | J135: kg | K135: 2221.55 | L135: kg | M135: 0 | N135: 0 | O135: 0 | P135: 0 | Q135: 2871.969189 | R135: 0 | S135: 0 | T135: 0 | U135: 0 | V135: 0 | W135: 1.969828391 | X135: -1134.989895 | Y135: 2873.939017
A136: 135 | B136: Søjler og bjælker | C136: Søjler | D136: Søjler og bjælker | E136: Søjler, limtræ | F136: Limtræs-produkter af fyr og gran, Fobrænding | G136: 1 | H136: m³/m³ | I136: 174 | J136: m³ | K136: 87000 | L136: kg | M136: 0 | N136: 0 | O136: 0 | P136: 0 | Q136: -116754 | R136: 0 | S136: 0 | T136: 0 | U136: 0 | V136: 142210.2 | W136: 0 | X136: -75603 | Y136: 25456.2
A137: 136 | B137: Søjler og bjælker | C137: Søjler | D137: Søjler og bjælker, kælder | E137: Beton C45/55 inkl. armering | F137: Armeringsnet | G137: 110 | H137: kg/m³ | I137: 5918 | J137: kg | K137: 5918 | L137: kg | M137: 0 | N137: 0 | O137: 0 | P137: 0 | Q137: 5257.323357 | R137: 0 | S137: 0 | T137: 0 | U137: 0 | V137: 0 | W137: 5.247437338 | X137: -3023.5062 | Y137: 5262.570794
A138: 137 | B138: Søjler og bjælker | C138: Søjler | D138: Søjler og bjælker, kælder | E138: Beton C45/55 inkl. armering | F138: FutureCEM_Fabriksbeton(C40/50, C45/55), C45/55 (Fundament) | G138: 1 | H138: m³/m³ | I138: 53.8 | J138: m³ | K138: 119920.2 | L138: kg | M138: 0 | N138: 0 | O138: 0 | P138: 0 | Q138: 21541.52 | R138: 0 | S138: 0 | T138: 0 | U138: 0 | V138: 399.465 | W138: 295.3082 | X138: -273.4116 | Y138: 22236.2932
A139: 138 | B139: Søjler og bjælker | C139: Søjler | D139: Søjler og bjælker, kælder | E139: Kompositbjælke, 1-sidet, 220/250 (til 220 mm dæk) | F139: FutureCEM_Fabriksbeton (C30/37, C35/45 SCC), C35/45 SCC (gulv) | G139: 221.76 | H139: kg/m | I139: 1.633192547 | J139: m³ | K139: 3681.216 | L139: kg | M139: 0 | N139: 0 | O139: 0 | P139: 0 | Q139: 427.5698087 | R139: 0 | S139: 0 | T139: 0 | U139: 0 | V139: 11.74918718 | W139: 8.677152 | X139: -8.030407752 | Y139: 447.9961479
A140: 139 | B140: Søjler og bjælker | C140: Søjler | D140: Søjler og bjælker, kælder | E140: Kompositbjælke, 1-sidet, 220/250 (til 220 mm dæk) | F140: Stålprofil | G140: 56.0238 | H140: kg/m | I140: 929.99508 | J140: kg | K140: 929.99508 | L140: kg | M140: 0 | N140: 0 | O140: 0 | P140: 0 | Q140: 1202.276436 | R140: 0 | S140: 0 | T140: 0 | U140: 0 | V140: 0 | W140: 0.8246182675 | X140: -475.1344864 | Y140: 1203.101054
A141: 140 | B141: Søjler og bjælker | C141: Søjler | D141: Søjler og bjælker, kælder | E141: Kompositbjælke, 2-sidet, 220/400 (til 220 mm dæk) | F141: FutureCEM_Fabriksbeton (C30/37, C35/45 SCC), C35/45 SCC (gulv) | G141: 417.12 | H141: kg/m | I141: 3.349543922 | J141: m³ | K141: 7549.872 | L141: kg | M141: 0 | N141: 0 | O141: 0 | P141: 0 | Q141: 876.9105988 | R141: 0 | S141: 0 | T141: 0 | U141: 0 | V141: 24.09661897 | W141: 17.79612686 | X141: -16.46970746 | Y141: 918.8033446
A142: 141 | B142: Søjler og bjælker | C142: Søjler | D142: Søjler og bjælker, kælder | E142: Kompositbjælke, 2-sidet, 220/400 (til 220 mm dæk) | F142: Stålprofil | G142: 76.0129 | H142: kg/m | I142: 1375.83349 | J142: kg | K142: 1375.83349 | L142: kg | M142: 0 | N142: 0 | O142: 0 | P142: 0 | Q142: 1778.646167 | R142: 0 | S142: 0 | T142: 0 | U142: 0 | V142: 0 | W142: 1.219939173 | X142: -702.91333 | Y142: 1779.866106
A143: 142 | B143: Tage | C143: Tage | D143: Murkrone | E143: Beklædning | F143: Fastgørelsesmidler/skruer i galvaniseret stål | G143: 0.15 | H143: kg/m² | I143: 24.225 | J143: kg | K143: 24.225 | L143: kg | M143: 0 | N143: 0 | O143: 0 | P143: 0 | Q143: 111.9561524 | R143: 0 | S143: 0 | T143: 0 | U143: 0 | V143: 0 | W143: 0.02148008947 | X143: -57.02095035 | Y143: 111.9776325
